Workbook

Sheet TOC
C2: TOC
F3: Colour Codes | K3: File Name: | M3: =IFERROR(File_name(),"") -> 
C4: Diagram | G4: Inputs | I4: 1234567890
G5: Section Titles | I5: TITLE ROW | K5: Last Save Date | M5: =IFERROR(lastsaved(),"") -> 
C6: Scenario | G6: Sum Column | I6: 1000000000
D7: Master Scenario | G7: True or 1 | I7: =1=1 -> TRUE | K7: Last Save By | M7: =IFERROR(last_save_by(),"") -> 
D8: Availability | G8: False or 0 | I8: =1=2 -> FALSE
D9: Capacity Factor | G9: Other Sheet Links | I9: |||||||||||||||||||
D10: Gas Price
D11: Variable O&M
D12: Transposed
C14: Assumptions
D15: Timminig Input
D16: Operating Inputs:
D17: EPC Cost:
D18: Operation and Maintenance Costs
D19: PPA Contract:
D20: Debt Size
D21: Funding
D22: Re-Payment
D23: Interest Rate
D24: Range Names
C26: Financial Model
D27: Plant Operations:
D28: Free Cash Flow:
D29: PPA Revenues:
D30: Sources and Uses Summary:
D31: Pre-COD Funding
D32: Debt Repayment
D33: Cash Flow Water Fall:
D34: Outputs:
C36: Annual Model
D37: TOC
D38: Plant Operations:
D39: Free Cash Flow:
D40: PPA Revenues:
D41: Sources and Uses Summary:
D42: Pre-COD Funding
D43: Debt Repayment
D44: Cash Flow Water Fall:
D45: Outputs:

Sheet Diagram
K2: Plant Operation
C3: Purchased Power Agreement | K3: Capacity | M3: =Capacity -> 300 | T3: Off-taker - Barisma | V3: Levelised Cost of Electricity | Y3: ='Financial Model'!G88 -> 54.38561154
C4: Capacity Charge | E4: =Assumptions!E52 -> 25 | T4: =T3&CHAR(10)&V3&TEXT(Y3," ##.00") -> Off-taker - Barisma Levelised Cost of Electricity 54.39
C5: Target Heat Rate | E5: =Assumptions!E31 -> 6.5 | K5: Actual Heat Rate | M5: =Assumptions!E30 -> 6.5
C6: Target Availability | E6: =Assumptions!E28 -> 0.95
C7: Variabile O&M Charge | E7: =Assumptions!E53 -> 5.5 | G7: PPA Agreement
C8: Fixed O&M Charge | E8: =Assumptions!E54 -> 6
I10: Gas Supply Agreement
C11: EPC Contract | T11: SPV | U11: Lee Pong | V11: Project IRR | W11: ='Financial Model'!F78 -> 0.08780923188
C12: Total Cost | D12: =Assumptions!E35 -> 500000 | T12: =T11&U11&CHAR(10)&V11&TEXT(W11," ##.00%") -> SPV Lee Pong Project IRR 8.78%
C13: Months | D13: =Assumptions!E8 -> 35
J14: O&M Agreement
T15: Stormy O&M | V15: Fixed O&M | X15: =Assumptions!E48 -> 7
T16: =T15&CHAR(10)&V15&TEXT(X15," ##.00") -> Stormy O&M Fixed O&M 7.00
H18: Loan Agreement | T18: Gas Supply Agreement | V18: Prince Andrew
H19: Debt/Cap | I19: =Assumptions!$E$61 -> 0.76 | T19: =T18&CHAR(10)&V18 -> Gas Supply Agreement Prince Andrew
H20: Tenure | I20: =Assumptions!E71 -> 20
H21: Int Rate | I21: =Assumptions!E79 -> 0.06 | T21: Lender: Lehman Brothers | U21: DSCR | V21: ='Financial Model'!F155 -> 1.439690074
T22: =T21&CHAR(10)&U21&TEXT(V21," ##.00") -> Lender: Lehman Brothers DSCR 1.44
T25: EPC Contractor | V25: Enron
T26: =T25&CHAR(10)&V25 -> EPC Contractor Enron
T28: Equity Investor | U28: Equity IRR | V28: ='Financial Model'!F150 -> 0.1588746011
T29: =T28&CHAR(10)&U28&TEXT(V28," ##.00%") -> Equity Investor Equity IRR 15.89%

Sheet Scenario
A3: Master Scenario
C4: Scenario Code | D4: 1
H5: 1 | I5: 2 | J5: 3
F6: =INDEX(H6:M6,$D$4) -> Base Case | H6: Base Case | I6: Low Case | J6: High Case
C7: Capacity | D7: MW | E7: =C7&" Scenario" -> Capacity Scenario | F7: =INDEX(H7:O7,$D$4) -> 300 | H7: 300 | I7: 280 | J7: 305
C8: Actual Heat Rate | D8: MMBTU/MWH | E8: =C8&" Scenario" -> Actual Heat Rate Scenario | F8: 6.5 | H8: 6.5 | I8: 6.7 | J8: 6.4
C9: Capacity Factor | D9: % | E9: Capacity Factor Scenario | F9: 1 | G9: =INDEX(C32:C34,Capacity_Factor_Scenario) -> Base Case | H9: 1 | I9: 3 | J9: 2
C10: Gas Price | D10: USD/MMBTU | E10: Gas Price Scenario | F10: 1 | G10: =INDEX(C43:C45,Gas_Price_Scenario) -> Base Case | H10: 1 | I10: 3 | J10: 2
C11: Availabilty | D11: % | E11: Availabilty Scenario | F11: 1 | G11: =INDEX(C22:C24,Availabilty__Scenario) -> Base Availability | H11: 1 | I11: 2 | J11: 3
C12: Actual Variable O&M | D12: USD/MWH | E12: Actual Variable O&M Scenario | F12: 1 | G12: =INDEX(C53:C55,Actual_Variable_O_M_Scenario) -> Base Case | H12: 1 | I12: 3 | J12: 2
C13: Actual Fixed O&M | D13: USD/kW-yr | E13: Actual Fixed O&M Scenario | F13: 7 | H13: 7 | I13: 8 | J13: 6
C14: Construction Period | D14: Month | E14: Construction Period Scenario | F14: 35 | H14: 35 | I14: 50 | J14: 30
C15: Construction Cost | D15: USD Million | E15: Construction Cost Scenario | F15: 500 | H15: 500 | I15: 600 | J15: 490
A18: Availability
C19: Availability Scenario | D19: 2 | E19: =C11 -> Availabilty
F21: =Assumptions!E7 -> 2020-04-01 | G21: =Assumptions!E9 -> 2023-03-01 | H21: =EDATE(G21,24) -> 2025-03-01 | I21: =EDATE(H21,24) -> 2027-03-01
C22: Base Availability | E22: % | G22: 0.9 | H22: 0.95 | I22: 0.91
C23: Low Availability | E23: % | G23: 0.9 | H23: 0.9 | I23: 0.9
C24: High Availability | E24: % | G24: 0.94 | H24: 0.94 | I24: 0.94
C26: =INDEX(C22:C24,$D$19) -> Low Availability | G26: =INDEX(G22:G24,$D$19) -> 0.9 | H26: =INDEX(H22:H24,$D$19) -> 0.9 | I26: 0.9
A28: Capacity Factor
C29: Capacity Factor Code | D29: 2 | E29: =C9 -> Capacity Factor
C31: Capacity Factor | F31: =Assumptions!E7 -> 2020-04-01 | G31: =Assumptions!F22 -> 2023-03-01 | H31: =EDATE(G31,24) -> 2025-03-01 | I31: =EDATE(H31,24) -> 2027-03-01
C32: Base Case | F32: 0 | G32: 0.85 | H32: 0.83 | I32: 0.8
C33: Best Capacity Factor Case | F33: 0 | G33: 0.65 | H33: 0.7 | I33: 0.56
C34: Worst Capacity Factor Case | F34: 0 | G34: 0.9 | H34: 0.86 | I34: 0.85
C36: =INDEX(C32:C34,$D$29) -> Best Capacity Factor Case | F36: =INDEX(F32:F34,$D$29) -> 0 | G36: =INDEX(G32:G34,$D$29) -> 0.65 | H36: 0.7 | I36: 0.56
A39: Gas Price
C40: Gas Price Code | D40: 1 | E40: =C10 -> Gas Price
F42: 2020 | G42: 2025 | H42: 2030
C43: Base Case | F43: 2.5 | G43: 2.8 | H43: 3
C44: Low Gas Price | F44: 2.5 | G44: 2.5 | H44: 2.5
C45: High Gas Price | F45: 4 | G45: 4.5 | H45: 5
C47: =INDEX(C43:C45,$D$40) -> Base Case | F47: =INDEX(F43:F45,$D$40) -> 2.5 | G47: =INDEX(G43:G45,$D$40) -> 2.8 | H47: 3
A49: Variable O&M
C50: Variable O&M Code | D50: 1 | E50: =C12 -> Actual Variable O&M
F52: 2020 | G52: 2025 | H52: 2030
C53: Base Case | F53: 5 | G53: 5.5 | H53: 6
C54: Low Variable O&M | F54: 4 | G54: 4 | H54: 4.2
C55: High Variable O&M | F55: 5.5 | G55: 6 | H55: 7
C57: =INDEX(C53:C55,$D$50) -> Base Case | F57: =INDEX(F53:F55,$D$50) -> 5 | G57: =INDEX(G53:G55,$D$50) -> 5.5 | H57: =INDEX(H53:H55,$D$50) -> 6
A60: Transposed
D61: =TRANSPOSE(H6:J6) -> Base Case
D62: Low Case
D63: High Case

Sheet Assumptions
B1: Assumptions
C3: Scenario | D3: Code | E3: =Scenario!D4 -> 1 | F3: =Scenario!$F$6 -> Base Case
A5: Timminig Input
B7: Financial Close Date | D7: Date | E7: 2020-04-01
B8: Construction Period | D8: Month | E8: 35 | F8: =Scenario!C14 -> Construction Period
B9: Commercial Operation Date | D9: Date | E9: =EDATE(E7,E8) -> 2023-03-01
B10: Operating Period | D10: Years | E10: 20
B11: Decommissioning Date | D11: Date | E11: =EDATE(E9,E10*12) -> 2043-03-01
B13: Months per period - Pre-COD | D13: Month | E13: 1
B14: Months per period - Post-COD | D14: Month | E14: 3
B16: Fiscal Year End | D16: Month | E16: =MONTH(EDATE(E9,-1)) -> 2
A18: Operating Inputs:
B20: Capacity | D20: MW | E20: 300 | F20: =Scenario!C7 -> Capacity
E22: =E7 -> 2020-04-01 | F22: =E9 -> 2023-03-01 | G22: =EDATE(F22,24) -> 2025-03-01 | H22: =EDATE(G22,24) -> 2027-03-01
B23: Capacity Factor | D23: % | E23: =Scenario!F36 -> 0 | F23: =Scenario!G36 -> 0.65 | G23: =Scenario!H36 -> 0.7 | H23: =Scenario!I36 -> 0.56
E25: =E7 -> 2020-04-01 | F25: =E9 -> 2023-03-01 | G25: =EDATE(F25,24) -> 2025-03-01 | H25: =EDATE(G25,24) -> 2027-03-01
B26: Actual Availability | D26: % | E26: =Scenario!F26 -> 0 | F26: =Scenario!G26 -> 0.9 | G26: =Scenario!H26 -> 0.9 | H26: =Scenario!I26 -> 0.9
B28: Targeted Availability | D28: % | E28: =Target_Availability/100 -> 0.95 | G28: 95 | H28: Target Availability | J28: Base Availability | K28: 95
B30: Actual Heat Rate | D30: MMBTU / MWh | E30: =G30/1000 -> 6.5 | G30: 6500 | H30: =Scenario!C8 -> Actual Heat Rate | J30: Base Actual HR | K30: 6500
B31: Target Heat Rate | D31: MMBTU / MWh | E31: =Target_Heat_Rate/1000 -> 6.5 | G31: 6500 | H31: Target Heat Rate | J31: Base Target HR | K31: 6500
A33: EPC Cost:
B35: Total EPC Cost | D35: USD | E35: =F35*1000 -> 500000 | F35: 500 | G35: =Scenario!C15 -> Construction Cost
B37: S-Curve | F37: =E7 -> 2020-04-01 | G37: =EDATE(F37,1) -> 2020-05-01 | H37: 2020-06-01 | I37: 2020-07-01 | J37: 2020-08-01 | K37: 2020-09-01 | L37: 2020-10-01 | M37: 2020-11-01 | N37: 2020-12-01 | O37: 2021-01-01 | P37: 2021-02-01 | Q37: 2021-03-01 | R37: 2021-04-01 | S37: 2021-05-01 | T37: 2021-06-01 | U37: 2021-07-01 | V37: 2021-08-01 | W37: 2021-09-01 | X37: 2021-10-01 | Y37: 2021-11-01 | Z37: 2021-12-01 | AA37: 2022-01-01 | AB37: 2022-02-01 | AC37: 2022-03-01 | AD37: 2022-04-01 | AE37: 2022-05-01 | AF37: 2022-06-01 | AG37: 2022-07-01 | AH37: 2022-08-01 | AI37: 2022-09-01 | AJ37: 2022-10-01 | AK37: 2022-11-01 | AL37: 2022-12-01 | AM37: 2023-01-01 | AN37: 2023-02-01
B38: Percentage | D38: % | E38: =SUM(F38:AN38) -> 1.000014286 | F38: 0.01 | G38: 0.01 | H38: 0.01 | I38: 0.01 | J38: 0.01 | K38: 0.03 | L38: 0.03 | M38: 0.03 | N38: 0.03 | O38: 0.03 | P38: 0.03 | Q38: 0.04 | R38: 0.04 | S38: 0.03 | T38: 0.05 | U38: 0.024 | V38: 0.07 | W38: =1/35 -> 0.02857142857 | X38: 0.0303 | Y38: =1/35 -> 0.02857142857 | Z38: 0.02857142857 | AA38: 0.02857142857 | AB38: 0.02857142857 | AC38: 0.02857142857 | AD38: 0.02857142857 | AE38: 0.02857142857 | AF38: 0.02857142857 | AG38: 0.02857142857 | AH38: 0.02857142857 | AI38: 0.02857142857 | AJ38: 0.02857142857 | AK38: 0.02857142857 | AL38: 0.02857142857 | AM38: 0.02857142857 | AN38: 0.02857142857
A41: Operation and Maintenance Costs
B43: Inflation Rate | D43: % | E43: 0.02
E45: 2020 | F45: 2025 | G45: 2030
B46: Gas Price | D46: USD/ MMBTU | E46: =Scenario!F47 -> 2.5 | F46: =Scenario!G47 -> 2.8 | G46: =Scenario!H47 -> 3
B47: Variable O&M Cost: | D47: USD / MWH | E47: =Scenario!F57 -> 5 | F47: =Scenario!G57 -> 5.5 | G47: =Scenario!H57 -> 6
B48: Fixed O&M Cost: | D48: USD /KW Year | E48: 7 | F48: =Scenario!C13 -> Actual Fixed O&M
A50: PPA Contract:
B52: Capacity Charge | D52: USD / MWh | E52: =Capacity_Charge/10 -> 25 | F52: =B52 -> Capacity Charge | G52: 250 | I52: Base Cap Chg | J52: 250
B53: Variable O&M Charge | D53: USD / MWh | E53: =Variable_O_M_Charge/10 -> 5.5 | F53: =B53 -> Variable O&M Charge | G53: 55 | I53: Base VOM | J53: 55
B54: Fixed O&M Charge | D54: USD /KW Month | E54: =Fixed_O_M_Charge/10 -> 6 | F54: Fixed O&M Charge | G54: 60 | I54: Base FOM | J54: 60
B56: LCOE Discount Rate Nominal | D56: % | E56: 0.07
B57: Inflation Rate | D57: % | E57: =E43 -> 0.02
B58: LCOE Discount Rate Real | D58: % | E58: =(1+E56)/(1+E57)-1 -> 0.04901960784
A60: Debt Size
B61: Maximum Debt to Capital | D61: % | E61: =Debt_to_Cap/100 -> 0.76 | G61: 76 | H61: Debt to Cap | J61: Base Debt Cap | K61: 75
B62: Minimum DSCR | D62: x | E62: =G62/10 -> 1.2 | G62: 12
A64: Funding
B66: Prorata | D66: Flag | E66: FALSE
B67: Equity Upfront | D67: Flag | E67: =NOT(E66) -> TRUE
A69: Re-Payment
B71: Tenure | D71: Years | E71: 20 | F71: Tenure | G71: 23 | H71: Base Tenure | I71: 15
B72: Final Repayment Date | D72: Date | E72: =EDATE(E9,E71*12) -> 2043-03-01
B74: Flat Re-payment | D74: Flag | E74: FALSE
B75: Flat Debt Service | D75: Flag | E75: =NOT(E74) -> TRUE
A77: Interest Rate
B79: Interest Rate | D79: Percent p.a. | E79: =Interest_Rate/1000 -> 0.06 | F79: Interest Rate | G79: 60 | H79: Base Int Rate | I79: 70
B80: Upfront Fee | D80: Percent | E80: 0.01
B81: Commitement Fee | D81: Percent p.a. | E81: 0.007
A84: Range Names
C85: Actual_Fixed_O_M
C86: Actual_Fixed_O_M_Scenario
C87: Actual_Heat_Rate
C88: Actual_Heat_Rate_Scenario
C89: Actual_Variable_O_M
C90: Actual_Variable_O_M_Scenario
C91: Availabilty
C92: Availabilty__Scenario
C93: Base_Actual_HR
C94: Base_Availability
C95: Base_Cap_Chg
C96: Base_Debt_Cap
C97: Base_FOM
C98: Base_Int_Rate
C99: Base_Target_HR
C100: Base_Tenure
C101: Base_VOM
C102: Capacity
C103: Capacity_Charge
C104: Capacity_Factor
C105: Capacity_Factor_Scenario
C106: Capacity_Scenario
C107: Construction_Cost
C108: Construction_Cost_Scenario
C109: Construction_Period
C110: Construction_Period_Scenario
C111: Debt_to_Cap
C112: Fixed_O_M_Charge
C113: Gas_Price
C114: Gas_Price_Scenario
C115: Interest_Rate
C116: Scenario_Code
C117: Target_Availability
C118: Target_Heat_Rate
C119: Variable_O_M_Charge

Sheet Financial Model
G1: driver | H1: driver | I1: sum
B2: Period | J2: 1 | K2: 2 | L2: 3 | M2: 4 | N2: 5 | O2: 6 | P2: 7 | Q2: 8 | R2: 9 | S2: 10 | T2: 11 | U2: 12 | V2: 13 | W2: 14 | X2: 15 | Y2: 16 | Z2: 17 | AA2: 18 | AB2: 19 | AC2: 20 | AD2: 21 | AE2: 22 | AF2: 23 | AG2: 24 | AH2: 25 | AI2: 26 | AJ2: 27 | AK2: 28 | AL2: 29 | AM2: 30 | AN2: 31 | AO2: 32 | AP2: 33 | AQ2: 34 | AR2: 35 | AS2: 36 | AT2: 37 | AU2: 38 | AV2: 39 | AW2: 40 | AX2: 41 | AY2: 42 | AZ2: 43 | BA2: 44 | BB2: 45 | BC2: 46 | BD2: 47 | BE2: 48 | BF2: 49 | BG2: 50 | BH2: 51 | BI2: 52 | BJ2: 53 | BK2: 54 | BL2: 55 | BM2: 56 | BN2: 57 | BO2: 58 | BP2: 59 | BQ2: 60 | BR2: 61 | BS2: 62 | BT2: 63 | BU2: 64 | BV2: 65 | BW2: 66 | BX2: 67 | BY2: 68 | BZ2: 69 | CA2: 70 | CB2: 71 | CC2: 72 | CD2: 73 | CE2: 74 | CF2: 75 | CG2: 76 | CH2: 77 | CI2: 78 | CJ2: 79 | CK2: 80 | CL2: 81 | CM2: 82 | CN2: 83 | CO2: 84 | CP2: 85 | CQ2: 86 | CR2: 87 | CS2: 88 | CT2: 89 | CU2: 90 | CV2: 91 | CW2: 92 | CX2: 93 | CY2: 94 | CZ2: 95 | DA2: 96 | DB2: 97 | DC2: 98 | DD2: 99 | DE2: 100 | DF2: 101 | DG2: 102 | DH2: 103 | DI2: 104 | DJ2: 105 | DK2: 106 | DL2: 107 | DM2: 108 | DN2: 109 | DO2: 110 | DP2: 111 | DQ2: 112 | DR2: 113 | DS2: 114 | DT2: 115 | DU2: 116 | DV2: 117 | DW2: 118 | DX2: 119 | DY2: 120 | DZ2: 121 | EA2: 122 | EB2: 123 | EC2: 124 | ED2: 125 | EE2: 126 | EF2: 127 | EG2: 128 | EH2: 129 | EI2: 130 | EJ2: 131 | EK2: 132 | EL2: 133 | EM2: 134 | EN2: 135 | EO2: 136 | EP2: 137 | EQ2: 138 | ER2: 139 | ES2: 140 | ET2: 141 | EU2: 142 | EV2: 143 | EW2: 144 | EX2: 145 | EY2: 146 | EZ2: 147 | FA2: 148 | FB2: 149 | FC2: 150 | FD2: 151 | FE2: 152 | FF2: 153 | FG2: 154 | FH2: 155 | FI2: 156 | FJ2: 157 | FK2: 158 | FL2: 159 | FM2: 160 | FN2: 161 | FO2: 162 | FP2: 163 | FQ2: 164 | FR2: 165 | FS2: 166 | FT2: 167 | FU2: 168 | FV2: 169 | FW2: 170 | FX2: 171 | FY2: 172 | FZ2: 173 | GA2: 174 | GB2: 175 | GC2: 176 | GD2: 177 | GE2: 178 | GF2: 179 | GG2: 180 | GH2: 181 | GI2: 182 | GJ2: 183 | GK2: 184 | GL2: 185 | GM2: 186 | GN2: 187 | GO2: 188 | GP2: 189 | GQ2: 190 | GR2: 191 | GS2: 192 | GT2: 193 | GU2: 194 | GV2: 195 | GW2: 196 | GX2: 197 | GY2: 198 | GZ2: 199 | HA2: 200
B3: Pre-COD | G3: =Assumptions!E8 -> 35 | I3: =SUM(J3:HA3) -> 35 | J3: =(J2<=$G$3)*1 -> 1 | K3: =(K2<=$G$3)*1 -> 1 | L3: =(L2<=$G$3)*1 -> 1 | M3: =(M2<=$G$3)*1 -> 1 | N3: =(N2<=$G$3)*1 -> 1 | O3: =(O2<=$G$3)*1 -> 1 | P3: =(P2<=$G$3)*1 -> 1 | Q3: =(Q2<=$G$3)*1 -> 1 | R3: =(R2<=$G$3)*1 -> 1 | S3: =(S2<=$G$3)*1 -> 1 | T3: =(T2<=$G$3)*1 -> 1 | U3: =(U2<=$G$3)*1 -> 1 | V3: =(V2<=$G$3)*1 -> 1 | W3: =(W2<=$G$3)*1 -> 1 | X3: =(X2<=$G$3)*1 -> 1 | Y3: =(Y2<=$G$3)*1 -> 1 | Z3: =(Z2<=$G$3)*1 -> 1 | AA3: =(AA2<=$G$3)*1 -> 1 | AB3: =(AB2<=$G$3)*1 -> 1 | AC3: =(AC2<=$G$3)*1 -> 1 | AD3: =(AD2<=$G$3)*1 -> 1 | AE3: =(AE2<=$G$3)*1 -> 1 | AF3: =(AF2<=$G$3)*1 -> 1 | AG3: =(AG2<=$G$3)*1 -> 1 | AH3: =(AH2<=$G$3)*1 -> 1 | AI3: =(AI2<=$G$3)*1 -> 1 | AJ3: =(AJ2<=$G$3)*1 -> 1 | AK3: =(AK2<=$G$3)*1 -> 1 | AL3: =(AL2<=$G$3)*1 -> 1 | AM3: =(AM2<=$G$3)*1 -> 1 | AN3: =(AN2<=$G$3)*1 -> 1 | AO3: =(AO2<=$G$3)*1 -> 1 | AP3: =(AP2<=$G$3)*1 -> 1 | AQ3: =(AQ2<=$G$3)*1 -> 1 | AR3: =(AR2<=$G$3)*1 -> 1 | AS3: =(AS2<=$G$3)*1 -> 0 | AT3: =(AT2<=$G$3)*1 -> 0 | AU3: =(AU2<=$G$3)*1 -> 0 | AV3: =(AV2<=$G$3)*1 -> 0 | AW3: =(AW2<=$G$3)*1 -> 0 | AX3: =(AX2<=$G$3)*1 -> 0 | AY3: =(AY2<=$G$3)*1 -> 0 | AZ3: =(AZ2<=$G$3)*1 -> 0 | BA3: =(BA2<=$G$3)*1 -> 0 | BB3: =(BB2<=$G$3)*1 -> 0 | BC3: =(BC2<=$G$3)*1 -> 0 | BD3: =(BD2<=$G$3)*1 -> 0 | BE3: =(BE2<=$G$3)*1 -> 0 | BF3: =(BF2<=$G$3)*1 -> 0 | BG3: =(BG2<=$G$3)*1 -> 0 | BH3: =(BH2<=$G$3)*1 -> 0 | BI3: =(BI2<=$G$3)*1 -> 0 | BJ3: =(BJ2<=$G$3)*1 -> 0 | BK3: =(BK2<=$G$3)*1 -> 0 | BL3: =(BL2<=$G$3)*1 -> 0 | BM3: =(BM2<=$G$3)*1 -> 0 | BN3: =(BN2<=$G$3)*1 -> 0 | BO3: =(BO2<=$G$3)*1 -> 0 | BP3: =(BP2<=$G$3)*1 -> 0 | BQ3: =(BQ2<=$G$3)*1 -> 0 | BR3: =(BR2<=$G$3)*1 -> 0 | BS3: =(BS2<=$G$3)*1 -> 0 | BT3: =(BT2<=$G$3)*1 -> 0 | BU3: =(BU2<=$G$3)*1 -> 0 | BV3: =(BV2<=$G$3)*1 -> 0 | BW3: =(BW2<=$G$3)*1 -> 0 | BX3: =(BX2<=$G$3)*1 -> 0 | BY3: =(BY2<=$G$3)*1 -> 0 | BZ3: =(BZ2<=$G$3)*1 -> 0 | CA3: =(CA2<=$G$3)*1 -> 0 | CB3: =(CB2<=$G$3)*1 -> 0 | CC3: =(CC2<=$G$3)*1 -> 0 | CD3: =(CD2<=$G$3)*1 -> 0 | CE3: =(CE2<=$G$3)*1 -> 0 | CF3: =(CF2<=$G$3)*1 -> 0 | CG3: =(CG2<=$G$3)*1 -> 0 | CH3: =(CH2<=$G$3)*1 -> 0 | CI3: =(CI2<=$G$3)*1 -> 0 | CJ3: =(CJ2<=$G$3)*1 -> 0 | CK3: =(CK2<=$G$3)*1 -> 0 | CL3: =(CL2<=$G$3)*1 -> 0 | CM3: =(CM2<=$G$3)*1 -> 0 | CN3: =(CN2<=$G$3)*1 -> 0 | CO3: =(CO2<=$G$3)*1 -> 0 | CP3: =(CP2<=$G$3)*1 -> 0 | CQ3: =(CQ2<=$G$3)*1 -> 0 | CR3: =(CR2<=$G$3)*1 -> 0 | CS3: =(CS2<=$G$3)*1 -> 0 | CT3: =(CT2<=$G$3)*1 -> 0 | CU3: =(CU2<=$G$3)*1 -> 0 | CV3: =(CV2<=$G$3)*1 -> 0 | CW3: =(CW2<=$G$3)*1 -> 0 | CX3: =(CX2<=$G$3)*1 -> 0 | CY3: =(CY2<=$G$3)*1 -> 0 | CZ3: =(CZ2<=$G$3)*1 -> 0 | DA3: =(DA2<=$G$3)*1 -> 0 | DB3: =(DB2<=$G$3)*1 -> 0 | DC3: =(DC2<=$G$3)*1 -> 0 | DD3: =(DD2<=$G$3)*1 -> 0 | DE3: =(DE2<=$G$3)*1 -> 0 | DF3: =(DF2<=$G$3)*1 -> 0 | DG3: =(DG2<=$G$3)*1 -> 0 | DH3: =(DH2<=$G$3)*1 -> 0 | DI3: =(DI2<=$G$3)*1 -> 0 | DJ3: =(DJ2<=$G$3)*1 -> 0 | DK3: =(DK2<=$G$3)*1 -> 0 | DL3: =(DL2<=$G$3)*1 -> 0 | DM3: =(DM2<=$G$3)*1 -> 0 | DN3: =(DN2<=$G$3)*1 -> 0 | DO3: =(DO2<=$G$3)*1 -> 0 | DP3: =(DP2<=$G$3)*1 -> 0 | DQ3: =(DQ2<=$G$3)*1 -> 0 | DR3: =(DR2<=$G$3)*1 -> 0 | DS3: =(DS2<=$G$3)*1 -> 0 | DT3: =(DT2<=$G$3)*1 -> 0 | DU3: =(DU2<=$G$3)*1 -> 0 | DV3: =(DV2<=$G$3)*1 -> 0 | DW3: =(DW2<=$G$3)*1 -> 0 | DX3: =(DX2<=$G$3)*1 -> 0 | DY3: =(DY2<=$G$3)*1 -> 0 | DZ3: =(DZ2<=$G$3)*1 -> 0 | EA3: =(EA2<=$G$3)*1 -> 0 | EB3: =(EB2<=$G$3)*1 -> 0 | EC3: =(EC2<=$G$3)*1 -> 0 | ED3: =(ED2<=$G$3)*1 -> 0 | EE3: =(EE2<=$G$3)*1 -> 0 | EF3: =(EF2<=$G$3)*1 -> 0 | EG3: =(EG2<=$G$3)*1 -> 0 | EH3: =(EH2<=$G$3)*1 -> 0 | EI3: =(EI2<=$G$3)*1 -> 0 | EJ3: =(EJ2<=$G$3)*1 -> 0 | EK3: =(EK2<=$G$3)*1 -> 0 | EL3: =(EL2<=$G$3)*1 -> 0 | EM3: =(EM2<=$G$3)*1 -> 0 | EN3: =(EN2<=$G$3)*1 -> 0 | EO3: =(EO2<=$G$3)*1 -> 0 | EP3: =(EP2<=$G$3)*1 -> 0 | EQ3: =(EQ2<=$G$3)*1 -> 0 | ER3: =(ER2<=$G$3)*1 -> 0 | ES3: =(ES2<=$G$3)*1 -> 0 | ET3: =(ET2<=$G$3)*1 -> 0 | EU3: =(EU2<=$G$3)*1 -> 0 | EV3: =(EV2<=$G$3)*1 -> 0 | EW3: =(EW2<=$G$3)*1 -> 0 | EX3: =(EX2<=$G$3)*1 -> 0 | EY3: =(EY2<=$G$3)*1 -> 0 | EZ3: =(EZ2<=$G$3)*1 -> 0 | FA3: =(FA2<=$G$3)*1 -> 0 | FB3: =(FB2<=$G$3)*1 -> 0 | FC3: =(FC2<=$G$3)*1 -> 0 | FD3: =(FD2<=$G$3)*1 -> 0 | FE3: =(FE2<=$G$3)*1 -> 0 | FF3: =(FF2<=$G$3)*1 -> 0 | FG3: =(FG2<=$G$3)*1 -> 0 | FH3: =(FH2<=$G$3)*1 -> 0 | FI3: =(FI2<=$G$3)*1 -> 0 | FJ3: =(FJ2<=$G$3)*1 -> 0 | FK3: =(FK2<=$G$3)*1 -> 0 | FL3: =(FL2<=$G$3)*1 -> 0 | FM3: =(FM2<=$G$3)*1 -> 0 | FN3: =(FN2<=$G$3)*1 -> 0 | FO3: =(FO2<=$G$3)*1 -> 0 | FP3: =(FP2<=$G$3)*1 -> 0 | FQ3: =(FQ2<=$G$3)*1 -> 0 | FR3: =(FR2<=$G$3)*1 -> 0 | FS3: =(FS2<=$G$3)*1 -> 0 | FT3: =(FT2<=$G$3)*1 -> 0 | FU3: =(FU2<=$G$3)*1 -> 0 | FV3: =(FV2<=$G$3)*1 -> 0 | FW3: =(FW2<=$G$3)*1 -> 0 | FX3: =(FX2<=$G$3)*1 -> 0 | FY3: =(FY2<=$G$3)*1 -> 0 | FZ3: =(FZ2<=$G$3)*1 -> 0 | GA3: =(GA2<=$G$3)*1 -> 0 | GB3: =(GB2<=$G$3)*1 -> 0 | GC3: =(GC2<=$G$3)*1 -> 0 | GD3: =(GD2<=$G$3)*1 -> 0 | GE3: =(GE2<=$G$3)*1 -> 0 | GF3: =(GF2<=$G$3)*1 -> 0 | GG3: =(GG2<=$G$3)*1 -> 0 | GH3: =(GH2<=$G$3)*1 -> 0 | GI3: =(GI2<=$G$3)*1 -> 0 | GJ3: =(GJ2<=$G$3)*1 -> 0 | GK3: =(GK2<=$G$3)*1 -> 0 | GL3: =(GL2<=$G$3)*1 -> 0 | GM3: =(GM2<=$G$3)*1 -> 0 | GN3: =(GN2<=$G$3)*1 -> 0 | GO3: =(GO2<=$G$3)*1 -> 0 | GP3: =(GP2<=$G$3)*1 -> 0 | GQ3: =(GQ2<=$G$3)*1 -> 0 | GR3: =(GR2<=$G$3)*1 -> 0 | GS3: =(GS2<=$G$3)*1 -> 0 | GT3: =(GT2<=$G$3)*1 -> 0 | GU3: =(GU2<=$G$3)*1 -> 0 | GV3: =(GV2<=$G$3)*1 -> 0 | GW3: =(GW2<=$G$3)*1 -> 0 | GX3: =(GX2<=$G$3)*1 -> 0 | GY3: =(GY2<=$G$3)*1 -> 0 | GZ3: =(GZ2<=$G$3)*1 -> 0 | HA3: =(HA2<=$G$3)*1 -> 0
B4: Months per period | G4: =Assumptions!E13 -> 1 | H4: =Assumptions!E14 -> 3 | J4: =IF(J3,$G$4,$H$4) -> 1 | K4: =IF(K3,$G$4,$H$4) -> 1 | L4: =IF(L3,$G$4,$H$4) -> 1 | M4: =IF(M3,$G$4,$H$4) -> 1 | N4: =IF(N3,$G$4,$H$4) -> 1 | O4: =IF(O3,$G$4,$H$4) -> 1 | P4: =IF(P3,$G$4,$H$4) -> 1 | Q4: =IF(Q3,$G$4,$H$4) -> 1 | R4: =IF(R3,$G$4,$H$4) -> 1 | S4: =IF(S3,$G$4,$H$4) -> 1 | T4: =IF(T3,$G$4,$H$4) -> 1 | U4: =IF(U3,$G$4,$H$4) -> 1 | V4: =IF(V3,$G$4,$H$4) -> 1 | W4: =IF(W3,$G$4,$H$4) -> 1 | X4: =IF(X3,$G$4,$H$4) -> 1 | Y4: =IF(Y3,$G$4,$H$4) -> 1 | Z4: =IF(Z3,$G$4,$H$4) -> 1 | AA4: =IF(AA3,$G$4,$H$4) -> 1 | AB4: =IF(AB3,$G$4,$H$4) -> 1 | AC4: =IF(AC3,$G$4,$H$4) -> 1 | AD4: =IF(AD3,$G$4,$H$4) -> 1 | AE4: =IF(AE3,$G$4,$H$4) -> 1 | AF4: =IF(AF3,$G$4,$H$4) -> 1 | AG4: =IF(AG3,$G$4,$H$4) -> 1 | AH4: =IF(AH3,$G$4,$H$4) -> 1 | AI4: =IF(AI3,$G$4,$H$4) -> 1 | AJ4: =IF(AJ3,$G$4,$H$4) -> 1 | AK4: =IF(AK3,$G$4,$H$4) -> 1 | AL4: =IF(AL3,$G$4,$H$4) -> 1 | AM4: =IF(AM3,$G$4,$H$4) -> 1 | AN4: =IF(AN3,$G$4,$H$4) -> 1 | AO4: =IF(AO3,$G$4,$H$4) -> 1 | AP4: =IF(AP3,$G$4,$H$4) -> 1 | AQ4: =IF(AQ3,$G$4,$H$4) -> 1 | AR4: =IF(AR3,$G$4,$H$4) -> 1 | AS4: =IF(AS3,$G$4,$H$4) -> 3 | AT4: =IF(AT3,$G$4,$H$4) -> 3 | AU4: =IF(AU3,$G$4,$H$4) -> 3 | AV4: =IF(AV3,$G$4,$H$4) -> 3 | AW4: =IF(AW3,$G$4,$H$4) -> 3 | AX4: =IF(AX3,$G$4,$H$4) -> 3 | AY4: =IF(AY3,$G$4,$H$4) -> 3 | AZ4: =IF(AZ3,$G$4,$H$4) -> 3 | BA4: =IF(BA3,$G$4,$H$4) -> 3 | BB4: =IF(BB3,$G$4,$H$4) -> 3 | BC4: =IF(BC3,$G$4,$H$4) -> 3 | BD4: =IF(BD3,$G$4,$H$4) -> 3 | BE4: =IF(BE3,$G$4,$H$4) -> 3 | BF4: =IF(BF3,$G$4,$H$4) -> 3 | BG4: =IF(BG3,$G$4,$H$4) -> 3 | BH4: =IF(BH3,$G$4,$H$4) -> 3 | BI4: =IF(BI3,$G$4,$H$4) -> 3 | BJ4: =IF(BJ3,$G$4,$H$4) -> 3 | BK4: =IF(BK3,$G$4,$H$4) -> 3 | BL4: =IF(BL3,$G$4,$H$4) -> 3 | BM4: =IF(BM3,$G$4,$H$4) -> 3 | BN4: =IF(BN3,$G$4,$H$4) -> 3 | BO4: =IF(BO3,$G$4,$H$4) -> 3 | BP4: =IF(BP3,$G$4,$H$4) -> 3 | BQ4: =IF(BQ3,$G$4,$H$4) -> 3 | BR4: =IF(BR3,$G$4,$H$4) -> 3 | BS4: =IF(BS3,$G$4,$H$4) -> 3 | BT4: =IF(BT3,$G$4,$H$4) -> 3 | BU4: =IF(BU3,$G$4,$H$4) -> 3 | BV4: =IF(BV3,$G$4,$H$4) -> 3 | BW4: =IF(BW3,$G$4,$H$4) -> 3 | BX4: =IF(BX3,$G$4,$H$4) -> 3 | BY4: =IF(BY3,$G$4,$H$4) -> 3 | BZ4: =IF(BZ3,$G$4,$H$4) -> 3 | CA4: =IF(CA3,$G$4,$H$4) -> 3 | CB4: =IF(CB3,$G$4,$H$4) -> 3 | CC4: =IF(CC3,$G$4,$H$4) -> 3 | CD4: =IF(CD3,$G$4,$H$4) -> 3 | CE4: =IF(CE3,$G$4,$H$4) -> 3 | CF4: =IF(CF3,$G$4,$H$4) -> 3 | CG4: =IF(CG3,$G$4,$H$4) -> 3 | CH4: =IF(CH3,$G$4,$H$4) -> 3 | CI4: =IF(CI3,$G$4,$H$4) -> 3 | CJ4: =IF(CJ3,$G$4,$H$4) -> 3 | CK4: =IF(CK3,$G$4,$H$4) -> 3 | CL4: =IF(CL3,$G$4,$H$4) -> 3 | CM4: =IF(CM3,$G$4,$H$4) -> 3 | CN4: =IF(CN3,$G$4,$H$4) -> 3 | CO4: =IF(CO3,$G$4,$H$4) -> 3 | CP4: =IF(CP3,$G$4,$H$4) -> 3 | CQ4: =IF(CQ3,$G$4,$H$4) -> 3 | CR4: =IF(CR3,$G$4,$H$4) -> 3 | CS4: =IF(CS3,$G$4,$H$4) -> 3 | CT4: =IF(CT3,$G$4,$H$4) -> 3 | CU4: =IF(CU3,$G$4,$H$4) -> 3 | CV4: =IF(CV3,$G$4,$H$4) -> 3 | CW4: =IF(CW3,$G$4,$H$4) -> 3 | CX4: =IF(CX3,$G$4,$H$4) -> 3 | CY4: =IF(CY3,$G$4,$H$4) -> 3 | CZ4: =IF(CZ3,$G$4,$H$4) -> 3 | DA4: =IF(DA3,$G$4,$H$4) -> 3 | DB4: =IF(DB3,$G$4,$H$4) -> 3 | DC4: =IF(DC3,$G$4,$H$4) -> 3 | DD4: =IF(DD3,$G$4,$H$4) -> 3 | DE4: =IF(DE3,$G$4,$H$4) -> 3 | DF4: =IF(DF3,$G$4,$H$4) -> 3 | DG4: =IF(DG3,$G$4,$H$4) -> 3 | DH4: =IF(DH3,$G$4,$H$4) -> 3 | DI4: =IF(DI3,$G$4,$H$4) -> 3 | DJ4: =IF(DJ3,$G$4,$H$4) -> 3 | DK4: =IF(DK3,$G$4,$H$4) -> 3 | DL4: =IF(DL3,$G$4,$H$4) -> 3 | DM4: =IF(DM3,$G$4,$H$4) -> 3 | DN4: =IF(DN3,$G$4,$H$4) -> 3 | DO4: =IF(DO3,$G$4,$H$4) -> 3 | DP4: =IF(DP3,$G$4,$H$4) -> 3 | DQ4: =IF(DQ3,$G$4,$H$4) -> 3 | DR4: =IF(DR3,$G$4,$H$4) -> 3 | DS4: =IF(DS3,$G$4,$H$4) -> 3 | DT4: =IF(DT3,$G$4,$H$4) -> 3 | DU4: =IF(DU3,$G$4,$H$4) -> 3 | DV4: =IF(DV3,$G$4,$H$4) -> 3 | DW4: =IF(DW3,$G$4,$H$4) -> 3 | DX4: =IF(DX3,$G$4,$H$4) -> 3 | DY4: =IF(DY3,$G$4,$H$4) -> 3 | DZ4: =IF(DZ3,$G$4,$H$4) -> 3 | EA4: =IF(EA3,$G$4,$H$4) -> 3 | EB4: =IF(EB3,$G$4,$H$4) -> 3 | EC4: =IF(EC3,$G$4,$H$4) -> 3 | ED4: =IF(ED3,$G$4,$H$4) -> 3 | EE4: =IF(EE3,$G$4,$H$4) -> 3 | EF4: =IF(EF3,$G$4,$H$4) -> 3 | EG4: =IF(EG3,$G$4,$H$4) -> 3 | EH4: =IF(EH3,$G$4,$H$4) -> 3 | EI4: =IF(EI3,$G$4,$H$4) -> 3 | EJ4: =IF(EJ3,$G$4,$H$4) -> 3 | EK4: =IF(EK3,$G$4,$H$4) -> 3 | EL4: =IF(EL3,$G$4,$H$4) -> 3 | EM4: =IF(EM3,$G$4,$H$4) -> 3 | EN4: =IF(EN3,$G$4,$H$4) -> 3 | EO4: =IF(EO3,$G$4,$H$4) -> 3 | EP4: =IF(EP3,$G$4,$H$4) -> 3 | EQ4: =IF(EQ3,$G$4,$H$4) -> 3 | ER4: =IF(ER3,$G$4,$H$4) -> 3 | ES4: =IF(ES3,$G$4,$H$4) -> 3 | ET4: =IF(ET3,$G$4,$H$4) -> 3 | EU4: =IF(EU3,$G$4,$H$4) -> 3 | EV4: =IF(EV3,$G$4,$H$4) -> 3 | EW4: =IF(EW3,$G$4,$H$4) -> 3 | EX4: =IF(EX3,$G$4,$H$4) -> 3 | EY4: =IF(EY3,$G$4,$H$4) -> 3 | EZ4: =IF(EZ3,$G$4,$H$4) -> 3 | FA4: =IF(FA3,$G$4,$H$4) -> 3 | FB4: =IF(FB3,$G$4,$H$4) -> 3 | FC4: =IF(FC3,$G$4,$H$4) -> 3 | FD4: =IF(FD3,$G$4,$H$4) -> 3 | FE4: =IF(FE3,$G$4,$H$4) -> 3 | FF4: =IF(FF3,$G$4,$H$4) -> 3 | FG4: =IF(FG3,$G$4,$H$4) -> 3 | FH4: =IF(FH3,$G$4,$H$4) -> 3 | FI4: =IF(FI3,$G$4,$H$4) -> 3 | FJ4: =IF(FJ3,$G$4,$H$4) -> 3 | FK4: =IF(FK3,$G$4,$H$4) -> 3 | FL4: =IF(FL3,$G$4,$H$4) -> 3 | FM4: =IF(FM3,$G$4,$H$4) -> 3 | FN4: =IF(FN3,$G$4,$H$4) -> 3 | FO4: =IF(FO3,$G$4,$H$4) -> 3 | FP4: =IF(FP3,$G$4,$H$4) -> 3 | FQ4: =IF(FQ3,$G$4,$H$4) -> 3 | FR4: =IF(FR3,$G$4,$H$4) -> 3 | FS4: =IF(FS3,$G$4,$H$4) -> 3 | FT4: =IF(FT3,$G$4,$H$4) -> 3 | FU4: =IF(FU3,$G$4,$H$4) -> 3 | FV4: =IF(FV3,$G$4,$H$4) -> 3 | FW4: =IF(FW3,$G$4,$H$4) -> 3 | FX4: =IF(FX3,$G$4,$H$4) -> 3 | FY4: =IF(FY3,$G$4,$H$4) -> 3 | FZ4: =IF(FZ3,$G$4,$H$4) -> 3 | GA4: =IF(GA3,$G$4,$H$4) -> 3 | GB4: =IF(GB3,$G$4,$H$4) -> 3 | GC4: =IF(GC3,$G$4,$H$4) -> 3 | GD4: =IF(GD3,$G$4,$H$4) -> 3 | GE4: =IF(GE3,$G$4,$H$4) -> 3 | GF4: =IF(GF3,$G$4,$H$4) -> 3 | GG4: =IF(GG3,$G$4,$H$4) -> 3 | GH4: =IF(GH3,$G$4,$H$4) -> 3 | GI4: =IF(GI3,$G$4,$H$4) -> 3 | GJ4: =IF(GJ3,$G$4,$H$4) -> 3 | GK4: =IF(GK3,$G$4,$H$4) -> 3 | GL4: =IF(GL3,$G$4,$H$4) -> 3 | GM4: =IF(GM3,$G$4,$H$4) -> 3 | GN4: =IF(GN3,$G$4,$H$4) -> 3 | GO4: =IF(GO3,$G$4,$H$4) -> 3 | GP4: =IF(GP3,$G$4,$H$4) -> 3 | GQ4: =IF(GQ3,$G$4,$H$4) -> 3 | GR4: =IF(GR3,$G$4,$H$4) -> 3 | GS4: =IF(GS3,$G$4,$H$4) -> 3 | GT4: =IF(GT3,$G$4,$H$4) -> 3 | GU4: =IF(GU3,$G$4,$H$4) -> 3 | GV4: =IF(GV3,$G$4,$H$4) -> 3 | GW4: =IF(GW3,$G$4,$H$4) -> 3 | GX4: =IF(GX3,$G$4,$H$4) -> 3 | GY4: =IF(GY3,$G$4,$H$4) -> 3 | GZ4: =IF(GZ3,$G$4,$H$4) -> 3 | HA4: =IF(HA3,$G$4,$H$4) -> 3
B5: Start per period | J5: =I6+1 -> 2020-04-01 | K5: 2020-05-01 | L5: 2020-06-01 | M5: 2020-07-01 | N5: 2020-08-01 | O5: 2020-09-01 | P5: 2020-10-01 | Q5: 2020-11-01 | R5: 2020-12-01 | S5: 2021-01-01 | T5: 2021-02-01 | U5: 2021-03-01 | V5: 2021-04-01 | W5: 2021-05-01 | X5: 2021-06-01 | Y5: 2021-07-01 | Z5: 2021-08-01 | AA5: 2021-09-01 | AB5: 2021-10-01 | AC5: 2021-11-01 | AD5: 2021-12-01 | AE5: 2022-01-01 | AF5: 2022-02-01 | AG5: 2022-03-01 | AH5: 2022-04-01 | AI5: 2022-05-01 | AJ5: 2022-06-01 | AK5: 2022-07-01 | AL5: 2022-08-01 | AM5: 2022-09-01 | AN5: 2022-10-01 | AO5: 2022-11-01 | AP5: =AO6+1 -> 2022-12-01 | AQ5: 2023-01-01 | AR5: 2023-02-01 | AS5: 2023-03-01 | AT5: 2023-06-01 | AU5: 2023-09-01 | AV5: 2023-12-01 | AW5: 2024-03-01 | AX5: 2024-06-01 | AY5: 2024-09-01 | AZ5: 2024-12-01 | BA5: 2025-03-01 | BB5: 2025-06-01 | BC5: 2025-09-01 | BD5: 2025-12-01 | BE5: 2026-03-01 | BF5: 2026-06-01 | BG5: 2026-09-01 | BH5: 2026-12-01 | BI5: 2027-03-01 | BJ5: 2027-06-01 | BK5: 2027-09-01 | BL5: 2027-12-01 | BM5: 2028-03-01 | BN5: 2028-06-01 | BO5: 2028-09-01 | BP5: 2028-12-01 | BQ5: 2029-03-01 | BR5: 2029-06-01 | BS5: 2029-09-01 | BT5: 2029-12-01 | BU5: 2030-03-01 | BV5: =BU6+1 -> 2030-06-01 | BW5: 2030-09-01 | BX5: 2030-12-01 | BY5: 2031-03-01 | BZ5: 2031-06-01 | CA5: 2031-09-01 | CB5: 2031-12-01 | CC5: 2032-03-01 | CD5: 2032-06-01 | CE5: 2032-09-01 | CF5: 2032-12-01 | CG5: 2033-03-01 | CH5: 2033-06-01 | CI5: 2033-09-01 | CJ5: 2033-12-01 | CK5: 2034-03-01 | CL5: 2034-06-01 | CM5: 2034-09-01 | CN5: 2034-12-01 | CO5: 2035-03-01 | CP5: 2035-06-01 | CQ5: 2035-09-01 | CR5: 2035-12-01 | CS5: 2036-03-01 | CT5: 2036-06-01 | CU5: 2036-09-01 | CV5: 2036-12-01 | CW5: 2037-03-01 | CX5: 2037-06-01 | CY5: 2037-09-01 | CZ5: 2037-12-01 | DA5: 2038-03-01 | DB5: =DA6+1 -> 2038-06-01 | DC5: 2038-09-01 | DD5: 2038-12-01 | DE5: 2039-03-01 | DF5: 2039-06-01 | DG5: 2039-09-01 | DH5: 2039-12-01 | DI5: 2040-03-01 | DJ5: 2040-06-01 | DK5: 2040-09-01 | DL5: 2040-12-01 | DM5: 2041-03-01 | DN5: 2041-06-01 | DO5: 2041-09-01 | DP5: 2041-12-01 | DQ5: 2042-03-01 | DR5: 2042-06-01 | DS5: 2042-09-01 | DT5: 2042-12-01 | DU5: 2043-03-01 | DV5: 2043-06-01 | DW5: 2043-09-01 | DX5: 2043-12-01 | DY5: 2044-03-01 | DZ5: 2044-06-01 | EA5: 2044-09-01 | EB5: 2044-12-01 | EC5: 2045-03-01 | ED5: 2045-06-01 | EE5: 2045-09-01 | EF5: 2045-12-01 | EG5: 2046-03-01 | EH5: =EG6+1 -> 2046-06-01 | EI5: 2046-09-01 | EJ5: 2046-12-01 | EK5: 2047-03-01 | EL5: 2047-06-01 | EM5: 2047-09-01 | EN5: 2047-12-01 | EO5: 2048-03-01 | EP5: 2048-06-01 | EQ5: 2048-09-01 | ER5: 2048-12-01 | ES5: 2049-03-01 | ET5: 2049-06-01 | EU5: 2049-09-01 | EV5: 2049-12-01 | EW5: 2050-03-01 | EX5: 2050-06-01 | EY5: 2050-09-01 | EZ5: 2050-12-01 | FA5: 2051-03-01 | FB5: 2051-06-01 | FC5: 2051-09-01 | FD5: 2051-12-01 | FE5: 2052-03-01 | FF5: 2052-06-01 | FG5: 2052-09-01 | FH5: 2052-12-01 | FI5: 2053-03-01 | FJ5: 2053-06-01 | FK5: 2053-09-01 | FL5: 2053-12-01 | FM5: 2054-03-01 | FN5: =FM6+1 -> 2054-06-01 | FO5: 2054-09-01 | FP5: 2054-12-01 | FQ5: 2055-03-01 | FR5: 2055-06-01 | FS5: 2055-09-01 | FT5: 2055-12-01 | FU5: 2056-03-01 | FV5: 2056-06-01 | FW5: 2056-09-01 | FX5: 2056-12-01 | FY5: 2057-03-01 | FZ5: 2057-06-01 | GA5: 2057-09-01 | GB5: 2057-12-01 | GC5: 2058-03-01 | GD5: 2058-06-01 | GE5: 2058-09-01 | GF5: 2058-12-01 | GG5: 2059-03-01 | GH5: 2059-06-01 | GI5: 2059-09-01 | GJ5: 2059-12-01 | GK5: 2060-03-01 | GL5: 2060-06-01 | GM5: 2060-09-01 | GN5: 2060-12-01 | GO5: 2061-03-01 | GP5: 2061-06-01 | GQ5: 2061-09-01 | GR5: 2061-12-01 | GS5: 2062-03-01 | GT5: =GS6+1 -> 2062-06-01 | GU5: 2062-09-01 | GV5: 2062-12-01 | GW5: 2063-03-01 | GX5: 2063-06-01 | GY5: 2063-09-01 | GZ5: 2063-12-01 | HA5: 2064-03-01
B6: End per period | I6: =Assumptions!E7-1 -> 2020-03-31 | J6: =EDATE(J5,J4)-1 -> 2020-04-30 | K6: 2020-05-31 | L6: 2020-06-30 | M6: 2020-07-31 | N6: 2020-08-31 | O6: 2020-09-30 | P6: 2020-10-31 | Q6: 2020-11-30 | R6: 2020-12-31 | S6: 2021-01-31 | T6: 2021-02-28 | U6: 2021-03-31 | V6: 2021-04-30 | W6: 2021-05-31 | X6: 2021-06-30 | Y6: 2021-07-31 | Z6: 2021-08-31 | AA6: 2021-09-30 | AB6: 2021-10-31 | AC6: 2021-11-30 | AD6: 2021-12-31 | AE6: 2022-01-31 | AF6: 2022-02-28 | AG6: 2022-03-31 | AH6: 2022-04-30 | AI6: 2022-05-31 | AJ6: 2022-06-30 | AK6: 2022-07-31 | AL6: 2022-08-31 | AM6: 2022-09-30 | AN6: 2022-10-31 | AO6: 2022-11-30 | AP6: =EDATE(AP5,AP4)-1 -> 2022-12-31 | AQ6: 2023-01-31 | AR6: 2023-02-28 | AS6: 2023-05-31 | AT6: 2023-08-31 | AU6: 2023-11-30 | AV6: 2024-02-29 | AW6: 2024-05-31 | AX6: 2024-08-31 | AY6: 2024-11-30 | AZ6: 2025-02-28 | BA6: 2025-05-31 | BB6: 2025-08-31 | BC6: 2025-11-30 | BD6: 2026-02-28 | BE6: 2026-05-31 | BF6: 2026-08-31 | BG6: 2026-11-30 | BH6: 2027-02-28 | BI6: 2027-05-31 | BJ6: 2027-08-31 | BK6: 2027-11-30 | BL6: 2028-02-29 | BM6: 2028-05-31 | BN6: 2028-08-31 | BO6: 2028-11-30 | BP6: 2029-02-28 | BQ6: 2029-05-31 | BR6: 2029-08-31 | BS6: 2029-11-30 | BT6: 2030-02-28 | BU6: 2030-05-31 | BV6: =EDATE(BV5,BV4)-1 -> 2030-08-31 | BW6: 2030-11-30 | BX6: 2031-02-28 | BY6: 2031-05-31 | BZ6: 2031-08-31 | CA6: 2031-11-30 | CB6: 2032-02-29 | CC6: 2032-05-31 | CD6: 2032-08-31 | CE6: 2032-11-30 | CF6: 2033-02-28 | CG6: 2033-05-31 | CH6: 2033-08-31 | CI6: 2033-11-30 | CJ6: 2034-02-28 | CK6: 2034-05-31 | CL6: 2034-08-31 | CM6: 2034-11-30 | CN6: 2035-02-28 | CO6: 2035-05-31 | CP6: 2035-08-31 | CQ6: 2035-11-30 | CR6: 2036-02-29 | CS6: 2036-05-31 | CT6: 2036-08-31 | CU6: 2036-11-30 | CV6: 2037-02-28 | CW6: 2037-05-31 | CX6: 2037-08-31 | CY6: 2037-11-30 | CZ6: 2038-02-28 | DA6: 2038-05-31 | DB6: =EDATE(DB5,DB4)-1 -> 2038-08-31 | DC6: 2038-11-30 | DD6: 2039-02-28 | DE6: 2039-05-31 | DF6: 2039-08-31 | DG6: 2039-11-30 | DH6: 2040-02-29 | DI6: 2040-05-31 | DJ6: 2040-08-31 | DK6: 2040-11-30 | DL6: 2041-02-28 | DM6: 2041-05-31 | DN6: 2041-08-31 | DO6: 2041-11-30 | DP6: 2042-02-28 | DQ6: 2042-05-31 | DR6: 2042-08-31 | DS6: 2042-11-30 | DT6: 2043-02-28 | DU6: 2043-05-31 | DV6: 2043-08-31 | DW6: 2043-11-30 | DX6: 2044-02-29 | DY6: 2044-05-31 | DZ6: 2044-08-31 | EA6: 2044-11-30 | EB6: 2045-02-28 | EC6: 2045-05-31 | ED6: 2045-08-31 | EE6: 2045-11-30 | EF6: 2046-02-28 | EG6: 2046-05-31 | EH6: =EDATE(EH5,EH4)-1 -> 2046-08-31 | EI6: 2046-11-30 | EJ6: 2047-02-28 | EK6: 2047-05-31 | EL6: 2047-08-31 | EM6: 2047-11-30 | EN6: 2048-02-29 | EO6: 2048-05-31 | EP6: 2048-08-31 | EQ6: 2048-11-30 | ER6: 2049-02-28 | ES6: 2049-05-31 | ET6: 2049-08-31 | EU6: 2049-11-30 | EV6: 2050-02-28 | EW6: 2050-05-31 | EX6: 2050-08-31 | EY6: 2050-11-30 | EZ6: 2051-02-28 | FA6: 2051-05-31 | FB6: 2051-08-31 | FC6: 2051-11-30 | FD6: 2052-02-29 | FE6: 2052-05-31 | FF6: 2052-08-31 | FG6: 2052-11-30 | FH6: 2053-02-28 | FI6: 2053-05-31 | FJ6: 2053-08-31 | FK6: 2053-11-30 | FL6: 2054-02-28 | FM6: 2054-05-31 | FN6: =EDATE(FN5,FN4)-1 -> 2054-08-31 | FO6: 2054-11-30 | FP6: 2055-02-28 | FQ6: 2055-05-31 | FR6: 2055-08-31 | FS6: 2055-11-30 | FT6: 2056-02-29 | FU6: 2056-05-31 | FV6: 2056-08-31 | FW6: 2056-11-30 | FX6: 2057-02-28 | FY6: 2057-05-31 | FZ6: 2057-08-31 | GA6: 2057-11-30 | GB6: 2058-02-28 | GC6: 2058-05-31 | GD6: 2058-08-31 | GE6: 2058-11-30 | GF6: 2059-02-28 | GG6: 2059-05-31 | GH6: 2059-08-31 | GI6: 2059-11-30 | GJ6: 2060-02-29 | GK6: 2060-05-31 | GL6: 2060-08-31 | GM6: 2060-11-30 | GN6: 2061-02-28 | GO6: 2061-05-31 | GP6: 2061-08-31 | GQ6: 2061-11-30 | GR6: 2062-02-28 | GS6: 2062-05-31 | GT6: =EDATE(GT5,GT4)-1 -> 2062-08-31 | GU6: 2062-11-30 | GV6: 2063-02-28 | GW6: 2063-05-31 | GX6: 2063-08-31 | GY6: 2063-11-30 | GZ6: 2064-02-29 | HA6: 2064-05-31
B7: Post COD | G7: =Assumptions!E9 -> 2023-03-01 | H7: =Assumptions!E11 -> 2043-03-01 | I7: =SUM(J7:HA7) -> 80 | J7: =AND(J5>=$G$7,J5<$H$7)*1 -> 0 | K7: =AND(K5>=$G$7,K5<$H$7)*1 -> 0 | L7: =AND(L5>=$G$7,L5<$H$7)*1 -> 0 | M7: =AND(M5>=$G$7,M5<$H$7)*1 -> 0 | N7: =AND(N5>=$G$7,N5<$H$7)*1 -> 0 | O7: =AND(O5>=$G$7,O5<$H$7)*1 -> 0 | P7: =AND(P5>=$G$7,P5<$H$7)*1 -> 0 | Q7: =AND(Q5>=$G$7,Q5<$H$7)*1 -> 0 | R7: =AND(R5>=$G$7,R5<$H$7)*1 -> 0 | S7: =AND(S5>=$G$7,S5<$H$7)*1 -> 0 | T7: =AND(T5>=$G$7,T5<$H$7)*1 -> 0 | U7: =AND(U5>=$G$7,U5<$H$7)*1 -> 0 | V7: =AND(V5>=$G$7,V5<$H$7)*1 -> 0 | W7: =AND(W5>=$G$7,W5<$H$7)*1 -> 0 | X7: =AND(X5>=$G$7,X5<$H$7)*1 -> 0 | Y7: =AND(Y5>=$G$7,Y5<$H$7)*1 -> 0 | Z7: =AND(Z5>=$G$7,Z5<$H$7)*1 -> 0 | AA7: =AND(AA5>=$G$7,AA5<$H$7)*1 -> 0 | AB7: =AND(AB5>=$G$7,AB5<$H$7)*1 -> 0 | AC7: =AND(AC5>=$G$7,AC5<$H$7)*1 -> 0 | AD7: =AND(AD5>=$G$7,AD5<$H$7)*1 -> 0 | AE7: =AND(AE5>=$G$7,AE5<$H$7)*1 -> 0 | AF7: =AND(AF5>=$G$7,AF5<$H$7)*1 -> 0 | AG7: =AND(AG5>=$G$7,AG5<$H$7)*1 -> 0 | AH7: =AND(AH5>=$G$7,AH5<$H$7)*1 -> 0 | AI7: =AND(AI5>=$G$7,AI5<$H$7)*1 -> 0 | AJ7: =AND(AJ5>=$G$7,AJ5<$H$7)*1 -> 0 | AK7: =AND(AK5>=$G$7,AK5<$H$7)*1 -> 0 | AL7: =AND(AL5>=$G$7,AL5<$H$7)*1 -> 0 | AM7: =AND(AM5>=$G$7,AM5<$H$7)*1 -> 0 | AN7: =AND(AN5>=$G$7,AN5<$H$7)*1 -> 0 | AO7: =AND(AO5>=$G$7,AO5<$H$7)*1 -> 0 | AP7: =AND(AP5>=$G$7,AP5<$H$7)*1 -> 0 | AQ7: =AND(AQ5>=$G$7,AQ5<$H$7)*1 -> 0 | AR7: =AND(AR5>=$G$7,AR5<$H$7)*1 -> 0 | AS7: =AND(AS5>=$G$7,AS5<$H$7)*1 -> 1 | AT7: =AND(AT5>=$G$7,AT5<$H$7)*1 -> 1 | AU7: =AND(AU5>=$G$7,AU5<$H$7)*1 -> 1 | AV7: =AND(AV5>=$G$7,AV5<$H$7)*1 -> 1 | AW7: =AND(AW5>=$G$7,AW5<$H$7)*1 -> 1 | AX7: =AND(AX5>=$G$7,AX5<$H$7)*1 -> 1 | AY7: =AND(AY5>=$G$7,AY5<$H$7)*1 -> 1 | AZ7: =AND(AZ5>=$G$7,AZ5<$H$7)*1 -> 1 | BA7: =AND(BA5>=$G$7,BA5<$H$7)*1 -> 1 | BB7: =AND(BB5>=$G$7,BB5<$H$7)*1 -> 1 | BC7: =AND(BC5>=$G$7,BC5<$H$7)*1 -> 1 | BD7: =AND(BD5>=$G$7,BD5<$H$7)*1 -> 1 | BE7: =AND(BE5>=$G$7,BE5<$H$7)*1 -> 1 | BF7: =AND(BF5>=$G$7,BF5<$H$7)*1 -> 1 | BG7: =AND(BG5>=$G$7,BG5<$H$7)*1 -> 1 | BH7: =AND(BH5>=$G$7,BH5<$H$7)*1 -> 1 | BI7: =AND(BI5>=$G$7,BI5<$H$7)*1 -> 1 | BJ7: =AND(BJ5>=$G$7,BJ5<$H$7)*1 -> 1 | BK7: =AND(BK5>=$G$7,BK5<$H$7)*1 -> 1 | BL7: =AND(BL5>=$G$7,BL5<$H$7)*1 -> 1 | BM7: =AND(BM5>=$G$7,BM5<$H$7)*1 -> 1 | BN7: =AND(BN5>=$G$7,BN5<$H$7)*1 -> 1 | BO7: =AND(BO5>=$G$7,BO5<$H$7)*1 -> 1 | BP7: =AND(BP5>=$G$7,BP5<$H$7)*1 -> 1 | BQ7: =AND(BQ5>=$G$7,BQ5<$H$7)*1 -> 1 | BR7: =AND(BR5>=$G$7,BR5<$H$7)*1 -> 1 | BS7: =AND(BS5>=$G$7,BS5<$H$7)*1 -> 1 | BT7: =AND(BT5>=$G$7,BT5<$H$7)*1 -> 1 | BU7: =AND(BU5>=$G$7,BU5<$H$7)*1 -> 1 | BV7: =AND(BV5>=$G$7,BV5<$H$7)*1 -> 1 | BW7: =AND(BW5>=$G$7,BW5<$H$7)*1 -> 1 | BX7: =AND(BX5>=$G$7,BX5<$H$7)*1 -> 1 | BY7: =AND(BY5>=$G$7,BY5<$H$7)*1 -> 1 | BZ7: =AND(BZ5>=$G$7,BZ5<$H$7)*1 -> 1 | CA7: =AND(CA5>=$G$7,CA5<$H$7)*1 -> 1 | CB7: =AND(CB5>=$G$7,CB5<$H$7)*1 -> 1 | CC7: =AND(CC5>=$G$7,CC5<$H$7)*1 -> 1 | CD7: =AND(CD5>=$G$7,CD5<$H$7)*1 -> 1 | CE7: =AND(CE5>=$G$7,CE5<$H$7)*1 -> 1 | CF7: =AND(CF5>=$G$7,CF5<$H$7)*1 -> 1 | CG7: =AND(CG5>=$G$7,CG5<$H$7)*1 -> 1 | CH7: =AND(CH5>=$G$7,CH5<$H$7)*1 -> 1 | CI7: =AND(CI5>=$G$7,CI5<$H$7)*1 -> 1 | CJ7: =AND(CJ5>=$G$7,CJ5<$H$7)*1 -> 1 | CK7: =AND(CK5>=$G$7,CK5<$H$7)*1 -> 1 | CL7: =AND(CL5>=$G$7,CL5<$H$7)*1 -> 1 | CM7: =AND(CM5>=$G$7,CM5<$H$7)*1 -> 1 | CN7: =AND(CN5>=$G$7,CN5<$H$7)*1 -> 1 | CO7: =AND(CO5>=$G$7,CO5<$H$7)*1 -> 1 | CP7: =AND(CP5>=$G$7,CP5<$H$7)*1 -> 1 | CQ7: =AND(CQ5>=$G$7,CQ5<$H$7)*1 -> 1 | CR7: =AND(CR5>=$G$7,CR5<$H$7)*1 -> 1 | CS7: =AND(CS5>=$G$7,CS5<$H$7)*1 -> 1 | CT7: =AND(CT5>=$G$7,CT5<$H$7)*1 -> 1 | CU7: =AND(CU5>=$G$7,CU5<$H$7)*1 -> 1 | CV7: =AND(CV5>=$G$7,CV5<$H$7)*1 -> 1 | CW7: =AND(CW5>=$G$7,CW5<$H$7)*1 -> 1 | CX7: =AND(CX5>=$G$7,CX5<$H$7)*1 -> 1 | CY7: =AND(CY5>=$G$7,CY5<$H$7)*1 -> 1 | CZ7: =AND(CZ5>=$G$7,CZ5<$H$7)*1 -> 1 | DA7: =AND(DA5>=$G$7,DA5<$H$7)*1 -> 1 | DB7: =AND(DB5>=$G$7,DB5<$H$7)*1 -> 1 | DC7: =AND(DC5>=$G$7,DC5<$H$7)*1 -> 1 | DD7: =AND(DD5>=$G$7,DD5<$H$7)*1 -> 1 | DE7: =AND(DE5>=$G$7,DE5<$H$7)*1 -> 1 | DF7: =AND(DF5>=$G$7,DF5<$H$7)*1 -> 1 | DG7: =AND(DG5>=$G$7,DG5<$H$7)*1 -> 1 | DH7: =AND(DH5>=$G$7,DH5<$H$7)*1 -> 1 | DI7: =AND(DI5>=$G$7,DI5<$H$7)*1 -> 1 | DJ7: =AND(DJ5>=$G$7,DJ5<$H$7)*1 -> 1 | DK7: =AND(DK5>=$G$7,DK5<$H$7)*1 -> 1 | DL7: =AND(DL5>=$G$7,DL5<$H$7)*1 -> 1 | DM7: =AND(DM5>=$G$7,DM5<$H$7)*1 -> 1 | DN7: =AND(DN5>=$G$7,DN5<$H$7)*1 -> 1 | DO7: =AND(DO5>=$G$7,DO5<$H$7)*1 -> 1 | DP7: =AND(DP5>=$G$7,DP5<$H$7)*1 -> 1 | DQ7: =AND(DQ5>=$G$7,DQ5<$H$7)*1 -> 1 | DR7: =AND(DR5>=$G$7,DR5<$H$7)*1 -> 1 | DS7: =AND(DS5>=$G$7,DS5<$H$7)*1 -> 1 | DT7: =AND(DT5>=$G$7,DT5<$H$7)*1 -> 1 | DU7: =AND(DU5>=$G$7,DU5<$H$7)*1 -> 0 | DV7: =AND(DV5>=$G$7,DV5<$H$7)*1 -> 0 | DW7: =AND(DW5>=$G$7,DW5<$H$7)*1 -> 0 | DX7: =AND(DX5>=$G$7,DX5<$H$7)*1 -> 0 | DY7: =AND(DY5>=$G$7,DY5<$H$7)*1 -> 0 | DZ7: =AND(DZ5>=$G$7,DZ5<$H$7)*1 -> 0 | EA7: =AND(EA5>=$G$7,EA5<$H$7)*1 -> 0 | EB7: =AND(EB5>=$G$7,EB5<$H$7)*1 -> 0 | EC7: =AND(EC5>=$G$7,EC5<$H$7)*1 -> 0 | ED7: =AND(ED5>=$G$7,ED5<$H$7)*1 -> 0 | EE7: =AND(EE5>=$G$7,EE5<$H$7)*1 -> 0 | EF7: =AND(EF5>=$G$7,EF5<$H$7)*1 -> 0 | EG7: =AND(EG5>=$G$7,EG5<$H$7)*1 -> 0 | EH7: =AND(EH5>=$G$7,EH5<$H$7)*1 -> 0 | EI7: =AND(EI5>=$G$7,EI5<$H$7)*1 -> 0 | EJ7: =AND(EJ5>=$G$7,EJ5<$H$7)*1 -> 0 | EK7: =AND(EK5>=$G$7,EK5<$H$7)*1 -> 0 | EL7: =AND(EL5>=$G$7,EL5<$H$7)*1 -> 0 | EM7: =AND(EM5>=$G$7,EM5<$H$7)*1 -> 0 | EN7: =AND(EN5>=$G$7,EN5<$H$7)*1 -> 0 | EO7: =AND(EO5>=$G$7,EO5<$H$7)*1 -> 0 | EP7: =AND(EP5>=$G$7,EP5<$H$7)*1 -> 0 | EQ7: =AND(EQ5>=$G$7,EQ5<$H$7)*1 -> 0 | ER7: =AND(ER5>=$G$7,ER5<$H$7)*1 -> 0 | ES7: =AND(ES5>=$G$7,ES5<$H$7)*1 -> 0 | ET7: =AND(ET5>=$G$7,ET5<$H$7)*1 -> 0 | EU7: =AND(EU5>=$G$7,EU5<$H$7)*1 -> 0 | EV7: =AND(EV5>=$G$7,EV5<$H$7)*1 -> 0 | EW7: =AND(EW5>=$G$7,EW5<$H$7)*1 -> 0 | EX7: =AND(EX5>=$G$7,EX5<$H$7)*1 -> 0 | EY7: =AND(EY5>=$G$7,EY5<$H$7)*1 -> 0 | EZ7: =AND(EZ5>=$G$7,EZ5<$H$7)*1 -> 0 | FA7: =AND(FA5>=$G$7,FA5<$H$7)*1 -> 0 | FB7: =AND(FB5>=$G$7,FB5<$H$7)*1 -> 0 | FC7: =AND(FC5>=$G$7,FC5<$H$7)*1 -> 0 | FD7: =AND(FD5>=$G$7,FD5<$H$7)*1 -> 0 | FE7: =AND(FE5>=$G$7,FE5<$H$7)*1 -> 0 | FF7: =AND(FF5>=$G$7,FF5<$H$7)*1 -> 0 | FG7: =AND(FG5>=$G$7,FG5<$H$7)*1 -> 0 | FH7: =AND(FH5>=$G$7,FH5<$H$7)*1 -> 0 | FI7: =AND(FI5>=$G$7,FI5<$H$7)*1 -> 0 | FJ7: =AND(FJ5>=$G$7,FJ5<$H$7)*1 -> 0 | FK7: =AND(FK5>=$G$7,FK5<$H$7)*1 -> 0 | FL7: =AND(FL5>=$G$7,FL5<$H$7)*1 -> 0 | FM7: =AND(FM5>=$G$7,FM5<$H$7)*1 -> 0 | FN7: =AND(FN5>=$G$7,FN5<$H$7)*1 -> 0 | FO7: =AND(FO5>=$G$7,FO5<$H$7)*1 -> 0 | FP7: =AND(FP5>=$G$7,FP5<$H$7)*1 -> 0 | FQ7: =AND(FQ5>=$G$7,FQ5<$H$7)*1 -> 0 | FR7: =AND(FR5>=$G$7,FR5<$H$7)*1 -> 0 | FS7: =AND(FS5>=$G$7,FS5<$H$7)*1 -> 0 | FT7: =AND(FT5>=$G$7,FT5<$H$7)*1 -> 0 | FU7: =AND(FU5>=$G$7,FU5<$H$7)*1 -> 0 | FV7: =AND(FV5>=$G$7,FV5<$H$7)*1 -> 0 | FW7: =AND(FW5>=$G$7,FW5<$H$7)*1 -> 0 | FX7: =AND(FX5>=$G$7,FX5<$H$7)*1 -> 0 | FY7: =AND(FY5>=$G$7,FY5<$H$7)*1 -> 0 | FZ7: =AND(FZ5>=$G$7,FZ5<$H$7)*1 -> 0 | GA7: =AND(GA5>=$G$7,GA5<$H$7)*1 -> 0 | GB7: =AND(GB5>=$G$7,GB5<$H$7)*1 -> 0 | GC7: =AND(GC5>=$G$7,GC5<$H$7)*1 -> 0 | GD7: =AND(GD5>=$G$7,GD5<$H$7)*1 -> 0 | GE7: =AND(GE5>=$G$7,GE5<$H$7)*1 -> 0 | GF7: =AND(GF5>=$G$7,GF5<$H$7)*1 -> 0 | GG7: =AND(GG5>=$G$7,GG5<$H$7)*1 -> 0 | GH7: =AND(GH5>=$G$7,GH5<$H$7)*1 -> 0 | GI7: =AND(GI5>=$G$7,GI5<$H$7)*1 -> 0 | GJ7: =AND(GJ5>=$G$7,GJ5<$H$7)*1 -> 0 | GK7: =AND(GK5>=$G$7,GK5<$H$7)*1 -> 0 | GL7: =AND(GL5>=$G$7,GL5<$H$7)*1 -> 0 | GM7: =AND(GM5>=$G$7,GM5<$H$7)*1 -> 0 | GN7: =AND(GN5>=$G$7,GN5<$H$7)*1 -> 0 | GO7: =AND(GO5>=$G$7,GO5<$H$7)*1 -> 0 | GP7: =AND(GP5>=$G$7,GP5<$H$7)*1 -> 0 | GQ7: =AND(GQ5>=$G$7,GQ5<$H$7)*1 -> 0 | GR7: =AND(GR5>=$G$7,GR5<$H$7)*1 -> 0 | GS7: =AND(GS5>=$G$7,GS5<$H$7)*1 -> 0 | GT7: =AND(GT5>=$G$7,GT5<$H$7)*1 -> 0 | GU7: =AND(GU5>=$G$7,GU5<$H$7)*1 -> 0 | GV7: =AND(GV5>=$G$7,GV5<$H$7)*1 -> 0 | GW7: =AND(GW5>=$G$7,GW5<$H$7)*1 -> 0 | GX7: =AND(GX5>=$G$7,GX5<$H$7)*1 -> 0 | GY7: =AND(GY5>=$G$7,GY5<$H$7)*1 -> 0 | GZ7: =AND(GZ5>=$G$7,GZ5<$H$7)*1 -> 0 | HA7: =AND(HA5>=$G$7,HA5<$H$7)*1 -> 0
B8: Year | J8: =YEAR(J5) -> 2020 | K8: =YEAR(K5) -> 2020 | L8: 2020 | M8: 2020 | N8: 2020 | O8: 2020 | P8: 2020 | Q8: 2020 | R8: 2020 | S8: 2021 | T8: 2021 | U8: 2021 | V8: 2021 | W8: 2021 | X8: 2021 | Y8: 2021 | Z8: 2021 | AA8: 2021 | AB8: 2021 | AC8: 2021 | AD8: 2021 | AE8: 2022 | AF8: 2022 | AG8: 2022 | AH8: 2022 | AI8: 2022 | AJ8: 2022 | AK8: 2022 | AL8: 2022 | AM8: 2022 | AN8: 2022 | AO8: 2022 | AP8: 2022 | AQ8: 2023 | AR8: 2023 | AS8: 2023 | AT8: 2023 | AU8: 2023 | AV8: 2023 | AW8: 2024 | AX8: 2024 | AY8: 2024 | AZ8: 2024 | BA8: 2025 | BB8: 2025 | BC8: 2025 | BD8: 2025 | BE8: 2026 | BF8: 2026 | BG8: 2026 | BH8: 2026 | BI8: 2027 | BJ8: 2027 | BK8: 2027 | BL8: 2027 | BM8: 2028 | BN8: 2028 | BO8: 2028 | BP8: 2028 | BQ8: 2029 | BR8: 2029 | BS8: 2029 | BT8: 2029 | BU8: 2030 | BV8: 2030 | BW8: =YEAR(BW5) -> 2030 | BX8: 2030 | BY8: 2031 | BZ8: 2031 | CA8: 2031 | CB8: 2031 | CC8: 2032 | CD8: 2032 | CE8: 2032 | CF8: 2032 | CG8: 2033 | CH8: 2033 | CI8: 2033 | CJ8: 2033 | CK8: 2034 | CL8: 2034 | CM8: 2034 | CN8: 2034 | CO8: 2035 | CP8: 2035 | CQ8: 2035 | CR8: 2035 | CS8: 2036 | CT8: 2036 | CU8: 2036 | CV8: 2036 | CW8: 2037 | CX8: 2037 | CY8: 2037 | CZ8: 2037 | DA8: 2038 | DB8: 2038 | DC8: 2038 | DD8: 2038 | DE8: 2039 | DF8: 2039 | DG8: 2039 | DH8: 2039 | DI8: 2040 | DJ8: 2040 | DK8: 2040 | DL8: 2040 | DM8: 2041 | DN8: 2041 | DO8: 2041 | DP8: 2041 | DQ8: 2042 | DR8: 2042 | DS8: 2042 | DT8: 2042 | DU8: 2043 | DV8: 2043 | DW8: 2043 | DX8: 2043 | DY8: 2044 | DZ8: 2044 | EA8: 2044 | EB8: 2044 | EC8: 2045 | ED8: 2045 | EE8: 2045 | EF8: 2045 | EG8: 2046 | EH8: 2046 | EI8: =YEAR(EI5) -> 2046 | EJ8: 2046 | EK8: 2047 | EL8: 2047 | EM8: 2047 | EN8: 2047 | EO8: 2048 | EP8: 2048 | EQ8: 2048 | ER8: 2048 | ES8: 2049 | ET8: 2049 | EU8: 2049 | EV8: 2049 | EW8: 2050 | EX8: 2050 | EY8: 2050 | EZ8: 2050 | FA8: 2051 | FB8: 2051 | FC8: 2051 | FD8: 2051 | FE8: 2052 | FF8: 2052 | FG8: 2052 | FH8: 2052 | FI8: 2053 | FJ8: 2053 | FK8: 2053 | FL8: 2053 | FM8: 2054 | FN8: 2054 | FO8: 2054 | FP8: 2054 | FQ8: 2055 | FR8: 2055 | FS8: 2055 | FT8: 2055 | FU8: 2056 | FV8: 2056 | FW8: 2056 | FX8: 2056 | FY8: 2057 | FZ8: 2057 | GA8: 2057 | GB8: 2057 | GC8: 2058 | GD8: 2058 | GE8: 2058 | GF8: 2058 | GG8: 2059 | GH8: 2059 | GI8: 2059 | GJ8: 2059 | GK8: 2060 | GL8: 2060 | GM8: 2060 | GN8: 2060 | GO8: 2061 | GP8: 2061 | GQ8: 2061 | GR8: 2061 | GS8: 2062 | GT8: 2062 | GU8: =YEAR(GU5) -> 2062 | GV8: 2062 | GW8: 2063 | GX8: 2063 | GY8: 2063 | GZ8: 2063 | HA8: 2064
B9: Fiscal Year End | G9: =Assumptions!E16 -> 2 | J9: =(MONTH(J6)=$G$9)*1 -> 0 | K9: =(MONTH(K6)=$G$9)*1 -> 0 | L9: =(MONTH(L6)=$G$9)*1 -> 0 | M9: =(MONTH(M6)=$G$9)*1 -> 0 | N9: =(MONTH(N6)=$G$9)*1 -> 0 | O9: =(MONTH(O6)=$G$9)*1 -> 0 | P9: =(MONTH(P6)=$G$9)*1 -> 0 | Q9: =(MONTH(Q6)=$G$9)*1 -> 0 | R9: =(MONTH(R6)=$G$9)*1 -> 0 | S9: =(MONTH(S6)=$G$9)*1 -> 0 | T9: =(MONTH(T6)=$G$9)*1 -> 1 | U9: =(MONTH(U6)=$G$9)*1 -> 0 | V9: =(MONTH(V6)=$G$9)*1 -> 0 | W9: =(MONTH(W6)=$G$9)*1 -> 0 | X9: =(MONTH(X6)=$G$9)*1 -> 0 | Y9: =(MONTH(Y6)=$G$9)*1 -> 0 | Z9: =(MONTH(Z6)=$G$9)*1 -> 0 | AA9: =(MONTH(AA6)=$G$9)*1 -> 0 | AB9: =(MONTH(AB6)=$G$9)*1 -> 0 | AC9: =(MONTH(AC6)=$G$9)*1 -> 0 | AD9: =(MONTH(AD6)=$G$9)*1 -> 0 | AE9: =(MONTH(AE6)=$G$9)*1 -> 0 | AF9: =(MONTH(AF6)=$G$9)*1 -> 1 | AG9: =(MONTH(AG6)=$G$9)*1 -> 0 | AH9: =(MONTH(AH6)=$G$9)*1 -> 0 | AI9: =(MONTH(AI6)=$G$9)*1 -> 0 | AJ9: =(MONTH(AJ6)=$G$9)*1 -> 0 | AK9: =(MONTH(AK6)=$G$9)*1 -> 0 | AL9: =(MONTH(AL6)=$G$9)*1 -> 0 | AM9: =(MONTH(AM6)=$G$9)*1 -> 0 | AN9: =(MONTH(AN6)=$G$9)*1 -> 0 | AO9: =(MONTH(AO6)=$G$9)*1 -> 0 | AP9: =(MONTH(AP6)=$G$9)*1 -> 0 | AQ9: =(MONTH(AQ6)=$G$9)*1 -> 0 | AR9: =(MONTH(AR6)=$G$9)*1 -> 1 | AS9: =(MONTH(AS6)=$G$9)*1 -> 0 | AT9: =(MONTH(AT6)=$G$9)*1 -> 0 | AU9: =(MONTH(AU6)=$G$9)*1 -> 0 | AV9: =(MONTH(AV6)=$G$9)*1 -> 1 | AW9: =(MONTH(AW6)=$G$9)*1 -> 0 | AX9: =(MONTH(AX6)=$G$9)*1 -> 0 | AY9: =(MONTH(AY6)=$G$9)*1 -> 0 | AZ9: =(MONTH(AZ6)=$G$9)*1 -> 1 | BA9: =(MONTH(BA6)=$G$9)*1 -> 0 | BB9: =(MONTH(BB6)=$G$9)*1 -> 0 | BC9: =(MONTH(BC6)=$G$9)*1 -> 0 | BD9: =(MONTH(BD6)=$G$9)*1 -> 1 | BE9: =(MONTH(BE6)=$G$9)*1 -> 0 | BF9: =(MONTH(BF6)=$G$9)*1 -> 0 | BG9: =(MONTH(BG6)=$G$9)*1 -> 0 | BH9: =(MONTH(BH6)=$G$9)*1 -> 1 | BI9: =(MONTH(BI6)=$G$9)*1 -> 0 | BJ9: =(MONTH(BJ6)=$G$9)*1 -> 0 | BK9: =(MONTH(BK6)=$G$9)*1 -> 0 | BL9: =(MONTH(BL6)=$G$9)*1 -> 1 | BM9: =(MONTH(BM6)=$G$9)*1 -> 0 | BN9: =(MONTH(BN6)=$G$9)*1 -> 0 | BO9: =(MONTH(BO6)=$G$9)*1 -> 0 | BP9: =(MONTH(BP6)=$G$9)*1 -> 1 | BQ9: =(MONTH(BQ6)=$G$9)*1 -> 0 | BR9: =(MONTH(BR6)=$G$9)*1 -> 0 | BS9: =(MONTH(BS6)=$G$9)*1 -> 0 | BT9: =(MONTH(BT6)=$G$9)*1 -> 1 | BU9: =(MONTH(BU6)=$G$9)*1 -> 0 | BV9: =(MONTH(BV6)=$G$9)*1 -> 0 | BW9: =(MONTH(BW6)=$G$9)*1 -> 0 | BX9: =(MONTH(BX6)=$G$9)*1 -> 1 | BY9: =(MONTH(BY6)=$G$9)*1 -> 0 | BZ9: =(MONTH(BZ6)=$G$9)*1 -> 0 | CA9: =(MONTH(CA6)=$G$9)*1 -> 0 | CB9: =(MONTH(CB6)=$G$9)*1 -> 1 | CC9: =(MONTH(CC6)=$G$9)*1 -> 0 | CD9: =(MONTH(CD6)=$G$9)*1 -> 0 | CE9: =(MONTH(CE6)=$G$9)*1 -> 0 | CF9: =(MONTH(CF6)=$G$9)*1 -> 1 | CG9: =(MONTH(CG6)=$G$9)*1 -> 0 | CH9: =(MONTH(CH6)=$G$9)*1 -> 0 | CI9: =(MONTH(CI6)=$G$9)*1 -> 0 | CJ9: =(MONTH(CJ6)=$G$9)*1 -> 1 | CK9: =(MONTH(CK6)=$G$9)*1 -> 0 | CL9: =(MONTH(CL6)=$G$9)*1 -> 0 | CM9: =(MONTH(CM6)=$G$9)*1 -> 0 | CN9: =(MONTH(CN6)=$G$9)*1 -> 1 | CO9: =(MONTH(CO6)=$G$9)*1 -> 0 | CP9: =(MONTH(CP6)=$G$9)*1 -> 0 | CQ9: =(MONTH(CQ6)=$G$9)*1 -> 0 | CR9: =(MONTH(CR6)=$G$9)*1 -> 1 | CS9: =(MONTH(CS6)=$G$9)*1 -> 0 | CT9: =(MONTH(CT6)=$G$9)*1 -> 0 | CU9: =(MONTH(CU6)=$G$9)*1 -> 0 | CV9: =(MONTH(CV6)=$G$9)*1 -> 1 | CW9: =(MONTH(CW6)=$G$9)*1 -> 0 | CX9: =(MONTH(CX6)=$G$9)*1 -> 0 | CY9: =(MONTH(CY6)=$G$9)*1 -> 0 | CZ9: =(MONTH(CZ6)=$G$9)*1 -> 1 | DA9: =(MONTH(DA6)=$G$9)*1 -> 0 | DB9: =(MONTH(DB6)=$G$9)*1 -> 0 | DC9: =(MONTH(DC6)=$G$9)*1 -> 0 | DD9: =(MONTH(DD6)=$G$9)*1 -> 1 | DE9: =(MONTH(DE6)=$G$9)*1 -> 0 | DF9: =(MONTH(DF6)=$G$9)*1 -> 0 | DG9: =(MONTH(DG6)=$G$9)*1 -> 0 | DH9: =(MONTH(DH6)=$G$9)*1 -> 1 | DI9: =(MONTH(DI6)=$G$9)*1 -> 0 | DJ9: =(MONTH(DJ6)=$G$9)*1 -> 0 | DK9: =(MONTH(DK6)=$G$9)*1 -> 0 | DL9: =(MONTH(DL6)=$G$9)*1 -> 1 | DM9: =(MONTH(DM6)=$G$9)*1 -> 0 | DN9: =(MONTH(DN6)=$G$9)*1 -> 0 | DO9: =(MONTH(DO6)=$G$9)*1 -> 0 | DP9: =(MONTH(DP6)=$G$9)*1 -> 1 | DQ9: =(MONTH(DQ6)=$G$9)*1 -> 0 | DR9: =(MONTH(DR6)=$G$9)*1 -> 0 | DS9: =(MONTH(DS6)=$G$9)*1 -> 0 | DT9: =(MONTH(DT6)=$G$9)*1 -> 1 | DU9: =(MONTH(DU6)=$G$9)*1 -> 0 | DV9: =(MONTH(DV6)=$G$9)*1 -> 0 | DW9: =(MONTH(DW6)=$G$9)*1 -> 0 | DX9: =(MONTH(DX6)=$G$9)*1 -> 1 | DY9: =(MONTH(DY6)=$G$9)*1 -> 0 | DZ9: =(MONTH(DZ6)=$G$9)*1 -> 0 | EA9: =(MONTH(EA6)=$G$9)*1 -> 0 | EB9: =(MONTH(EB6)=$G$9)*1 -> 1 | EC9: =(MONTH(EC6)=$G$9)*1 -> 0 | ED9: =(MONTH(ED6)=$G$9)*1 -> 0 | EE9: =(MONTH(EE6)=$G$9)*1 -> 0 | EF9: =(MONTH(EF6)=$G$9)*1 -> 1 | EG9: =(MONTH(EG6)=$G$9)*1 -> 0 | EH9: =(MONTH(EH6)=$G$9)*1 -> 0 | EI9: =(MONTH(EI6)=$G$9)*1 -> 0 | EJ9: =(MONTH(EJ6)=$G$9)*1 -> 1 | EK9: =(MONTH(EK6)=$G$9)*1 -> 0 | EL9: =(MONTH(EL6)=$G$9)*1 -> 0 | EM9: =(MONTH(EM6)=$G$9)*1 -> 0 | EN9: =(MONTH(EN6)=$G$9)*1 -> 1 | EO9: =(MONTH(EO6)=$G$9)*1 -> 0 | EP9: =(MONTH(EP6)=$G$9)*1 -> 0 | EQ9: =(MONTH(EQ6)=$G$9)*1 -> 0 | ER9: =(MONTH(ER6)=$G$9)*1 -> 1 | ES9: =(MONTH(ES6)=$G$9)*1 -> 0 | ET9: =(MONTH(ET6)=$G$9)*1 -> 0 | EU9: =(MONTH(EU6)=$G$9)*1 -> 0 | EV9: =(MONTH(EV6)=$G$9)*1 -> 1 | EW9: =(MONTH(EW6)=$G$9)*1 -> 0 | EX9: =(MONTH(EX6)=$G$9)*1 -> 0 | EY9: =(MONTH(EY6)=$G$9)*1 -> 0 | EZ9: =(MONTH(EZ6)=$G$9)*1 -> 1 | FA9: =(MONTH(FA6)=$G$9)*1 -> 0 | FB9: =(MONTH(FB6)=$G$9)*1 -> 0 | FC9: =(MONTH(FC6)=$G$9)*1 -> 0 | FD9: =(MONTH(FD6)=$G$9)*1 -> 1 | FE9: =(MONTH(FE6)=$G$9)*1 -> 0 | FF9: =(MONTH(FF6)=$G$9)*1 -> 0 | FG9: =(MONTH(FG6)=$G$9)*1 -> 0 | FH9: =(MONTH(FH6)=$G$9)*1 -> 1 | FI9: =(MONTH(FI6)=$G$9)*1 -> 0 | FJ9: =(MONTH(FJ6)=$G$9)*1 -> 0 | FK9: =(MONTH(FK6)=$G$9)*1 -> 0 | FL9: =(MONTH(FL6)=$G$9)*1 -> 1 | FM9: =(MONTH(FM6)=$G$9)*1 -> 0 | FN9: =(MONTH(FN6)=$G$9)*1 -> 0 | FO9: =(MONTH(FO6)=$G$9)*1 -> 0 | FP9: =(MONTH(FP6)=$G$9)*1 -> 1 | FQ9: =(MONTH(FQ6)=$G$9)*1 -> 0 | FR9: =(MONTH(FR6)=$G$9)*1 -> 0 | FS9: =(MONTH(FS6)=$G$9)*1 -> 0 | FT9: =(MONTH(FT6)=$G$9)*1 -> 1 | FU9: =(MONTH(FU6)=$G$9)*1 -> 0 | FV9: =(MONTH(FV6)=$G$9)*1 -> 0 | FW9: =(MONTH(FW6)=$G$9)*1 -> 0 | FX9: =(MONTH(FX6)=$G$9)*1 -> 1 | FY9: =(MONTH(FY6)=$G$9)*1 -> 0 | FZ9: =(MONTH(FZ6)=$G$9)*1 -> 0 | GA9: =(MONTH(GA6)=$G$9)*1 -> 0 | GB9: =(MONTH(GB6)=$G$9)*1 -> 1 | GC9: =(MONTH(GC6)=$G$9)*1 -> 0 | GD9: =(MONTH(GD6)=$G$9)*1 -> 0 | GE9: =(MONTH(GE6)=$G$9)*1 -> 0 | GF9: =(MONTH(GF6)=$G$9)*1 -> 1 | GG9: =(MONTH(GG6)=$G$9)*1 -> 0 | GH9: =(MONTH(GH6)=$G$9)*1 -> 0 | GI9: =(MONTH(GI6)=$G$9)*1 -> 0 | GJ9: =(MONTH(GJ6)=$G$9)*1 -> 1 | GK9: =(MONTH(GK6)=$G$9)*1 -> 0 | GL9: =(MONTH(GL6)=$G$9)*1 -> 0 | GM9: =(MONTH(GM6)=$G$9)*1 -> 0 | GN9: =(MONTH(GN6)=$G$9)*1 -> 1 | GO9: =(MONTH(GO6)=$G$9)*1 -> 0 | GP9: =(MONTH(GP6)=$G$9)*1 -> 0 | GQ9: =(MONTH(GQ6)=$G$9)*1 -> 0 | GR9: =(MONTH(GR6)=$G$9)*1 -> 1 | GS9: =(MONTH(GS6)=$G$9)*1 -> 0 | GT9: =(MONTH(GT6)=$G$9)*1 -> 0 | GU9: =(MONTH(GU6)=$G$9)*1 -> 0 | GV9: =(MONTH(GV6)=$G$9)*1 -> 1 | GW9: =(MONTH(GW6)=$G$9)*1 -> 0 | GX9: =(MONTH(GX6)=$G$9)*1 -> 0 | GY9: =(MONTH(GY6)=$G$9)*1 -> 0 | GZ9: =(MONTH(GZ6)=$G$9)*1 -> 1 | HA9: =(MONTH(HA6)=$G$9)*1 -> 0
B10: Fiscal Year | J10: =J8 -> 2020 | K10: =IF(K9,J10+1,J10) -> 2020 | L10: =IF(L9,K10+1,K10) -> 2020 | M10: 2020 | N10: 2020 | O10: 2020 | P10: 2020 | Q10: 2020 | R10: 2020 | S10: 2020 | T10: 2021 | U10: 2021 | V10: 2021 | W10: 2021 | X10: 2021 | Y10: 2021 | Z10: 2021 | AA10: 2021 | AB10: 2021 | AC10: 2021 | AD10: 2021 | AE10: 2021 | AF10: 2022 | AG10: 2022 | AH10: 2022 | AI10: 2022 | AJ10: 2022 | AK10: 2022 | AL10: 2022 | AM10: 2022 | AN10: 2022 | AO10: 2022 | AP10: 2022 | AQ10: 2022 | AR10: 2023 | AS10: 2023 | AT10: 2023 | AU10: 2023 | AV10: 2024 | AW10: 2024 | AX10: 2024 | AY10: 2024 | AZ10: 2025 | BA10: 2025 | BB10: 2025 | BC10: 2025 | BD10: 2026 | BE10: 2026 | BF10: 2026 | BG10: 2026 | BH10: 2027 | BI10: 2027 | BJ10: 2027 | BK10: 2027 | BL10: 2028 | BM10: 2028 | BN10: 2028 | BO10: 2028 | BP10: 2029 | BQ10: 2029 | BR10: 2029 | BS10: 2029 | BT10: 2030 | BU10: 2030 | BV10: 2030 | BW10: 2030 | BX10: =IF(BX9,BW10+1,BW10) -> 2031 | BY10: 2031 | BZ10: 2031 | CA10: 2031 | CB10: 2032 | CC10: 2032 | CD10: 2032 | CE10: 2032 | CF10: 2033 | CG10: 2033 | CH10: 2033 | CI10: 2033 | CJ10: 2034 | CK10: 2034 | CL10: 2034 | CM10: 2034 | CN10: 2035 | CO10: 2035 | CP10: 2035 | CQ10: 2035 | CR10: 2036 | CS10: 2036 | CT10: 2036 | CU10: 2036 | CV10: 2037 | CW10: 2037 | CX10: 2037 | CY10: 2037 | CZ10: 2038 | DA10: 2038 | DB10: 2038 | DC10: 2038 | DD10: 2039 | DE10: 2039 | DF10: 2039 | DG10: 2039 | DH10: 2040 | DI10: 2040 | DJ10: 2040 | DK10: 2040 | DL10: 2041 | DM10: 2041 | DN10: 2041 | DO10: 2041 | DP10: 2042 | DQ10: 2042 | DR10: 2042 | DS10: 2042 | DT10: 2043 | DU10: 2043 | DV10: 2043 | DW10: 2043 | DX10: 2044 | DY10: 2044 | DZ10: 2044 | EA10: 2044 | EB10: 2045 | EC10: 2045 | ED10: 2045 | EE10: 2045 | EF10: 2046 | EG10: 2046 | EH10: 2046 | EI10: 2046 | EJ10: =IF(EJ9,EI10+1,EI10) -> 2047 | EK10: 2047 | EL10: 2047 | EM10: 2047 | EN10: 2048 | EO10: 2048 | EP10: 2048 | EQ10: 2048 | ER10: 2049 | ES10: 2049 | ET10: 2049 | EU10: 2049 | EV10: 2050 | EW10: 2050 | EX10: 2050 | EY10: 2050 | EZ10: 2051 | FA10: 2051 | FB10: 2051 | FC10: 2051 | FD10: 2052 | FE10: 2052 | FF10: 2052 | FG10: 2052 | FH10: 2053 | FI10: 2053 | FJ10: 2053 | FK10: 2053 | FL10: 2054 | FM10: 2054 | FN10: 2054 | FO10: 2054 | FP10: 2055 | FQ10: 2055 | FR10: 2055 | FS10: 2055 | FT10: 2056 | FU10: 2056 | FV10: 2056 | FW10: 2056 | FX10: 2057 | FY10: 2057 | FZ10: 2057 | GA10: 2057 | GB10: 2058 | GC10: 2058 | GD10: 2058 | GE10: 2058 | GF10: 2059 | GG10: 2059 | GH10: 2059 | GI10: 2059 | GJ10: 2060 | GK10: 2060 | GL10: 2060 | GM10: 2060 | GN10: 2061 | GO10: 2061 | GP10: 2061 | GQ10: 2061 | GR10: 2062 | GS10: 2062 | GT10: 2062 | GU10: 2062 | GV10: =IF(GV9,GU10+1,GU10) -> 2063 | GW10: 2063 | GX10: 2063 | GY10: 2063 | GZ10: 2064 | HA10: 2064
A12: Plant Operations:
B13: Capacity | E13: MW | G13: =Assumptions!E20 -> 300 | J13: =$G$13*J7 -> 0 | K13: =$G$13*K7 -> 0 | L13: =$G$13*L7 -> 0 | M13: =$G$13*M7 -> 0 | N13: =$G$13*N7 -> 0 | O13: =$G$13*O7 -> 0 | P13: =$G$13*P7 -> 0 | Q13: =$G$13*Q7 -> 0 | R13: =$G$13*R7 -> 0 | S13: =$G$13*S7 -> 0 | T13: =$G$13*T7 -> 0 | U13: =$G$13*U7 -> 0 | V13: =$G$13*V7 -> 0 | W13: =$G$13*W7 -> 0 | X13: =$G$13*X7 -> 0 | Y13: =$G$13*Y7 -> 0 | Z13: =$G$13*Z7 -> 0 | AA13: =$G$13*AA7 -> 0 | AB13: =$G$13*AB7 -> 0 | AC13: =$G$13*AC7 -> 0 | AD13: =$G$13*AD7 -> 0 | AE13: =$G$13*AE7 -> 0 | AF13: =$G$13*AF7 -> 0 | AG13: =$G$13*AG7 -> 0 | AH13: =$G$13*AH7 -> 0 | AI13: =$G$13*AI7 -> 0 | AJ13: =$G$13*AJ7 -> 0 | AK13: =$G$13*AK7 -> 0 | AL13: =$G$13*AL7 -> 0 | AM13: =$G$13*AM7 -> 0 | AN13: =$G$13*AN7 -> 0 | AO13: =$G$13*AO7 -> 0 | AP13: =$G$13*AP7 -> 0 | AQ13: =$G$13*AQ7 -> 0 | AR13: =$G$13*AR7 -> 0 | AS13: =$G$13*AS7 -> 300 | AT13: =$G$13*AT7 -> 300 | AU13: =$G$13*AU7 -> 300 | AV13: =$G$13*AV7 -> 300 | AW13: =$G$13*AW7 -> 300 | AX13: =$G$13*AX7 -> 300 | AY13: =$G$13*AY7 -> 300 | AZ13: =$G$13*AZ7 -> 300 | BA13: =$G$13*BA7 -> 300 | BB13: =$G$13*BB7 -> 300 | BC13: =$G$13*BC7 -> 300 | BD13: =$G$13*BD7 -> 300 | BE13: =$G$13*BE7 -> 300 | BF13: =$G$13*BF7 -> 300 | BG13: =$G$13*BG7 -> 300 | BH13: =$G$13*BH7 -> 300 | BI13: =$G$13*BI7 -> 300 | BJ13: =$G$13*BJ7 -> 300 | BK13: =$G$13*BK7 -> 300 | BL13: =$G$13*BL7 -> 300 | BM13: =$G$13*BM7 -> 300 | BN13: =$G$13*BN7 -> 300 | BO13: =$G$13*BO7 -> 300 | BP13: =$G$13*BP7 -> 300 | BQ13: =$G$13*BQ7 -> 300 | BR13: =$G$13*BR7 -> 300 | BS13: =$G$13*BS7 -> 300 | BT13: =$G$13*BT7 -> 300 | BU13: =$G$13*BU7 -> 300 | BV13: =$G$13*BV7 -> 300 | BW13: =$G$13*BW7 -> 300 | BX13: =$G$13*BX7 -> 300 | BY13: =$G$13*BY7 -> 300 | BZ13: =$G$13*BZ7 -> 300 | CA13: =$G$13*CA7 -> 300 | CB13: =$G$13*CB7 -> 300 | CC13: =$G$13*CC7 -> 300 | CD13: =$G$13*CD7 -> 300 | CE13: =$G$13*CE7 -> 300 | CF13: =$G$13*CF7 -> 300 | CG13: =$G$13*CG7 -> 300 | CH13: =$G$13*CH7 -> 300 | CI13: =$G$13*CI7 -> 300 | CJ13: =$G$13*CJ7 -> 300 | CK13: =$G$13*CK7 -> 300 | CL13: =$G$13*CL7 -> 300 | CM13: =$G$13*CM7 -> 300 | CN13: =$G$13*CN7 -> 300 | CO13: =$G$13*CO7 -> 300 | CP13: =$G$13*CP7 -> 300 | CQ13: =$G$13*CQ7 -> 300 | CR13: =$G$13*CR7 -> 300 | CS13: =$G$13*CS7 -> 300 | CT13: =$G$13*CT7 -> 300 | CU13: =$G$13*CU7 -> 300 | CV13: =$G$13*CV7 -> 300 | CW13: =$G$13*CW7 -> 300 | CX13: =$G$13*CX7 -> 300 | CY13: =$G$13*CY7 -> 300 | CZ13: =$G$13*CZ7 -> 300 | DA13: =$G$13*DA7 -> 300 | DB13: =$G$13*DB7 -> 300 | DC13: =$G$13*DC7 -> 300 | DD13: =$G$13*DD7 -> 300 | DE13: =$G$13*DE7 -> 300 | DF13: =$G$13*DF7 -> 300 | DG13: =$G$13*DG7 -> 300 | DH13: =$G$13*DH7 -> 300 | DI13: =$G$13*DI7 -> 300 | DJ13: =$G$13*DJ7 -> 300 | DK13: =$G$13*DK7 -> 300 | DL13: =$G$13*DL7 -> 300 | DM13: =$G$13*DM7 -> 300 | DN13: =$G$13*DN7 -> 300 | DO13: =$G$13*DO7 -> 300 | DP13: =$G$13*DP7 -> 300 | DQ13: =$G$13*DQ7 -> 300 | DR13: =$G$13*DR7 -> 300 | DS13: =$G$13*DS7 -> 300 | DT13: =$G$13*DT7 -> 300 | DU13: =$G$13*DU7 -> 0 | DV13: =$G$13*DV7 -> 0 | DW13: =$G$13*DW7 -> 0 | DX13: =$G$13*DX7 -> 0 | DY13: =$G$13*DY7 -> 0 | DZ13: =$G$13*DZ7 -> 0 | EA13: =$G$13*EA7 -> 0 | EB13: =$G$13*EB7 -> 0 | EC13: =$G$13*EC7 -> 0 | ED13: =$G$13*ED7 -> 0 | EE13: =$G$13*EE7 -> 0 | EF13: =$G$13*EF7 -> 0 | EG13: =$G$13*EG7 -> 0 | EH13: =$G$13*EH7 -> 0 | EI13: =$G$13*EI7 -> 0 | EJ13: =$G$13*EJ7 -> 0 | EK13: =$G$13*EK7 -> 0 | EL13: =$G$13*EL7 -> 0 | EM13: =$G$13*EM7 -> 0 | EN13: =$G$13*EN7 -> 0 | EO13: =$G$13*EO7 -> 0 | EP13: =$G$13*EP7 -> 0 | EQ13: =$G$13*EQ7 -> 0 | ER13: =$G$13*ER7 -> 0 | ES13: =$G$13*ES7 -> 0 | ET13: =$G$13*ET7 -> 0 | EU13: =$G$13*EU7 -> 0 | EV13: =$G$13*EV7 -> 0 | EW13: =$G$13*EW7 -> 0 | EX13: =$G$13*EX7 -> 0 | EY13: =$G$13*EY7 -> 0 | EZ13: =$G$13*EZ7 -> 0 | FA13: =$G$13*FA7 -> 0 | FB13: =$G$13*FB7 -> 0 | FC13: =$G$13*FC7 -> 0 | FD13: =$G$13*FD7 -> 0 | FE13: =$G$13*FE7 -> 0 | FF13: =$G$13*FF7 -> 0 | FG13: =$G$13*FG7 -> 0 | FH13: =$G$13*FH7 -> 0 | FI13: =$G$13*FI7 -> 0 | FJ13: =$G$13*FJ7 -> 0 | FK13: =$G$13*FK7 -> 0 | FL13: =$G$13*FL7 -> 0 | FM13: =$G$13*FM7 -> 0 | FN13: =$G$13*FN7 -> 0 | FO13: =$G$13*FO7 -> 0 | FP13: =$G$13*FP7 -> 0 | FQ13: =$G$13*FQ7 -> 0 | FR13: =$G$13*FR7 -> 0 | FS13: =$G$13*FS7 -> 0 | FT13: =$G$13*FT7 -> 0 | FU13: =$G$13*FU7 -> 0 | FV13: =$G$13*FV7 -> 0 | FW13: =$G$13*FW7 -> 0 | FX13: =$G$13*FX7 -> 0 | FY13: =$G$13*FY7 -> 0 | FZ13: =$G$13*FZ7 -> 0 | GA13: =$G$13*GA7 -> 0 | GB13: =$G$13*GB7 -> 0 | GC13: =$G$13*GC7 -> 0 | GD13: =$G$13*GD7 -> 0 | GE13: =$G$13*GE7 -> 0 | GF13: =$G$13*GF7 -> 0 | GG13: =$G$13*GG7 -> 0 | GH13: =$G$13*GH7 -> 0 | GI13: =$G$13*GI7 -> 0 | GJ13: =$G$13*GJ7 -> 0 | GK13: =$G$13*GK7 -> 0 | GL13: =$G$13*GL7 -> 0 | GM13: =$G$13*GM7 -> 0 | GN13: =$G$13*GN7 -> 0 | GO13: =$G$13*GO7 -> 0 | GP13: =$G$13*GP7 -> 0 | GQ13: =$G$13*GQ7 -> 0 | GR13: =$G$13*GR7 -> 0 | GS13: =$G$13*GS7 -> 0 | GT13: =$G$13*GT7 -> 0 | GU13: =$G$13*GU7 -> 0 | GV13: =$G$13*GV7 -> 0 | GW13: =$G$13*GW7 -> 0 | GX13: =$G$13*GX7 -> 0 | GY13: =$G$13*GY7 -> 0 | GZ13: =$G$13*GZ7 -> 0 | HA13: =$G$13*HA7 -> 0
B14: Hours in Period | E14: Hours | J14: =(J6-J5+1)*24 -> 720 | K14: 744 | L14: 720 | M14: 744 | N14: 744 | O14: 720 | P14: 744 | Q14: 720 | R14: 744 | S14: 744 | T14: 672 | U14: 744 | V14: 720 | W14: 744 | X14: 720 | Y14: 744 | Z14: 744 | AA14: 720 | AB14: 744 | AC14: 720 | AD14: 744 | AE14: 744 | AF14: 672 | AG14: 744 | AH14: 720 | AI14: 744 | AJ14: 720 | AK14: 744 | AL14: 744 | AM14: 720 | AN14: 744 | AO14: 720 | AP14: =(AP6-AP5+1)*24 -> 744 | AQ14: 744 | AR14: 672 | AS14: 2208 | AT14: 2208 | AU14: 2184 | AV14: 2184 | AW14: 2208 | AX14: 2208 | AY14: 2184 | AZ14: 2160 | BA14: 2208 | BB14: 2208 | BC14: 2184 | BD14: 2160 | BE14: 2208 | BF14: 2208 | BG14: 2184 | BH14: 2160 | BI14: 2208 | BJ14: 2208 | BK14: 2184 | BL14: 2184 | BM14: 2208 | BN14: 2208 | BO14: 2184 | BP14: 2160 | BQ14: 2208 | BR14: 2208 | BS14: 2184 | BT14: 2160 | BU14: 2208 | BV14: =(BV6-BV5+1)*24 -> 2208 | BW14: 2184 | BX14: 2160 | BY14: 2208 | BZ14: 2208 | CA14: 2184 | CB14: 2184 | CC14: 2208 | CD14: 2208 | CE14: 2184 | CF14: 2160 | CG14: 2208 | CH14: 2208 | CI14: 2184 | CJ14: 2160 | CK14: 2208 | CL14: 2208 | CM14: 2184 | CN14: 2160 | CO14: 2208 | CP14: 2208 | CQ14: 2184 | CR14: 2184 | CS14: 2208 | CT14: 2208 | CU14: 2184 | CV14: 2160 | CW14: 2208 | CX14: 2208 | CY14: 2184 | CZ14: 2160 | DA14: 2208 | DB14: =(DB6-DB5+1)*24 -> 2208 | DC14: 2184 | DD14: 2160 | DE14: 2208 | DF14: 2208 | DG14: 2184 | DH14: 2184 | DI14: 2208 | DJ14: 2208 | DK14: 2184 | DL14: 2160 | DM14: 2208 | DN14: 2208 | DO14: 2184 | DP14: 2160 | DQ14: 2208 | DR14: 2208 | DS14: 2184 | DT14: 2160 | DU14: 2208 | DV14: 2208 | DW14: 2184 | DX14: 2184 | DY14: 2208 | DZ14: 2208 | EA14: 2184 | EB14: 2160 | EC14: 2208 | ED14: 2208 | EE14: 2184 | EF14: 2160 | EG14: 2208 | EH14: =(EH6-EH5+1)*24 -> 2208 | EI14: 2184 | EJ14: 2160 | EK14: 2208 | EL14: 2208 | EM14: 2184 | EN14: 2184 | EO14: 2208 | EP14: 2208 | EQ14: 2184 | ER14: 2160 | ES14: 2208 | ET14: 2208 | EU14: 2184 | EV14: 2160 | EW14: 2208 | EX14: 2208 | EY14: 2184 | EZ14: 2160 | FA14: 2208 | FB14: 2208 | FC14: 2184 | FD14: 2184 | FE14: 2208 | FF14: 2208 | FG14: 2184 | FH14: 2160 | FI14: 2208 | FJ14: 2208 | FK14: 2184 | FL14: 2160 | FM14: 2208 | FN14: =(FN6-FN5+1)*24 -> 2208 | FO14: 2184 | FP14: 2160 | FQ14: 2208 | FR14: 2208 | FS14: 2184 | FT14: 2184 | FU14: 2208 | FV14: 2208 | FW14: 2184 | FX14: 2160 | FY14: 2208 | FZ14: 2208 | GA14: 2184 | GB14: 2160 | GC14: 2208 | GD14: 2208 | GE14: 2184 | GF14: 2160 | GG14: 2208 | GH14: 2208 | GI14: 2184 | GJ14: 2184 | GK14: 2208 | GL14: 2208 | GM14: 2184 | GN14: 2160 | GO14: 2208 | GP14: 2208 | GQ14: 2184 | GR14: 2160 | GS14: 2208 | GT14: =(GT6-GT5+1)*24 -> 2208 | GU14: 2184 | GV14: 2160 | GW14: 2208 | GX14: 2208 | GY14: 2184 | GZ14: 2184 | HA14: 2208
B15: Capacity Factor | J15: =LOOKUP(J5,Assumptions!22:22,Assumptions!23:23) -> 0 | K15: =LOOKUP(K5,Assumptions!22:22,Assumptions!23:23) -> 0 | L15: =LOOKUP(L5,Assumptions!22:22,Assumptions!23:23) -> 0 | M15: =LOOKUP(M5,Assumptions!22:22,Assumptions!23:23) -> 0 | N15: =LOOKUP(N5,Assumptions!22:22,Assumptions!23:23) -> 0 | O15: =LOOKUP(O5,Assumptions!22:22,Assumptions!23:23) -> 0 | P15: =LOOKUP(P5,Assumptions!22:22,Assumptions!23:23) -> 0 | Q15: =LOOKUP(Q5,Assumptions!22:22,Assumptions!23:23) -> 0 | R15: =LOOKUP(R5,Assumptions!22:22,Assumptions!23:23) -> 0 | S15: =LOOKUP(S5,Assumptions!22:22,Assumptions!23:23) -> 0 | T15: =LOOKUP(T5,Assumptions!22:22,Assumptions!23:23) -> 0 | U15: =LOOKUP(U5,Assumptions!22:22,Assumptions!23:23) -> 0 | V15: =LOOKUP(V5,Assumptions!22:22,Assumptions!23:23) -> 0 | W15: =LOOKUP(W5,Assumptions!22:22,Assumptions!23:23) -> 0 | X15: =LOOKUP(X5,Assumptions!22:22,Assumptions!23:23) -> 0 | Y15: =LOOKUP(Y5,Assumptions!22:22,Assumptions!23:23) -> 0 | Z15: =LOOKUP(Z5,Assumptions!22:22,Assumptions!23:23) -> 0 | AA15: =LOOKUP(AA5,Assumptions!22:22,Assumptions!23:23) -> 0 | AB15: =LOOKUP(AB5,Assumptions!22:22,Assumptions!23:23) -> 0 | AC15: =LOOKUP(AC5,Assumptions!22:22,Assumptions!23:23) -> 0 | AD15: =LOOKUP(AD5,Assumptions!22:22,Assumptions!23:23) -> 0 | AE15: =LOOKUP(AE5,Assumptions!22:22,Assumptions!23:23) -> 0 | AF15: =LOOKUP(AF5,Assumptions!22:22,Assumptions!23:23) -> 0 | AG15: =LOOKUP(AG5,Assumptions!22:22,Assumptions!23:23) -> 0 | AH15: =LOOKUP(AH5,Assumptions!22:22,Assumptions!23:23) -> 0 | AI15: =LOOKUP(AI5,Assumptions!22:22,Assumptions!23:23) -> 0 | AJ15: =LOOKUP(AJ5,Assumptions!22:22,Assumptions!23:23) -> 0 | AK15: =LOOKUP(AK5,Assumptions!22:22,Assumptions!23:23) -> 0 | AL15: =LOOKUP(AL5,Assumptions!22:22,Assumptions!23:23) -> 0 | AM15: =LOOKUP(AM5,Assumptions!22:22,Assumptions!23:23) -> 0 | AN15: =LOOKUP(AN5,Assumptions!22:22,Assumptions!23:23) -> 0 | AO15: =LOOKUP(AO5,Assumptions!22:22,Assumptions!23:23) -> 0 | AP15: =LOOKUP(AP5,Assumptions!22:22,Assumptions!23:23) -> 0 | AQ15: =LOOKUP(AQ5,Assumptions!22:22,Assumptions!23:23) -> 0 | AR15: =LOOKUP(AR5,Assumptions!22:22,Assumptions!23:23) -> 0 | AS15: =LOOKUP(AS5,Assumptions!22:22,Assumptions!23:23) -> 0.65 | AT15: =LOOKUP(AT5,Assumptions!22:22,Assumptions!23:23) -> 0.65 | AU15: =LOOKUP(AU5,Assumptions!22:22,Assumptions!23:23) -> 0.65 | AV15: =LOOKUP(AV5,Assumptions!22:22,Assumptions!23:23) -> 0.65 | AW15: =LOOKUP(AW5,Assumptions!22:22,Assumptions!23:23) -> 0.65 | AX15: =LOOKUP(AX5,Assumptions!22:22,Assumptions!23:23) -> 0.65 | AY15: =LOOKUP(AY5,Assumptions!22:22,Assumptions!23:23) -> 0.65 | AZ15: =LOOKUP(AZ5,Assumptions!22:22,Assumptions!23:23) -> 0.65 | BA15: =LOOKUP(BA5,Assumptions!22:22,Assumptions!23:23) -> 0.7 | BB15: =LOOKUP(BB5,Assumptions!22:22,Assumptions!23:23) -> 0.7 | BC15: =LOOKUP(BC5,Assumptions!22:22,Assumptions!23:23) -> 0.7 | BD15: =LOOKUP(BD5,Assumptions!22:22,Assumptions!23:23) -> 0.7 | BE15: =LOOKUP(BE5,Assumptions!22:22,Assumptions!23:23) -> 0.7 | BF15: =LOOKUP(BF5,Assumptions!22:22,Assumptions!23:23) -> 0.7 | BG15: =LOOKUP(BG5,Assumptions!22:22,Assumptions!23:23) -> 0.7 | BH15: =LOOKUP(BH5,Assumptions!22:22,Assumptions!23:23) -> 0.7 | BI15: =LOOKUP(BI5,Assumptions!22:22,Assumptions!23:23) -> 0.56 | BJ15: =LOOKUP(BJ5,Assumptions!22:22,Assumptions!23:23) -> 0.56 | BK15: =LOOKUP(BK5,Assumptions!22:22,Assumptions!23:23) -> 0.56 | BL15: =LOOKUP(BL5,Assumptions!22:22,Assumptions!23:23) -> 0.56 | BM15: =LOOKUP(BM5,Assumptions!22:22,Assumptions!23:23) -> 0.56 | BN15: =LOOKUP(BN5,Assumptions!22:22,Assumptions!23:23) -> 0.56 | BO15: =LOOKUP(BO5,Assumptions!22:22,Assumptions!23:23) -> 0.56 | BP15: =LOOKUP(BP5,Assumptions!22:22,Assumptions!23:23) -> 0.56 | BQ15: =LOOKUP(BQ5,Assumptions!22:22,Assumptions!23:23) -> 0.56 | BR15: =LOOKUP(BR5,Assumptions!22:22,Assumptions!23:23) -> 0.56 | BS15: =LOOKUP(BS5,Assumptions!22:22,Assumptions!23:23) -> 0.56 | BT15: =LOOKUP(BT5,Assumptions!22:22,Assumptions!23:23) -> 0.56 | BU15: =LOOKUP(BU5,Assumptions!22:22,Assumptions!23:23) -> 0.56 | BV15: =LOOKUP(BV5,Assumptions!22:22,Assumptions!23:23) -> 0.56 | BW15: =LOOKUP(BW5,Assumptions!22:22,Assumptions!23:23) -> 0.56 | BX15: =LOOKUP(BX5,Assumptions!22:22,Assumptions!23:23) -> 0.56 | BY15: =LOOKUP(BY5,Assumptions!22:22,Assumptions!23:23) -> 0.56 | BZ15: =LOOKUP(BZ5,Assumptions!22:22,Assumptions!23:23) -> 0.56 | CA15: =LOOKUP(CA5,Assumptions!22:22,Assumptions!23:23) -> 0.56 | CB15: =LOOKUP(CB5,Assumptions!22:22,Assumptions!23:23) -> 0.56 | CC15: =LOOKUP(CC5,Assumptions!22:22,Assumptions!23:23) -> 0.56 | CD15: =LOOKUP(CD5,Assumptions!22:22,Assumptions!23:23) -> 0.56 | CE15: =LOOKUP(CE5,Assumptions!22:22,Assumptions!23:23) -> 0.56 | CF15: =LOOKUP(CF5,Assumptions!22:22,Assumptions!23:23) -> 0.56 | CG15: =LOOKUP(CG5,Assumptions!22:22,Assumptions!23:23) -> 0.56 | CH15: =LOOKUP(CH5,Assumptions!22:22,Assumptions!23:23) -> 0.56 | CI15: =LOOKUP(CI5,Assumptions!22:22,Assumptions!23:23) -> 0.56 | CJ15: =LOOKUP(CJ5,Assumptions!22:22,Assumptions!23:23) -> 0.56 | CK15: =LOOKUP(CK5,Assumptions!22:22,Assumptions!23:23) -> 0.56 | CL15: =LOOKUP(CL5,Assumptions!22:22,Assumptions!23:23) -> 0.56 | CM15: =LOOKUP(CM5,Assumptions!22:22,Assumptions!23:23) -> 0.56 | CN15: =LOOKUP(CN5,Assumptions!22:22,Assumptions!23:23) -> 0.56 | CO15: =LOOKUP(CO5,Assumptions!22:22,Assumptions!23:23) -> 0.56 | CP15: =LOOKUP(CP5,Assumptions!22:22,Assumptions!23:23) -> 0.56 | CQ15: =LOOKUP(CQ5,Assumptions!22:22,Assumptions!23:23) -> 0.56 | CR15: =LOOKUP(CR5,Assumptions!22:22,Assumptions!23:23) -> 0.56 | CS15: =LOOKUP(CS5,Assumptions!22:22,Assumptions!23:23) -> 0.56 | CT15: =LOOKUP(CT5,Assumptions!22:22,Assumptions!23:23) -> 0.56 | CU15: =LOOKUP(CU5,Assumptions!22:22,Assumptions!23:23) -> 0.56 | CV15: =LOOKUP(CV5,Assumptions!22:22,Assumptions!23:23) -> 0.56 | CW15: =LOOKUP(CW5,Assumptions!22:22,Assumptions!23:23) -> 0.56 | CX15: =LOOKUP(CX5,Assumptions!22:22,Assumptions!23:23) -> 0.56 | CY15: =LOOKUP(CY5,Assumptions!22:22,Assumptions!23:23) -> 0.56 | CZ15: =LOOKUP(CZ5,Assumptions!22:22,Assumptions!23:23) -> 0.56 | DA15: =LOOKUP(DA5,Assumptions!22:22,Assumptions!23:23) -> 0.56 | DB15: =LOOKUP(DB5,Assumptions!22:22,Assumptions!23:23) -> 0.56 | DC15: =LOOKUP(DC5,Assumptions!22:22,Assumptions!23:23) -> 0.56 | DD15: =LOOKUP(DD5,Assumptions!22:22,Assumptions!23:23) -> 0.56 | DE15: =LOOKUP(DE5,Assumptions!22:22,Assumptions!23:23) -> 0.56 | DF15: =LOOKUP(DF5,Assumptions!22:22,Assumptions!23:23) -> 0.56 | DG15: =LOOKUP(DG5,Assumptions!22:22,Assumptions!23:23) -> 0.56 | DH15: =LOOKUP(DH5,Assumptions!22:22,Assumptions!23:23) -> 0.56 | DI15: =LOOKUP(DI5,Assumptions!22:22,Assumptions!23:23) -> 0.56 | DJ15: =LOOKUP(DJ5,Assumptions!22:22,Assumptions!23:23) -> 0.56 | DK15: =LOOKUP(DK5,Assumptions!22:22,Assumptions!23:23) -> 0.56 | DL15: =LOOKUP(DL5,Assumptions!22:22,Assumptions!23:23) -> 0.56 | DM15: =LOOKUP(DM5,Assumptions!22:22,Assumptions!23:23) -> 0.56 | DN15: =LOOKUP(DN5,Assumptions!22:22,Assumptions!23:23) -> 0.56 | DO15: =LOOKUP(DO5,Assumptions!22:22,Assumptions!23:23) -> 0.56 | DP15: =LOOKUP(DP5,Assumptions!22:22,Assumptions!23:23) -> 0.56 | DQ15: =LOOKUP(DQ5,Assumptions!22:22,Assumptions!23:23) -> 0.56 | DR15: =LOOKUP(DR5,Assumptions!22:22,Assumptions!23:23) -> 0.56 | DS15: =LOOKUP(DS5,Assumptions!22:22,Assumptions!23:23) -> 0.56 | DT15: =LOOKUP(DT5,Assumptions!22:22,Assumptions!23:23) -> 0.56 | DU15: =LOOKUP(DU5,Assumptions!22:22,Assumptions!23:23) -> 0.56 | DV15: =LOOKUP(DV5,Assumptions!22:22,Assumptions!23:23) -> 0.56 | DW15: =LOOKUP(DW5,Assumptions!22:22,Assumptions!23:23) -> 0.56 | DX15: =LOOKUP(DX5,Assumptions!22:22,Assumptions!23:23) -> 0.56 | DY15: =LOOKUP(DY5,Assumptions!22:22,Assumptions!23:23) -> 0.56 | DZ15: =LOOKUP(DZ5,Assumptions!22:22,Assumptions!23:23) -> 0.56 | EA15: =LOOKUP(EA5,Assumptions!22:22,Assumptions!23:23) -> 0.56 | EB15: =LOOKUP(EB5,Assumptions!22:22,Assumptions!23:23) -> 0.56 | EC15: =LOOKUP(EC5,Assumptions!22:22,Assumptions!23:23) -> 0.56 | ED15: =LOOKUP(ED5,Assumptions!22:22,Assumptions!23:23) -> 0.56 | EE15: =LOOKUP(EE5,Assumptions!22:22,Assumptions!23:23) -> 0.56 | EF15: =LOOKUP(EF5,Assumptions!22:22,Assumptions!23:23) -> 0.56 | EG15: =LOOKUP(EG5,Assumptions!22:22,Assumptions!23:23) -> 0.56 | EH15: =LOOKUP(EH5,Assumptions!22:22,Assumptions!23:23) -> 0.56 | EI15: =LOOKUP(EI5,Assumptions!22:22,Assumptions!23:23) -> 0.56 | EJ15: =LOOKUP(EJ5,Assumptions!22:22,Assumptions!23:23) -> 0.56 | EK15: =LOOKUP(EK5,Assumptions!22:22,Assumptions!23:23) -> 0.56 | EL15: =LOOKUP(EL5,Assumptions!22:22,Assumptions!23:23) -> 0.56 | EM15: =LOOKUP(EM5,Assumptions!22:22,Assumptions!23:23) -> 0.56 | EN15: =LOOKUP(EN5,Assumptions!22:22,Assumptions!23:23) -> 0.56 | EO15: =LOOKUP(EO5,Assumptions!22:22,Assumptions!23:23) -> 0.56 | EP15: =LOOKUP(EP5,Assumptions!22:22,Assumptions!23:23) -> 0.56 | EQ15: =LOOKUP(EQ5,Assumptions!22:22,Assumptions!23:23) -> 0.56 | ER15: =LOOKUP(ER5,Assumptions!22:22,Assumptions!23:23) -> 0.56 | ES15: =LOOKUP(ES5,Assumptions!22:22,Assumptions!23:23) -> 0.56 | ET15: =LOOKUP(ET5,Assumptions!22:22,Assumptions!23:23) -> 0.56 | EU15: =LOOKUP(EU5,Assumptions!22:22,Assumptions!23:23) -> 0.56 | EV15: =LOOKUP(EV5,Assumptions!22:22,Assumptions!23:23) -> 0.56 | EW15: =LOOKUP(EW5,Assumptions!22:22,Assumptions!23:23) -> 0.56 | EX15: =LOOKUP(EX5,Assumptions!22:22,Assumptions!23:23) -> 0.56 | EY15: =LOOKUP(EY5,Assumptions!22:22,Assumptions!23:23) -> 0.56 | EZ15: =LOOKUP(EZ5,Assumptions!22:22,Assumptions!23:23) -> 0.56 | FA15: =LOOKUP(FA5,Assumptions!22:22,Assumptions!23:23) -> 0.56 | FB15: =LOOKUP(FB5,Assumptions!22:22,Assumptions!23:23) -> 0.56 | FC15: =LOOKUP(FC5,Assumptions!22:22,Assumptions!23:23) -> 0.56 | FD15: =LOOKUP(FD5,Assumptions!22:22,Assumptions!23:23) -> 0.56 | FE15: =LOOKUP(FE5,Assumptions!22:22,Assumptions!23:23) -> 0.56 | FF15: =LOOKUP(FF5,Assumptions!22:22,Assumptions!23:23) -> 0.56 | FG15: =LOOKUP(FG5,Assumptions!22:22,Assumptions!23:23) -> 0.56 | FH15: =LOOKUP(FH5,Assumptions!22:22,Assumptions!23:23) -> 0.56 | FI15: =LOOKUP(FI5,Assumptions!22:22,Assumptions!23:23) -> 0.56 | FJ15: =LOOKUP(FJ5,Assumptions!22:22,Assumptions!23:23) -> 0.56 | FK15: =LOOKUP(FK5,Assumptions!22:22,Assumptions!23:23) -> 0.56 | FL15: =LOOKUP(FL5,Assumptions!22:22,Assumptions!23:23) -> 0.56 | FM15: =LOOKUP(FM5,Assumptions!22:22,Assumptions!23:23) -> 0.56 | FN15: =LOOKUP(FN5,Assumptions!22:22,Assumptions!23:23) -> 0.56 | FO15: =LOOKUP(FO5,Assumptions!22:22,Assumptions!23:23) -> 0.56 | FP15: =LOOKUP(FP5,Assumptions!22:22,Assumptions!23:23) -> 0.56 | FQ15: =LOOKUP(FQ5,Assumptions!22:22,Assumptions!23:23) -> 0.56 | FR15: =LOOKUP(FR5,Assumptions!22:22,Assumptions!23:23) -> 0.56 | FS15: =LOOKUP(FS5,Assumptions!22:22,Assumptions!23:23) -> 0.56 | FT15: =LOOKUP(FT5,Assumptions!22:22,Assumptions!23:23) -> 0.56 | FU15: =LOOKUP(FU5,Assumptions!22:22,Assumptions!23:23) -> 0.56 | FV15: =LOOKUP(FV5,Assumptions!22:22,Assumptions!23:23) -> 0.56 | FW15: =LOOKUP(FW5,Assumptions!22:22,Assumptions!23:23) -> 0.56 | FX15: =LOOKUP(FX5,Assumptions!22:22,Assumptions!23:23) -> 0.56 | FY15: =LOOKUP(FY5,Assumptions!22:22,Assumptions!23:23) -> 0.56 | FZ15: =LOOKUP(FZ5,Assumptions!22:22,Assumptions!23:23) -> 0.56 | GA15: =LOOKUP(GA5,Assumptions!22:22,Assumptions!23:23) -> 0.56 | GB15: =LOOKUP(GB5,Assumptions!22:22,Assumptions!23:23) -> 0.56 | GC15: =LOOKUP(GC5,Assumptions!22:22,Assumptions!23:23) -> 0.56 | GD15: =LOOKUP(GD5,Assumptions!22:22,Assumptions!23:23) -> 0.56 | GE15: =LOOKUP(GE5,Assumptions!22:22,Assumptions!23:23) -> 0.56 | GF15: =LOOKUP(GF5,Assumptions!22:22,Assumptions!23:23) -> 0.56 | GG15: =LOOKUP(GG5,Assumptions!22:22,Assumptions!23:23) -> 0.56 | GH15: =LOOKUP(GH5,Assumptions!22:22,Assumptions!23:23) -> 0.56 | GI15: =LOOKUP(GI5,Assumptions!22:22,Assumptions!23:23) -> 0.56 | GJ15: =LOOKUP(GJ5,Assumptions!22:22,Assumptions!23:23) -> 0.56 | GK15: =LOOKUP(GK5,Assumptions!22:22,Assumptions!23:23) -> 0.56 | GL15: =LOOKUP(GL5,Assumptions!22:22,Assumptions!23:23) -> 0.56 | GM15: =LOOKUP(GM5,Assumptions!22:22,Assumptions!23:23) -> 0.56 | GN15: =LOOKUP(GN5,Assumptions!22:22,Assumptions!23:23) -> 0.56 | GO15: =LOOKUP(GO5,Assumptions!22:22,Assumptions!23:23) -> 0.56 | GP15: =LOOKUP(GP5,Assumptions!22:22,Assumptions!23:23) -> 0.56 | GQ15: =LOOKUP(GQ5,Assumptions!22:22,Assumptions!23:23) -> 0.56 | GR15: =LOOKUP(GR5,Assumptions!22:22,Assumptions!23:23) -> 0.56 | GS15: =LOOKUP(GS5,Assumptions!22:22,Assumptions!23:23) -> 0.56 | GT15: =LOOKUP(GT5,Assumptions!22:22,Assumptions!23:23) -> 0.56 | GU15: =LOOKUP(GU5,Assumptions!22:22,Assumptions!23:23) -> 0.56 | GV15: =LOOKUP(GV5,Assumptions!22:22,Assumptions!23:23) -> 0.56 | GW15: =LOOKUP(GW5,Assumptions!22:22,Assumptions!23:23) -> 0.56 | GX15: =LOOKUP(GX5,Assumptions!22:22,Assumptions!23:23) -> 0.56 | GY15: =LOOKUP(GY5,Assumptions!22:22,Assumptions!23:23) -> 0.56 | GZ15: =LOOKUP(GZ5,Assumptions!22:22,Assumptions!23:23) -> 0.56 | HA15: =LOOKUP(HA5,Assumptions!22:22,Assumptions!23:23) -> 0.56
B16: Generation | E16: MWH | J16: =J13*J14*J15 -> 0 | K16: =K13*K14*K15 -> 0 | L16: 0 | M16: 0 | N16: 0 | O16: 0 | P16: 0 | Q16: 0 | R16: 0 | S16: 0 | T16: 0 | U16: 0 | V16: 0 | W16: 0 | X16: 0 | Y16: 0 | Z16: 0 | AA16: 0 | AB16: 0 | AC16: 0 | AD16: 0 | AE16: 0 | AF16: 0 | AG16: 0 | AH16: 0 | AI16: 0 | AJ16: 0 | AK16: 0 | AL16: 0 | AM16: 0 | AN16: 0 | AO16: 0 | AP16: 0 | AQ16: 0 | AR16: 0 | AS16: 430560 | AT16: 430560 | AU16: 425880 | AV16: 425880 | AW16: 430560 | AX16: 430560 | AY16: 425880 | AZ16: 421200 | BA16: 463680 | BB16: 463680 | BC16: 458640 | BD16: 453600 | BE16: 463680 | BF16: 463680 | BG16: 458640 | BH16: 453600 | BI16: 370944 | BJ16: 370944 | BK16: 366912 | BL16: 366912 | BM16: 370944 | BN16: 370944 | BO16: 366912 | BP16: 362880 | BQ16: 370944 | BR16: 370944 | BS16: 366912 | BT16: 362880 | BU16: 370944 | BV16: 370944 | BW16: =BW13*BW14*BW15 -> 366912 | BX16: 362880 | BY16: 370944 | BZ16: 370944 | CA16: 366912 | CB16: 366912 | CC16: 370944 | CD16: 370944 | CE16: 366912 | CF16: 362880 | CG16: 370944 | CH16: 370944 | CI16: 366912 | CJ16: 362880 | CK16: 370944 | CL16: 370944 | CM16: 366912 | CN16: 362880 | CO16: 370944 | CP16: 370944 | CQ16: 366912 | CR16: 366912 | CS16: 370944 | CT16: 370944 | CU16: 366912 | CV16: 362880 | CW16: 370944 | CX16: 370944 | CY16: 366912 | CZ16: 362880 | DA16: 370944 | DB16: 370944 | DC16: 366912 | DD16: 362880 | DE16: 370944 | DF16: 370944 | DG16: 366912 | DH16: 366912 | DI16: 370944 | DJ16: 370944 | DK16: 366912 | DL16: 362880 | DM16: 370944 | DN16: 370944 | DO16: 366912 | DP16: 362880 | DQ16: 370944 | DR16: 370944 | DS16: 366912 | DT16: 362880 | DU16: 0 | DV16: 0 | DW16: 0 | DX16: 0 | DY16: 0 | DZ16: 0 | EA16: 0 | EB16: 0 | EC16: 0 | ED16: 0 | EE16: 0 | EF16: 0 | EG16: 0 | EH16: 0 | EI16: =EI13*EI14*EI15 -> 0 | EJ16: 0 | EK16: 0 | EL16: 0 | EM16: 0 | EN16: 0 | EO16: 0 | EP16: 0 | EQ16: 0 | ER16: 0 | ES16: 0 | ET16: 0 | EU16: 0 | EV16: 0 | EW16: 0 | EX16: 0 | EY16: 0 | EZ16: 0 | FA16: 0 | FB16: 0 | FC16: 0 | FD16: 0 | FE16: 0 | FF16: 0 | FG16: 0 | FH16: 0 | FI16: 0 | FJ16: 0 | FK16: 0 | FL16: 0 | FM16: 0 | FN16: 0 | FO16: 0 | FP16: 0 | FQ16: 0 | FR16: 0 | FS16: 0 | FT16: 0 | FU16: 0 | FV16: 0 | FW16: 0 | FX16: 0 | FY16: 0 | FZ16: 0 | GA16: 0 | GB16: 0 | GC16: 0 | GD16: 0 | GE16: 0 | GF16: 0 | GG16: 0 | GH16: 0 | GI16: 0 | GJ16: 0 | GK16: 0 | GL16: 0 | GM16: 0 | GN16: 0 | GO16: 0 | GP16: 0 | GQ16: 0 | GR16: 0 | GS16: 0 | GT16: 0 | GU16: =GU13*GU14*GU15 -> 0 | GV16: 0 | GW16: 0 | GX16: 0 | GY16: 0 | GZ16: 0 | HA16: 0
B18: Actual Heat Rate | E18: MMBTU / MWh | G18: =Assumptions!E30 -> 6.5 | J18: =$G$18 -> 6.5 | K18: =$G$18 -> 6.5 | L18: =$G$18 -> 6.5 | M18: =$G$18 -> 6.5 | N18: =$G$18 -> 6.5 | O18: =$G$18 -> 6.5 | P18: =$G$18 -> 6.5 | Q18: =$G$18 -> 6.5 | R18: =$G$18 -> 6.5 | S18: =$G$18 -> 6.5 | T18: =$G$18 -> 6.5 | U18: =$G$18 -> 6.5 | V18: =$G$18 -> 6.5 | W18: =$G$18 -> 6.5 | X18: =$G$18 -> 6.5 | Y18: =$G$18 -> 6.5 | Z18: =$G$18 -> 6.5 | AA18: =$G$18 -> 6.5 | AB18: =$G$18 -> 6.5 | AC18: =$G$18 -> 6.5 | AD18: =$G$18 -> 6.5 | AE18: =$G$18 -> 6.5 | AF18: =$G$18 -> 6.5 | AG18: =$G$18 -> 6.5 | AH18: =$G$18 -> 6.5 | AI18: =$G$18 -> 6.5 | AJ18: =$G$18 -> 6.5 | AK18: =$G$18 -> 6.5 | AL18: =$G$18 -> 6.5 | AM18: =$G$18 -> 6.5 | AN18: =$G$18 -> 6.5 | AO18: =$G$18 -> 6.5 | AP18: =$G$18 -> 6.5 | AQ18: =$G$18 -> 6.5 | AR18: =$G$18 -> 6.5 | AS18: =$G$18 -> 6.5 | AT18: =$G$18 -> 6.5 | AU18: =$G$18 -> 6.5 | AV18: =$G$18 -> 6.5 | AW18: =$G$18 -> 6.5 | AX18: =$G$18 -> 6.5 | AY18: =$G$18 -> 6.5 | AZ18: =$G$18 -> 6.5 | BA18: =$G$18 -> 6.5 | BB18: =$G$18 -> 6.5 | BC18: =$G$18 -> 6.5 | BD18: =$G$18 -> 6.5 | BE18: =$G$18 -> 6.5 | BF18: =$G$18 -> 6.5 | BG18: =$G$18 -> 6.5 | BH18: =$G$18 -> 6.5 | BI18: =$G$18 -> 6.5 | BJ18: =$G$18 -> 6.5 | BK18: =$G$18 -> 6.5 | BL18: =$G$18 -> 6.5 | BM18: =$G$18 -> 6.5 | BN18: =$G$18 -> 6.5 | BO18: =$G$18 -> 6.5 | BP18: =$G$18 -> 6.5 | BQ18: =$G$18 -> 6.5 | BR18: =$G$18 -> 6.5 | BS18: =$G$18 -> 6.5 | BT18: =$G$18 -> 6.5 | BU18: =$G$18 -> 6.5 | BV18: =$G$18 -> 6.5 | BW18: =$G$18 -> 6.5 | BX18: =$G$18 -> 6.5 | BY18: =$G$18 -> 6.5 | BZ18: =$G$18 -> 6.5 | CA18: =$G$18 -> 6.5 | CB18: =$G$18 -> 6.5 | CC18: =$G$18 -> 6.5 | CD18: =$G$18 -> 6.5 | CE18: =$G$18 -> 6.5 | CF18: =$G$18 -> 6.5 | CG18: =$G$18 -> 6.5 | CH18: =$G$18 -> 6.5 | CI18: =$G$18 -> 6.5 | CJ18: =$G$18 -> 6.5 | CK18: =$G$18 -> 6.5 | CL18: =$G$18 -> 6.5 | CM18: =$G$18 -> 6.5 | CN18: =$G$18 -> 6.5 | CO18: =$G$18 -> 6.5 | CP18: =$G$18 -> 6.5 | CQ18: =$G$18 -> 6.5 | CR18: =$G$18 -> 6.5 | CS18: =$G$18 -> 6.5 | CT18: =$G$18 -> 6.5 | CU18: =$G$18 -> 6.5 | CV18: =$G$18 -> 6.5 | CW18: =$G$18 -> 6.5 | CX18: =$G$18 -> 6.5 | CY18: =$G$18 -> 6.5 | CZ18: =$G$18 -> 6.5 | DA18: =$G$18 -> 6.5 | DB18: =$G$18 -> 6.5 | DC18: =$G$18 -> 6.5 | DD18: =$G$18 -> 6.5 | DE18: =$G$18 -> 6.5 | DF18: =$G$18 -> 6.5 | DG18: =$G$18 -> 6.5 | DH18: =$G$18 -> 6.5 | DI18: =$G$18 -> 6.5 | DJ18: =$G$18 -> 6.5 | DK18: =$G$18 -> 6.5 | DL18: =$G$18 -> 6.5 | DM18: =$G$18 -> 6.5 | DN18: =$G$18 -> 6.5 | DO18: =$G$18 -> 6.5 | DP18: =$G$18 -> 6.5 | DQ18: =$G$18 -> 6.5 | DR18: =$G$18 -> 6.5 | DS18: =$G$18 -> 6.5 | DT18: =$G$18 -> 6.5 | DU18: =$G$18 -> 6.5 | DV18: =$G$18 -> 6.5 | DW18: =$G$18 -> 6.5 | DX18: =$G$18 -> 6.5 | DY18: =$G$18 -> 6.5 | DZ18: =$G$18 -> 6.5 | EA18: =$G$18 -> 6.5 | EB18: =$G$18 -> 6.5 | EC18: =$G$18 -> 6.5 | ED18: =$G$18 -> 6.5 | EE18: =$G$18 -> 6.5 | EF18: =$G$18 -> 6.5 | EG18: =$G$18 -> 6.5 | EH18: =$G$18 -> 6.5 | EI18: =$G$18 -> 6.5 | EJ18: =$G$18 -> 6.5 | EK18: =$G$18 -> 6.5 | EL18: =$G$18 -> 6.5 | EM18: =$G$18 -> 6.5 | EN18: =$G$18 -> 6.5 | EO18: =$G$18 -> 6.5 | EP18: =$G$18 -> 6.5 | EQ18: =$G$18 -> 6.5 | ER18: =$G$18 -> 6.5 | ES18: =$G$18 -> 6.5 | ET18: =$G$18 -> 6.5 | EU18: =$G$18 -> 6.5 | EV18: =$G$18 -> 6.5 | EW18: =$G$18 -> 6.5 | EX18: =$G$18 -> 6.5 | EY18: =$G$18 -> 6.5 | EZ18: =$G$18 -> 6.5 | FA18: =$G$18 -> 6.5 | FB18: =$G$18 -> 6.5 | FC18: =$G$18 -> 6.5 | FD18: =$G$18 -> 6.5 | FE18: =$G$18 -> 6.5 | FF18: =$G$18 -> 6.5 | FG18: =$G$18 -> 6.5 | FH18: =$G$18 -> 6.5 | FI18: =$G$18 -> 6.5 | FJ18: =$G$18 -> 6.5 | FK18: =$G$18 -> 6.5 | FL18: =$G$18 -> 6.5 | FM18: =$G$18 -> 6.5 | FN18: =$G$18 -> 6.5 | FO18: =$G$18 -> 6.5 | FP18: =$G$18 -> 6.5 | FQ18: =$G$18 -> 6.5 | FR18: =$G$18 -> 6.5 | FS18: =$G$18 -> 6.5 | FT18: =$G$18 -> 6.5 | FU18: =$G$18 -> 6.5 | FV18: =$G$18 -> 6.5 | FW18: =$G$18 -> 6.5 | FX18: =$G$18 -> 6.5 | FY18: =$G$18 -> 6.5 | FZ18: =$G$18 -> 6.5 | GA18: =$G$18 -> 6.5 | GB18: =$G$18 -> 6.5 | GC18: =$G$18 -> 6.5 | GD18: =$G$18 -> 6.5 | GE18: =$G$18 -> 6.5 | GF18: =$G$18 -> 6.5 | GG18: =$G$18 -> 6.5 | GH18: =$G$18 -> 6.5 | GI18: =$G$18 -> 6.5 | GJ18: =$G$18 -> 6.5 | GK18: =$G$18 -> 6.5 | GL18: =$G$18 -> 6.5 | GM18: =$G$18 -> 6.5 | GN18: =$G$18 -> 6.5 | GO18: =$G$18 -> 6.5 | GP18: =$G$18 -> 6.5 | GQ18: =$G$18 -> 6.5 | GR18: =$G$18 -> 6.5 | GS18: =$G$18 -> 6.5 | GT18: =$G$18 -> 6.5 | GU18: =$G$18 -> 6.5 | GV18: =$G$18 -> 6.5 | GW18: =$G$18 -> 6.5 | GX18: =$G$18 -> 6.5 | GY18: =$G$18 -> 6.5 | GZ18: =$G$18 -> 6.5 | HA18: =$G$18 -> 6.5
B19: Gas used | E19: MMBTU | J19: =J16*J18 -> 0 | K19: =K16*K18 -> 0 | L19: 0 | M19: 0 | N19: 0 | O19: 0 | P19: 0 | Q19: 0 | R19: 0 | S19: 0 | T19: 0 | U19: 0 | V19: 0 | W19: 0 | X19: 0 | Y19: 0 | Z19: 0 | AA19: 0 | AB19: 0 | AC19: 0 | AD19: 0 | AE19: 0 | AF19: 0 | AG19: 0 | AH19: 0 | AI19: 0 | AJ19: 0 | AK19: 0 | AL19: 0 | AM19: 0 | AN19: 0 | AO19: 0 | AP19: 0 | AQ19: 0 | AR19: 0 | AS19: 2798640 | AT19: 2798640 | AU19: 2768220 | AV19: 2768220 | AW19: 2798640 | AX19: 2798640 | AY19: 2768220 | AZ19: 2737800 | BA19: 3013920 | BB19: 3013920 | BC19: 2981160 | BD19: 2948400 | BE19: 3013920 | BF19: 3013920 | BG19: 2981160 | BH19: 2948400 | BI19: 2411136 | BJ19: 2411136 | BK19: 2384928 | BL19: 2384928 | BM19: 2411136 | BN19: 2411136 | BO19: 2384928 | BP19: 2358720 | BQ19: 2411136 | BR19: 2411136 | BS19: 2384928 | BT19: 2358720 | BU19: 2411136 | BV19: 2411136 | BW19: =BW16*BW18 -> 2384928 | BX19: 2358720 | BY19: 2411136 | BZ19: 2411136 | CA19: 2384928 | CB19: 2384928 | CC19: 2411136 | CD19: 2411136 | CE19: 2384928 | CF19: 2358720 | CG19: 2411136 | CH19: 2411136 | CI19: 2384928 | CJ19: 2358720 | CK19: 2411136 | CL19: 2411136 | CM19: 2384928 | CN19: 2358720 | CO19: 2411136 | CP19: 2411136 | CQ19: 2384928 | CR19: 2384928 | CS19: 2411136 | CT19: 2411136 | CU19: 2384928 | CV19: 2358720 | CW19: 2411136 | CX19: 2411136 | CY19: 2384928 | CZ19: 2358720 | DA19: 2411136 | DB19: 2411136 | DC19: 2384928 | DD19: 2358720 | DE19: 2411136 | DF19: 2411136 | DG19: 2384928 | DH19: 2384928 | DI19: 2411136 | DJ19: 2411136 | DK19: 2384928 | DL19: 2358720 | DM19: 2411136 | DN19: 2411136 | DO19: 2384928 | DP19: 2358720 | DQ19: 2411136 | DR19: 2411136 | DS19: 2384928 | DT19: 2358720 | DU19: 0 | DV19: 0 | DW19: 0 | DX19: 0 | DY19: 0 | DZ19: 0 | EA19: 0 | EB19: 0 | EC19: 0 | ED19: 0 | EE19: 0 | EF19: 0 | EG19: 0 | EH19: 0 | EI19: =EI16*EI18 -> 0 | EJ19: 0 | EK19: 0 | EL19: 0 | EM19: 0 | EN19: 0 | EO19: 0 | EP19: 0 | EQ19: 0 | ER19: 0 | ES19: 0 | ET19: 0 | EU19: 0 | EV19: 0 | EW19: 0 | EX19: 0 | EY19: 0 | EZ19: 0 | FA19: 0 | FB19: 0 | FC19: 0 | FD19: 0 | FE19: 0 | FF19: 0 | FG19: 0 | FH19: 0 | FI19: 0 | FJ19: 0 | FK19: 0 | FL19: 0 | FM19: 0 | FN19: 0 | FO19: 0 | FP19: 0 | FQ19: 0 | FR19: 0 | FS19: 0 | FT19: 0 | FU19: 0 | FV19: 0 | FW19: 0 | FX19: 0 | FY19: 0 | FZ19: 0 | GA19: 0 | GB19: 0 | GC19: 0 | GD19: 0 | GE19: 0 | GF19: 0 | GG19: 0 | GH19: 0 | GI19: 0 | GJ19: 0 | GK19: 0 | GL19: 0 | GM19: 0 | GN19: 0 | GO19: 0 | GP19: 0 | GQ19: 0 | GR19: 0 | GS19: 0 | GT19: 0 | GU19: =GU16*GU18 -> 0 | GV19: 0 | GW19: 0 | GX19: 0 | GY19: 0 | GZ19: 0 | HA19: 0
B21: Target Heat Rate | E21: MMBTU / MWh | G21: =Assumptions!E31 -> 6.5 | J21: =$G$21 -> 6.5 | K21: =$G$21 -> 6.5 | L21: =$G$21 -> 6.5 | M21: =$G$21 -> 6.5 | N21: =$G$21 -> 6.5 | O21: =$G$21 -> 6.5 | P21: =$G$21 -> 6.5 | Q21: =$G$21 -> 6.5 | R21: =$G$21 -> 6.5 | S21: =$G$21 -> 6.5 | T21: =$G$21 -> 6.5 | U21: =$G$21 -> 6.5 | V21: =$G$21 -> 6.5 | W21: =$G$21 -> 6.5 | X21: =$G$21 -> 6.5 | Y21: =$G$21 -> 6.5 | Z21: =$G$21 -> 6.5 | AA21: =$G$21 -> 6.5 | AB21: =$G$21 -> 6.5 | AC21: =$G$21 -> 6.5 | AD21: =$G$21 -> 6.5 | AE21: =$G$21 -> 6.5 | AF21: =$G$21 -> 6.5 | AG21: =$G$21 -> 6.5 | AH21: =$G$21 -> 6.5 | AI21: =$G$21 -> 6.5 | AJ21: =$G$21 -> 6.5 | AK21: =$G$21 -> 6.5 | AL21: =$G$21 -> 6.5 | AM21: =$G$21 -> 6.5 | AN21: =$G$21 -> 6.5 | AO21: =$G$21 -> 6.5 | AP21: =$G$21 -> 6.5 | AQ21: =$G$21 -> 6.5 | AR21: =$G$21 -> 6.5 | AS21: =$G$21 -> 6.5 | AT21: =$G$21 -> 6.5 | AU21: =$G$21 -> 6.5 | AV21: =$G$21 -> 6.5 | AW21: =$G$21 -> 6.5 | AX21: =$G$21 -> 6.5 | AY21: =$G$21 -> 6.5 | AZ21: =$G$21 -> 6.5 | BA21: =$G$21 -> 6.5 | BB21: =$G$21 -> 6.5 | BC21: =$G$21 -> 6.5 | BD21: =$G$21 -> 6.5 | BE21: =$G$21 -> 6.5 | BF21: =$G$21 -> 6.5 | BG21: =$G$21 -> 6.5 | BH21: =$G$21 -> 6.5 | BI21: =$G$21 -> 6.5 | BJ21: =$G$21 -> 6.5 | BK21: =$G$21 -> 6.5 | BL21: =$G$21 -> 6.5 | BM21: =$G$21 -> 6.5 | BN21: =$G$21 -> 6.5 | BO21: =$G$21 -> 6.5 | BP21: =$G$21 -> 6.5 | BQ21: =$G$21 -> 6.5 | BR21: =$G$21 -> 6.5 | BS21: =$G$21 -> 6.5 | BT21: =$G$21 -> 6.5 | BU21: =$G$21 -> 6.5 | BV21: =$G$21 -> 6.5 | BW21: =$G$21 -> 6.5 | BX21: =$G$21 -> 6.5 | BY21: =$G$21 -> 6.5 | BZ21: =$G$21 -> 6.5 | CA21: =$G$21 -> 6.5 | CB21: =$G$21 -> 6.5 | CC21: =$G$21 -> 6.5 | CD21: =$G$21 -> 6.5 | CE21: =$G$21 -> 6.5 | CF21: =$G$21 -> 6.5 | CG21: =$G$21 -> 6.5 | CH21: =$G$21 -> 6.5 | CI21: =$G$21 -> 6.5 | CJ21: =$G$21 -> 6.5 | CK21: =$G$21 -> 6.5 | CL21: =$G$21 -> 6.5 | CM21: =$G$21 -> 6.5 | CN21: =$G$21 -> 6.5 | CO21: =$G$21 -> 6.5 | CP21: =$G$21 -> 6.5 | CQ21: =$G$21 -> 6.5 | CR21: =$G$21 -> 6.5 | CS21: =$G$21 -> 6.5 | CT21: =$G$21 -> 6.5 | CU21: =$G$21 -> 6.5 | CV21: =$G$21 -> 6.5 | CW21: =$G$21 -> 6.5 | CX21: =$G$21 -> 6.5 | CY21: =$G$21 -> 6.5 | CZ21: =$G$21 -> 6.5 | DA21: =$G$21 -> 6.5 | DB21: =$G$21 -> 6.5 | DC21: =$G$21 -> 6.5 | DD21: =$G$21 -> 6.5 | DE21: =$G$21 -> 6.5 | DF21: =$G$21 -> 6.5 | DG21: =$G$21 -> 6.5 | DH21: =$G$21 -> 6.5 | DI21: =$G$21 -> 6.5 | DJ21: =$G$21 -> 6.5 | DK21: =$G$21 -> 6.5 | DL21: =$G$21 -> 6.5 | DM21: =$G$21 -> 6.5 | DN21: =$G$21 -> 6.5 | DO21: =$G$21 -> 6.5 | DP21: =$G$21 -> 6.5 | DQ21: =$G$21 -> 6.5 | DR21: =$G$21 -> 6.5 | DS21: =$G$21 -> 6.5 | DT21: =$G$21 -> 6.5 | DU21: =$G$21 -> 6.5 | DV21: =$G$21 -> 6.5 | DW21: =$G$21 -> 6.5 | DX21: =$G$21 -> 6.5 | DY21: =$G$21 -> 6.5 | DZ21: =$G$21 -> 6.5 | EA21: =$G$21 -> 6.5 | EB21: =$G$21 -> 6.5 | EC21: =$G$21 -> 6.5 | ED21: =$G$21 -> 6.5 | EE21: =$G$21 -> 6.5 | EF21: =$G$21 -> 6.5 | EG21: =$G$21 -> 6.5 | EH21: =$G$21 -> 6.5 | EI21: =$G$21 -> 6.5 | EJ21: =$G$21 -> 6.5 | EK21: =$G$21 -> 6.5 | EL21: =$G$21 -> 6.5 | EM21: =$G$21 -> 6.5 | EN21: =$G$21 -> 6.5 | EO21: =$G$21 -> 6.5 | EP21: =$G$21 -> 6.5 | EQ21: =$G$21 -> 6.5 | ER21: =$G$21 -> 6.5 | ES21: =$G$21 -> 6.5 | ET21: =$G$21 -> 6.5 | EU21: =$G$21 -> 6.5 | EV21: =$G$21 -> 6.5 | EW21: =$G$21 -> 6.5 | EX21: =$G$21 -> 6.5 | EY21: =$G$21 -> 6.5 | EZ21: =$G$21 -> 6.5 | FA21: =$G$21 -> 6.5 | FB21: =$G$21 -> 6.5 | FC21: =$G$21 -> 6.5 | FD21: =$G$21 -> 6.5 | FE21: =$G$21 -> 6.5 | FF21: =$G$21 -> 6.5 | FG21: =$G$21 -> 6.5 | FH21: =$G$21 -> 6.5 | FI21: =$G$21 -> 6.5 | FJ21: =$G$21 -> 6.5 | FK21: =$G$21 -> 6.5 | FL21: =$G$21 -> 6.5 | FM21: =$G$21 -> 6.5 | FN21: =$G$21 -> 6.5 | FO21: =$G$21 -> 6.5 | FP21: =$G$21 -> 6.5 | FQ21: =$G$21 -> 6.5 | FR21: =$G$21 -> 6.5 | FS21: =$G$21 -> 6.5 | FT21: =$G$21 -> 6.5 | FU21: =$G$21 -> 6.5 | FV21: =$G$21 -> 6.5 | FW21: =$G$21 -> 6.5 | FX21: =$G$21 -> 6.5 | FY21: =$G$21 -> 6.5 | FZ21: =$G$21 -> 6.5 | GA21: =$G$21 -> 6.5 | GB21: =$G$21 -> 6.5 | GC21: =$G$21 -> 6.5 | GD21: =$G$21 -> 6.5 | GE21: =$G$21 -> 6.5 | GF21: =$G$21 -> 6.5 | GG21: =$G$21 -> 6.5 | GH21: =$G$21 -> 6.5 | GI21: =$G$21 -> 6.5 | GJ21: =$G$21 -> 6.5 | GK21: =$G$21 -> 6.5 | GL21: =$G$21 -> 6.5 | GM21: =$G$21 -> 6.5 | GN21: =$G$21 -> 6.5 | GO21: =$G$21 -> 6.5 | GP21: =$G$21 -> 6.5 | GQ21: =$G$21 -> 6.5 | GR21: =$G$21 -> 6.5 | GS21: =$G$21 -> 6.5 | GT21: =$G$21 -> 6.5 | GU21: =$G$21 -> 6.5 | GV21: =$G$21 -> 6.5 | GW21: =$G$21 -> 6.5 | GX21: =$G$21 -> 6.5 | GY21: =$G$21 -> 6.5 | GZ21: =$G$21 -> 6.5 | HA21: =$G$21 -> 6.5
B22: Gas Used for Energy Charged | E22: MMBTU | J22: =J21*J16 -> 0 | K22: =K21*K16 -> 0 | L22: 0 | M22: 0 | N22: 0 | O22: 0 | P22: 0 | Q22: 0 | R22: 0 | S22: 0 | T22: 0 | U22: 0 | V22: 0 | W22: 0 | X22: 0 | Y22: 0 | Z22: 0 | AA22: 0 | AB22: 0 | AC22: 0 | AD22: 0 | AE22: 0 | AF22: 0 | AG22: 0 | AH22: 0 | AI22: 0 | AJ22: 0 | AK22: 0 | AL22: 0 | AM22: 0 | AN22: 0 | AO22: 0 | AP22: 0 | AQ22: 0 | AR22: 0 | AS22: 2798640 | AT22: 2798640 | AU22: 2768220 | AV22: 2768220 | AW22: 2798640 | AX22: 2798640 | AY22: 2768220 | AZ22: 2737800 | BA22: 3013920 | BB22: 3013920 | BC22: 2981160 | BD22: 2948400 | BE22: 3013920 | BF22: 3013920 | BG22: 2981160 | BH22: 2948400 | BI22: 2411136 | BJ22: 2411136 | BK22: 2384928 | BL22: 2384928 | BM22: 2411136 | BN22: 2411136 | BO22: 2384928 | BP22: 2358720 | BQ22: 2411136 | BR22: 2411136 | BS22: 2384928 | BT22: 2358720 | BU22: 2411136 | BV22: 2411136 | BW22: =BW21*BW16 -> 2384928 | BX22: 2358720 | BY22: 2411136 | BZ22: 2411136 | CA22: 2384928 | CB22: 2384928 | CC22: 2411136 | CD22: 2411136 | CE22: 2384928 | CF22: 2358720 | CG22: 2411136 | CH22: 2411136 | CI22: 2384928 | CJ22: 2358720 | CK22: 2411136 | CL22: 2411136 | CM22: 2384928 | CN22: 2358720 | CO22: 2411136 | CP22: 2411136 | CQ22: 2384928 | CR22: 2384928 | CS22: 2411136 | CT22: 2411136 | CU22: 2384928 | CV22: 2358720 | CW22: 2411136 | CX22: 2411136 | CY22: 2384928 | CZ22: 2358720 | DA22: 2411136 | DB22: 2411136 | DC22: 2384928 | DD22: 2358720 | DE22: 2411136 | DF22: 2411136 | DG22: 2384928 | DH22: 2384928 | DI22: 2411136 | DJ22: 2411136 | DK22: 2384928 | DL22: 2358720 | DM22: 2411136 | DN22: 2411136 | DO22: 2384928 | DP22: 2358720 | DQ22: 2411136 | DR22: 2411136 | DS22: 2384928 | DT22: 2358720 | DU22: 0 | DV22: 0 | DW22: 0 | DX22: 0 | DY22: 0 | DZ22: 0 | EA22: 0 | EB22: 0 | EC22: 0 | ED22: 0 | EE22: 0 | EF22: 0 | EG22: 0 | EH22: 0 | EI22: =EI21*EI16 -> 0 | EJ22: 0 | EK22: 0 | EL22: 0 | EM22: 0 | EN22: 0 | EO22: 0 | EP22: 0 | EQ22: 0 | ER22: 0 | ES22: 0 | ET22: 0 | EU22: 0 | EV22: 0 | EW22: 0 | EX22: 0 | EY22: 0 | EZ22: 0 | FA22: 0 | FB22: 0 | FC22: 0 | FD22: 0 | FE22: 0 | FF22: 0 | FG22: 0 | FH22: 0 | FI22: 0 | FJ22: 0 | FK22: 0 | FL22: 0 | FM22: 0 | FN22: 0 | FO22: 0 | FP22: 0 | FQ22: 0 | FR22: 0 | FS22: 0 | FT22: 0 | FU22: 0 | FV22: 0 | FW22: 0 | FX22: 0 | FY22: 0 | FZ22: 0 | GA22: 0 | GB22: 0 | GC22: 0 | GD22: 0 | GE22: 0 | GF22: 0 | GG22: 0 | GH22: 0 | GI22: 0 | GJ22: 0 | GK22: 0 | GL22: 0 | GM22: 0 | GN22: 0 | GO22: 0 | GP22: 0 | GQ22: 0 | GR22: 0 | GS22: 0 | GT22: 0 | GU22: =GU21*GU16 -> 0 | GV22: 0 | GW22: 0 | GX22: 0 | GY22: 0 | GZ22: 0 | HA22: 0
B24: Actual Availability | J24: =LOOKUP(J5,Assumptions!25:25,Assumptions!26:26) -> 0 | K24: =LOOKUP(K5,Assumptions!25:25,Assumptions!26:26) -> 0 | L24: =LOOKUP(L5,Assumptions!25:25,Assumptions!26:26) -> 0 | M24: =LOOKUP(M5,Assumptions!25:25,Assumptions!26:26) -> 0 | N24: =LOOKUP(N5,Assumptions!25:25,Assumptions!26:26) -> 0 | O24: =LOOKUP(O5,Assumptions!25:25,Assumptions!26:26) -> 0 | P24: =LOOKUP(P5,Assumptions!25:25,Assumptions!26:26) -> 0 | Q24: =LOOKUP(Q5,Assumptions!25:25,Assumptions!26:26) -> 0 | R24: =LOOKUP(R5,Assumptions!25:25,Assumptions!26:26) -> 0 | S24: =LOOKUP(S5,Assumptions!25:25,Assumptions!26:26) -> 0 | T24: =LOOKUP(T5,Assumptions!25:25,Assumptions!26:26) -> 0 | U24: =LOOKUP(U5,Assumptions!25:25,Assumptions!26:26) -> 0 | V24: =LOOKUP(V5,Assumptions!25:25,Assumptions!26:26) -> 0 | W24: =LOOKUP(W5,Assumptions!25:25,Assumptions!26:26) -> 0 | X24: =LOOKUP(X5,Assumptions!25:25,Assumptions!26:26) -> 0 | Y24: =LOOKUP(Y5,Assumptions!25:25,Assumptions!26:26) -> 0 | Z24: =LOOKUP(Z5,Assumptions!25:25,Assumptions!26:26) -> 0 | AA24: =LOOKUP(AA5,Assumptions!25:25,Assumptions!26:26) -> 0 | AB24: =LOOKUP(AB5,Assumptions!25:25,Assumptions!26:26) -> 0 | AC24: =LOOKUP(AC5,Assumptions!25:25,Assumptions!26:26) -> 0 | AD24: =LOOKUP(AD5,Assumptions!25:25,Assumptions!26:26) -> 0 | AE24: =LOOKUP(AE5,Assumptions!25:25,Assumptions!26:26) -> 0 | AF24: =LOOKUP(AF5,Assumptions!25:25,Assumptions!26:26) -> 0 | AG24: =LOOKUP(AG5,Assumptions!25:25,Assumptions!26:26) -> 0 | AH24: =LOOKUP(AH5,Assumptions!25:25,Assumptions!26:26) -> 0 | AI24: =LOOKUP(AI5,Assumptions!25:25,Assumptions!26:26) -> 0 | AJ24: =LOOKUP(AJ5,Assumptions!25:25,Assumptions!26:26) -> 0 | AK24: =LOOKUP(AK5,Assumptions!25:25,Assumptions!26:26) -> 0 | AL24: =LOOKUP(AL5,Assumptions!25:25,Assumptions!26:26) -> 0 | AM24: =LOOKUP(AM5,Assumptions!25:25,Assumptions!26:26) -> 0 | AN24: =LOOKUP(AN5,Assumptions!25:25,Assumptions!26:26) -> 0 | AO24: =LOOKUP(AO5,Assumptions!25:25,Assumptions!26:26) -> 0 | AP24: =LOOKUP(AP5,Assumptions!25:25,Assumptions!26:26) -> 0 | AQ24: =LOOKUP(AQ5,Assumptions!25:25,Assumptions!26:26) -> 0 | AR24: =LOOKUP(AR5,Assumptions!25:25,Assumptions!26:26) -> 0 | AS24: =LOOKUP(AS5,Assumptions!25:25,Assumptions!26:26) -> 0.9 | AT24: =LOOKUP(AT5,Assumptions!25:25,Assumptions!26:26) -> 0.9 | AU24: =LOOKUP(AU5,Assumptions!25:25,Assumptions!26:26) -> 0.9 | AV24: =LOOKUP(AV5,Assumptions!25:25,Assumptions!26:26) -> 0.9 | AW24: =LOOKUP(AW5,Assumptions!25:25,Assumptions!26:26) -> 0.9 | AX24: =LOOKUP(AX5,Assumptions!25:25,Assumptions!26:26) -> 0.9 | AY24: =LOOKUP(AY5,Assumptions!25:25,Assumptions!26:26) -> 0.9 | AZ24: =LOOKUP(AZ5,Assumptions!25:25,Assumptions!26:26) -> 0.9 | BA24: =LOOKUP(BA5,Assumptions!25:25,Assumptions!26:26) -> 0.9 | BB24: =LOOKUP(BB5,Assumptions!25:25,Assumptions!26:26) -> 0.9 | BC24: =LOOKUP(BC5,Assumptions!25:25,Assumptions!26:26) -> 0.9 | BD24: =LOOKUP(BD5,Assumptions!25:25,Assumptions!26:26) -> 0.9 | BE24: =LOOKUP(BE5,Assumptions!25:25,Assumptions!26:26) -> 0.9 | BF24: =LOOKUP(BF5,Assumptions!25:25,Assumptions!26:26) -> 0.9 | BG24: =LOOKUP(BG5,Assumptions!25:25,Assumptions!26:26) -> 0.9 | BH24: =LOOKUP(BH5,Assumptions!25:25,Assumptions!26:26) -> 0.9 | BI24: =LOOKUP(BI5,Assumptions!25:25,Assumptions!26:26) -> 0.9 | BJ24: =LOOKUP(BJ5,Assumptions!25:25,Assumptions!26:26) -> 0.9 | BK24: =LOOKUP(BK5,Assumptions!25:25,Assumptions!26:26) -> 0.9 | BL24: =LOOKUP(BL5,Assumptions!25:25,Assumptions!26:26) -> 0.9 | BM24: =LOOKUP(BM5,Assumptions!25:25,Assumptions!26:26) -> 0.9 | BN24: =LOOKUP(BN5,Assumptions!25:25,Assumptions!26:26) -> 0.9 | BO24: =LOOKUP(BO5,Assumptions!25:25,Assumptions!26:26) -> 0.9 | BP24: =LOOKUP(BP5,Assumptions!25:25,Assumptions!26:26) -> 0.9 | BQ24: =LOOKUP(BQ5,Assumptions!25:25,Assumptions!26:26) -> 0.9 | BR24: =LOOKUP(BR5,Assumptions!25:25,Assumptions!26:26) -> 0.9 | BS24: =LOOKUP(BS5,Assumptions!25:25,Assumptions!26:26) -> 0.9 | BT24: =LOOKUP(BT5,Assumptions!25:25,Assumptions!26:26) -> 0.9 | BU24: =LOOKUP(BU5,Assumptions!25:25,Assumptions!26:26) -> 0.9 | BV24: =LOOKUP(BV5,Assumptions!25:25,Assumptions!26:26) -> 0.9 | BW24: =LOOKUP(BW5,Assumptions!25:25,Assumptions!26:26) -> 0.9 | BX24: =LOOKUP(BX5,Assumptions!25:25,Assumptions!26:26) -> 0.9 | BY24: =LOOKUP(BY5,Assumptions!25:25,Assumptions!26:26) -> 0.9 | BZ24: =LOOKUP(BZ5,Assumptions!25:25,Assumptions!26:26) -> 0.9 | CA24: =LOOKUP(CA5,Assumptions!25:25,Assumptions!26:26) -> 0.9 | CB24: =LOOKUP(CB5,Assumptions!25:25,Assumptions!26:26) -> 0.9 | CC24: =LOOKUP(CC5,Assumptions!25:25,Assumptions!26:26) -> 0.9 | CD24: =LOOKUP(CD5,Assumptions!25:25,Assumptions!26:26) -> 0.9 | CE24: =LOOKUP(CE5,Assumptions!25:25,Assumptions!26:26) -> 0.9 | CF24: =LOOKUP(CF5,Assumptions!25:25,Assumptions!26:26) -> 0.9 | CG24: =LOOKUP(CG5,Assumptions!25:25,Assumptions!26:26) -> 0.9 | CH24: =LOOKUP(CH5,Assumptions!25:25,Assumptions!26:26) -> 0.9 | CI24: =LOOKUP(CI5,Assumptions!25:25,Assumptions!26:26) -> 0.9 | CJ24: =LOOKUP(CJ5,Assumptions!25:25,Assumptions!26:26) -> 0.9 | CK24: =LOOKUP(CK5,Assumptions!25:25,Assumptions!26:26) -> 0.9 | CL24: =LOOKUP(CL5,Assumptions!25:25,Assumptions!26:26) -> 0.9 | CM24: =LOOKUP(CM5,Assumptions!25:25,Assumptions!26:26) -> 0.9 | CN24: =LOOKUP(CN5,Assumptions!25:25,Assumptions!26:26) -> 0.9 | CO24: =LOOKUP(CO5,Assumptions!25:25,Assumptions!26:26) -> 0.9 | CP24: =LOOKUP(CP5,Assumptions!25:25,Assumptions!26:26) -> 0.9 | CQ24: =LOOKUP(CQ5,Assumptions!25:25,Assumptions!26:26) -> 0.9 | CR24: =LOOKUP(CR5,Assumptions!25:25,Assumptions!26:26) -> 0.9 | CS24: =LOOKUP(CS5,Assumptions!25:25,Assumptions!26:26) -> 0.9 | CT24: =LOOKUP(CT5,Assumptions!25:25,Assumptions!26:26) -> 0.9 | CU24: =LOOKUP(CU5,Assumptions!25:25,Assumptions!26:26) -> 0.9 | CV24: =LOOKUP(CV5,Assumptions!25:25,Assumptions!26:26) -> 0.9 | CW24: =LOOKUP(CW5,Assumptions!25:25,Assumptions!26:26) -> 0.9 | CX24: =LOOKUP(CX5,Assumptions!25:25,Assumptions!26:26) -> 0.9 | CY24: =LOOKUP(CY5,Assumptions!25:25,Assumptions!26:26) -> 0.9 | CZ24: =LOOKUP(CZ5,Assumptions!25:25,Assumptions!26:26) -> 0.9 | DA24: =LOOKUP(DA5,Assumptions!25:25,Assumptions!26:26) -> 0.9 | DB24: =LOOKUP(DB5,Assumptions!25:25,Assumptions!26:26) -> 0.9 | DC24: =LOOKUP(DC5,Assumptions!25:25,Assumptions!26:26) -> 0.9 | DD24: =LOOKUP(DD5,Assumptions!25:25,Assumptions!26:26) -> 0.9 | DE24: =LOOKUP(DE5,Assumptions!25:25,Assumptions!26:26) -> 0.9 | DF24: =LOOKUP(DF5,Assumptions!25:25,Assumptions!26:26) -> 0.9 | DG24: =LOOKUP(DG5,Assumptions!25:25,Assumptions!26:26) -> 0.9 | DH24: =LOOKUP(DH5,Assumptions!25:25,Assumptions!26:26) -> 0.9 | DI24: =LOOKUP(DI5,Assumptions!25:25,Assumptions!26:26) -> 0.9 | DJ24: =LOOKUP(DJ5,Assumptions!25:25,Assumptions!26:26) -> 0.9 | DK24: =LOOKUP(DK5,Assumptions!25:25,Assumptions!26:26) -> 0.9 | DL24: =LOOKUP(DL5,Assumptions!25:25,Assumptions!26:26) -> 0.9 | DM24: =LOOKUP(DM5,Assumptions!25:25,Assumptions!26:26) -> 0.9 | DN24: =LOOKUP(DN5,Assumptions!25:25,Assumptions!26:26) -> 0.9 | DO24: =LOOKUP(DO5,Assumptions!25:25,Assumptions!26:26) -> 0.9 | DP24: =LOOKUP(DP5,Assumptions!25:25,Assumptions!26:26) -> 0.9 | DQ24: =LOOKUP(DQ5,Assumptions!25:25,Assumptions!26:26) -> 0.9 | DR24: =LOOKUP(DR5,Assumptions!25:25,Assumptions!26:26) -> 0.9 | DS24: =LOOKUP(DS5,Assumptions!25:25,Assumptions!26:26) -> 0.9 | DT24: =LOOKUP(DT5,Assumptions!25:25,Assumptions!26:26) -> 0.9 | DU24: =LOOKUP(DU5,Assumptions!25:25,Assumptions!26:26) -> 0.9 | DV24: =LOOKUP(DV5,Assumptions!25:25,Assumptions!26:26) -> 0.9 | DW24: =LOOKUP(DW5,Assumptions!25:25,Assumptions!26:26) -> 0.9 | DX24: =LOOKUP(DX5,Assumptions!25:25,Assumptions!26:26) -> 0.9 | DY24: =LOOKUP(DY5,Assumptions!25:25,Assumptions!26:26) -> 0.9 | DZ24: =LOOKUP(DZ5,Assumptions!25:25,Assumptions!26:26) -> 0.9 | EA24: =LOOKUP(EA5,Assumptions!25:25,Assumptions!26:26) -> 0.9 | EB24: =LOOKUP(EB5,Assumptions!25:25,Assumptions!26:26) -> 0.9 | EC24: =LOOKUP(EC5,Assumptions!25:25,Assumptions!26:26) -> 0.9 | ED24: =LOOKUP(ED5,Assumptions!25:25,Assumptions!26:26) -> 0.9 | EE24: =LOOKUP(EE5,Assumptions!25:25,Assumptions!26:26) -> 0.9 | EF24: =LOOKUP(EF5,Assumptions!25:25,Assumptions!26:26) -> 0.9 | EG24: =LOOKUP(EG5,Assumptions!25:25,Assumptions!26:26) -> 0.9 | EH24: =LOOKUP(EH5,Assumptions!25:25,Assumptions!26:26) -> 0.9 | EI24: =LOOKUP(EI5,Assumptions!25:25,Assumptions!26:26) -> 0.9 | EJ24: =LOOKUP(EJ5,Assumptions!25:25,Assumptions!26:26) -> 0.9 | EK24: =LOOKUP(EK5,Assumptions!25:25,Assumptions!26:26) -> 0.9 | EL24: =LOOKUP(EL5,Assumptions!25:25,Assumptions!26:26) -> 0.9 | EM24: =LOOKUP(EM5,Assumptions!25:25,Assumptions!26:26) -> 0.9 | EN24: =LOOKUP(EN5,Assumptions!25:25,Assumptions!26:26) -> 0.9 | EO24: =LOOKUP(EO5,Assumptions!25:25,Assumptions!26:26) -> 0.9 | EP24: =LOOKUP(EP5,Assumptions!25:25,Assumptions!26:26) -> 0.9 | EQ24: =LOOKUP(EQ5,Assumptions!25:25,Assumptions!26:26) -> 0.9 | ER24: =LOOKUP(ER5,Assumptions!25:25,Assumptions!26:26) -> 0.9 | ES24: =LOOKUP(ES5,Assumptions!25:25,Assumptions!26:26) -> 0.9 | ET24: =LOOKUP(ET5,Assumptions!25:25,Assumptions!26:26) -> 0.9 | EU24: =LOOKUP(EU5,Assumptions!25:25,Assumptions!26:26) -> 0.9 | EV24: =LOOKUP(EV5,Assumptions!25:25,Assumptions!26:26) -> 0.9 | EW24: =LOOKUP(EW5,Assumptions!25:25,Assumptions!26:26) -> 0.9 | EX24: =LOOKUP(EX5,Assumptions!25:25,Assumptions!26:26) -> 0.9 | EY24: =LOOKUP(EY5,Assumptions!25:25,Assumptions!26:26) -> 0.9 | EZ24: =LOOKUP(EZ5,Assumptions!25:25,Assumptions!26:26) -> 0.9 | FA24: =LOOKUP(FA5,Assumptions!25:25,Assumptions!26:26) -> 0.9 | FB24: =LOOKUP(FB5,Assumptions!25:25,Assumptions!26:26) -> 0.9 | FC24: =LOOKUP(FC5,Assumptions!25:25,Assumptions!26:26) -> 0.9 | FD24: =LOOKUP(FD5,Assumptions!25:25,Assumptions!26:26) -> 0.9 | FE24: =LOOKUP(FE5,Assumptions!25:25,Assumptions!26:26) -> 0.9 | FF24: =LOOKUP(FF5,Assumptions!25:25,Assumptions!26:26) -> 0.9 | FG24: =LOOKUP(FG5,Assumptions!25:25,Assumptions!26:26) -> 0.9 | FH24: =LOOKUP(FH5,Assumptions!25:25,Assumptions!26:26) -> 0.9 | FI24: =LOOKUP(FI5,Assumptions!25:25,Assumptions!26:26) -> 0.9 | FJ24: =LOOKUP(FJ5,Assumptions!25:25,Assumptions!26:26) -> 0.9 | FK24: =LOOKUP(FK5,Assumptions!25:25,Assumptions!26:26) -> 0.9 | FL24: =LOOKUP(FL5,Assumptions!25:25,Assumptions!26:26) -> 0.9 | FM24: =LOOKUP(FM5,Assumptions!25:25,Assumptions!26:26) -> 0.9 | FN24: =LOOKUP(FN5,Assumptions!25:25,Assumptions!26:26) -> 0.9 | FO24: =LOOKUP(FO5,Assumptions!25:25,Assumptions!26:26) -> 0.9 | FP24: =LOOKUP(FP5,Assumptions!25:25,Assumptions!26:26) -> 0.9 | FQ24: =LOOKUP(FQ5,Assumptions!25:25,Assumptions!26:26) -> 0.9 | FR24: =LOOKUP(FR5,Assumptions!25:25,Assumptions!26:26) -> 0.9 | FS24: =LOOKUP(FS5,Assumptions!25:25,Assumptions!26:26) -> 0.9 | FT24: =LOOKUP(FT5,Assumptions!25:25,Assumptions!26:26) -> 0.9 | FU24: =LOOKUP(FU5,Assumptions!25:25,Assumptions!26:26) -> 0.9 | FV24: =LOOKUP(FV5,Assumptions!25:25,Assumptions!26:26) -> 0.9 | FW24: =LOOKUP(FW5,Assumptions!25:25,Assumptions!26:26) -> 0.9 | FX24: =LOOKUP(FX5,Assumptions!25:25,Assumptions!26:26) -> 0.9 | FY24: =LOOKUP(FY5,Assumptions!25:25,Assumptions!26:26) -> 0.9 | FZ24: =LOOKUP(FZ5,Assumptions!25:25,Assumptions!26:26) -> 0.9 | GA24: =LOOKUP(GA5,Assumptions!25:25,Assumptions!26:26) -> 0.9 | GB24: =LOOKUP(GB5,Assumptions!25:25,Assumptions!26:26) -> 0.9 | GC24: =LOOKUP(GC5,Assumptions!25:25,Assumptions!26:26) -> 0.9 | GD24: =LOOKUP(GD5,Assumptions!25:25,Assumptions!26:26) -> 0.9 | GE24: =LOOKUP(GE5,Assumptions!25:25,Assumptions!26:26) -> 0.9 | GF24: =LOOKUP(GF5,Assumptions!25:25,Assumptions!26:26) -> 0.9 | GG24: =LOOKUP(GG5,Assumptions!25:25,Assumptions!26:26) -> 0.9 | GH24: =LOOKUP(GH5,Assumptions!25:25,Assumptions!26:26) -> 0.9 | GI24: =LOOKUP(GI5,Assumptions!25:25,Assumptions!26:26) -> 0.9 | GJ24: =LOOKUP(GJ5,Assumptions!25:25,Assumptions!26:26) -> 0.9 | GK24: =LOOKUP(GK5,Assumptions!25:25,Assumptions!26:26) -> 0.9 | GL24: =LOOKUP(GL5,Assumptions!25:25,Assumptions!26:26) -> 0.9 | GM24: =LOOKUP(GM5,Assumptions!25:25,Assumptions!26:26) -> 0.9 | GN24: =LOOKUP(GN5,Assumptions!25:25,Assumptions!26:26) -> 0.9 | GO24: =LOOKUP(GO5,Assumptions!25:25,Assumptions!26:26) -> 0.9 | GP24: =LOOKUP(GP5,Assumptions!25:25,Assumptions!26:26) -> 0.9 | GQ24: =LOOKUP(GQ5,Assumptions!25:25,Assumptions!26:26) -> 0.9 | GR24: =LOOKUP(GR5,Assumptions!25:25,Assumptions!26:26) -> 0.9 | GS24: =LOOKUP(GS5,Assumptions!25:25,Assumptions!26:26) -> 0.9 | GT24: =LOOKUP(GT5,Assumptions!25:25,Assumptions!26:26) -> 0.9 | GU24: =LOOKUP(GU5,Assumptions!25:25,Assumptions!26:26) -> 0.9 | GV24: =LOOKUP(GV5,Assumptions!25:25,Assumptions!26:26) -> 0.9 | GW24: =LOOKUP(GW5,Assumptions!25:25,Assumptions!26:26) -> 0.9 | GX24: =LOOKUP(GX5,Assumptions!25:25,Assumptions!26:26) -> 0.9 | GY24: =LOOKUP(GY5,Assumptions!25:25,Assumptions!26:26) -> 0.9 | GZ24: =LOOKUP(GZ5,Assumptions!25:25,Assumptions!26:26) -> 0.9 | HA24: =LOOKUP(HA5,Assumptions!25:25,Assumptions!26:26) -> 0.9
B25: Actual Available Hours | E25: Hours | J25: =J24*J14 -> 0 | K25: =K24*K14 -> 0 | L25: 0 | M25: 0 | N25: 0 | O25: 0 | P25: 0 | Q25: 0 | R25: 0 | S25: 0 | T25: 0 | U25: 0 | V25: 0 | W25: 0 | X25: 0 | Y25: 0 | Z25: 0 | AA25: 0 | AB25: 0 | AC25: 0 | AD25: 0 | AE25: 0 | AF25: 0 | AG25: 0 | AH25: 0 | AI25: 0 | AJ25: 0 | AK25: 0 | AL25: 0 | AM25: 0 | AN25: 0 | AO25: 0 | AP25: 0 | AQ25: 0 | AR25: 0 | AS25: 1987.2 | AT25: 1987.2 | AU25: 1965.6 | AV25: 1965.6 | AW25: 1987.2 | AX25: 1987.2 | AY25: 1965.6 | AZ25: 1944 | BA25: 1987.2 | BB25: 1987.2 | BC25: 1965.6 | BD25: 1944 | BE25: 1987.2 | BF25: 1987.2 | BG25: 1965.6 | BH25: 1944 | BI25: 1987.2 | BJ25: 1987.2 | BK25: 1965.6 | BL25: 1965.6 | BM25: 1987.2 | BN25: 1987.2 | BO25: 1965.6 | BP25: 1944 | BQ25: 1987.2 | BR25: 1987.2 | BS25: 1965.6 | BT25: 1944 | BU25: 1987.2 | BV25: 1987.2 | BW25: =BW24*BW14 -> 1965.6 | BX25: 1944 | BY25: 1987.2 | BZ25: 1987.2 | CA25: 1965.6 | CB25: 1965.6 | CC25: 1987.2 | CD25: 1987.2 | CE25: 1965.6 | CF25: 1944 | CG25: 1987.2 | CH25: 1987.2 | CI25: 1965.6 | CJ25: 1944 | CK25: 1987.2 | CL25: 1987.2 | CM25: 1965.6 | CN25: 1944 | CO25: 1987.2 | CP25: 1987.2 | CQ25: 1965.6 | CR25: 1965.6 | CS25: 1987.2 | CT25: 1987.2 | CU25: 1965.6 | CV25: 1944 | CW25: 1987.2 | CX25: 1987.2 | CY25: 1965.6 | CZ25: 1944 | DA25: 1987.2 | DB25: 1987.2 | DC25: 1965.6 | DD25: 1944 | DE25: 1987.2 | DF25: 1987.2 | DG25: 1965.6 | DH25: 1965.6 | DI25: 1987.2 | DJ25: 1987.2 | DK25: 1965.6 | DL25: 1944 | DM25: 1987.2 | DN25: 1987.2 | DO25: 1965.6 | DP25: 1944 | DQ25: 1987.2 | DR25: 1987.2 | DS25: 1965.6 | DT25: 1944 | DU25: 1987.2 | DV25: 1987.2 | DW25: 1965.6 | DX25: 1965.6 | DY25: 1987.2 | DZ25: 1987.2 | EA25: 1965.6 | EB25: 1944 | EC25: 1987.2 | ED25: 1987.2 | EE25: 1965.6 | EF25: 1944 | EG25: 1987.2 | EH25: 1987.2 | EI25: =EI24*EI14 -> 1965.6 | EJ25: 1944 | EK25: 1987.2 | EL25: 1987.2 | EM25: 1965.6 | EN25: 1965.6 | EO25: 1987.2 | EP25: 1987.2 | EQ25: 1965.6 | ER25: 1944 | ES25: 1987.2 | ET25: 1987.2 | EU25: 1965.6 | EV25: 1944 | EW25: 1987.2 | EX25: 1987.2 | EY25: 1965.6 | EZ25: 1944 | FA25: 1987.2 | FB25: 1987.2 | FC25: 1965.6 | FD25: 1965.6 | FE25: 1987.2 | FF25: 1987.2 | FG25: 1965.6 | FH25: 1944 | FI25: 1987.2 | FJ25: 1987.2 | FK25: 1965.6 | FL25: 1944 | FM25: 1987.2 | FN25: 1987.2 | FO25: 1965.6 | FP25: 1944 | FQ25: 1987.2 | FR25: 1987.2 | FS25: 1965.6 | FT25: 1965.6 | FU25: 1987.2 | FV25: 1987.2 | FW25: 1965.6 | FX25: 1944 | FY25: 1987.2 | FZ25: 1987.2 | GA25: 1965.6 | GB25: 1944 | GC25: 1987.2 | GD25: 1987.2 | GE25: 1965.6 | GF25: 1944 | GG25: 1987.2 | GH25: 1987.2 | GI25: 1965.6 | GJ25: 1965.6 | GK25: 1987.2 | GL25: 1987.2 | GM25: 1965.6 | GN25: 1944 | GO25: 1987.2 | GP25: 1987.2 | GQ25: 1965.6 | GR25: 1944 | GS25: 1987.2 | GT25: 1987.2 | GU25: =GU24*GU14 -> 1965.6 | GV25: 1944 | GW25: 1987.2 | GX25: 1987.2 | GY25: 1965.6 | GZ25: 1965.6 | HA25: 1987.2
B26: Target Avaiable Hours | E26: Hours | G26: =Assumptions!E28 -> 0.95 | J26: =$G$26*J14*J7 -> 0 | K26: =$G$26*K14*K7 -> 0 | L26: =$G$26*L14*L7 -> 0 | M26: =$G$26*M14*M7 -> 0 | N26: =$G$26*N14*N7 -> 0 | O26: =$G$26*O14*O7 -> 0 | P26: =$G$26*P14*P7 -> 0 | Q26: =$G$26*Q14*Q7 -> 0 | R26: =$G$26*R14*R7 -> 0 | S26: =$G$26*S14*S7 -> 0 | T26: =$G$26*T14*T7 -> 0 | U26: =$G$26*U14*U7 -> 0 | V26: =$G$26*V14*V7 -> 0 | W26: =$G$26*W14*W7 -> 0 | X26: =$G$26*X14*X7 -> 0 | Y26: =$G$26*Y14*Y7 -> 0 | Z26: =$G$26*Z14*Z7 -> 0 | AA26: =$G$26*AA14*AA7 -> 0 | AB26: =$G$26*AB14*AB7 -> 0 | AC26: =$G$26*AC14*AC7 -> 0 | AD26: =$G$26*AD14*AD7 -> 0 | AE26: =$G$26*AE14*AE7 -> 0 | AF26: =$G$26*AF14*AF7 -> 0 | AG26: =$G$26*AG14*AG7 -> 0 | AH26: =$G$26*AH14*AH7 -> 0 | AI26: =$G$26*AI14*AI7 -> 0 | AJ26: =$G$26*AJ14*AJ7 -> 0 | AK26: =$G$26*AK14*AK7 -> 0 | AL26: =$G$26*AL14*AL7 -> 0 | AM26: =$G$26*AM14*AM7 -> 0 | AN26: =$G$26*AN14*AN7 -> 0 | AO26: =$G$26*AO14*AO7 -> 0 | AP26: =$G$26*AP14*AP7 -> 0 | AQ26: =$G$26*AQ14*AQ7 -> 0 | AR26: =$G$26*AR14*AR7 -> 0 | AS26: =$G$26*AS14*AS7 -> 2097.6 | AT26: =$G$26*AT14*AT7 -> 2097.6 | AU26: =$G$26*AU14*AU7 -> 2074.8 | AV26: =$G$26*AV14*AV7 -> 2074.8 | AW26: =$G$26*AW14*AW7 -> 2097.6 | AX26: =$G$26*AX14*AX7 -> 2097.6 | AY26: =$G$26*AY14*AY7 -> 2074.8 | AZ26: =$G$26*AZ14*AZ7 -> 2052 | BA26: =$G$26*BA14*BA7 -> 2097.6 | BB26: =$G$26*BB14*BB7 -> 2097.6 | BC26: =$G$26*BC14*BC7 -> 2074.8 | BD26: =$G$26*BD14*BD7 -> 2052 | BE26: =$G$26*BE14*BE7 -> 2097.6 | BF26: =$G$26*BF14*BF7 -> 2097.6 | BG26: =$G$26*BG14*BG7 -> 2074.8 | BH26: =$G$26*BH14*BH7 -> 2052 | BI26: =$G$26*BI14*BI7 -> 2097.6 | BJ26: =$G$26*BJ14*BJ7 -> 2097.6 | BK26: =$G$26*BK14*BK7 -> 2074.8 | BL26: =$G$26*BL14*BL7 -> 2074.8 | BM26: =$G$26*BM14*BM7 -> 2097.6 | BN26: =$G$26*BN14*BN7 -> 2097.6 | BO26: =$G$26*BO14*BO7 -> 2074.8 | BP26: =$G$26*BP14*BP7 -> 2052 | BQ26: =$G$26*BQ14*BQ7 -> 2097.6 | BR26: =$G$26*BR14*BR7 -> 2097.6 | BS26: =$G$26*BS14*BS7 -> 2074.8 | BT26: =$G$26*BT14*BT7 -> 2052 | BU26: =$G$26*BU14*BU7 -> 2097.6 | BV26: =$G$26*BV14*BV7 -> 2097.6 | BW26: =$G$26*BW14*BW7 -> 2074.8 | BX26: =$G$26*BX14*BX7 -> 2052 | BY26: =$G$26*BY14*BY7 -> 2097.6 | BZ26: =$G$26*BZ14*BZ7 -> 2097.6 | CA26: =$G$26*CA14*CA7 -> 2074.8 | CB26: =$G$26*CB14*CB7 -> 2074.8 | CC26: =$G$26*CC14*CC7 -> 2097.6 | CD26: =$G$26*CD14*CD7 -> 2097.6 | CE26: =$G$26*CE14*CE7 -> 2074.8 | CF26: =$G$26*CF14*CF7 -> 2052 | CG26: =$G$26*CG14*CG7 -> 2097.6 | CH26: =$G$26*CH14*CH7 -> 2097.6 | CI26: =$G$26*CI14*CI7 -> 2074.8 | CJ26: =$G$26*CJ14*CJ7 -> 2052 | CK26: =$G$26*CK14*CK7 -> 2097.6 | CL26: =$G$26*CL14*CL7 -> 2097.6 | CM26: =$G$26*CM14*CM7 -> 2074.8 | CN26: =$G$26*CN14*CN7 -> 2052 | CO26: =$G$26*CO14*CO7 -> 2097.6 | CP26: =$G$26*CP14*CP7 -> 2097.6 | CQ26: =$G$26*CQ14*CQ7 -> 2074.8 | CR26: =$G$26*CR14*CR7 -> 2074.8 | CS26: =$G$26*CS14*CS7 -> 2097.6 | CT26: =$G$26*CT14*CT7 -> 2097.6 | CU26: =$G$26*CU14*CU7 -> 2074.8 | CV26: =$G$26*CV14*CV7 -> 2052 | CW26: =$G$26*CW14*CW7 -> 2097.6 | CX26: =$G$26*CX14*CX7 -> 2097.6 | CY26: =$G$26*CY14*CY7 -> 2074.8 | CZ26: =$G$26*CZ14*CZ7 -> 2052 | DA26: =$G$26*DA14*DA7 -> 2097.6 | DB26: =$G$26*DB14*DB7 -> 2097.6 | DC26: =$G$26*DC14*DC7 -> 2074.8 | DD26: =$G$26*DD14*DD7 -> 2052 | DE26: =$G$26*DE14*DE7 -> 2097.6 | DF26: =$G$26*DF14*DF7 -> 2097.6 | DG26: =$G$26*DG14*DG7 -> 2074.8 | DH26: =$G$26*DH14*DH7 -> 2074.8 | DI26: =$G$26*DI14*DI7 -> 2097.6 | DJ26: =$G$26*DJ14*DJ7 -> 2097.6 | DK26: =$G$26*DK14*DK7 -> 2074.8 | DL26: =$G$26*DL14*DL7 -> 2052 | DM26: =$G$26*DM14*DM7 -> 2097.6 | DN26: =$G$26*DN14*DN7 -> 2097.6 | DO26: =$G$26*DO14*DO7 -> 2074.8 | DP26: =$G$26*DP14*DP7 -> 2052 | DQ26: =$G$26*DQ14*DQ7 -> 2097.6 | DR26: =$G$26*DR14*DR7 -> 2097.6 | DS26: =$G$26*DS14*DS7 -> 2074.8 | DT26: =$G$26*DT14*DT7 -> 2052 | DU26: =$G$26*DU14*DU7 -> 0 | DV26: =$G$26*DV14*DV7 -> 0 | DW26: =$G$26*DW14*DW7 -> 0 | DX26: =$G$26*DX14*DX7 -> 0 | DY26: =$G$26*DY14*DY7 -> 0 | DZ26: =$G$26*DZ14*DZ7 -> 0 | EA26: =$G$26*EA14*EA7 -> 0 | EB26: =$G$26*EB14*EB7 -> 0 | EC26: =$G$26*EC14*EC7 -> 0 | ED26: =$G$26*ED14*ED7 -> 0 | EE26: =$G$26*EE14*EE7 -> 0 | EF26: =$G$26*EF14*EF7 -> 0 | EG26: =$G$26*EG14*EG7 -> 0 | EH26: =$G$26*EH14*EH7 -> 0 | EI26: =$G$26*EI14*EI7 -> 0 | EJ26: =$G$26*EJ14*EJ7 -> 0 | EK26: =$G$26*EK14*EK7 -> 0 | EL26: =$G$26*EL14*EL7 -> 0 | EM26: =$G$26*EM14*EM7 -> 0 | EN26: =$G$26*EN14*EN7 -> 0 | EO26: =$G$26*EO14*EO7 -> 0 | EP26: =$G$26*EP14*EP7 -> 0 | EQ26: =$G$26*EQ14*EQ7 -> 0 | ER26: =$G$26*ER14*ER7 -> 0 | ES26: =$G$26*ES14*ES7 -> 0 | ET26: =$G$26*ET14*ET7 -> 0 | EU26: =$G$26*EU14*EU7 -> 0 | EV26: =$G$26*EV14*EV7 -> 0 | EW26: =$G$26*EW14*EW7 -> 0 | EX26: =$G$26*EX14*EX7 -> 0 | EY26: =$G$26*EY14*EY7 -> 0 | EZ26: =$G$26*EZ14*EZ7 -> 0 | FA26: =$G$26*FA14*FA7 -> 0 | FB26: =$G$26*FB14*FB7 -> 0 | FC26: =$G$26*FC14*FC7 -> 0 | FD26: =$G$26*FD14*FD7 -> 0 | FE26: =$G$26*FE14*FE7 -> 0 | FF26: =$G$26*FF14*FF7 -> 0 | FG26: =$G$26*FG14*FG7 -> 0 | FH26: =$G$26*FH14*FH7 -> 0 | FI26: =$G$26*FI14*FI7 -> 0 | FJ26: =$G$26*FJ14*FJ7 -> 0 | FK26: =$G$26*FK14*FK7 -> 0 | FL26: =$G$26*FL14*FL7 -> 0 | FM26: =$G$26*FM14*FM7 -> 0 | FN26: =$G$26*FN14*FN7 -> 0 | FO26: =$G$26*FO14*FO7 -> 0 | FP26: =$G$26*FP14*FP7 -> 0 | FQ26: =$G$26*FQ14*FQ7 -> 0 | FR26: =$G$26*FR14*FR7 -> 0 | FS26: =$G$26*FS14*FS7 -> 0 | FT26: =$G$26*FT14*FT7 -> 0 | FU26: =$G$26*FU14*FU7 -> 0 | FV26: =$G$26*FV14*FV7 -> 0 | FW26: =$G$26*FW14*FW7 -> 0 | FX26: =$G$26*FX14*FX7 -> 0 | FY26: =$G$26*FY14*FY7 -> 0 | FZ26: =$G$26*FZ14*FZ7 -> 0 | GA26: =$G$26*GA14*GA7 -> 0 | GB26: =$G$26*GB14*GB7 -> 0 | GC26: =$G$26*GC14*GC7 -> 0 | GD26: =$G$26*GD14*GD7 -> 0 | GE26: =$G$26*GE14*GE7 -> 0 | GF26: =$G$26*GF14*GF7 -> 0 | GG26: =$G$26*GG14*GG7 -> 0 | GH26: =$G$26*GH14*GH7 -> 0 | GI26: =$G$26*GI14*GI7 -> 0 | GJ26: =$G$26*GJ14*GJ7 -> 0 | GK26: =$G$26*GK14*GK7 -> 0 | GL26: =$G$26*GL14*GL7 -> 0 | GM26: =$G$26*GM14*GM7 -> 0 | GN26: =$G$26*GN14*GN7 -> 0 | GO26: =$G$26*GO14*GO7 -> 0 | GP26: =$G$26*GP14*GP7 -> 0 | GQ26: =$G$26*GQ14*GQ7 -> 0 | GR26: =$G$26*GR14*GR7 -> 0 | GS26: =$G$26*GS14*GS7 -> 0 | GT26: =$G$26*GT14*GT7 -> 0 | GU26: =$G$26*GU14*GU7 -> 0 | GV26: =$G$26*GV14*GV7 -> 0 | GW26: =$G$26*GW14*GW7 -> 0 | GX26: =$G$26*GX14*GX7 -> 0 | GY26: =$G$26*GY14*GY7 -> 0 | GZ26: =$G$26*GZ14*GZ7 -> 0 | HA26: =$G$26*HA14*HA7 -> 0
B28: Capacity Penalty | E28: % | J28: =MAX(0,IF(J26,(J26-J25)/J26)) -> 0 | K28: =MAX(0,IF(K26,(K26-K25)/K26)) -> 0 | L28: 0 | M28: 0 | N28: 0 | O28: 0 | P28: 0 | Q28: 0 | R28: 0 | S28: 0 | T28: 0 | U28: 0 | V28: 0 | W28: 0 | X28: 0 | Y28: 0 | Z28: 0 | AA28: 0 | AB28: 0 | AC28: 0 | AD28: 0 | AE28: 0 | AF28: 0 | AG28: 0 | AH28: 0 | AI28: 0 | AJ28: 0 | AK28: 0 | AL28: 0 | AM28: 0 | AN28: 0 | AO28: 0 | AP28: 0 | AQ28: 0 | AR28: 0 | AS28: 0.05263157895 | AT28: 0.05263157895 | AU28: 0.05263157895 | AV28: 0.05263157895 | AW28: 0.05263157895 | AX28: 0.05263157895 | AY28: 0.05263157895 | AZ28: 0.05263157895 | BA28: 0.05263157895 | BB28: 0.05263157895 | BC28: 0.05263157895 | BD28: 0.05263157895 | BE28: 0.05263157895 | BF28: 0.05263157895 | BG28: 0.05263157895 | BH28: 0.05263157895 | BI28: 0.05263157895 | BJ28: 0.05263157895 | BK28: 0.05263157895 | BL28: 0.05263157895 | BM28: 0.05263157895 | BN28: 0.05263157895 | BO28: 0.05263157895 | BP28: 0.05263157895 | BQ28: 0.05263157895 | BR28: 0.05263157895 | BS28: 0.05263157895 | BT28: 0.05263157895 | BU28: 0.05263157895 | BV28: 0.05263157895 | BW28: =MAX(0,IF(BW26,(BW26-BW25)/BW26)) -> 0.05263157895 | BX28: 0.05263157895 | BY28: 0.05263157895 | BZ28: 0.05263157895 | CA28: 0.05263157895 | CB28: 0.05263157895 | CC28: 0.05263157895 | CD28: 0.05263157895 | CE28: 0.05263157895 | CF28: 0.05263157895 | CG28: 0.05263157895 | CH28: 0.05263157895 | CI28: 0.05263157895 | CJ28: 0.05263157895 | CK28: 0.05263157895 | CL28: 0.05263157895 | CM28: 0.05263157895 | CN28: 0.05263157895 | CO28: 0.05263157895 | CP28: 0.05263157895 | CQ28: 0.05263157895 | CR28: 0.05263157895 | CS28: 0.05263157895 | CT28: 0.05263157895 | CU28: 0.05263157895 | CV28: 0.05263157895 | CW28: 0.05263157895 | CX28: 0.05263157895 | CY28: 0.05263157895 | CZ28: 0.05263157895 | DA28: 0.05263157895 | DB28: 0.05263157895 | DC28: 0.05263157895 | DD28: 0.05263157895 | DE28: 0.05263157895 | DF28: 0.05263157895 | DG28: 0.05263157895 | DH28: 0.05263157895 | DI28: 0.05263157895 | DJ28: 0.05263157895 | DK28: 0.05263157895 | DL28: 0.05263157895 | DM28: 0.05263157895 | DN28: 0.05263157895 | DO28: 0.05263157895 | DP28: 0.05263157895 | DQ28: 0.05263157895 | DR28: 0.05263157895 | DS28: 0.05263157895 | DT28: 0.05263157895 | DU28: 0 | DV28: 0 | DW28: 0 | DX28: 0 | DY28: 0 | DZ28: 0 | EA28: 0 | EB28: 0 | EC28: 0 | ED28: 0 | EE28: 0 | EF28: 0 | EG28: 0 | EH28: 0 | EI28: =MAX(0,IF(EI26,(EI26-EI25)/EI26)) -> 0 | EJ28: 0 | EK28: 0 | EL28: 0 | EM28: 0 | EN28: 0 | EO28: 0 | EP28: 0 | EQ28: 0 | ER28: 0 | ES28: 0 | ET28: 0 | EU28: 0 | EV28: 0 | EW28: 0 | EX28: 0 | EY28: 0 | EZ28: 0 | FA28: 0 | FB28: 0 | FC28: 0 | FD28: 0 | FE28: 0 | FF28: 0 | FG28: 0 | FH28: 0 | FI28: 0 | FJ28: 0 | FK28: 0 | FL28: 0 | FM28: 0 | FN28: 0 | FO28: 0 | FP28: 0 | FQ28: 0 | FR28: 0 | FS28: 0 | FT28: 0 | FU28: 0 | FV28: 0 | FW28: 0 | FX28: 0 | FY28: 0 | FZ28: 0 | GA28: 0 | GB28: 0 | GC28: 0 | GD28: 0 | GE28: 0 | GF28: 0 | GG28: 0 | GH28: 0 | GI28: 0 | GJ28: 0 | GK28: 0 | GL28: 0 | GM28: 0 | GN28: 0 | GO28: 0 | GP28: 0 | GQ28: 0 | GR28: 0 | GS28: 0 | GT28: 0 | GU28: =MAX(0,IF(GU26,(GU26-GU25)/GU26)) -> 0 | GV28: 0 | GW28: 0 | GX28: 0 | GY28: 0 | GZ28: 0 | HA28: 0
A30: Free Cash Flow:
B31: Total Construction Cost | E31: USD ("000") | G31: =Assumptions!E35 -> 500000 | J31: =$G$31*J3 -> 500000 | K31: =$G$31*K3 -> 500000 | L31: =$G$31*L3 -> 500000 | M31: =$G$31*M3 -> 500000 | N31: =$G$31*N3 -> 500000 | O31: =$G$31*O3 -> 500000 | P31: =$G$31*P3 -> 500000 | Q31: =$G$31*Q3 -> 500000 | R31: =$G$31*R3 -> 500000 | S31: =$G$31*S3 -> 500000 | T31: =$G$31*T3 -> 500000 | U31: =$G$31*U3 -> 500000 | V31: =$G$31*V3 -> 500000 | W31: =$G$31*W3 -> 500000 | X31: =$G$31*X3 -> 500000 | Y31: =$G$31*Y3 -> 500000 | Z31: =$G$31*Z3 -> 500000 | AA31: =$G$31*AA3 -> 500000 | AB31: =$G$31*AB3 -> 500000 | AC31: =$G$31*AC3 -> 500000 | AD31: =$G$31*AD3 -> 500000 | AE31: =$G$31*AE3 -> 500000 | AF31: =$G$31*AF3 -> 500000 | AG31: =$G$31*AG3 -> 500000 | AH31: =$G$31*AH3 -> 500000 | AI31: =$G$31*AI3 -> 500000 | AJ31: =$G$31*AJ3 -> 500000 | AK31: =$G$31*AK3 -> 500000 | AL31: =$G$31*AL3 -> 500000 | AM31: =$G$31*AM3 -> 500000 | AN31: =$G$31*AN3 -> 500000 | AO31: =$G$31*AO3 -> 500000 | AP31: =$G$31*AP3 -> 500000 | AQ31: =$G$31*AQ3 -> 500000 | AR31: =$G$31*AR3 -> 500000 | AS31: =$G$31*AS3 -> 0 | AT31: =$G$31*AT3 -> 0 | AU31: =$G$31*AU3 -> 0 | AV31: =$G$31*AV3 -> 0 | AW31: =$G$31*AW3 -> 0 | AX31: =$G$31*AX3 -> 0 | AY31: =$G$31*AY3 -> 0 | AZ31: =$G$31*AZ3 -> 0 | BA31: =$G$31*BA3 -> 0 | BB31: =$G$31*BB3 -> 0 | BC31: =$G$31*BC3 -> 0 | BD31: =$G$31*BD3 -> 0 | BE31: =$G$31*BE3 -> 0 | BF31: =$G$31*BF3 -> 0 | BG31: =$G$31*BG3 -> 0 | BH31: =$G$31*BH3 -> 0 | BI31: =$G$31*BI3 -> 0 | BJ31: =$G$31*BJ3 -> 0 | BK31: =$G$31*BK3 -> 0 | BL31: =$G$31*BL3 -> 0 | BM31: =$G$31*BM3 -> 0 | BN31: =$G$31*BN3 -> 0 | BO31: =$G$31*BO3 -> 0 | BP31: =$G$31*BP3 -> 0 | BQ31: =$G$31*BQ3 -> 0 | BR31: =$G$31*BR3 -> 0 | BS31: =$G$31*BS3 -> 0 | BT31: =$G$31*BT3 -> 0 | BU31: =$G$31*BU3 -> 0 | BV31: =$G$31*BV3 -> 0 | BW31: =$G$31*BW3 -> 0 | BX31: =$G$31*BX3 -> 0 | BY31: =$G$31*BY3 -> 0 | BZ31: =$G$31*BZ3 -> 0 | CA31: =$G$31*CA3 -> 0 | CB31: =$G$31*CB3 -> 0 | CC31: =$G$31*CC3 -> 0 | CD31: =$G$31*CD3 -> 0 | CE31: =$G$31*CE3 -> 0 | CF31: =$G$31*CF3 -> 0 | CG31: =$G$31*CG3 -> 0 | CH31: =$G$31*CH3 -> 0 | CI31: =$G$31*CI3 -> 0 | CJ31: =$G$31*CJ3 -> 0 | CK31: =$G$31*CK3 -> 0 | CL31: =$G$31*CL3 -> 0 | CM31: =$G$31*CM3 -> 0 | CN31: =$G$31*CN3 -> 0 | CO31: =$G$31*CO3 -> 0 | CP31: =$G$31*CP3 -> 0 | CQ31: =$G$31*CQ3 -> 0 | CR31: =$G$31*CR3 -> 0 | CS31: =$G$31*CS3 -> 0 | CT31: =$G$31*CT3 -> 0 | CU31: =$G$31*CU3 -> 0 | CV31: =$G$31*CV3 -> 0 | CW31: =$G$31*CW3 -> 0 | CX31: =$G$31*CX3 -> 0 | CY31: =$G$31*CY3 -> 0 | CZ31: =$G$31*CZ3 -> 0 | DA31: =$G$31*DA3 -> 0 | DB31: =$G$31*DB3 -> 0 | DC31: =$G$31*DC3 -> 0 | DD31: =$G$31*DD3 -> 0 | DE31: =$G$31*DE3 -> 0 | DF31: =$G$31*DF3 -> 0 | DG31: =$G$31*DG3 -> 0 | DH31: =$G$31*DH3 -> 0 | DI31: =$G$31*DI3 -> 0 | DJ31: =$G$31*DJ3 -> 0 | DK31: =$G$31*DK3 -> 0 | DL31: =$G$31*DL3 -> 0 | DM31: =$G$31*DM3 -> 0 | DN31: =$G$31*DN3 -> 0 | DO31: =$G$31*DO3 -> 0 | DP31: =$G$31*DP3 -> 0 | DQ31: =$G$31*DQ3 -> 0 | DR31: =$G$31*DR3 -> 0 | DS31: =$G$31*DS3 -> 0 | DT31: =$G$31*DT3 -> 0 | DU31: =$G$31*DU3 -> 0 | DV31: =$G$31*DV3 -> 0 | DW31: =$G$31*DW3 -> 0 | DX31: =$G$31*DX3 -> 0 | DY31: =$G$31*DY3 -> 0 | DZ31: =$G$31*DZ3 -> 0 | EA31: =$G$31*EA3 -> 0 | EB31: =$G$31*EB3 -> 0 | EC31: =$G$31*EC3 -> 0 | ED31: =$G$31*ED3 -> 0 | EE31: =$G$31*EE3 -> 0 | EF31: =$G$31*EF3 -> 0 | EG31: =$G$31*EG3 -> 0 | EH31: =$G$31*EH3 -> 0 | EI31: =$G$31*EI3 -> 0 | EJ31: =$G$31*EJ3 -> 0 | EK31: =$G$31*EK3 -> 0 | EL31: =$G$31*EL3 -> 0 | EM31: =$G$31*EM3 -> 0 | EN31: =$G$31*EN3 -> 0 | EO31: =$G$31*EO3 -> 0 | EP31: =$G$31*EP3 -> 0 | EQ31: =$G$31*EQ3 -> 0 | ER31: =$G$31*ER3 -> 0 | ES31: =$G$31*ES3 -> 0 | ET31: =$G$31*ET3 -> 0 | EU31: =$G$31*EU3 -> 0 | EV31: =$G$31*EV3 -> 0 | EW31: =$G$31*EW3 -> 0 | EX31: =$G$31*EX3 -> 0 | EY31: =$G$31*EY3 -> 0 | EZ31: =$G$31*EZ3 -> 0 | FA31: =$G$31*FA3 -> 0 | FB31: =$G$31*FB3 -> 0 | FC31: =$G$31*FC3 -> 0 | FD31: =$G$31*FD3 -> 0 | FE31: =$G$31*FE3 -> 0 | FF31: =$G$31*FF3 -> 0 | FG31: =$G$31*FG3 -> 0 | FH31: =$G$31*FH3 -> 0 | FI31: =$G$31*FI3 -> 0 | FJ31: =$G$31*FJ3 -> 0 | FK31: =$G$31*FK3 -> 0 | FL31: =$G$31*FL3 -> 0 | FM31: =$G$31*FM3 -> 0 | FN31: =$G$31*FN3 -> 0 | FO31: =$G$31*FO3 -> 0 | FP31: =$G$31*FP3 -> 0 | FQ31: =$G$31*FQ3 -> 0 | FR31: =$G$31*FR3 -> 0 | FS31: =$G$31*FS3 -> 0 | FT31: =$G$31*FT3 -> 0 | FU31: =$G$31*FU3 -> 0 | FV31: =$G$31*FV3 -> 0 | FW31: =$G$31*FW3 -> 0 | FX31: =$G$31*FX3 -> 0 | FY31: =$G$31*FY3 -> 0 | FZ31: =$G$31*FZ3 -> 0 | GA31: =$G$31*GA3 -> 0 | GB31: =$G$31*GB3 -> 0 | GC31: =$G$31*GC3 -> 0 | GD31: =$G$31*GD3 -> 0 | GE31: =$G$31*GE3 -> 0 | GF31: =$G$31*GF3 -> 0 | GG31: =$G$31*GG3 -> 0 | GH31: =$G$31*GH3 -> 0 | GI31: =$G$31*GI3 -> 0 | GJ31: =$G$31*GJ3 -> 0 | GK31: =$G$31*GK3 -> 0 | GL31: =$G$31*GL3 -> 0 | GM31: =$G$31*GM3 -> 0 | GN31: =$G$31*GN3 -> 0 | GO31: =$G$31*GO3 -> 0 | GP31: =$G$31*GP3 -> 0 | GQ31: =$G$31*GQ3 -> 0 | GR31: =$G$31*GR3 -> 0 | GS31: =$G$31*GS3 -> 0 | GT31: =$G$31*GT3 -> 0 | GU31: =$G$31*GU3 -> 0 | GV31: =$G$31*GV3 -> 0 | GW31: =$G$31*GW3 -> 0 | GX31: =$G$31*GX3 -> 0 | GY31: =$G$31*GY3 -> 0 | GZ31: =$G$31*GZ3 -> 0 | HA31: =$G$31*HA3 -> 0
C32: S-Curve | I32: =SUM(J32:HA32) -> 1.000014286 | J32: =LOOKUP(J5,Assumptions!37:37,Assumptions!38:38)*J3 -> 0.01 | K32: =LOOKUP(K5,Assumptions!37:37,Assumptions!38:38)*K3 -> 0.01 | L32: =LOOKUP(L5,Assumptions!37:37,Assumptions!38:38)*L3 -> 0.01 | M32: =LOOKUP(M5,Assumptions!37:37,Assumptions!38:38)*M3 -> 0.01 | N32: =LOOKUP(N5,Assumptions!37:37,Assumptions!38:38)*N3 -> 0.01 | O32: =LOOKUP(O5,Assumptions!37:37,Assumptions!38:38)*O3 -> 0.03 | P32: =LOOKUP(P5,Assumptions!37:37,Assumptions!38:38)*P3 -> 0.03 | Q32: =LOOKUP(Q5,Assumptions!37:37,Assumptions!38:38)*Q3 -> 0.03 | R32: =LOOKUP(R5,Assumptions!37:37,Assumptions!38:38)*R3 -> 0.03 | S32: =LOOKUP(S5,Assumptions!37:37,Assumptions!38:38)*S3 -> 0.03 | T32: =LOOKUP(T5,Assumptions!37:37,Assumptions!38:38)*T3 -> 0.03 | U32: =LOOKUP(U5,Assumptions!37:37,Assumptions!38:38)*U3 -> 0.04 | V32: =LOOKUP(V5,Assumptions!37:37,Assumptions!38:38)*V3 -> 0.04 | W32: =LOOKUP(W5,Assumptions!37:37,Assumptions!38:38)*W3 -> 0.03 | X32: =LOOKUP(X5,Assumptions!37:37,Assumptions!38:38)*X3 -> 0.05 | Y32: =LOOKUP(Y5,Assumptions!37:37,Assumptions!38:38)*Y3 -> 0.024 | Z32: =LOOKUP(Z5,Assumptions!37:37,Assumptions!38:38)*Z3 -> 0.07 | AA32: =LOOKUP(AA5,Assumptions!37:37,Assumptions!38:38)*AA3 -> 0.02857142857 | AB32: =LOOKUP(AB5,Assumptions!37:37,Assumptions!38:38)*AB3 -> 0.0303 | AC32: =LOOKUP(AC5,Assumptions!37:37,Assumptions!38:38)*AC3 -> 0.02857142857 | AD32: =LOOKUP(AD5,Assumptions!37:37,Assumptions!38:38)*AD3 -> 0.02857142857 | AE32: =LOOKUP(AE5,Assumptions!37:37,Assumptions!38:38)*AE3 -> 0.02857142857 | AF32: =LOOKUP(AF5,Assumptions!37:37,Assumptions!38:38)*AF3 -> 0.02857142857 | AG32: =LOOKUP(AG5,Assumptions!37:37,Assumptions!38:38)*AG3 -> 0.02857142857 | AH32: =LOOKUP(AH5,Assumptions!37:37,Assumptions!38:38)*AH3 -> 0.02857142857 | AI32: =LOOKUP(AI5,Assumptions!37:37,Assumptions!38:38)*AI3 -> 0.02857142857 | AJ32: =LOOKUP(AJ5,Assumptions!37:37,Assumptions!38:38)*AJ3 -> 0.02857142857 | AK32: =LOOKUP(AK5,Assumptions!37:37,Assumptions!38:38)*AK3 -> 0.02857142857 | AL32: =LOOKUP(AL5,Assumptions!37:37,Assumptions!38:38)*AL3 -> 0.02857142857 | AM32: =LOOKUP(AM5,Assumptions!37:37,Assumptions!38:38)*AM3 -> 0.02857142857 | AN32: =LOOKUP(AN5,Assumptions!37:37,Assumptions!38:38)*AN3 -> 0.02857142857 | AO32: =LOOKUP(AO5,Assumptions!37:37,Assumptions!38:38)*AO3 -> 0.02857142857 | AP32: =LOOKUP(AP5,Assumptions!37:37,Assumptions!38:38)*AP3 -> 0.02857142857 | AQ32: =LOOKUP(AQ5,Assumptions!37:37,Assumptions!38:38)*AQ3 -> 0.02857142857 | AR32: =LOOKUP(AR5,Assumptions!37:37,Assumptions!38:38)*AR3 -> 0.02857142857 | AS32: =LOOKUP(AS5,Assumptions!37:37,Assumptions!38:38)*AS3 -> 0 | AT32: =LOOKUP(AT5,Assumptions!37:37,Assumptions!38:38)*AT3 -> 0 | AU32: =LOOKUP(AU5,Assumptions!37:37,Assumptions!38:38)*AU3 -> 0 | AV32: =LOOKUP(AV5,Assumptions!37:37,Assumptions!38:38)*AV3 -> 0 | AW32: =LOOKUP(AW5,Assumptions!37:37,Assumptions!38:38)*AW3 -> 0 | AX32: =LOOKUP(AX5,Assumptions!37:37,Assumptions!38:38)*AX3 -> 0 | AY32: =LOOKUP(AY5,Assumptions!37:37,Assumptions!38:38)*AY3 -> 0 | AZ32: =LOOKUP(AZ5,Assumptions!37:37,Assumptions!38:38)*AZ3 -> 0 | BA32: =LOOKUP(BA5,Assumptions!37:37,Assumptions!38:38)*BA3 -> 0 | BB32: =LOOKUP(BB5,Assumptions!37:37,Assumptions!38:38)*BB3 -> 0 | BC32: =LOOKUP(BC5,Assumptions!37:37,Assumptions!38:38)*BC3 -> 0 | BD32: =LOOKUP(BD5,Assumptions!37:37,Assumptions!38:38)*BD3 -> 0 | BE32: =LOOKUP(BE5,Assumptions!37:37,Assumptions!38:38)*BE3 -> 0 | BF32: =LOOKUP(BF5,Assumptions!37:37,Assumptions!38:38)*BF3 -> 0 | BG32: =LOOKUP(BG5,Assumptions!37:37,Assumptions!38:38)*BG3 -> 0 | BH32: =LOOKUP(BH5,Assumptions!37:37,Assumptions!38:38)*BH3 -> 0 | BI32: =LOOKUP(BI5,Assumptions!37:37,Assumptions!38:38)*BI3 -> 0 | BJ32: =LOOKUP(BJ5,Assumptions!37:37,Assumptions!38:38)*BJ3 -> 0 | BK32: =LOOKUP(BK5,Assumptions!37:37,Assumptions!38:38)*BK3 -> 0 | BL32: =LOOKUP(BL5,Assumptions!37:37,Assumptions!38:38)*BL3 -> 0 | BM32: =LOOKUP(BM5,Assumptions!37:37,Assumptions!38:38)*BM3 -> 0 | BN32: =LOOKUP(BN5,Assumptions!37:37,Assumptions!38:38)*BN3 -> 0 | BO32: =LOOKUP(BO5,Assumptions!37:37,Assumptions!38:38)*BO3 -> 0 | BP32: =LOOKUP(BP5,Assumptions!37:37,Assumptions!38:38)*BP3 -> 0 | BQ32: =LOOKUP(BQ5,Assumptions!37:37,Assumptions!38:38)*BQ3 -> 0 | BR32: =LOOKUP(BR5,Assumptions!37:37,Assumptions!38:38)*BR3 -> 0 | BS32: =LOOKUP(BS5,Assumptions!37:37,Assumptions!38:38)*BS3 -> 0 | BT32: =LOOKUP(BT5,Assumptions!37:37,Assumptions!38:38)*BT3 -> 0 | BU32: =LOOKUP(BU5,Assumptions!37:37,Assumptions!38:38)*BU3 -> 0 | BV32: =LOOKUP(BV5,Assumptions!37:37,Assumptions!38:38)*BV3 -> 0 | BW32: =LOOKUP(BW5,Assumptions!37:37,Assumptions!38:38)*BW3 -> 0 | BX32: =LOOKUP(BX5,Assumptions!37:37,Assumptions!38:38)*BX3 -> 0 | BY32: =LOOKUP(BY5,Assumptions!37:37,Assumptions!38:38)*BY3 -> 0 | BZ32: =LOOKUP(BZ5,Assumptions!37:37,Assumptions!38:38)*BZ3 -> 0 | CA32: =LOOKUP(CA5,Assumptions!37:37,Assumptions!38:38)*CA3 -> 0 | CB32: =LOOKUP(CB5,Assumptions!37:37,Assumptions!38:38)*CB3 -> 0 | CC32: =LOOKUP(CC5,Assumptions!37:37,Assumptions!38:38)*CC3 -> 0 | CD32: =LOOKUP(CD5,Assumptions!37:37,Assumptions!38:38)*CD3 -> 0 | CE32: =LOOKUP(CE5,Assumptions!37:37,Assumptions!38:38)*CE3 -> 0 | CF32: =LOOKUP(CF5,Assumptions!37:37,Assumptions!38:38)*CF3 -> 0 | CG32: =LOOKUP(CG5,Assumptions!37:37,Assumptions!38:38)*CG3 -> 0 | CH32: =LOOKUP(CH5,Assumptions!37:37,Assumptions!38:38)*CH3 -> 0 | CI32: =LOOKUP(CI5,Assumptions!37:37,Assumptions!38:38)*CI3 -> 0 | CJ32: =LOOKUP(CJ5,Assumptions!37:37,Assumptions!38:38)*CJ3 -> 0 | CK32: =LOOKUP(CK5,Assumptions!37:37,Assumptions!38:38)*CK3 -> 0 | CL32: =LOOKUP(CL5,Assumptions!37:37,Assumptions!38:38)*CL3 -> 0 | CM32: =LOOKUP(CM5,Assumptions!37:37,Assumptions!38:38)*CM3 -> 0 | CN32: =LOOKUP(CN5,Assumptions!37:37,Assumptions!38:38)*CN3 -> 0 | CO32: =LOOKUP(CO5,Assumptions!37:37,Assumptions!38:38)*CO3 -> 0 | CP32: =LOOKUP(CP5,Assumptions!37:37,Assumptions!38:38)*CP3 -> 0 | CQ32: =LOOKUP(CQ5,Assumptions!37:37,Assumptions!38:38)*CQ3 -> 0 | CR32: =LOOKUP(CR5,Assumptions!37:37,Assumptions!38:38)*CR3 -> 0 | CS32: =LOOKUP(CS5,Assumptions!37:37,Assumptions!38:38)*CS3 -> 0 | CT32: =LOOKUP(CT5,Assumptions!37:37,Assumptions!38:38)*CT3 -> 0 | CU32: =LOOKUP(CU5,Assumptions!37:37,Assumptions!38:38)*CU3 -> 0 | CV32: =LOOKUP(CV5,Assumptions!37:37,Assumptions!38:38)*CV3 -> 0 | CW32: =LOOKUP(CW5,Assumptions!37:37,Assumptions!38:38)*CW3 -> 0 | CX32: =LOOKUP(CX5,Assumptions!37:37,Assumptions!38:38)*CX3 -> 0 | CY32: =LOOKUP(CY5,Assumptions!37:37,Assumptions!38:38)*CY3 -> 0 | CZ32: =LOOKUP(CZ5,Assumptions!37:37,Assumptions!38:38)*CZ3 -> 0 | DA32: =LOOKUP(DA5,Assumptions!37:37,Assumptions!38:38)*DA3 -> 0 | DB32: =LOOKUP(DB5,Assumptions!37:37,Assumptions!38:38)*DB3 -> 0 | DC32: =LOOKUP(DC5,Assumptions!37:37,Assumptions!38:38)*DC3 -> 0 | DD32: =LOOKUP(DD5,Assumptions!37:37,Assumptions!38:38)*DD3 -> 0 | DE32: =LOOKUP(DE5,Assumptions!37:37,Assumptions!38:38)*DE3 -> 0 | DF32: =LOOKUP(DF5,Assumptions!37:37,Assumptions!38:38)*DF3 -> 0 | DG32: =LOOKUP(DG5,Assumptions!37:37,Assumptions!38:38)*DG3 -> 0 | DH32: =LOOKUP(DH5,Assumptions!37:37,Assumptions!38:38)*DH3 -> 0 | DI32: =LOOKUP(DI5,Assumptions!37:37,Assumptions!38:38)*DI3 -> 0 | DJ32: =LOOKUP(DJ5,Assumptions!37:37,Assumptions!38:38)*DJ3 -> 0 | DK32: =LOOKUP(DK5,Assumptions!37:37,Assumptions!38:38)*DK3 -> 0 | DL32: =LOOKUP(DL5,Assumptions!37:37,Assumptions!38:38)*DL3 -> 0 | DM32: =LOOKUP(DM5,Assumptions!37:37,Assumptions!38:38)*DM3 -> 0 | DN32: =LOOKUP(DN5,Assumptions!37:37,Assumptions!38:38)*DN3 -> 0 | DO32: =LOOKUP(DO5,Assumptions!37:37,Assumptions!38:38)*DO3 -> 0 | DP32: =LOOKUP(DP5,Assumptions!37:37,Assumptions!38:38)*DP3 -> 0 | DQ32: =LOOKUP(DQ5,Assumptions!37:37,Assumptions!38:38)*DQ3 -> 0 | DR32: =LOOKUP(DR5,Assumptions!37:37,Assumptions!38:38)*DR3 -> 0 | DS32: =LOOKUP(DS5,Assumptions!37:37,Assumptions!38:38)*DS3 -> 0 | DT32: =LOOKUP(DT5,Assumptions!37:37,Assumptions!38:38)*DT3 -> 0 | DU32: =LOOKUP(DU5,Assumptions!37:37,Assumptions!38:38)*DU3 -> 0 | DV32: =LOOKUP(DV5,Assumptions!37:37,Assumptions!38:38)*DV3 -> 0 | DW32: =LOOKUP(DW5,Assumptions!37:37,Assumptions!38:38)*DW3 -> 0 | DX32: =LOOKUP(DX5,Assumptions!37:37,Assumptions!38:38)*DX3 -> 0 | DY32: =LOOKUP(DY5,Assumptions!37:37,Assumptions!38:38)*DY3 -> 0 | DZ32: =LOOKUP(DZ5,Assumptions!37:37,Assumptions!38:38)*DZ3 -> 0 | EA32: =LOOKUP(EA5,Assumptions!37:37,Assumptions!38:38)*EA3 -> 0 | EB32: =LOOKUP(EB5,Assumptions!37:37,Assumptions!38:38)*EB3 -> 0 | EC32: =LOOKUP(EC5,Assumptions!37:37,Assumptions!38:38)*EC3 -> 0 | ED32: =LOOKUP(ED5,Assumptions!37:37,Assumptions!38:38)*ED3 -> 0 | EE32: =LOOKUP(EE5,Assumptions!37:37,Assumptions!38:38)*EE3 -> 0 | EF32: =LOOKUP(EF5,Assumptions!37:37,Assumptions!38:38)*EF3 -> 0 | EG32: =LOOKUP(EG5,Assumptions!37:37,Assumptions!38:38)*EG3 -> 0 | EH32: =LOOKUP(EH5,Assumptions!37:37,Assumptions!38:38)*EH3 -> 0 | EI32: =LOOKUP(EI5,Assumptions!37:37,Assumptions!38:38)*EI3 -> 0 | EJ32: =LOOKUP(EJ5,Assumptions!37:37,Assumptions!38:38)*EJ3 -> 0 | EK32: =LOOKUP(EK5,Assumptions!37:37,Assumptions!38:38)*EK3 -> 0 | EL32: =LOOKUP(EL5,Assumptions!37:37,Assumptions!38:38)*EL3 -> 0 | EM32: =LOOKUP(EM5,Assumptions!37:37,Assumptions!38:38)*EM3 -> 0 | EN32: =LOOKUP(EN5,Assumptions!37:37,Assumptions!38:38)*EN3 -> 0 | EO32: =LOOKUP(EO5,Assumptions!37:37,Assumptions!38:38)*EO3 -> 0 | EP32: =LOOKUP(EP5,Assumptions!37:37,Assumptions!38:38)*EP3 -> 0 | EQ32: =LOOKUP(EQ5,Assumptions!37:37,Assumptions!38:38)*EQ3 -> 0 | ER32: =LOOKUP(ER5,Assumptions!37:37,Assumptions!38:38)*ER3 -> 0 | ES32: =LOOKUP(ES5,Assumptions!37:37,Assumptions!38:38)*ES3 -> 0 | ET32: =LOOKUP(ET5,Assumptions!37:37,Assumptions!38:38)*ET3 -> 0 | EU32: =LOOKUP(EU5,Assumptions!37:37,Assumptions!38:38)*EU3 -> 0 | EV32: =LOOKUP(EV5,Assumptions!37:37,Assumptions!38:38)*EV3 -> 0 | EW32: =LOOKUP(EW5,Assumptions!37:37,Assumptions!38:38)*EW3 -> 0 | EX32: =LOOKUP(EX5,Assumptions!37:37,Assumptions!38:38)*EX3 -> 0 | EY32: =LOOKUP(EY5,Assumptions!37:37,Assumptions!38:38)*EY3 -> 0 | EZ32: =LOOKUP(EZ5,Assumptions!37:37,Assumptions!38:38)*EZ3 -> 0 | FA32: =LOOKUP(FA5,Assumptions!37:37,Assumptions!38:38)*FA3 -> 0 | FB32: =LOOKUP(FB5,Assumptions!37:37,Assumptions!38:38)*FB3 -> 0 | FC32: =LOOKUP(FC5,Assumptions!37:37,Assumptions!38:38)*FC3 -> 0 | FD32: =LOOKUP(FD5,Assumptions!37:37,Assumptions!38:38)*FD3 -> 0 | FE32: =LOOKUP(FE5,Assumptions!37:37,Assumptions!38:38)*FE3 -> 0 | FF32: =LOOKUP(FF5,Assumptions!37:37,Assumptions!38:38)*FF3 -> 0 | FG32: =LOOKUP(FG5,Assumptions!37:37,Assumptions!38:38)*FG3 -> 0 | FH32: =LOOKUP(FH5,Assumptions!37:37,Assumptions!38:38)*FH3 -> 0 | FI32: =LOOKUP(FI5,Assumptions!37:37,Assumptions!38:38)*FI3 -> 0 | FJ32: =LOOKUP(FJ5,Assumptions!37:37,Assumptions!38:38)*FJ3 -> 0 | FK32: =LOOKUP(FK5,Assumptions!37:37,Assumptions!38:38)*FK3 -> 0 | FL32: =LOOKUP(FL5,Assumptions!37:37,Assumptions!38:38)*FL3 -> 0 | FM32: =LOOKUP(FM5,Assumptions!37:37,Assumptions!38:38)*FM3 -> 0 | FN32: =LOOKUP(FN5,Assumptions!37:37,Assumptions!38:38)*FN3 -> 0 | FO32: =LOOKUP(FO5,Assumptions!37:37,Assumptions!38:38)*FO3 -> 0 | FP32: =LOOKUP(FP5,Assumptions!37:37,Assumptions!38:38)*FP3 -> 0 | FQ32: =LOOKUP(FQ5,Assumptions!37:37,Assumptions!38:38)*FQ3 -> 0 | FR32: =LOOKUP(FR5,Assumptions!37:37,Assumptions!38:38)*FR3 -> 0 | FS32: =LOOKUP(FS5,Assumptions!37:37,Assumptions!38:38)*FS3 -> 0 | FT32: =LOOKUP(FT5,Assumptions!37:37,Assumptions!38:38)*FT3 -> 0 | FU32: =LOOKUP(FU5,Assumptions!37:37,Assumptions!38:38)*FU3 -> 0 | FV32: =LOOKUP(FV5,Assumptions!37:37,Assumptions!38:38)*FV3 -> 0 | FW32: =LOOKUP(FW5,Assumptions!37:37,Assumptions!38:38)*FW3 -> 0 | FX32: =LOOKUP(FX5,Assumptions!37:37,Assumptions!38:38)*FX3 -> 0 | FY32: =LOOKUP(FY5,Assumptions!37:37,Assumptions!38:38)*FY3 -> 0 | FZ32: =LOOKUP(FZ5,Assumptions!37:37,Assumptions!38:38)*FZ3 -> 0 | GA32: =LOOKUP(GA5,Assumptions!37:37,Assumptions!38:38)*GA3 -> 0 | GB32: =LOOKUP(GB5,Assumptions!37:37,Assumptions!38:38)*GB3 -> 0 | GC32: =LOOKUP(GC5,Assumptions!37:37,Assumptions!38:38)*GC3 -> 0 | GD32: =LOOKUP(GD5,Assumptions!37:37,Assumptions!38:38)*GD3 -> 0 | GE32: =LOOKUP(GE5,Assumptions!37:37,Assumptions!38:38)*GE3 -> 0 | GF32: =LOOKUP(GF5,Assumptions!37:37,Assumptions!38:38)*GF3 -> 0 | GG32: =LOOKUP(GG5,Assumptions!37:37,Assumptions!38:38)*GG3 -> 0 | GH32: =LOOKUP(GH5,Assumptions!37:37,Assumptions!38:38)*GH3 -> 0 | GI32: =LOOKUP(GI5,Assumptions!37:37,Assumptions!38:38)*GI3 -> 0 | GJ32: =LOOKUP(GJ5,Assumptions!37:37,Assumptions!38:38)*GJ3 -> 0 | GK32: =LOOKUP(GK5,Assumptions!37:37,Assumptions!38:38)*GK3 -> 0 | GL32: =LOOKUP(GL5,Assumptions!37:37,Assumptions!38:38)*GL3 -> 0 | GM32: =LOOKUP(GM5,Assumptions!37:37,Assumptions!38:38)*GM3 -> 0 | GN32: =LOOKUP(GN5,Assumptions!37:37,Assumptions!38:38)*GN3 -> 0 | GO32: =LOOKUP(GO5,Assumptions!37:37,Assumptions!38:38)*GO3 -> 0 | GP32: =LOOKUP(GP5,Assumptions!37:37,Assumptions!38:38)*GP3 -> 0 | GQ32: =LOOKUP(GQ5,Assumptions!37:37,Assumptions!38:38)*GQ3 -> 0 | GR32: =LOOKUP(GR5,Assumptions!37:37,Assumptions!38:38)*GR3 -> 0 | GS32: =LOOKUP(GS5,Assumptions!37:37,Assumptions!38:38)*GS3 -> 0 | GT32: =LOOKUP(GT5,Assumptions!37:37,Assumptions!38:38)*GT3 -> 0 | GU32: =LOOKUP(GU5,Assumptions!37:37,Assumptions!38:38)*GU3 -> 0 | GV32: =LOOKUP(GV5,Assumptions!37:37,Assumptions!38:38)*GV3 -> 0 | GW32: =LOOKUP(GW5,Assumptions!37:37,Assumptions!38:38)*GW3 -> 0 | GX32: =LOOKUP(GX5,Assumptions!37:37,Assumptions!38:38)*GX3 -> 0 | GY32: =LOOKUP(GY5,Assumptions!37:37,Assumptions!38:38)*GY3 -> 0 | GZ32: =LOOKUP(GZ5,Assumptions!37:37,Assumptions!38:38)*GZ3 -> 0 | HA32: =LOOKUP(HA5,Assumptions!37:37,Assumptions!38:38)*HA3 -> 0
C33: CAPEX | J33: =J31*J32 -> 5000 | K33: =K31*K32 -> 5000 | L33: 5000 | M33: 5000 | N33: 5000 | O33: 15000 | P33: 15000 | Q33: 15000 | R33: 15000 | S33: 15000 | T33: 15000 | U33: 20000 | V33: 20000 | W33: 15000 | X33: 25000 | Y33: 12000 | Z33: 35000 | AA33: 14285.71429 | AB33: 15150 | AC33: 14285.71429 | AD33: 14285.71429 | AE33: 14285.71429 | AF33: 14285.71429 | AG33: 14285.71429 | AH33: 14285.71429 | AI33: 14285.71429 | AJ33: 14285.71429 | AK33: 14285.71429 | AL33: 14285.71429 | AM33: 14285.71429 | AN33: 14285.71429 | AO33: 14285.71429 | AP33: 14285.71429 | AQ33: 14285.71429 | AR33: 14285.71429 | AS33: 0 | AT33: 0 | AU33: 0 | AV33: 0 | AW33: 0 | AX33: 0 | AY33: 0 | AZ33: 0 | BA33: 0 | BB33: 0 | BC33: 0 | BD33: 0 | BE33: 0 | BF33: 0 | BG33: 0 | BH33: 0 | BI33: 0 | BJ33: 0 | BK33: 0 | BL33: 0 | BM33: 0 | BN33: 0 | BO33: 0 | BP33: 0 | BQ33: 0 | BR33: 0 | BS33: 0 | BT33: 0 | BU33: 0 | BV33: 0 | BW33: =BW31*BW32 -> 0 | BX33: 0 | BY33: 0 | BZ33: 0 | CA33: 0 | CB33: 0 | CC33: 0 | CD33: 0 | CE33: 0 | CF33: 0 | CG33: 0 | CH33: 0 | CI33: 0 | CJ33: 0 | CK33: 0 | CL33: 0 | CM33: 0 | CN33: 0 | CO33: 0 | CP33: 0 | CQ33: 0 | CR33: 0 | CS33: 0 | CT33: 0 | CU33: 0 | CV33: 0 | CW33: 0 | CX33: 0 | CY33: 0 | CZ33: 0 | DA33: 0 | DB33: 0 | DC33: 0 | DD33: 0 | DE33: 0 | DF33: 0 | DG33: 0 | DH33: 0 | DI33: 0 | DJ33: 0 | DK33: 0 | DL33: 0 | DM33: 0 | DN33: 0 | DO33: 0 | DP33: 0 | DQ33: 0 | DR33: 0 | DS33: 0 | DT33: 0 | DU33: 0 | DV33: 0 | DW33: 0 | DX33: 0 | DY33: 0 | DZ33: 0 | EA33: 0 | EB33: 0 | EC33: 0 | ED33: 0 | EE33: 0 | EF33: 0 | EG33: 0 | EH33: 0 | EI33: =EI31*EI32 -> 0 | EJ33: 0 | EK33: 0 | EL33: 0 | EM33: 0 | EN33: 0 | EO33: 0 | EP33: 0 | EQ33: 0 | ER33: 0 | ES33: 0 | ET33: 0 | EU33: 0 | EV33: 0 | EW33: 0 | EX33: 0 | EY33: 0 | EZ33: 0 | FA33: 0 | FB33: 0 | FC33: 0 | FD33: 0 | FE33: 0 | FF33: 0 | FG33: 0 | FH33: 0 | FI33: 0 | FJ33: 0 | FK33: 0 | FL33: 0 | FM33: 0 | FN33: 0 | FO33: 0 | FP33: 0 | FQ33: 0 | FR33: 0 | FS33: 0 | FT33: 0 | FU33: 0 | FV33: 0 | FW33: 0 | FX33: 0 | FY33: 0 | FZ33: 0 | GA33: 0 | GB33: 0 | GC33: 0 | GD33: 0 | GE33: 0 | GF33: 0 | GG33: 0 | GH33: 0 | GI33: 0 | GJ33: 0 | GK33: 0 | GL33: 0 | GM33: 0 | GN33: 0 | GO33: 0 | GP33: 0 | GQ33: 0 | GR33: 0 | GS33: 0 | GT33: 0 | GU33: =GU31*GU32 -> 0 | GV33: 0 | GW33: 0 | GX33: 0 | GY33: 0 | GZ33: 0 | HA33: 0
B35: Annual Inflation Rate | E35: % per annum | G35: =Assumptions!E43 -> 0.02 | J35: =$G$35 -> 0.02 | K35: =$G$35 -> 0.02 | L35: =$G$35 -> 0.02 | M35: =$G$35 -> 0.02 | N35: =$G$35 -> 0.02 | O35: =$G$35 -> 0.02 | P35: =$G$35 -> 0.02 | Q35: =$G$35 -> 0.02 | R35: =$G$35 -> 0.02 | S35: =$G$35 -> 0.02 | T35: =$G$35 -> 0.02 | U35: =$G$35 -> 0.02 | V35: =$G$35 -> 0.02 | W35: =$G$35 -> 0.02 | X35: =$G$35 -> 0.02 | Y35: =$G$35 -> 0.02 | Z35: =$G$35 -> 0.02 | AA35: =$G$35 -> 0.02 | AB35: =$G$35 -> 0.02 | AC35: =$G$35 -> 0.02 | AD35: =$G$35 -> 0.02 | AE35: =$G$35 -> 0.02 | AF35: =$G$35 -> 0.02 | AG35: =$G$35 -> 0.02 | AH35: =$G$35 -> 0.02 | AI35: =$G$35 -> 0.02 | AJ35: =$G$35 -> 0.02 | AK35: =$G$35 -> 0.02 | AL35: =$G$35 -> 0.02 | AM35: =$G$35 -> 0.02 | AN35: =$G$35 -> 0.02 | AO35: =$G$35 -> 0.02 | AP35: =$G$35 -> 0.02 | AQ35: =$G$35 -> 0.02 | AR35: =$G$35 -> 0.02 | AS35: =$G$35 -> 0.02 | AT35: =$G$35 -> 0.02 | AU35: =$G$35 -> 0.02 | AV35: =$G$35 -> 0.02 | AW35: =$G$35 -> 0.02 | AX35: =$G$35 -> 0.02 | AY35: =$G$35 -> 0.02 | AZ35: =$G$35 -> 0.02 | BA35: =$G$35 -> 0.02 | BB35: =$G$35 -> 0.02 | BC35: =$G$35 -> 0.02 | BD35: =$G$35 -> 0.02 | BE35: =$G$35 -> 0.02 | BF35: =$G$35 -> 0.02 | BG35: =$G$35 -> 0.02 | BH35: =$G$35 -> 0.02 | BI35: =$G$35 -> 0.02 | BJ35: =$G$35 -> 0.02 | BK35: =$G$35 -> 0.02 | BL35: =$G$35 -> 0.02 | BM35: =$G$35 -> 0.02 | BN35: =$G$35 -> 0.02 | BO35: =$G$35 -> 0.02 | BP35: =$G$35 -> 0.02 | BQ35: =$G$35 -> 0.02 | BR35: =$G$35 -> 0.02 | BS35: =$G$35 -> 0.02 | BT35: =$G$35 -> 0.02 | BU35: =$G$35 -> 0.02 | BV35: =$G$35 -> 0.02 | BW35: =$G$35 -> 0.02 | BX35: =$G$35 -> 0.02 | BY35: =$G$35 -> 0.02 | BZ35: =$G$35 -> 0.02 | CA35: =$G$35 -> 0.02 | CB35: =$G$35 -> 0.02 | CC35: =$G$35 -> 0.02 | CD35: =$G$35 -> 0.02 | CE35: =$G$35 -> 0.02 | CF35: =$G$35 -> 0.02 | CG35: =$G$35 -> 0.02 | CH35: =$G$35 -> 0.02 | CI35: =$G$35 -> 0.02 | CJ35: =$G$35 -> 0.02 | CK35: =$G$35 -> 0.02 | CL35: =$G$35 -> 0.02 | CM35: =$G$35 -> 0.02 | CN35: =$G$35 -> 0.02 | CO35: =$G$35 -> 0.02 | CP35: =$G$35 -> 0.02 | CQ35: =$G$35 -> 0.02 | CR35: =$G$35 -> 0.02 | CS35: =$G$35 -> 0.02 | CT35: =$G$35 -> 0.02 | CU35: =$G$35 -> 0.02 | CV35: =$G$35 -> 0.02 | CW35: =$G$35 -> 0.02 | CX35: =$G$35 -> 0.02 | CY35: =$G$35 -> 0.02 | CZ35: =$G$35 -> 0.02 | DA35: =$G$35 -> 0.02 | DB35: =$G$35 -> 0.02 | DC35: =$G$35 -> 0.02 | DD35: =$G$35 -> 0.02 | DE35: =$G$35 -> 0.02 | DF35: =$G$35 -> 0.02 | DG35: =$G$35 -> 0.02 | DH35: =$G$35 -> 0.02 | DI35: =$G$35 -> 0.02 | DJ35: =$G$35 -> 0.02 | DK35: =$G$35 -> 0.02 | DL35: =$G$35 -> 0.02 | DM35: =$G$35 -> 0.02 | DN35: =$G$35 -> 0.02 | DO35: =$G$35 -> 0.02 | DP35: =$G$35 -> 0.02 | DQ35: =$G$35 -> 0.02 | DR35: =$G$35 -> 0.02 | DS35: =$G$35 -> 0.02 | DT35: =$G$35 -> 0.02 | DU35: =$G$35 -> 0.02 | DV35: =$G$35 -> 0.02 | DW35: =$G$35 -> 0.02 | DX35: =$G$35 -> 0.02 | DY35: =$G$35 -> 0.02 | DZ35: =$G$35 -> 0.02 | EA35: =$G$35 -> 0.02 | EB35: =$G$35 -> 0.02 | EC35: =$G$35 -> 0.02 | ED35: =$G$35 -> 0.02 | EE35: =$G$35 -> 0.02 | EF35: =$G$35 -> 0.02 | EG35: =$G$35 -> 0.02 | EH35: =$G$35 -> 0.02 | EI35: =$G$35 -> 0.02 | EJ35: =$G$35 -> 0.02 | EK35: =$G$35 -> 0.02 | EL35: =$G$35 -> 0.02 | EM35: =$G$35 -> 0.02 | EN35: =$G$35 -> 0.02 | EO35: =$G$35 -> 0.02 | EP35: =$G$35 -> 0.02 | EQ35: =$G$35 -> 0.02 | ER35: =$G$35 -> 0.02 | ES35: =$G$35 -> 0.02 | ET35: =$G$35 -> 0.02 | EU35: =$G$35 -> 0.02 | EV35: =$G$35 -> 0.02 | EW35: =$G$35 -> 0.02 | EX35: =$G$35 -> 0.02 | EY35: =$G$35 -> 0.02 | EZ35: =$G$35 -> 0.02 | FA35: =$G$35 -> 0.02 | FB35: =$G$35 -> 0.02 | FC35: =$G$35 -> 0.02 | FD35: =$G$35 -> 0.02 | FE35: =$G$35 -> 0.02 | FF35: =$G$35 -> 0.02 | FG35: =$G$35 -> 0.02 | FH35: =$G$35 -> 0.02 | FI35: =$G$35 -> 0.02 | FJ35: =$G$35 -> 0.02 | FK35: =$G$35 -> 0.02 | FL35: =$G$35 -> 0.02 | FM35: =$G$35 -> 0.02 | FN35: =$G$35 -> 0.02 | FO35: =$G$35 -> 0.02 | FP35: =$G$35 -> 0.02 | FQ35: =$G$35 -> 0.02 | FR35: =$G$35 -> 0.02 | FS35: =$G$35 -> 0.02 | FT35: =$G$35 -> 0.02 | FU35: =$G$35 -> 0.02 | FV35: =$G$35 -> 0.02 | FW35: =$G$35 -> 0.02 | FX35: =$G$35 -> 0.02 | FY35: =$G$35 -> 0.02 | FZ35: =$G$35 -> 0.02 | GA35: =$G$35 -> 0.02 | GB35: =$G$35 -> 0.02 | GC35: =$G$35 -> 0.02 | GD35: =$G$35 -> 0.02 | GE35: =$G$35 -> 0.02 | GF35: =$G$35 -> 0.02 | GG35: =$G$35 -> 0.02 | GH35: =$G$35 -> 0.02 | GI35: =$G$35 -> 0.02 | GJ35: =$G$35 -> 0.02 | GK35: =$G$35 -> 0.02 | GL35: =$G$35 -> 0.02 | GM35: =$G$35 -> 0.02 | GN35: =$G$35 -> 0.02 | GO35: =$G$35 -> 0.02 | GP35: =$G$35 -> 0.02 | GQ35: =$G$35 -> 0.02 | GR35: =$G$35 -> 0.02 | GS35: =$G$35 -> 0.02 | GT35: =$G$35 -> 0.02 | GU35: =$G$35 -> 0.02 | GV35: =$G$35 -> 0.02 | GW35: =$G$35 -> 0.02 | GX35: =$G$35 -> 0.02 | GY35: =$G$35 -> 0.02 | GZ35: =$G$35 -> 0.02 | HA35: =$G$35 -> 0.02
B36: Periodical Inflation Rate | E36: % per period | J36: =(1+J35)^(J4/12)-1 -> 0.001651581302 | K36: 0.001651581302 | L36: 0.001651581302 | M36: 0.001651581302 | N36: 0.001651581302 | O36: 0.001651581302 | P36: 0.001651581302 | Q36: 0.001651581302 | R36: 0.001651581302 | S36: 0.001651581302 | T36: 0.001651581302 | U36: 0.001651581302 | V36: 0.001651581302 | W36: 0.001651581302 | X36: 0.001651581302 | Y36: 0.001651581302 | Z36: 0.001651581302 | AA36: 0.001651581302 | AB36: 0.001651581302 | AC36: 0.001651581302 | AD36: 0.001651581302 | AE36: 0.001651581302 | AF36: 0.001651581302 | AG36: 0.001651581302 | AH36: 0.001651581302 | AI36: 0.001651581302 | AJ36: 0.001651581302 | AK36: 0.001651581302 | AL36: 0.001651581302 | AM36: 0.001651581302 | AN36: 0.001651581302 | AO36: 0.001651581302 | AP36: =(1+AP35)^(AP4/12)-1 -> 0.001651581302 | AQ36: 0.001651581302 | AR36: 0.001651581302 | AS36: 0.004962931573 | AT36: 0.004962931573 | AU36: 0.004962931573 | AV36: 0.004962931573 | AW36: 0.004962931573 | AX36: 0.004962931573 | AY36: 0.004962931573 | AZ36: 0.004962931573 | BA36: 0.004962931573 | BB36: 0.004962931573 | BC36: 0.004962931573 | BD36: 0.004962931573 | BE36: 0.004962931573 | BF36: 0.004962931573 | BG36: 0.004962931573 | BH36: 0.004962931573 | BI36: 0.004962931573 | BJ36: 0.004962931573 | BK36: 0.004962931573 | BL36: 0.004962931573 | BM36: 0.004962931573 | BN36: 0.004962931573 | BO36: 0.004962931573 | BP36: 0.004962931573 | BQ36: 0.004962931573 | BR36: 0.004962931573 | BS36: 0.004962931573 | BT36: 0.004962931573 | BU36: 0.004962931573 | BV36: =(1+BV35)^(BV4/12)-1 -> 0.004962931573 | BW36: 0.004962931573 | BX36: 0.004962931573 | BY36: 0.004962931573 | BZ36: 0.004962931573 | CA36: 0.004962931573 | CB36: 0.004962931573 | CC36: 0.004962931573 | CD36: 0.004962931573 | CE36: 0.004962931573 | CF36: 0.004962931573 | CG36: 0.004962931573 | CH36: 0.004962931573 | CI36: 0.004962931573 | CJ36: 0.004962931573 | CK36: 0.004962931573 | CL36: 0.004962931573 | CM36: 0.004962931573 | CN36: 0.004962931573 | CO36: 0.004962931573 | CP36: 0.004962931573 | CQ36: 0.004962931573 | CR36: 0.004962931573 | CS36: 0.004962931573 | CT36: 0.004962931573 | CU36: 0.004962931573 | CV36: 0.004962931573 | CW36: 0.004962931573 | CX36: 0.004962931573 | CY36: 0.004962931573 | CZ36: 0.004962931573 | DA36: 0.004962931573 | DB36: =(1+DB35)^(DB4/12)-1 -> 0.004962931573 | DC36: 0.004962931573 | DD36: 0.004962931573 | DE36: 0.004962931573 | DF36: 0.004962931573 | DG36: 0.004962931573 | DH36: 0.004962931573 | DI36: 0.004962931573 | DJ36: 0.004962931573 | DK36: 0.004962931573 | DL36: 0.004962931573 | DM36: 0.004962931573 | DN36: 0.004962931573 | DO36: 0.004962931573 | DP36: 0.004962931573 | DQ36: 0.004962931573 | DR36: 0.004962931573 | DS36: 0.004962931573 | DT36: 0.004962931573 | DU36: 0.004962931573 | DV36: 0.004962931573 | DW36: 0.004962931573 | DX36: 0.004962931573 | DY36: 0.004962931573 | DZ36: 0.004962931573 | EA36: 0.004962931573 | EB36: 0.004962931573 | EC36: 0.004962931573 | ED36: 0.004962931573 | EE36: 0.004962931573 | EF36: 0.004962931573 | EG36: 0.004962931573 | EH36: =(1+EH35)^(EH4/12)-1 -> 0.004962931573 | EI36: 0.004962931573 | EJ36: 0.004962931573 | EK36: 0.004962931573 | EL36: 0.004962931573 | EM36: 0.004962931573 | EN36: 0.004962931573 | EO36: 0.004962931573 | EP36: 0.004962931573 | EQ36: 0.004962931573 | ER36: 0.004962931573 | ES36: 0.004962931573 | ET36: 0.004962931573 | EU36: 0.004962931573 | EV36: 0.004962931573 | EW36: 0.004962931573 | EX36: 0.004962931573 | EY36: 0.004962931573 | EZ36: 0.004962931573 | FA36: 0.004962931573 | FB36: 0.004962931573 | FC36: 0.004962931573 | FD36: 0.004962931573 | FE36: 0.004962931573 | FF36: 0.004962931573 | FG36: 0.004962931573 | FH36: 0.004962931573 | FI36: 0.004962931573 | FJ36: 0.004962931573 | FK36: 0.004962931573 | FL36: 0.004962931573 | FM36: 0.004962931573 | FN36: =(1+FN35)^(FN4/12)-1 -> 0.004962931573 | FO36: 0.004962931573 | FP36: 0.004962931573 | FQ36: 0.004962931573 | FR36: 0.004962931573 | FS36: 0.004962931573 | FT36: 0.004962931573 | FU36: 0.004962931573 | FV36: 0.004962931573 | FW36: 0.004962931573 | FX36: 0.004962931573 | FY36: 0.004962931573 | FZ36: 0.004962931573 | GA36: 0.004962931573 | GB36: 0.004962931573 | GC36: 0.004962931573 | GD36: 0.004962931573 | GE36: 0.004962931573 | GF36: 0.004962931573 | GG36: 0.004962931573 | GH36: 0.004962931573 | GI36: 0.004962931573 | GJ36: 0.004962931573 | GK36: 0.004962931573 | GL36: 0.004962931573 | GM36: 0.004962931573 | GN36: 0.004962931573 | GO36: 0.004962931573 | GP36: 0.004962931573 | GQ36: 0.004962931573 | GR36: 0.004962931573 | GS36: 0.004962931573 | GT36: =(1+GT35)^(GT4/12)-1 -> 0.004962931573 | GU36: 0.004962931573 | GV36: 0.004962931573 | GW36: 0.004962931573 | GX36: 0.004962931573 | GY36: 0.004962931573 | GZ36: 0.004962931573 | HA36: 0.004962931573
B37: Inflation Index | I37: 1 | J37: =I37*(1+J36*J7) -> 1 | K37: 1 | L37: 1 | M37: 1 | N37: 1 | O37: 1 | P37: 1 | Q37: 1 | R37: 1 | S37: 1 | T37: 1 | U37: 1 | V37: 1 | W37: 1 | X37: 1 | Y37: 1 | Z37: 1 | AA37: 1 | AB37: 1 | AC37: 1 | AD37: 1 | AE37: 1 | AF37: 1 | AG37: 1 | AH37: 1 | AI37: 1 | AJ37: 1 | AK37: 1 | AL37: 1 | AM37: 1 | AN37: 1 | AO37: 1 | AP37: =AO37*(1+AP36*AP7) -> 1 | AQ37: 1 | AR37: 1 | AS37: 1.004962932 | AT37: 1.009950494 | AU37: 1.014962809 | AV37: 1.02 | AW37: 1.02506219 | AX37: 1.030149504 | AY37: 1.035262065 | AZ37: 1.0404 | BA37: 1.045563434 | BB37: 1.050752494 | BC37: 1.055967307 | BD37: 1.061208 | BE37: 1.066474703 | BF37: 1.071767544 | BG37: 1.077086653 | BH37: 1.08243216 | BI37: 1.087804197 | BJ37: 1.093202895 | BK37: 1.098628386 | BL37: 1.104080803 | BM37: 1.109560281 | BN37: 1.115066952 | BO37: 1.120600953 | BP37: 1.126162419 | BQ37: 1.131751486 | BR37: 1.137368291 | BS37: 1.143012972 | BT37: 1.148685668 | BU37: 1.154386516 | BV37: =BU37*(1+BV36*BV7) -> 1.160115657 | BW37: 1.165873232 | BX37: 1.171659381 | BY37: 1.177474246 | BZ37: 1.18331797 | CA37: 1.189190697 | CB37: 1.195092569 | CC37: 1.201023731 | CD37: 1.20698433 | CE37: 1.21297451 | CF37: 1.21899442 | CG37: 1.225044206 | CH37: 1.231124016 | CI37: 1.237234001 | CJ37: 1.243374308 | CK37: 1.24954509 | CL37: 1.255746497 | CM37: 1.261978681 | CN37: 1.268241795 | CO37: 1.274535992 | CP37: 1.280861427 | CQ37: 1.287218254 | CR37: 1.29360663 | CS37: 1.300026712 | CT37: 1.306478655 | CU37: 1.312962619 | CV37: 1.319478763 | CW37: 1.326027246 | CX37: 1.332608228 | CY37: 1.339221872 | CZ37: 1.345868338 | DA37: 1.352547791 | DB37: =DA37*(1+DB36*DB7) -> 1.359260393 | DC37: 1.366006309 | DD37: 1.372785705 | DE37: 1.379598747 | DF37: 1.386445601 | DG37: 1.393326435 | DH37: 1.400241419 | DI37: 1.407190722 | DJ37: 1.414174513 | DK37: 1.421192964 | DL37: 1.428246248 | DM37: 1.435334536 | DN37: 1.442458003 | DO37: 1.449616823 | DP37: 1.456811173 | DQ37: 1.464041227 | DR37: 1.471307163 | DS37: 1.47860916 | DT37: 1.485947396 | DU37: 1.485947396 | DV37: 1.485947396 | DW37: 1.485947396 | DX37: 1.485947396 | DY37: 1.485947396 | DZ37: 1.485947396 | EA37: 1.485947396 | EB37: 1.485947396 | EC37: 1.485947396 | ED37: 1.485947396 | EE37: 1.485947396 | EF37: 1.485947396 | EG37: 1.485947396 | EH37: =EG37*(1+EH36*EH7) -> 1.485947396 | EI37: 1.485947396 | EJ37: 1.485947396 | EK37: 1.485947396 | EL37: 1.485947396 | EM37: 1.485947396 | EN37: 1.485947396 | EO37: 1.485947396 | EP37: 1.485947396 | EQ37: 1.485947396 | ER37: 1.485947396 | ES37: 1.485947396 | ET37: 1.485947396 | EU37: 1.485947396 | EV37: 1.485947396 | EW37: 1.485947396 | EX37: 1.485947396 | EY37: 1.485947396 | EZ37: 1.485947396 | FA37: 1.485947396 | FB37: 1.485947396 | FC37: 1.485947396 | FD37: 1.485947396 | FE37: 1.485947396 | FF37: 1.485947396 | FG37: 1.485947396 | FH37: 1.485947396 | FI37: 1.485947396 | FJ37: 1.485947396 | FK37: 1.485947396 | FL37: 1.485947396 | FM37: 1.485947396 | FN37: =FM37*(1+FN36*FN7) -> 1.485947396 | FO37: 1.485947396 | FP37: 1.485947396 | FQ37: 1.485947396 | FR37: 1.485947396 | FS37: 1.485947396 | FT37: 1.485947396 | FU37: 1.485947396 | FV37: 1.485947396 | FW37: 1.485947396 | FX37: 1.485947396 | FY37: 1.485947396 | FZ37: 1.485947396 | GA37: 1.485947396 | GB37: 1.485947396 | GC37: 1.485947396 | GD37: 1.485947396 | GE37: 1.485947396 | GF37: 1.485947396 | GG37: 1.485947396 | GH37: 1.485947396 | GI37: 1.485947396 | GJ37: 1.485947396 | GK37: 1.485947396 | GL37: 1.485947396 | GM37: 1.485947396 | GN37: 1.485947396 | GO37: 1.485947396 | GP37: 1.485947396 | GQ37: 1.485947396 | GR37: 1.485947396 | GS37: 1.485947396 | GT37: =GS37*(1+GT36*GT7) -> 1.485947396 | GU37: 1.485947396 | GV37: 1.485947396 | GW37: 1.485947396 | GX37: 1.485947396 | GY37: 1.485947396 | GZ37: 1.485947396 | HA37: 1.485947396
B39: Gas Price - Per year | J39: =YEAR(J6) -> 2020 | K39: 2020 | L39: 2020 | M39: 2020 | N39: 2020 | O39: 2020 | P39: 2020 | Q39: 2020 | R39: 2020 | S39: 2021 | T39: 2021 | U39: 2021 | V39: 2021 | W39: 2021 | X39: 2021 | Y39: 2021 | Z39: 2021 | AA39: 2021 | AB39: 2021 | AC39: 2021 | AD39: 2021 | AE39: 2022 | AF39: 2022 | AG39: 2022 | AH39: 2022 | AI39: 2022 | AJ39: 2022 | AK39: 2022 | AL39: 2022 | AM39: 2022 | AN39: 2022 | AO39: 2022 | AP39: =YEAR(AP6) -> 2022 | AQ39: 2023 | AR39: 2023 | AS39: 2023 | AT39: 2023 | AU39: 2023 | AV39: 2024 | AW39: 2024 | AX39: 2024 | AY39: 2024 | AZ39: 2025 | BA39: 2025 | BB39: 2025 | BC39: 2025 | BD39: 2026 | BE39: 2026 | BF39: 2026 | BG39: 2026 | BH39: 2027 | BI39: 2027 | BJ39: 2027 | BK39: 2027 | BL39: 2028 | BM39: 2028 | BN39: 2028 | BO39: 2028 | BP39: 2029 | BQ39: 2029 | BR39: 2029 | BS39: 2029 | BT39: 2030 | BU39: 2030 | BV39: =YEAR(BV6) -> 2030 | BW39: 2030 | BX39: 2031 | BY39: 2031 | BZ39: 2031 | CA39: 2031 | CB39: 2032 | CC39: 2032 | CD39: 2032 | CE39: 2032 | CF39: 2033 | CG39: 2033 | CH39: 2033 | CI39: 2033 | CJ39: 2034 | CK39: 2034 | CL39: 2034 | CM39: 2034 | CN39: 2035 | CO39: 2035 | CP39: 2035 | CQ39: 2035 | CR39: 2036 | CS39: 2036 | CT39: 2036 | CU39: 2036 | CV39: 2037 | CW39: 2037 | CX39: 2037 | CY39: 2037 | CZ39: 2038 | DA39: 2038 | DB39: =YEAR(DB6) -> 2038 | DC39: 2038 | DD39: 2039 | DE39: 2039 | DF39: 2039 | DG39: 2039 | DH39: 2040 | DI39: 2040 | DJ39: 2040 | DK39: 2040 | DL39: 2041 | DM39: 2041 | DN39: 2041 | DO39: 2041 | DP39: 2042 | DQ39: 2042 | DR39: 2042 | DS39: 2042 | DT39: 2043 | DU39: 2043 | DV39: 2043 | DW39: 2043 | DX39: 2044 | DY39: 2044 | DZ39: 2044 | EA39: 2044 | EB39: 2045 | EC39: 2045 | ED39: 2045 | EE39: 2045 | EF39: 2046 | EG39: 2046 | EH39: =YEAR(EH6) -> 2046 | EI39: 2046 | EJ39: 2047 | EK39: 2047 | EL39: 2047 | EM39: 2047 | EN39: 2048 | EO39: 2048 | EP39: 2048 | EQ39: 2048 | ER39: 2049 | ES39: 2049 | ET39: 2049 | EU39: 2049 | EV39: 2050 | EW39: 2050 | EX39: 2050 | EY39: 2050 | EZ39: 2051 | FA39: 2051 | FB39: 2051 | FC39: 2051 | FD39: 2052 | FE39: 2052 | FF39: 2052 | FG39: 2052 | FH39: 2053 | FI39: 2053 | FJ39: 2053 | FK39: 2053 | FL39: 2054 | FM39: 2054 | FN39: =YEAR(FN6) -> 2054 | FO39: 2054 | FP39: 2055 | FQ39: 2055 | FR39: 2055 | FS39: 2055 | FT39: 2056 | FU39: 2056 | FV39: 2056 | FW39: 2056 | FX39: 2057 | FY39: 2057 | FZ39: 2057 | GA39: 2057 | GB39: 2058 | GC39: 2058 | GD39: 2058 | GE39: 2058 | GF39: 2059 | GG39: 2059 | GH39: 2059 | GI39: 2059 | GJ39: 2060 | GK39: 2060 | GL39: 2060 | GM39: 2060 | GN39: 2061 | GO39: 2061 | GP39: 2061 | GQ39: 2061 | GR39: 2062 | GS39: 2062 | GT39: =YEAR(GT6) -> 2062 | GU39: 2062 | GV39: 2063 | GW39: 2063 | GX39: 2063 | GY39: 2063 | GZ39: 2064 | HA39: 2064
B40: Gas Price | E40: USD / MMBTU | J40: =LOOKUP(J39,Assumptions!45:45,Assumptions!46:46) -> 2.5 | K40: =LOOKUP(K39,Assumptions!45:45,Assumptions!46:46) -> 2.5 | L40: =LOOKUP(L39,Assumptions!45:45,Assumptions!46:46) -> 2.5 | M40: =LOOKUP(M39,Assumptions!45:45,Assumptions!46:46) -> 2.5 | N40: =LOOKUP(N39,Assumptions!45:45,Assumptions!46:46) -> 2.5 | O40: =LOOKUP(O39,Assumptions!45:45,Assumptions!46:46) -> 2.5 | P40: =LOOKUP(P39,Assumptions!45:45,Assumptions!46:46) -> 2.5 | Q40: =LOOKUP(Q39,Assumptions!45:45,Assumptions!46:46) -> 2.5 | R40: =LOOKUP(R39,Assumptions!45:45,Assumptions!46:46) -> 2.5 | S40: =LOOKUP(S39,Assumptions!45:45,Assumptions!46:46) -> 2.5 | T40: =LOOKUP(T39,Assumptions!45:45,Assumptions!46:46) -> 2.5 | U40: =LOOKUP(U39,Assumptions!45:45,Assumptions!46:46) -> 2.5 | V40: =LOOKUP(V39,Assumptions!45:45,Assumptions!46:46) -> 2.5 | W40: =LOOKUP(W39,Assumptions!45:45,Assumptions!46:46) -> 2.5 | X40: =LOOKUP(X39,Assumptions!45:45,Assumptions!46:46) -> 2.5 | Y40: =LOOKUP(Y39,Assumptions!45:45,Assumptions!46:46) -> 2.5 | Z40: =LOOKUP(Z39,Assumptions!45:45,Assumptions!46:46) -> 2.5 | AA40: =LOOKUP(AA39,Assumptions!45:45,Assumptions!46:46) -> 2.5 | AB40: =LOOKUP(AB39,Assumptions!45:45,Assumptions!46:46) -> 2.5 | AC40: =LOOKUP(AC39,Assumptions!45:45,Assumptions!46:46) -> 2.5 | AD40: =LOOKUP(AD39,Assumptions!45:45,Assumptions!46:46) -> 2.5 | AE40: =LOOKUP(AE39,Assumptions!45:45,Assumptions!46:46) -> 2.5 | AF40: =LOOKUP(AF39,Assumptions!45:45,Assumptions!46:46) -> 2.5 | AG40: =LOOKUP(AG39,Assumptions!45:45,Assumptions!46:46) -> 2.5 | AH40: =LOOKUP(AH39,Assumptions!45:45,Assumptions!46:46) -> 2.5 | AI40: =LOOKUP(AI39,Assumptions!45:45,Assumptions!46:46) -> 2.5 | AJ40: =LOOKUP(AJ39,Assumptions!45:45,Assumptions!46:46) -> 2.5 | AK40: =LOOKUP(AK39,Assumptions!45:45,Assumptions!46:46) -> 2.5 | AL40: =LOOKUP(AL39,Assumptions!45:45,Assumptions!46:46) -> 2.5 | AM40: =LOOKUP(AM39,Assumptions!45:45,Assumptions!46:46) -> 2.5 | AN40: =LOOKUP(AN39,Assumptions!45:45,Assumptions!46:46) -> 2.5 | AO40: =LOOKUP(AO39,Assumptions!45:45,Assumptions!46:46) -> 2.5 | AP40: =LOOKUP(AP39,Assumptions!45:45,Assumptions!46:46) -> 2.5 | AQ40: =LOOKUP(AQ39,Assumptions!45:45,Assumptions!46:46) -> 2.5 | AR40: =LOOKUP(AR39,Assumptions!45:45,Assumptions!46:46) -> 2.5 | AS40: =LOOKUP(AS39,Assumptions!45:45,Assumptions!46:46) -> 2.5 | AT40: =LOOKUP(AT39,Assumptions!45:45,Assumptions!46:46) -> 2.5 | AU40: =LOOKUP(AU39,Assumptions!45:45,Assumptions!46:46) -> 2.5 | AV40: =LOOKUP(AV39,Assumptions!45:45,Assumptions!46:46) -> 2.5 | AW40: =LOOKUP(AW39,Assumptions!45:45,Assumptions!46:46) -> 2.5 | AX40: =LOOKUP(AX39,Assumptions!45:45,Assumptions!46:46) -> 2.5 | AY40: =LOOKUP(AY39,Assumptions!45:45,Assumptions!46:46) -> 2.5 | AZ40: =LOOKUP(AZ39,Assumptions!45:45,Assumptions!46:46) -> 2.8 | BA40: =LOOKUP(BA39,Assumptions!45:45,Assumptions!46:46) -> 2.8 | BB40: =LOOKUP(BB39,Assumptions!45:45,Assumptions!46:46) -> 2.8 | BC40: =LOOKUP(BC39,Assumptions!45:45,Assumptions!46:46) -> 2.8 | BD40: =LOOKUP(BD39,Assumptions!45:45,Assumptions!46:46) -> 2.8 | BE40: =LOOKUP(BE39,Assumptions!45:45,Assumptions!46:46) -> 2.8 | BF40: =LOOKUP(BF39,Assumptions!45:45,Assumptions!46:46) -> 2.8 | BG40: =LOOKUP(BG39,Assumptions!45:45,Assumptions!46:46) -> 2.8 | BH40: =LOOKUP(BH39,Assumptions!45:45,Assumptions!46:46) -> 2.8 | BI40: =LOOKUP(BI39,Assumptions!45:45,Assumptions!46:46) -> 2.8 | BJ40: =LOOKUP(BJ39,Assumptions!45:45,Assumptions!46:46) -> 2.8 | BK40: =LOOKUP(BK39,Assumptions!45:45,Assumptions!46:46) -> 2.8 | BL40: =LOOKUP(BL39,Assumptions!45:45,Assumptions!46:46) -> 2.8 | BM40: =LOOKUP(BM39,Assumptions!45:45,Assumptions!46:46) -> 2.8 | BN40: =LOOKUP(BN39,Assumptions!45:45,Assumptions!46:46) -> 2.8 | BO40: =LOOKUP(BO39,Assumptions!45:45,Assumptions!46:46) -> 2.8 | BP40: =LOOKUP(BP39,Assumptions!45:45,Assumptions!46:46) -> 2.8 | BQ40: =LOOKUP(BQ39,Assumptions!45:45,Assumptions!46:46) -> 2.8 | BR40: =LOOKUP(BR39,Assumptions!45:45,Assumptions!46:46) -> 2.8 | BS40: =LOOKUP(BS39,Assumptions!45:45,Assumptions!46:46) -> 2.8 | BT40: =LOOKUP(BT39,Assumptions!45:45,Assumptions!46:46) -> 3 | BU40: =LOOKUP(BU39,Assumptions!45:45,Assumptions!46:46) -> 3 | BV40: =LOOKUP(BV39,Assumptions!45:45,Assumptions!46:46) -> 3 | BW40: =LOOKUP(BW39,Assumptions!45:45,Assumptions!46:46) -> 3 | BX40: =LOOKUP(BX39,Assumptions!45:45,Assumptions!46:46) -> 3 | BY40: =LOOKUP(BY39,Assumptions!45:45,Assumptions!46:46) -> 3 | BZ40: =LOOKUP(BZ39,Assumptions!45:45,Assumptions!46:46) -> 3 | CA40: =LOOKUP(CA39,Assumptions!45:45,Assumptions!46:46) -> 3 | CB40: =LOOKUP(CB39,Assumptions!45:45,Assumptions!46:46) -> 3 | CC40: =LOOKUP(CC39,Assumptions!45:45,Assumptions!46:46) -> 3 | CD40: =LOOKUP(CD39,Assumptions!45:45,Assumptions!46:46) -> 3 | CE40: =LOOKUP(CE39,Assumptions!45:45,Assumptions!46:46) -> 3 | CF40: =LOOKUP(CF39,Assumptions!45:45,Assumptions!46:46) -> 3 | CG40: =LOOKUP(CG39,Assumptions!45:45,Assumptions!46:46) -> 3 | CH40: =LOOKUP(CH39,Assumptions!45:45,Assumptions!46:46) -> 3 | CI40: =LOOKUP(CI39,Assumptions!45:45,Assumptions!46:46) -> 3 | CJ40: =LOOKUP(CJ39,Assumptions!45:45,Assumptions!46:46) -> 3 | CK40: =LOOKUP(CK39,Assumptions!45:45,Assumptions!46:46) -> 3 | CL40: =LOOKUP(CL39,Assumptions!45:45,Assumptions!46:46) -> 3 | CM40: =LOOKUP(CM39,Assumptions!45:45,Assumptions!46:46) -> 3 | CN40: =LOOKUP(CN39,Assumptions!45:45,Assumptions!46:46) -> 3 | CO40: =LOOKUP(CO39,Assumptions!45:45,Assumptions!46:46) -> 3 | CP40: =LOOKUP(CP39,Assumptions!45:45,Assumptions!46:46) -> 3 | CQ40: =LOOKUP(CQ39,Assumptions!45:45,Assumptions!46:46) -> 3 | CR40: =LOOKUP(CR39,Assumptions!45:45,Assumptions!46:46) -> 3 | CS40: =LOOKUP(CS39,Assumptions!45:45,Assumptions!46:46) -> 3 | CT40: =LOOKUP(CT39,Assumptions!45:45,Assumptions!46:46) -> 3 | CU40: =LOOKUP(CU39,Assumptions!45:45,Assumptions!46:46) -> 3 | CV40: =LOOKUP(CV39,Assumptions!45:45,Assumptions!46:46) -> 3 | CW40: =LOOKUP(CW39,Assumptions!45:45,Assumptions!46:46) -> 3 | CX40: =LOOKUP(CX39,Assumptions!45:45,Assumptions!46:46) -> 3 | CY40: =LOOKUP(CY39,Assumptions!45:45,Assumptions!46:46) -> 3 | CZ40: =LOOKUP(CZ39,Assumptions!45:45,Assumptions!46:46) -> 3 | DA40: =LOOKUP(DA39,Assumptions!45:45,Assumptions!46:46) -> 3 | DB40: =LOOKUP(DB39,Assumptions!45:45,Assumptions!46:46) -> 3 | DC40: =LOOKUP(DC39,Assumptions!45:45,Assumptions!46:46) -> 3 | DD40: =LOOKUP(DD39,Assumptions!45:45,Assumptions!46:46) -> 3 | DE40: =LOOKUP(DE39,Assumptions!45:45,Assumptions!46:46) -> 3 | DF40: =LOOKUP(DF39,Assumptions!45:45,Assumptions!46:46) -> 3 | DG40: =LOOKUP(DG39,Assumptions!45:45,Assumptions!46:46) -> 3 | DH40: =LOOKUP(DH39,Assumptions!45:45,Assumptions!46:46) -> 3 | DI40: =LOOKUP(DI39,Assumptions!45:45,Assumptions!46:46) -> 3 | DJ40: =LOOKUP(DJ39,Assumptions!45:45,Assumptions!46:46) -> 3 | DK40: =LOOKUP(DK39,Assumptions!45:45,Assumptions!46:46) -> 3 | DL40: =LOOKUP(DL39,Assumptions!45:45,Assumptions!46:46) -> 3 | DM40: =LOOKUP(DM39,Assumptions!45:45,Assumptions!46:46) -> 3 | DN40: =LOOKUP(DN39,Assumptions!45:45,Assumptions!46:46) -> 3 | DO40: =LOOKUP(DO39,Assumptions!45:45,Assumptions!46:46) -> 3 | DP40: =LOOKUP(DP39,Assumptions!45:45,Assumptions!46:46) -> 3 | DQ40: =LOOKUP(DQ39,Assumptions!45:45,Assumptions!46:46) -> 3 | DR40: =LOOKUP(DR39,Assumptions!45:45,Assumptions!46:46) -> 3 | DS40: =LOOKUP(DS39,Assumptions!45:45,Assumptions!46:46) -> 3 | DT40: =LOOKUP(DT39,Assumptions!45:45,Assumptions!46:46) -> 3 | DU40: =LOOKUP(DU39,Assumptions!45:45,Assumptions!46:46) -> 3 | DV40: =LOOKUP(DV39,Assumptions!45:45,Assumptions!46:46) -> 3 | DW40: =LOOKUP(DW39,Assumptions!45:45,Assumptions!46:46) -> 3 | DX40: =LOOKUP(DX39,Assumptions!45:45,Assumptions!46:46) -> 3 | DY40: =LOOKUP(DY39,Assumptions!45:45,Assumptions!46:46) -> 3 | DZ40: =LOOKUP(DZ39,Assumptions!45:45,Assumptions!46:46) -> 3 | EA40: =LOOKUP(EA39,Assumptions!45:45,Assumptions!46:46) -> 3 | EB40: =LOOKUP(EB39,Assumptions!45:45,Assumptions!46:46) -> 3 | EC40: =LOOKUP(EC39,Assumptions!45:45,Assumptions!46:46) -> 3 | ED40: =LOOKUP(ED39,Assumptions!45:45,Assumptions!46:46) -> 3 | EE40: =LOOKUP(EE39,Assumptions!45:45,Assumptions!46:46) -> 3 | EF40: =LOOKUP(EF39,Assumptions!45:45,Assumptions!46:46) -> 3 | EG40: =LOOKUP(EG39,Assumptions!45:45,Assumptions!46:46) -> 3 | EH40: =LOOKUP(EH39,Assumptions!45:45,Assumptions!46:46) -> 3 | EI40: =LOOKUP(EI39,Assumptions!45:45,Assumptions!46:46) -> 3 | EJ40: =LOOKUP(EJ39,Assumptions!45:45,Assumptions!46:46) -> 3 | EK40: =LOOKUP(EK39,Assumptions!45:45,Assumptions!46:46) -> 3 | EL40: =LOOKUP(EL39,Assumptions!45:45,Assumptions!46:46) -> 3 | EM40: =LOOKUP(EM39,Assumptions!45:45,Assumptions!46:46) -> 3 | EN40: =LOOKUP(EN39,Assumptions!45:45,Assumptions!46:46) -> 3 | EO40: =LOOKUP(EO39,Assumptions!45:45,Assumptions!46:46) -> 3 | EP40: =LOOKUP(EP39,Assumptions!45:45,Assumptions!46:46) -> 3 | EQ40: =LOOKUP(EQ39,Assumptions!45:45,Assumptions!46:46) -> 3 | ER40: =LOOKUP(ER39,Assumptions!45:45,Assumptions!46:46) -> 3 | ES40: =LOOKUP(ES39,Assumptions!45:45,Assumptions!46:46) -> 3 | ET40: =LOOKUP(ET39,Assumptions!45:45,Assumptions!46:46) -> 3 | EU40: =LOOKUP(EU39,Assumptions!45:45,Assumptions!46:46) -> 3 | EV40: =LOOKUP(EV39,Assumptions!45:45,Assumptions!46:46) -> 3 | EW40: =LOOKUP(EW39,Assumptions!45:45,Assumptions!46:46) -> 3 | EX40: =LOOKUP(EX39,Assumptions!45:45,Assumptions!46:46) -> 3 | EY40: =LOOKUP(EY39,Assumptions!45:45,Assumptions!46:46) -> 3 | EZ40: =LOOKUP(EZ39,Assumptions!45:45,Assumptions!46:46) -> 3 | FA40: =LOOKUP(FA39,Assumptions!45:45,Assumptions!46:46) -> 3 | FB40: =LOOKUP(FB39,Assumptions!45:45,Assumptions!46:46) -> 3 | FC40: =LOOKUP(FC39,Assumptions!45:45,Assumptions!46:46) -> 3 | FD40: =LOOKUP(FD39,Assumptions!45:45,Assumptions!46:46) -> 3 | FE40: =LOOKUP(FE39,Assumptions!45:45,Assumptions!46:46) -> 3 | FF40: =LOOKUP(FF39,Assumptions!45:45,Assumptions!46:46) -> 3 | FG40: =LOOKUP(FG39,Assumptions!45:45,Assumptions!46:46) -> 3 | FH40: =LOOKUP(FH39,Assumptions!45:45,Assumptions!46:46) -> 3 | FI40: =LOOKUP(FI39,Assumptions!45:45,Assumptions!46:46) -> 3 | FJ40: =LOOKUP(FJ39,Assumptions!45:45,Assumptions!46:46) -> 3 | FK40: =LOOKUP(FK39,Assumptions!45:45,Assumptions!46:46) -> 3 | FL40: =LOOKUP(FL39,Assumptions!45:45,Assumptions!46:46) -> 3 | FM40: =LOOKUP(FM39,Assumptions!45:45,Assumptions!46:46) -> 3 | FN40: =LOOKUP(FN39,Assumptions!45:45,Assumptions!46:46) -> 3 | FO40: =LOOKUP(FO39,Assumptions!45:45,Assumptions!46:46) -> 3 | FP40: =LOOKUP(FP39,Assumptions!45:45,Assumptions!46:46) -> 3 | FQ40: =LOOKUP(FQ39,Assumptions!45:45,Assumptions!46:46) -> 3 | FR40: =LOOKUP(FR39,Assumptions!45:45,Assumptions!46:46) -> 3 | FS40: =LOOKUP(FS39,Assumptions!45:45,Assumptions!46:46) -> 3 | FT40: =LOOKUP(FT39,Assumptions!45:45,Assumptions!46:46) -> 3 | FU40: =LOOKUP(FU39,Assumptions!45:45,Assumptions!46:46) -> 3 | FV40: =LOOKUP(FV39,Assumptions!45:45,Assumptions!46:46) -> 3 | FW40: =LOOKUP(FW39,Assumptions!45:45,Assumptions!46:46) -> 3 | FX40: =LOOKUP(FX39,Assumptions!45:45,Assumptions!46:46) -> 3 | FY40: =LOOKUP(FY39,Assumptions!45:45,Assumptions!46:46) -> 3 | FZ40: =LOOKUP(FZ39,Assumptions!45:45,Assumptions!46:46) -> 3 | GA40: =LOOKUP(GA39,Assumptions!45:45,Assumptions!46:46) -> 3 | GB40: =LOOKUP(GB39,Assumptions!45:45,Assumptions!46:46) -> 3 | GC40: =LOOKUP(GC39,Assumptions!45:45,Assumptions!46:46) -> 3 | GD40: =LOOKUP(GD39,Assumptions!45:45,Assumptions!46:46) -> 3 | GE40: =LOOKUP(GE39,Assumptions!45:45,Assumptions!46:46) -> 3 | GF40: =LOOKUP(GF39,Assumptions!45:45,Assumptions!46:46) -> 3 | GG40: =LOOKUP(GG39,Assumptions!45:45,Assumptions!46:46) -> 3 | GH40: =LOOKUP(GH39,Assumptions!45:45,Assumptions!46:46) -> 3 | GI40: =LOOKUP(GI39,Assumptions!45:45,Assumptions!46:46) -> 3 | GJ40: =LOOKUP(GJ39,Assumptions!45:45,Assumptions!46:46) -> 3 | GK40: =LOOKUP(GK39,Assumptions!45:45,Assumptions!46:46) -> 3 | GL40: =LOOKUP(GL39,Assumptions!45:45,Assumptions!46:46) -> 3 | GM40: =LOOKUP(GM39,Assumptions!45:45,Assumptions!46:46) -> 3 | GN40: =LOOKUP(GN39,Assumptions!45:45,Assumptions!46:46) -> 3 | GO40: =LOOKUP(GO39,Assumptions!45:45,Assumptions!46:46) -> 3 | GP40: =LOOKUP(GP39,Assumptions!45:45,Assumptions!46:46) -> 3 | GQ40: =LOOKUP(GQ39,Assumptions!45:45,Assumptions!46:46) -> 3 | GR40: =LOOKUP(GR39,Assumptions!45:45,Assumptions!46:46) -> 3 | GS40: =LOOKUP(GS39,Assumptions!45:45,Assumptions!46:46) -> 3 | GT40: =LOOKUP(GT39,Assumptions!45:45,Assumptions!46:46) -> 3 | GU40: =LOOKUP(GU39,Assumptions!45:45,Assumptions!46:46) -> 3 | GV40: =LOOKUP(GV39,Assumptions!45:45,Assumptions!46:46) -> 3 | GW40: =LOOKUP(GW39,Assumptions!45:45,Assumptions!46:46) -> 3 | GX40: =LOOKUP(GX39,Assumptions!45:45,Assumptions!46:46) -> 3 | GY40: =LOOKUP(GY39,Assumptions!45:45,Assumptions!46:46) -> 3 | GZ40: =LOOKUP(GZ39,Assumptions!45:45,Assumptions!46:46) -> 3 | HA40: =LOOKUP(HA39,Assumptions!45:45,Assumptions!46:46) -> 3
B41: Gas Usage | E41: MMBTU | J41: =J19 -> 0 | K41: =K19 -> 0 | L41: 0 | M41: 0 | N41: 0 | O41: 0 | P41: 0 | Q41: 0 | R41: 0 | S41: 0 | T41: 0 | U41: 0 | V41: 0 | W41: 0 | X41: 0 | Y41: 0 | Z41: 0 | AA41: 0 | AB41: 0 | AC41: 0 | AD41: 0 | AE41: 0 | AF41: 0 | AG41: 0 | AH41: 0 | AI41: 0 | AJ41: 0 | AK41: 0 | AL41: 0 | AM41: 0 | AN41: 0 | AO41: 0 | AP41: 0 | AQ41: 0 | AR41: 0 | AS41: 2798640 | AT41: 2798640 | AU41: 2768220 | AV41: 2768220 | AW41: 2798640 | AX41: 2798640 | AY41: 2768220 | AZ41: 2737800 | BA41: 3013920 | BB41: 3013920 | BC41: 2981160 | BD41: 2948400 | BE41: 3013920 | BF41: 3013920 | BG41: 2981160 | BH41: 2948400 | BI41: 2411136 | BJ41: 2411136 | BK41: 2384928 | BL41: 2384928 | BM41: 2411136 | BN41: 2411136 | BO41: 2384928 | BP41: 2358720 | BQ41: 2411136 | BR41: 2411136 | BS41: 2384928 | BT41: 2358720 | BU41: 2411136 | BV41: 2411136 | BW41: =BW19 -> 2384928 | BX41: 2358720 | BY41: 2411136 | BZ41: 2411136 | CA41: 2384928 | CB41: 2384928 | CC41: 2411136 | CD41: 2411136 | CE41: 2384928 | CF41: 2358720 | CG41: 2411136 | CH41: 2411136 | CI41: 2384928 | CJ41: 2358720 | CK41: 2411136 | CL41: 2411136 | CM41: 2384928 | CN41: 2358720 | CO41: 2411136 | CP41: 2411136 | CQ41: 2384928 | CR41: 2384928 | CS41: 2411136 | CT41: 2411136 | CU41: 2384928 | CV41: 2358720 | CW41: 2411136 | CX41: 2411136 | CY41: 2384928 | CZ41: 2358720 | DA41: 2411136 | DB41: 2411136 | DC41: 2384928 | DD41: 2358720 | DE41: 2411136 | DF41: 2411136 | DG41: 2384928 | DH41: 2384928 | DI41: 2411136 | DJ41: 2411136 | DK41: 2384928 | DL41: 2358720 | DM41: 2411136 | DN41: 2411136 | DO41: 2384928 | DP41: 2358720 | DQ41: 2411136 | DR41: 2411136 | DS41: 2384928 | DT41: 2358720 | DU41: 0 | DV41: 0 | DW41: 0 | DX41: 0 | DY41: 0 | DZ41: 0 | EA41: 0 | EB41: 0 | EC41: 0 | ED41: 0 | EE41: 0 | EF41: 0 | EG41: 0 | EH41: 0 | EI41: =EI19 -> 0 | EJ41: 0 | EK41: 0 | EL41: 0 | EM41: 0 | EN41: 0 | EO41: 0 | EP41: 0 | EQ41: 0 | ER41: 0 | ES41: 0 | ET41: 0 | EU41: 0 | EV41: 0 | EW41: 0 | EX41: 0 | EY41: 0 | EZ41: 0 | FA41: 0 | FB41: 0 | FC41: 0 | FD41: 0 | FE41: 0 | FF41: 0 | FG41: 0 | FH41: 0 | FI41: 0 | FJ41: 0 | FK41: 0 | FL41: 0 | FM41: 0 | FN41: 0 | FO41: 0 | FP41: 0 | FQ41: 0 | FR41: 0 | FS41: 0 | FT41: 0 | FU41: 0 | FV41: 0 | FW41: 0 | FX41: 0 | FY41: 0 | FZ41: 0 | GA41: 0 | GB41: 0 | GC41: 0 | GD41: 0 | GE41: 0 | GF41: 0 | GG41: 0 | GH41: 0 | GI41: 0 | GJ41: 0 | GK41: 0 | GL41: 0 | GM41: 0 | GN41: 0 | GO41: 0 | GP41: 0 | GQ41: 0 | GR41: 0 | GS41: 0 | GT41: 0 | GU41: =GU19 -> 0 | GV41: 0 | GW41: 0 | GX41: 0 | GY41: 0 | GZ41: 0 | HA41: 0
B42: Gas Cost | E42: USD ("000") | J42: =J40*J41/1000 -> 0 | K42: =K40*K41/1000 -> 0 | L42: 0 | M42: 0 | N42: 0 | O42: 0 | P42: 0 | Q42: 0 | R42: 0 | S42: 0 | T42: 0 | U42: 0 | V42: 0 | W42: 0 | X42: 0 | Y42: 0 | Z42: 0 | AA42: 0 | AB42: 0 | AC42: 0 | AD42: 0 | AE42: 0 | AF42: 0 | AG42: 0 | AH42: 0 | AI42: 0 | AJ42: 0 | AK42: 0 | AL42: 0 | AM42: 0 | AN42: 0 | AO42: 0 | AP42: 0 | AQ42: 0 | AR42: 0 | AS42: 6996.6 | AT42: 6996.6 | AU42: 6920.55 | AV42: 6920.55 | AW42: 6996.6 | AX42: 6996.6 | AY42: 6920.55 | AZ42: 7665.84 | BA42: 8438.976 | BB42: 8438.976 | BC42: 8347.248 | BD42: 8255.52 | BE42: 8438.976 | BF42: 8438.976 | BG42: 8347.248 | BH42: 8255.52 | BI42: 6751.1808 | BJ42: 6751.1808 | BK42: 6677.7984 | BL42: 6677.7984 | BM42: 6751.1808 | BN42: 6751.1808 | BO42: 6677.7984 | BP42: 6604.416 | BQ42: 6751.1808 | BR42: 6751.1808 | BS42: 6677.7984 | BT42: 7076.16 | BU42: 7233.408 | BV42: 7233.408 | BW42: =BW40*BW41/1000 -> 7154.784 | BX42: 7076.16 | BY42: 7233.408 | BZ42: 7233.408 | CA42: 7154.784 | CB42: 7154.784 | CC42: 7233.408 | CD42: 7233.408 | CE42: 7154.784 | CF42: 7076.16 | CG42: 7233.408 | CH42: 7233.408 | CI42: 7154.784 | CJ42: 7076.16 | CK42: 7233.408 | CL42: 7233.408 | CM42: 7154.784 | CN42: 7076.16 | CO42: 7233.408 | CP42: 7233.408 | CQ42: 7154.784 | CR42: 7154.784 | CS42: 7233.408 | CT42: 7233.408 | CU42: 7154.784 | CV42: 7076.16 | CW42: 7233.408 | CX42: 7233.408 | CY42: 7154.784 | CZ42: 7076.16 | DA42: 7233.408 | DB42: 7233.408 | DC42: 7154.784 | DD42: 7076.16 | DE42: 7233.408 | DF42: 7233.408 | DG42: 7154.784 | DH42: 7154.784 | DI42: 7233.408 | DJ42: 7233.408 | DK42: 7154.784 | DL42: 7076.16 | DM42: 7233.408 | DN42: 7233.408 | DO42: 7154.784 | DP42: 7076.16 | DQ42: 7233.408 | DR42: 7233.408 | DS42: 7154.784 | DT42: 7076.16 | DU42: 0 | DV42: 0 | DW42: 0 | DX42: 0 | DY42: 0 | DZ42: 0 | EA42: 0 | EB42: 0 | EC42: 0 | ED42: 0 | EE42: 0 | EF42: 0 | EG42: 0 | EH42: 0 | EI42: =EI40*EI41/1000 -> 0 | EJ42: 0 | EK42: 0 | EL42: 0 | EM42: 0 | EN42: 0 | EO42: 0 | EP42: 0 | EQ42: 0 | ER42: 0 | ES42: 0 | ET42: 0 | EU42: 0 | EV42: 0 | EW42: 0 | EX42: 0 | EY42: 0 | EZ42: 0 | FA42: 0 | FB42: 0 | FC42: 0 | FD42: 0 | FE42: 0 | FF42: 0 | FG42: 0 | FH42: 0 | FI42: 0 | FJ42: 0 | FK42: 0 | FL42: 0 | FM42: 0 | FN42: 0 | FO42: 0 | FP42: 0 | FQ42: 0 | FR42: 0 | FS42: 0 | FT42: 0 | FU42: 0 | FV42: 0 | FW42: 0 | FX42: 0 | FY42: 0 | FZ42: 0 | GA42: 0 | GB42: 0 | GC42: 0 | GD42: 0 | GE42: 0 | GF42: 0 | GG42: 0 | GH42: 0 | GI42: 0 | GJ42: 0 | GK42: 0 | GL42: 0 | GM42: 0 | GN42: 0 | GO42: 0 | GP42: 0 | GQ42: 0 | GR42: 0 | GS42: 0 | GT42: 0 | GU42: =GU40*GU41/1000 -> 0 | GV42: 0 | GW42: 0 | GX42: 0 | GY42: 0 | GZ42: 0 | HA42: 0
B44: Variable O&M Per Unit | E44: USD / MWH | J44: =LOOKUP(J39,Assumptions!45:45,Assumptions!47:47)*J37 -> 5 | K44: =LOOKUP(K39,Assumptions!45:45,Assumptions!47:47)*K37 -> 5 | L44: =LOOKUP(L39,Assumptions!45:45,Assumptions!47:47)*L37 -> 5 | M44: =LOOKUP(M39,Assumptions!45:45,Assumptions!47:47)*M37 -> 5 | N44: =LOOKUP(N39,Assumptions!45:45,Assumptions!47:47)*N37 -> 5 | O44: =LOOKUP(O39,Assumptions!45:45,Assumptions!47:47)*O37 -> 5 | P44: =LOOKUP(P39,Assumptions!45:45,Assumptions!47:47)*P37 -> 5 | Q44: =LOOKUP(Q39,Assumptions!45:45,Assumptions!47:47)*Q37 -> 5 | R44: =LOOKUP(R39,Assumptions!45:45,Assumptions!47:47)*R37 -> 5 | S44: =LOOKUP(S39,Assumptions!45:45,Assumptions!47:47)*S37 -> 5 | T44: =LOOKUP(T39,Assumptions!45:45,Assumptions!47:47)*T37 -> 5 | U44: =LOOKUP(U39,Assumptions!45:45,Assumptions!47:47)*U37 -> 5 | V44: =LOOKUP(V39,Assumptions!45:45,Assumptions!47:47)*V37 -> 5 | W44: =LOOKUP(W39,Assumptions!45:45,Assumptions!47:47)*W37 -> 5 | X44: =LOOKUP(X39,Assumptions!45:45,Assumptions!47:47)*X37 -> 5 | Y44: =LOOKUP(Y39,Assumptions!45:45,Assumptions!47:47)*Y37 -> 5 | Z44: =LOOKUP(Z39,Assumptions!45:45,Assumptions!47:47)*Z37 -> 5 | AA44: =LOOKUP(AA39,Assumptions!45:45,Assumptions!47:47)*AA37 -> 5 | AB44: =LOOKUP(AB39,Assumptions!45:45,Assumptions!47:47)*AB37 -> 5 | AC44: =LOOKUP(AC39,Assumptions!45:45,Assumptions!47:47)*AC37 -> 5 | AD44: =LOOKUP(AD39,Assumptions!45:45,Assumptions!47:47)*AD37 -> 5 | AE44: =LOOKUP(AE39,Assumptions!45:45,Assumptions!47:47)*AE37 -> 5 | AF44: =LOOKUP(AF39,Assumptions!45:45,Assumptions!47:47)*AF37 -> 5 | AG44: =LOOKUP(AG39,Assumptions!45:45,Assumptions!47:47)*AG37 -> 5 | AH44: =LOOKUP(AH39,Assumptions!45:45,Assumptions!47:47)*AH37 -> 5 | AI44: =LOOKUP(AI39,Assumptions!45:45,Assumptions!47:47)*AI37 -> 5 | AJ44: =LOOKUP(AJ39,Assumptions!45:45,Assumptions!47:47)*AJ37 -> 5 | AK44: =LOOKUP(AK39,Assumptions!45:45,Assumptions!47:47)*AK37 -> 5 | AL44: =LOOKUP(AL39,Assumptions!45:45,Assumptions!47:47)*AL37 -> 5 | AM44: =LOOKUP(AM39,Assumptions!45:45,Assumptions!47:47)*AM37 -> 5 | AN44: =LOOKUP(AN39,Assumptions!45:45,Assumptions!47:47)*AN37 -> 5 | AO44: =LOOKUP(AO39,Assumptions!45:45,Assumptions!47:47)*AO37 -> 5 | AP44: =LOOKUP(AP39,Assumptions!45:45,Assumptions!47:47)*AP37 -> 5 | AQ44: =LOOKUP(AQ39,Assumptions!45:45,Assumptions!47:47)*AQ37 -> 5 | AR44: =LOOKUP(AR39,Assumptions!45:45,Assumptions!47:47)*AR37 -> 5 | AS44: =LOOKUP(AS39,Assumptions!45:45,Assumptions!47:47)*AS37 -> 5.024814658 | AT44: =LOOKUP(AT39,Assumptions!45:45,Assumptions!47:47)*AT37 -> 5.049752469 | AU44: =LOOKUP(AU39,Assumptions!45:45,Assumptions!47:47)*AU37 -> 5.074814045 | AV44: =LOOKUP(AV39,Assumptions!45:45,Assumptions!47:47)*AV37 -> 5.1 | AW44: =LOOKUP(AW39,Assumptions!45:45,Assumptions!47:47)*AW37 -> 5.125310951 | AX44: =LOOKUP(AX39,Assumptions!45:45,Assumptions!47:47)*AX37 -> 5.150747519 | AY44: =LOOKUP(AY39,Assumptions!45:45,Assumptions!47:47)*AY37 -> 5.176310326 | AZ44: =LOOKUP(AZ39,Assumptions!45:45,Assumptions!47:47)*AZ37 -> 5.7222 | BA44: =LOOKUP(BA39,Assumptions!45:45,Assumptions!47:47)*BA37 -> 5.750598887 | BB44: =LOOKUP(BB39,Assumptions!45:45,Assumptions!47:47)*BB37 -> 5.779138716 | BC44: =LOOKUP(BC39,Assumptions!45:45,Assumptions!47:47)*BC37 -> 5.807820186 | BD44: =LOOKUP(BD39,Assumptions!45:45,Assumptions!47:47)*BD37 -> 5.836644 | BE44: =LOOKUP(BE39,Assumptions!45:45,Assumptions!47:47)*BE37 -> 5.865610865 | BF44: =LOOKUP(BF39,Assumptions!45:45,Assumptions!47:47)*BF37 -> 5.89472149 | BG44: =LOOKUP(BG39,Assumptions!45:45,Assumptions!47:47)*BG37 -> 5.92397659 | BH44: =LOOKUP(BH39,Assumptions!45:45,Assumptions!47:47)*BH37 -> 5.95337688 | BI44: =LOOKUP(BI39,Assumptions!45:45,Assumptions!47:47)*BI37 -> 5.982923082 | BJ44: =LOOKUP(BJ39,Assumptions!45:45,Assumptions!47:47)*BJ37 -> 6.01261592 | BK44: =LOOKUP(BK39,Assumptions!45:45,Assumptions!47:47)*BK37 -> 6.042456121 | BL44: =LOOKUP(BL39,Assumptions!45:45,Assumptions!47:47)*BL37 -> 6.072444418 | BM44: =LOOKUP(BM39,Assumptions!45:45,Assumptions!47:47)*BM37 -> 6.102581544 | BN44: =LOOKUP(BN39,Assumptions!45:45,Assumptions!47:47)*BN37 -> 6.132868238 | BO44: =LOOKUP(BO39,Assumptions!45:45,Assumptions!47:47)*BO37 -> 6.163305244 | BP44: =LOOKUP(BP39,Assumptions!45:45,Assumptions!47:47)*BP37 -> 6.193893306 | BQ44: =LOOKUP(BQ39,Assumptions!45:45,Assumptions!47:47)*BQ37 -> 6.224633175 | BR44: =LOOKUP(BR39,Assumptions!45:45,Assumptions!47:47)*BR37 -> 6.255525603 | BS44: =LOOKUP(BS39,Assumptions!45:45,Assumptions!47:47)*BS37 -> 6.286571349 | BT44: =LOOKUP(BT39,Assumptions!45:45,Assumptions!47:47)*BT37 -> 6.892114006 | BU44: =LOOKUP(BU39,Assumptions!45:45,Assumptions!47:47)*BU37 -> 6.926319096 | BV44: =LOOKUP(BV39,Assumptions!45:45,Assumptions!47:47)*BV37 -> 6.960693944 | BW44: =LOOKUP(BW39,Assumptions!45:45,Assumptions!47:47)*BW37 -> 6.995239392 | BX44: =LOOKUP(BX39,Assumptions!45:45,Assumptions!47:47)*BX37 -> 7.029956286 | BY44: =LOOKUP(BY39,Assumptions!45:45,Assumptions!47:47)*BY37 -> 7.064845478 | BZ44: =LOOKUP(BZ39,Assumptions!45:45,Assumptions!47:47)*BZ37 -> 7.099907823 | CA44: =LOOKUP(CA39,Assumptions!45:45,Assumptions!47:47)*CA37 -> 7.135144179 | CB44: =LOOKUP(CB39,Assumptions!45:45,Assumptions!47:47)*CB37 -> 7.170555412 | CC44: =LOOKUP(CC39,Assumptions!45:45,Assumptions!47:47)*CC37 -> 7.206142388 | CD44: =LOOKUP(CD39,Assumptions!45:45,Assumptions!47:47)*CD37 -> 7.241905979 | CE44: =LOOKUP(CE39,Assumptions!45:45,Assumptions!47:47)*CE37 -> 7.277847063 | CF44: =LOOKUP(CF39,Assumptions!45:45,Assumptions!47:47)*CF37 -> 7.31396652 | CG44: =LOOKUP(CG39,Assumptions!45:45,Assumptions!47:47)*CG37 -> 7.350265235 | CH44: =LOOKUP(CH39,Assumptions!45:45,Assumptions!47:47)*CH37 -> 7.386744099 | CI44: =LOOKUP(CI39,Assumptions!45:45,Assumptions!47:47)*CI37 -> 7.423404004 | CJ44: =LOOKUP(CJ39,Assumptions!45:45,Assumptions!47:47)*CJ37 -> 7.46024585 | CK44: =LOOKUP(CK39,Assumptions!45:45,Assumptions!47:47)*CK37 -> 7.49727054 | CL44: =LOOKUP(CL39,Assumptions!45:45,Assumptions!47:47)*CL37 -> 7.534478981 | CM44: =LOOKUP(CM39,Assumptions!45:45,Assumptions!47:47)*CM37 -> 7.571872084 | CN44: =LOOKUP(CN39,Assumptions!45:45,Assumptions!47:47)*CN37 -> 7.609450767 | CO44: =LOOKUP(CO39,Assumptions!45:45,Assumptions!47:47)*CO37 -> 7.647215951 | CP44: =LOOKUP(CP39,Assumptions!45:45,Assumptions!47:47)*CP37 -> 7.68516856 | CQ44: =LOOKUP(CQ39,Assumptions!45:45,Assumptions!47:47)*CQ37 -> 7.723309526 | CR44: =LOOKUP(CR39,Assumptions!45:45,Assumptions!47:47)*CR37 -> 7.761639783 | CS44: =LOOKUP(CS39,Assumptions!45:45,Assumptions!47:47)*CS37 -> 7.80016027 | CT44: =LOOKUP(CT39,Assumptions!45:45,Assumptions!47:47)*CT37 -> 7.838871932 | CU44: =LOOKUP(CU39,Assumptions!45:45,Assumptions!47:47)*CU37 -> 7.877775717 | CV44: =LOOKUP(CV39,Assumptions!45:45,Assumptions!47:47)*CV37 -> 7.916872578 | CW44: =LOOKUP(CW39,Assumptions!45:45,Assumptions!47:47)*CW37 -> 7.956163475 | CX44: =LOOKUP(CX39,Assumptions!45:45,Assumptions!47:47)*CX37 -> 7.99564937 | CY44: =LOOKUP(CY39,Assumptions!45:45,Assumptions!47:47)*CY37 -> 8.035331231 | CZ44: =LOOKUP(CZ39,Assumptions!45:45,Assumptions!47:47)*CZ37 -> 8.07521003 | DA44: =LOOKUP(DA39,Assumptions!45:45,Assumptions!47:47)*DA37 -> 8.115286745 | DB44: =LOOKUP(DB39,Assumptions!45:45,Assumptions!47:47)*DB37 -> 8.155562358 | DC44: =LOOKUP(DC39,Assumptions!45:45,Assumptions!47:47)*DC37 -> 8.196037855 | DD44: =LOOKUP(DD39,Assumptions!45:45,Assumptions!47:47)*DD37 -> 8.236714231 | DE44: =LOOKUP(DE39,Assumptions!45:45,Assumptions!47:47)*DE37 -> 8.27759248 | DF44: =LOOKUP(DF39,Assumptions!45:45,Assumptions!47:47)*DF37 -> 8.318673605 | DG44: =LOOKUP(DG39,Assumptions!45:45,Assumptions!47:47)*DG37 -> 8.359958613 | DH44: =LOOKUP(DH39,Assumptions!45:45,Assumptions!47:47)*DH37 -> 8.401448515 | DI44: =LOOKUP(DI39,Assumptions!45:45,Assumptions!47:47)*DI37 -> 8.443144329 | DJ44: =LOOKUP(DJ39,Assumptions!45:45,Assumptions!47:47)*DJ37 -> 8.485047077 | DK44: =LOOKUP(DK39,Assumptions!45:45,Assumptions!47:47)*DK37 -> 8.527157785 | DL44: =LOOKUP(DL39,Assumptions!45:45,Assumptions!47:47)*DL37 -> 8.569477485 | DM44: =LOOKUP(DM39,Assumptions!45:45,Assumptions!47:47)*DM37 -> 8.612007216 | DN44: =LOOKUP(DN39,Assumptions!45:45,Assumptions!47:47)*DN37 -> 8.654748018 | DO44: =LOOKUP(DO39,Assumptions!45:45,Assumptions!47:47)*DO37 -> 8.697700941 | DP44: =LOOKUP(DP39,Assumptions!45:45,Assumptions!47:47)*DP37 -> 8.740867035 | DQ44: =LOOKUP(DQ39,Assumptions!45:45,Assumptions!47:47)*DQ37 -> 8.78424736 | DR44: =LOOKUP(DR39,Assumptions!45:45,Assumptions!47:47)*DR37 -> 8.827842979 | DS44: =LOOKUP(DS39,Assumptions!45:45,Assumptions!47:47)*DS37 -> 8.871654959 | DT44: =LOOKUP(DT39,Assumptions!45:45,Assumptions!47:47)*DT37 -> 8.915684376 | DU44: =LOOKUP(DU39,Assumptions!45:45,Assumptions!47:47)*DU37 -> 8.915684376 | DV44: =LOOKUP(DV39,Assumptions!45:45,Assumptions!47:47)*DV37 -> 8.915684376 | DW44: =LOOKUP(DW39,Assumptions!45:45,Assumptions!47:47)*DW37 -> 8.915684376 | DX44: =LOOKUP(DX39,Assumptions!45:45,Assumptions!47:47)*DX37 -> 8.915684376 | DY44: =LOOKUP(DY39,Assumptions!45:45,Assumptions!47:47)*DY37 -> 8.915684376 | DZ44: =LOOKUP(DZ39,Assumptions!45:45,Assumptions!47:47)*DZ37 -> 8.915684376 | EA44: =LOOKUP(EA39,Assumptions!45:45,Assumptions!47:47)*EA37 -> 8.915684376 | EB44: =LOOKUP(EB39,Assumptions!45:45,Assumptions!47:47)*EB37 -> 8.915684376 | EC44: =LOOKUP(EC39,Assumptions!45:45,Assumptions!47:47)*EC37 -> 8.915684376 | ED44: =LOOKUP(ED39,Assumptions!45:45,Assumptions!47:47)*ED37 -> 8.915684376 | EE44: =LOOKUP(EE39,Assumptions!45:45,Assumptions!47:47)*EE37 -> 8.915684376 | EF44: =LOOKUP(EF39,Assumptions!45:45,Assumptions!47:47)*EF37 -> 8.915684376 | EG44: =LOOKUP(EG39,Assumptions!45:45,Assumptions!47:47)*EG37 -> 8.915684376 | EH44: =LOOKUP(EH39,Assumptions!45:45,Assumptions!47:47)*EH37 -> 8.915684376 | EI44: =LOOKUP(EI39,Assumptions!45:45,Assumptions!47:47)*EI37 -> 8.915684376 | EJ44: =LOOKUP(EJ39,Assumptions!45:45,Assumptions!47:47)*EJ37 -> 8.915684376 | EK44: =LOOKUP(EK39,Assumptions!45:45,Assumptions!47:47)*EK37 -> 8.915684376 | EL44: =LOOKUP(EL39,Assumptions!45:45,Assumptions!47:47)*EL37 -> 8.915684376 | EM44: =LOOKUP(EM39,Assumptions!45:45,Assumptions!47:47)*EM37 -> 8.915684376 | EN44: =LOOKUP(EN39,Assumptions!45:45,Assumptions!47:47)*EN37 -> 8.915684376 | EO44: =LOOKUP(EO39,Assumptions!45:45,Assumptions!47:47)*EO37 -> 8.915684376 | EP44: =LOOKUP(EP39,Assumptions!45:45,Assumptions!47:47)*EP37 -> 8.915684376 | EQ44: =LOOKUP(EQ39,Assumptions!45:45,Assumptions!47:47)*EQ37 -> 8.915684376 | ER44: =LOOKUP(ER39,Assumptions!45:45,Assumptions!47:47)*ER37 -> 8.915684376 | ES44: =LOOKUP(ES39,Assumptions!45:45,Assumptions!47:47)*ES37 -> 8.915684376 | ET44: =LOOKUP(ET39,Assumptions!45:45,Assumptions!47:47)*ET37 -> 8.915684376 | EU44: =LOOKUP(EU39,Assumptions!45:45,Assumptions!47:47)*EU37 -> 8.915684376 | EV44: =LOOKUP(EV39,Assumptions!45:45,Assumptions!47:47)*EV37 -> 8.915684376 | EW44: =LOOKUP(EW39,Assumptions!45:45,Assumptions!47:47)*EW37 -> 8.915684376 | EX44: =LOOKUP(EX39,Assumptions!45:45,Assumptions!47:47)*EX37 -> 8.915684376 | EY44: =LOOKUP(EY39,Assumptions!45:45,Assumptions!47:47)*EY37 -> 8.915684376 | EZ44: =LOOKUP(EZ39,Assumptions!45:45,Assumptions!47:47)*EZ37 -> 8.915684376 | FA44: =LOOKUP(FA39,Assumptions!45:45,Assumptions!47:47)*FA37 -> 8.915684376 | FB44: =LOOKUP(FB39,Assumptions!45:45,Assumptions!47:47)*FB37 -> 8.915684376 | FC44: =LOOKUP(FC39,Assumptions!45:45,Assumptions!47:47)*FC37 -> 8.915684376 | FD44: =LOOKUP(FD39,Assumptions!45:45,Assumptions!47:47)*FD37 -> 8.915684376 | FE44: =LOOKUP(FE39,Assumptions!45:45,Assumptions!47:47)*FE37 -> 8.915684376 | FF44: =LOOKUP(FF39,Assumptions!45:45,Assumptions!47:47)*FF37 -> 8.915684376 | FG44: =LOOKUP(FG39,Assumptions!45:45,Assumptions!47:47)*FG37 -> 8.915684376 | FH44: =LOOKUP(FH39,Assumptions!45:45,Assumptions!47:47)*FH37 -> 8.915684376 | FI44: =LOOKUP(FI39,Assumptions!45:45,Assumptions!47:47)*FI37 -> 8.915684376 | FJ44: =LOOKUP(FJ39,Assumptions!45:45,Assumptions!47:47)*FJ37 -> 8.915684376 | FK44: =LOOKUP(FK39,Assumptions!45:45,Assumptions!47:47)*FK37 -> 8.915684376 | FL44: =LOOKUP(FL39,Assumptions!45:45,Assumptions!47:47)*FL37 -> 8.915684376 | FM44: =LOOKUP(FM39,Assumptions!45:45,Assumptions!47:47)*FM37 -> 8.915684376 | FN44: =LOOKUP(FN39,Assumptions!45:45,Assumptions!47:47)*FN37 -> 8.915684376 | FO44: =LOOKUP(FO39,Assumptions!45:45,Assumptions!47:47)*FO37 -> 8.915684376 | FP44: =LOOKUP(FP39,Assumptions!45:45,Assumptions!47:47)*FP37 -> 8.915684376 | FQ44: =LOOKUP(FQ39,Assumptions!45:45,Assumptions!47:47)*FQ37 -> 8.915684376 | FR44: =LOOKUP(FR39,Assumptions!45:45,Assumptions!47:47)*FR37 -> 8.915684376 | FS44: =LOOKUP(FS39,Assumptions!45:45,Assumptions!47:47)*FS37 -> 8.915684376 | FT44: =LOOKUP(FT39,Assumptions!45:45,Assumptions!47:47)*FT37 -> 8.915684376 | FU44: =LOOKUP(FU39,Assumptions!45:45,Assumptions!47:47)*FU37 -> 8.915684376 | FV44: =LOOKUP(FV39,Assumptions!45:45,Assumptions!47:47)*FV37 -> 8.915684376 | FW44: =LOOKUP(FW39,Assumptions!45:45,Assumptions!47:47)*FW37 -> 8.915684376 | FX44: =LOOKUP(FX39,Assumptions!45:45,Assumptions!47:47)*FX37 -> 8.915684376 | FY44: =LOOKUP(FY39,Assumptions!45:45,Assumptions!47:47)*FY37 -> 8.915684376 | FZ44: =LOOKUP(FZ39,Assumptions!45:45,Assumptions!47:47)*FZ37 -> 8.915684376 | GA44: =LOOKUP(GA39,Assumptions!45:45,Assumptions!47:47)*GA37 -> 8.915684376 | GB44: =LOOKUP(GB39,Assumptions!45:45,Assumptions!47:47)*GB37 -> 8.915684376 | GC44: =LOOKUP(GC39,Assumptions!45:45,Assumptions!47:47)*GC37 -> 8.915684376 | GD44: =LOOKUP(GD39,Assumptions!45:45,Assumptions!47:47)*GD37 -> 8.915684376 | GE44: =LOOKUP(GE39,Assumptions!45:45,Assumptions!47:47)*GE37 -> 8.915684376 | GF44: =LOOKUP(GF39,Assumptions!45:45,Assumptions!47:47)*GF37 -> 8.915684376 | GG44: =LOOKUP(GG39,Assumptions!45:45,Assumptions!47:47)*GG37 -> 8.915684376 | GH44: =LOOKUP(GH39,Assumptions!45:45,Assumptions!47:47)*GH37 -> 8.915684376 | GI44: =LOOKUP(GI39,Assumptions!45:45,Assumptions!47:47)*GI37 -> 8.915684376 | GJ44: =LOOKUP(GJ39,Assumptions!45:45,Assumptions!47:47)*GJ37 -> 8.915684376 | GK44: =LOOKUP(GK39,Assumptions!45:45,Assumptions!47:47)*GK37 -> 8.915684376 | GL44: =LOOKUP(GL39,Assumptions!45:45,Assumptions!47:47)*GL37 -> 8.915684376 | GM44: =LOOKUP(GM39,Assumptions!45:45,Assumptions!47:47)*GM37 -> 8.915684376 | GN44: =LOOKUP(GN39,Assumptions!45:45,Assumptions!47:47)*GN37 -> 8.915684376 | GO44: =LOOKUP(GO39,Assumptions!45:45,Assumptions!47:47)*GO37 -> 8.915684376 | GP44: =LOOKUP(GP39,Assumptions!45:45,Assumptions!47:47)*GP37 -> 8.915684376 | GQ44: =LOOKUP(GQ39,Assumptions!45:45,Assumptions!47:47)*GQ37 -> 8.915684376 | GR44: =LOOKUP(GR39,Assumptions!45:45,Assumptions!47:47)*GR37 -> 8.915684376 | GS44: =LOOKUP(GS39,Assumptions!45:45,Assumptions!47:47)*GS37 -> 8.915684376 | GT44: =LOOKUP(GT39,Assumptions!45:45,Assumptions!47:47)*GT37 -> 8.915684376 | GU44: =LOOKUP(GU39,Assumptions!45:45,Assumptions!47:47)*GU37 -> 8.915684376 | GV44: =LOOKUP(GV39,Assumptions!45:45,Assumptions!47:47)*GV37 -> 8.915684376 | GW44: =LOOKUP(GW39,Assumptions!45:45,Assumptions!47:47)*GW37 -> 8.915684376 | GX44: =LOOKUP(GX39,Assumptions!45:45,Assumptions!47:47)*GX37 -> 8.915684376 | GY44: =LOOKUP(GY39,Assumptions!45:45,Assumptions!47:47)*GY37 -> 8.915684376 | GZ44: =LOOKUP(GZ39,Assumptions!45:45,Assumptions!47:47)*GZ37 -> 8.915684376 | HA44: =LOOKUP(HA39,Assumptions!45:45,Assumptions!47:47)*HA37 -> 8.915684376
B45: Generation | E45: MWH | J45: =J16 -> 0 | K45: =K16 -> 0 | L45: 0 | M45: 0 | N45: 0 | O45: 0 | P45: 0 | Q45: 0 | R45: 0 | S45: 0 | T45: 0 | U45: 0 | V45: 0 | W45: 0 | X45: 0 | Y45: 0 | Z45: 0 | AA45: 0 | AB45: 0 | AC45: 0 | AD45: 0 | AE45: 0 | AF45: 0 | AG45: 0 | AH45: 0 | AI45: 0 | AJ45: 0 | AK45: 0 | AL45: 0 | AM45: 0 | AN45: 0 | AO45: 0 | AP45: 0 | AQ45: 0 | AR45: 0 | AS45: 430560 | AT45: 430560 | AU45: 425880 | AV45: 425880 | AW45: 430560 | AX45: 430560 | AY45: 425880 | AZ45: 421200 | BA45: 463680 | BB45: 463680 | BC45: 458640 | BD45: 453600 | BE45: 463680 | BF45: 463680 | BG45: 458640 | BH45: 453600 | BI45: 370944 | BJ45: 370944 | BK45: 366912 | BL45: 366912 | BM45: 370944 | BN45: 370944 | BO45: 366912 | BP45: 362880 | BQ45: 370944 | BR45: 370944 | BS45: 366912 | BT45: 362880 | BU45: 370944 | BV45: 370944 | BW45: =BW16 -> 366912 | BX45: 362880 | BY45: 370944 | BZ45: 370944 | CA45: 366912 | CB45: 366912 | CC45: 370944 | CD45: 370944 | CE45: 366912 | CF45: 362880 | CG45: 370944 | CH45: 370944 | CI45: 366912 | CJ45: 362880 | CK45: 370944 | CL45: 370944 | CM45: 366912 | CN45: 362880 | CO45: 370944 | CP45: 370944 | CQ45: 366912 | CR45: 366912 | CS45: 370944 | CT45: 370944 | CU45: 366912 | CV45: 362880 | CW45: 370944 | CX45: 370944 | CY45: 366912 | CZ45: 362880 | DA45: 370944 | DB45: 370944 | DC45: 366912 | DD45: 362880 | DE45: 370944 | DF45: 370944 | DG45: 366912 | DH45: 366912 | DI45: 370944 | DJ45: 370944 | DK45: 366912 | DL45: 362880 | DM45: 370944 | DN45: 370944 | DO45: 366912 | DP45: 362880 | DQ45: 370944 | DR45: 370944 | DS45: 366912 | DT45: 362880 | DU45: 0 | DV45: 0 | DW45: 0 | DX45: 0 | DY45: 0 | DZ45: 0 | EA45: 0 | EB45: 0 | EC45: 0 | ED45: 0 | EE45: 0 | EF45: 0 | EG45: 0 | EH45: 0 | EI45: =EI16 -> 0 | EJ45: 0 | EK45: 0 | EL45: 0 | EM45: 0 | EN45: 0 | EO45: 0 | EP45: 0 | EQ45: 0 | ER45: 0 | ES45: 0 | ET45: 0 | EU45: 0 | EV45: 0 | EW45: 0 | EX45: 0 | EY45: 0 | EZ45: 0 | FA45: 0 | FB45: 0 | FC45: 0 | FD45: 0 | FE45: 0 | FF45: 0 | FG45: 0 | FH45: 0 | FI45: 0 | FJ45: 0 | FK45: 0 | FL45: 0 | FM45: 0 | FN45: 0 | FO45: 0 | FP45: 0 | FQ45: 0 | FR45: 0 | FS45: 0 | FT45: 0 | FU45: 0 | FV45: 0 | FW45: 0 | FX45: 0 | FY45: 0 | FZ45: 0 | GA45: 0 | GB45: 0 | GC45: 0 | GD45: 0 | GE45: 0 | GF45: 0 | GG45: 0 | GH45: 0 | GI45: 0 | GJ45: 0 | GK45: 0 | GL45: 0 | GM45: 0 | GN45: 0 | GO45: 0 | GP45: 0 | GQ45: 0 | GR45: 0 | GS45: 0 | GT45: 0 | GU45: =GU16 -> 0 | GV45: 0 | GW45: 0 | GX45: 0 | GY45: 0 | GZ45: 0 | HA45: 0
B46: Variable O&M Cost | E46: USD ("000") | J46: =J45*J44/1000 -> 0 | K46: =K45*K44/1000 -> 0 | L46: 0 | M46: 0 | N46: 0 | O46: 0 | P46: 0 | Q46: 0 | R46: 0 | S46: 0 | T46: 0 | U46: 0 | V46: 0 | W46: 0 | X46: 0 | Y46: 0 | Z46: 0 | AA46: 0 | AB46: 0 | AC46: 0 | AD46: 0 | AE46: 0 | AF46: 0 | AG46: 0 | AH46: 0 | AI46: 0 | AJ46: 0 | AK46: 0 | AL46: 0 | AM46: 0 | AN46: 0 | AO46: 0 | AP46: 0 | AQ46: 0 | AR46: 0 | AS46: 2163.484199 | AT46: 2174.221423 | AU46: 2161.261806 | AV46: 2171.988 | AW46: 2206.753883 | AX46: 2217.705852 | AY46: 2204.487042 | AZ46: 2410.19064 | BA46: 2666.437692 | BB46: 2679.67104 | BC46: 2663.69865 | BD46: 2647.501718 | BE46: 2719.766446 | BF46: 2733.264461 | BG46: 2716.972623 | BH46: 2700.451753 | BI46: 2219.32942 | BJ46: 2230.3438 | BK46: 2217.04966 | BL46: 2228.052726 | BM46: 2263.716008 | BN46: 2274.950676 | BO46: 2261.390654 | BP46: 2247.640003 | BQ46: 2308.990328 | BR46: 2320.449689 | BS46: 2306.618467 | BT46: 2501.01033 | BU46: 2569.276511 | BV46: 2582.027654 | BW46: =BW45*BW44/1000 -> 2566.637276 | BX46: 2551.030537 | BY46: 2620.662041 | BZ46: 2633.668207 | CA46: 2617.970021 | CB46: 2630.962827 | CC46: 2673.075282 | CD46: 2686.341572 | CE46: 2670.329422 | CF46: 2654.092171 | CG46: 2726.536787 | CH46: 2740.068403 | CI46: 2723.73601 | CJ46: 2707.174014 | CK46: 2781.067523 | CL46: 2794.869771 | CM46: 2778.21073 | CN46: 2761.317494 | CO46: 2836.688874 | CP46: 2850.767166 | CQ46: 2833.774945 | CR46: 2847.838776 | CS46: 2893.422651 | CT46: 2907.78251 | CU46: 2890.450444 | CV46: 2872.874721 | CW46: 2951.291104 | CX46: 2965.93816 | CY46: 2948.259453 | CZ46: 2930.332216 | DA46: 3010.316926 | DB46: 3025.256923 | DC46: 3007.224642 | DD46: 2988.93886 | DE46: 3070.523265 | DF46: 3085.762062 | DG46: 3067.369134 | DH46: 3082.592278 | DI46: 3131.93373 | DJ46: 3147.477303 | DK46: 3128.716517 | DL46: 3109.69199 | DM46: 3194.572405 | DN46: 3210.426849 | DO46: 3191.290848 | DP46: 3171.88583 | DQ46: 3258.463853 | DR46: 3274.635386 | DS46: 3255.116664 | DT46: 3235.323546 | DU46: 0 | DV46: 0 | DW46: 0 | DX46: 0 | DY46: 0 | DZ46: 0 | EA46: 0 | EB46: 0 | EC46: 0 | ED46: 0 | EE46: 0 | EF46: 0 | EG46: 0 | EH46: 0 | EI46: =EI45*EI44/1000 -> 0 | EJ46: 0 | EK46: 0 | EL46: 0 | EM46: 0 | EN46: 0 | EO46: 0 | EP46: 0 | EQ46: 0 | ER46: 0 | ES46: 0 | ET46: 0 | EU46: 0 | EV46: 0 | EW46: 0 | EX46: 0 | EY46: 0 | EZ46: 0 | FA46: 0 | FB46: 0 | FC46: 0 | FD46: 0 | FE46: 0 | FF46: 0 | FG46: 0 | FH46: 0 | FI46: 0 | FJ46: 0 | FK46: 0 | FL46: 0 | FM46: 0 | FN46: 0 | FO46: 0 | FP46: 0 | FQ46: 0 | FR46: 0 | FS46: 0 | FT46: 0 | FU46: 0 | FV46: 0 | FW46: 0 | FX46: 0 | FY46: 0 | FZ46: 0 | GA46: 0 | GB46: 0 | GC46: 0 | GD46: 0 | GE46: 0 | GF46: 0 | GG46: 0 | GH46: 0 | GI46: 0 | GJ46: 0 | GK46: 0 | GL46: 0 | GM46: 0 | GN46: 0 | GO46: 0 | GP46: 0 | GQ46: 0 | GR46: 0 | GS46: 0 | GT46: 0 | GU46: =GU45*GU44/1000 -> 0 | GV46: 0 | GW46: 0 | GX46: 0 | GY46: 0 | GZ46: 0 | HA46: 0
B48: Fixed O&M Per unit | E48: USD / KW year | G48: =Assumptions!E48 -> 7 | J48: =$G$48*J37 -> 7 | K48: =$G$48*K37 -> 7 | L48: =$G$48*L37 -> 7 | M48: =$G$48*M37 -> 7 | N48: =$G$48*N37 -> 7 | O48: =$G$48*O37 -> 7 | P48: =$G$48*P37 -> 7 | Q48: =$G$48*Q37 -> 7 | R48: =$G$48*R37 -> 7 | S48: =$G$48*S37 -> 7 | T48: =$G$48*T37 -> 7 | U48: =$G$48*U37 -> 7 | V48: =$G$48*V37 -> 7 | W48: =$G$48*W37 -> 7 | X48: =$G$48*X37 -> 7 | Y48: =$G$48*Y37 -> 7 | Z48: =$G$48*Z37 -> 7 | AA48: =$G$48*AA37 -> 7 | AB48: =$G$48*AB37 -> 7 | AC48: =$G$48*AC37 -> 7 | AD48: =$G$48*AD37 -> 7 | AE48: =$G$48*AE37 -> 7 | AF48: =$G$48*AF37 -> 7 | AG48: =$G$48*AG37 -> 7 | AH48: =$G$48*AH37 -> 7 | AI48: =$G$48*AI37 -> 7 | AJ48: =$G$48*AJ37 -> 7 | AK48: =$G$48*AK37 -> 7 | AL48: =$G$48*AL37 -> 7 | AM48: =$G$48*AM37 -> 7 | AN48: =$G$48*AN37 -> 7 | AO48: =$G$48*AO37 -> 7 | AP48: =$G$48*AP37 -> 7 | AQ48: =$G$48*AQ37 -> 7 | AR48: =$G$48*AR37 -> 7 | AS48: =$G$48*AS37 -> 7.034740521 | AT48: =$G$48*AT37 -> 7.069653457 | AU48: =$G$48*AU37 -> 7.104739663 | AV48: =$G$48*AV37 -> 7.14 | AW48: =$G$48*AW37 -> 7.175435331 | AX48: =$G$48*AX37 -> 7.211046526 | AY48: =$G$48*AY37 -> 7.246834456 | AZ48: =$G$48*AZ37 -> 7.2828 | BA48: =$G$48*BA37 -> 7.318944038 | BB48: =$G$48*BB37 -> 7.355267457 | BC48: =$G$48*BC37 -> 7.391771146 | BD48: =$G$48*BD37 -> 7.428456 | BE48: =$G$48*BE37 -> 7.465322919 | BF48: =$G$48*BF37 -> 7.502372806 | BG48: =$G$48*BG37 -> 7.539606569 | BH48: =$G$48*BH37 -> 7.57702512 | BI48: =$G$48*BI37 -> 7.614629377 | BJ48: =$G$48*BJ37 -> 7.652420262 | BK48: =$G$48*BK37 -> 7.6903987 | BL48: =$G$48*BL37 -> 7.728565622 | BM48: =$G$48*BM37 -> 7.766921965 | BN48: =$G$48*BN37 -> 7.805468667 | BO48: =$G$48*BO37 -> 7.844206674 | BP48: =$G$48*BP37 -> 7.883136935 | BQ48: =$G$48*BQ37 -> 7.922260404 | BR48: =$G$48*BR37 -> 7.96157804 | BS48: =$G$48*BS37 -> 8.001090807 | BT48: =$G$48*BT37 -> 8.040799674 | BU48: =$G$48*BU37 -> 8.080705612 | BV48: =$G$48*BV37 -> 8.120809601 | BW48: =$G$48*BW37 -> 8.161112624 | BX48: =$G$48*BX37 -> 8.201615667 | BY48: =$G$48*BY37 -> 8.242319724 | BZ48: =$G$48*BZ37 -> 8.283225793 | CA48: =$G$48*CA37 -> 8.324334876 | CB48: =$G$48*CB37 -> 8.36564798 | CC48: =$G$48*CC37 -> 8.407166119 | CD48: =$G$48*CD37 -> 8.448890309 | CE48: =$G$48*CE37 -> 8.490821573 | CF48: =$G$48*CF37 -> 8.53296094 | CG48: =$G$48*CG37 -> 8.575309441 | CH48: =$G$48*CH37 -> 8.617868115 | CI48: =$G$48*CI37 -> 8.660638005 | CJ48: =$G$48*CJ37 -> 8.703620159 | CK48: =$G$48*CK37 -> 8.74681563 | CL48: =$G$48*CL37 -> 8.790225478 | CM48: =$G$48*CM37 -> 8.833850765 | CN48: =$G$48*CN37 -> 8.877692562 | CO48: =$G$48*CO37 -> 8.921751943 | CP48: =$G$48*CP37 -> 8.966029987 | CQ48: =$G$48*CQ37 -> 9.01052778 | CR48: =$G$48*CR37 -> 9.055246413 | CS48: =$G$48*CS37 -> 9.100186982 | CT48: =$G$48*CT37 -> 9.145350587 | CU48: =$G$48*CU37 -> 9.190738336 | CV48: =$G$48*CV37 -> 9.236351341 | CW48: =$G$48*CW37 -> 9.282190721 | CX48: =$G$48*CX37 -> 9.328257599 | CY48: =$G$48*CY37 -> 9.374553103 | CZ48: =$G$48*CZ37 -> 9.421078368 | DA48: =$G$48*DA37 -> 9.467834536 | DB48: =$G$48*DB37 -> 9.514822751 | DC48: =$G$48*DC37 -> 9.562044165 | DD48: =$G$48*DD37 -> 9.609499936 | DE48: =$G$48*DE37 -> 9.657191226 | DF48: =$G$48*DF37 -> 9.705119206 | DG48: =$G$48*DG37 -> 9.753285048 | DH48: =$G$48*DH37 -> 9.801689934 | DI48: =$G$48*DI37 -> 9.850335051 | DJ48: =$G$48*DJ37 -> 9.89922159 | DK48: =$G$48*DK37 -> 9.948350749 | DL48: =$G$48*DL37 -> 9.997723733 | DM48: =$G$48*DM37 -> 10.04734175 | DN48: =$G$48*DN37 -> 10.09720602 | DO48: =$G$48*DO37 -> 10.14731776 | DP48: =$G$48*DP37 -> 10.19767821 | DQ48: =$G$48*DQ37 -> 10.24828859 | DR48: =$G$48*DR37 -> 10.29915014 | DS48: =$G$48*DS37 -> 10.35026412 | DT48: =$G$48*DT37 -> 10.40163177 | DU48: =$G$48*DU37 -> 10.40163177 | DV48: =$G$48*DV37 -> 10.40163177 | DW48: =$G$48*DW37 -> 10.40163177 | DX48: =$G$48*DX37 -> 10.40163177 | DY48: =$G$48*DY37 -> 10.40163177 | DZ48: =$G$48*DZ37 -> 10.40163177 | EA48: =$G$48*EA37 -> 10.40163177 | EB48: =$G$48*EB37 -> 10.40163177 | EC48: =$G$48*EC37 -> 10.40163177 | ED48: =$G$48*ED37 -> 10.40163177 | EE48: =$G$48*EE37 -> 10.40163177 | EF48: =$G$48*EF37 -> 10.40163177 | EG48: =$G$48*EG37 -> 10.40163177 | EH48: =$G$48*EH37 -> 10.40163177 | EI48: =$G$48*EI37 -> 10.40163177 | EJ48: =$G$48*EJ37 -> 10.40163177 | EK48: =$G$48*EK37 -> 10.40163177 | EL48: =$G$48*EL37 -> 10.40163177 | EM48: =$G$48*EM37 -> 10.40163177 | EN48: =$G$48*EN37 -> 10.40163177 | EO48: =$G$48*EO37 -> 10.40163177 | EP48: =$G$48*EP37 -> 10.40163177 | EQ48: =$G$48*EQ37 -> 10.40163177 | ER48: =$G$48*ER37 -> 10.40163177 | ES48: =$G$48*ES37 -> 10.40163177 | ET48: =$G$48*ET37 -> 10.40163177 | EU48: =$G$48*EU37 -> 10.40163177 | EV48: =$G$48*EV37 -> 10.40163177 | EW48: =$G$48*EW37 -> 10.40163177 | EX48: =$G$48*EX37 -> 10.40163177 | EY48: =$G$48*EY37 -> 10.40163177 | EZ48: =$G$48*EZ37 -> 10.40163177 | FA48: =$G$48*FA37 -> 10.40163177 | FB48: =$G$48*FB37 -> 10.40163177 | FC48: =$G$48*FC37 -> 10.40163177 | FD48: =$G$48*FD37 -> 10.40163177 | FE48: =$G$48*FE37 -> 10.40163177 | FF48: =$G$48*FF37 -> 10.40163177 | FG48: =$G$48*FG37 -> 10.40163177 | FH48: =$G$48*FH37 -> 10.40163177 | FI48: =$G$48*FI37 -> 10.40163177 | FJ48: =$G$48*FJ37 -> 10.40163177 | FK48: =$G$48*FK37 -> 10.40163177 | FL48: =$G$48*FL37 -> 10.40163177 | FM48: =$G$48*FM37 -> 10.40163177 | FN48: =$G$48*FN37 -> 10.40163177 | FO48: =$G$48*FO37 -> 10.40163177 | FP48: =$G$48*FP37 -> 10.40163177 | FQ48: =$G$48*FQ37 -> 10.40163177 | FR48: =$G$48*FR37 -> 10.40163177 | FS48: =$G$48*FS37 -> 10.40163177 | FT48: =$G$48*FT37 -> 10.40163177 | FU48: =$G$48*FU37 -> 10.40163177 | FV48: =$G$48*FV37 -> 10.40163177 | FW48: =$G$48*FW37 -> 10.40163177 | FX48: =$G$48*FX37 -> 10.40163177 | FY48: =$G$48*FY37 -> 10.40163177 | FZ48: =$G$48*FZ37 -> 10.40163177 | GA48: =$G$48*GA37 -> 10.40163177 | GB48: =$G$48*GB37 -> 10.40163177 | GC48: =$G$48*GC37 -> 10.40163177 | GD48: =$G$48*GD37 -> 10.40163177 | GE48: =$G$48*GE37 -> 10.40163177 | GF48: =$G$48*GF37 -> 10.40163177 | GG48: =$G$48*GG37 -> 10.40163177 | GH48: =$G$48*GH37 -> 10.40163177 | GI48: =$G$48*GI37 -> 10.40163177 | GJ48: =$G$48*GJ37 -> 10.40163177 | GK48: =$G$48*GK37 -> 10.40163177 | GL48: =$G$48*GL37 -> 10.40163177 | GM48: =$G$48*GM37 -> 10.40163177 | GN48: =$G$48*GN37 -> 10.40163177 | GO48: =$G$48*GO37 -> 10.40163177 | GP48: =$G$48*GP37 -> 10.40163177 | GQ48: =$G$48*GQ37 -> 10.40163177 | GR48: =$G$48*GR37 -> 10.40163177 | GS48: =$G$48*GS37 -> 10.40163177 | GT48: =$G$48*GT37 -> 10.40163177 | GU48: =$G$48*GU37 -> 10.40163177 | GV48: =$G$48*GV37 -> 10.40163177 | GW48: =$G$48*GW37 -> 10.40163177 | GX48: =$G$48*GX37 -> 10.40163177 | GY48: =$G$48*GY37 -> 10.40163177 | GZ48: =$G$48*GZ37 -> 10.40163177 | HA48: =$G$48*HA37 -> 10.40163177
B49: Capacity | E49: MW / Year | J49: =J13 -> 0 | K49: =K13 -> 0 | L49: 0 | M49: 0 | N49: 0 | O49: 0 | P49: 0 | Q49: 0 | R49: 0 | S49: 0 | T49: 0 | U49: 0 | V49: 0 | W49: 0 | X49: 0 | Y49: 0 | Z49: 0 | AA49: 0 | AB49: 0 | AC49: 0 | AD49: 0 | AE49: 0 | AF49: 0 | AG49: 0 | AH49: 0 | AI49: 0 | AJ49: 0 | AK49: 0 | AL49: 0 | AM49: 0 | AN49: 0 | AO49: 0 | AP49: 0 | AQ49: 0 | AR49: 0 | AS49: 300 | AT49: 300 | AU49: 300 | AV49: 300 | AW49: 300 | AX49: 300 | AY49: 300 | AZ49: 300 | BA49: 300 | BB49: 300 | BC49: 300 | BD49: 300 | BE49: 300 | BF49: 300 | BG49: 300 | BH49: 300 | BI49: 300 | BJ49: 300 | BK49: 300 | BL49: 300 | BM49: 300 | BN49: 300 | BO49: 300 | BP49: 300 | BQ49: 300 | BR49: 300 | BS49: 300 | BT49: 300 | BU49: 300 | BV49: 300 | BW49: =BW13 -> 300 | BX49: 300 | BY49: 300 | BZ49: 300 | CA49: 300 | CB49: 300 | CC49: 300 | CD49: 300 | CE49: 300 | CF49: 300 | CG49: 300 | CH49: 300 | CI49: 300 | CJ49: 300 | CK49: 300 | CL49: 300 | CM49: 300 | CN49: 300 | CO49: 300 | CP49: 300 | CQ49: 300 | CR49: 300 | CS49: 300 | CT49: 300 | CU49: 300 | CV49: 300 | CW49: 300 | CX49: 300 | CY49: 300 | CZ49: 300 | DA49: 300 | DB49: 300 | DC49: 300 | DD49: 300 | DE49: 300 | DF49: 300 | DG49: 300 | DH49: 300 | DI49: 300 | DJ49: 300 | DK49: 300 | DL49: 300 | DM49: 300 | DN49: 300 | DO49: 300 | DP49: 300 | DQ49: 300 | DR49: 300 | DS49: 300 | DT49: 300 | DU49: 0 | DV49: 0 | DW49: 0 | DX49: 0 | DY49: 0 | DZ49: 0 | EA49: 0 | EB49: 0 | EC49: 0 | ED49: 0 | EE49: 0 | EF49: 0 | EG49: 0 | EH49: 0 | EI49: =EI13 -> 0 | EJ49: 0 | EK49: 0 | EL49: 0 | EM49: 0 | EN49: 0 | EO49: 0 | EP49: 0 | EQ49: 0 | ER49: 0 | ES49: 0 | ET49: 0 | EU49: 0 | EV49: 0 | EW49: 0 | EX49: 0 | EY49: 0 | EZ49: 0 | FA49: 0 | FB49: 0 | FC49: 0 | FD49: 0 | FE49: 0 | FF49: 0 | FG49: 0 | FH49: 0 | FI49: 0 | FJ49: 0 | FK49: 0 | FL49: 0 | FM49: 0 | FN49: 0 | FO49: 0 | FP49: 0 | FQ49: 0 | FR49: 0 | FS49: 0 | FT49: 0 | FU49: 0 | FV49: 0 | FW49: 0 | FX49: 0 | FY49: 0 | FZ49: 0 | GA49: 0 | GB49: 0 | GC49: 0 | GD49: 0 | GE49: 0 | GF49: 0 | GG49: 0 | GH49: 0 | GI49: 0 | GJ49: 0 | GK49: 0 | GL49: 0 | GM49: 0 | GN49: 0 | GO49: 0 | GP49: 0 | GQ49: 0 | GR49: 0 | GS49: 0 | GT49: 0 | GU49: =GU13 -> 0 | GV49: 0 | GW49: 0 | GX49: 0 | GY49: 0 | GZ49: 0 | HA49: 0
B50: Fixed O&M | E50: USD ("000") | J50: =J48*J49*J4/12 -> 0 | K50: 0 | L50: 0 | M50: 0 | N50: 0 | O50: 0 | P50: 0 | Q50: 0 | R50: 0 | S50: 0 | T50: 0 | U50: 0 | V50: 0 | W50: 0 | X50: 0 | Y50: 0 | Z50: 0 | AA50: 0 | AB50: 0 | AC50: 0 | AD50: 0 | AE50: 0 | AF50: 0 | AG50: 0 | AH50: 0 | AI50: 0 | AJ50: 0 | AK50: 0 | AL50: 0 | AM50: 0 | AN50: 0 | AO50: 0 | AP50: =AP48*AP49*AP4/12 -> 0 | AQ50: 0 | AR50: 0 | AS50: 527.6055391 | AT50: 530.2240093 | AU50: 532.8554747 | AV50: 535.5 | AW50: 538.1576499 | AX50: 540.8284894 | AY50: 543.5125842 | AZ50: 546.21 | BA50: 548.9208029 | BB50: 551.6450592 | BC50: 554.3828359 | BD50: 557.1342 | BE50: 559.8992189 | BF50: 562.6779604 | BG50: 565.4704926 | BH50: 568.276884 | BI50: 571.0972033 | BJ50: 573.9315196 | BK50: 576.7799025 | BL50: 579.6424217 | BM50: 582.5191474 | BN50: 585.41015 | BO50: 588.3155005 | BP50: 591.2352701 | BQ50: 594.1695303 | BR50: 597.118353 | BS50: 600.0818106 | BT50: 603.0599755 | BU50: 606.0529209 | BV50: =BV48*BV49*BV4/12 -> 609.0607201 | BW50: 612.0834468 | BX50: 615.121175 | BY50: 618.1739793 | BZ50: 621.2419345 | CA50: 624.3251157 | CB50: 627.4235985 | CC50: 630.5374589 | CD50: 633.6667732 | CE50: 636.811618 | CF50: 639.9720705 | CG50: 643.1482081 | CH50: 646.3401086 | CI50: 649.5478504 | CJ50: 652.7715119 | CK50: 656.0111723 | CL50: 659.2669108 | CM50: 662.5388074 | CN50: 665.8269421 | CO50: 669.1313957 | CP50: 672.452249 | CQ50: 675.7895835 | CR50: 679.143481 | CS50: 682.5140236 | CT50: 685.901294 | CU50: 689.3053752 | CV50: 692.7263506 | CW50: 696.1643041 | CX50: 699.6193199 | CY50: 703.0914827 | CZ50: 706.5808776 | DA50: 710.0875902 | DB50: =DB48*DB49*DB4/12 -> 713.6117063 | DC50: 717.1533124 | DD50: 720.7124952 | DE50: 724.289342 | DF50: 727.8839404 | DG50: 731.4963786 | DH50: 735.1267451 | DI50: 738.7751288 | DJ50: 742.4416192 | DK50: 746.1263062 | DL50: 749.82928 | DM50: 753.5506314 | DN50: 757.2904516 | DO50: 761.0488323 | DP50: 764.8258656 | DQ50: 768.621644 | DR50: 772.4362606 | DS50: 776.2698089 | DT50: 780.1223829 | DU50: 0 | DV50: 0 | DW50: 0 | DX50: 0 | DY50: 0 | DZ50: 0 | EA50: 0 | EB50: 0 | EC50: 0 | ED50: 0 | EE50: 0 | EF50: 0 | EG50: 0 | EH50: =EH48*EH49*EH4/12 -> 0 | EI50: 0 | EJ50: 0 | EK50: 0 | EL50: 0 | EM50: 0 | EN50: 0 | EO50: 0 | EP50: 0 | EQ50: 0 | ER50: 0 | ES50: 0 | ET50: 0 | EU50: 0 | EV50: 0 | EW50: 0 | EX50: 0 | EY50: 0 | EZ50: 0 | FA50: 0 | FB50: 0 | FC50: 0 | FD50: 0 | FE50: 0 | FF50: 0 | FG50: 0 | FH50: 0 | FI50: 0 | FJ50: 0 | FK50: 0 | FL50: 0 | FM50: 0 | FN50: =FN48*FN49*FN4/12 -> 0 | FO50: 0 | FP50: 0 | FQ50: 0 | FR50: 0 | FS50: 0 | FT50: 0 | FU50: 0 | FV50: 0 | FW50: 0 | FX50: 0 | FY50: 0 | FZ50: 0 | GA50: 0 | GB50: 0 | GC50: 0 | GD50: 0 | GE50: 0 | GF50: 0 | GG50: 0 | GH50: 0 | GI50: 0 | GJ50: 0 | GK50: 0 | GL50: 0 | GM50: 0 | GN50: 0 | GO50: 0 | GP50: 0 | GQ50: 0 | GR50: 0 | GS50: 0 | GT50: =GT48*GT49*GT4/12 -> 0 | GU50: 0 | GV50: 0 | GW50: 0 | GX50: 0 | GY50: 0 | GZ50: 0 | HA50: 0
C52: Total Operating Cost | E52: USD ('000s) | J52: =J50+J46+J42 -> 0 | K52: =K50+K46+K42 -> 0 | L52: 0 | M52: 0 | N52: 0 | O52: 0 | P52: 0 | Q52: 0 | R52: 0 | S52: 0 | T52: 0 | U52: 0 | V52: 0 | W52: 0 | X52: 0 | Y52: 0 | Z52: 0 | AA52: 0 | AB52: 0 | AC52: 0 | AD52: 0 | AE52: 0 | AF52: 0 | AG52: 0 | AH52: 0 | AI52: 0 | AJ52: 0 | AK52: 0 | AL52: 0 | AM52: 0 | AN52: 0 | AO52: 0 | AP52: 0 | AQ52: 0 | AR52: 0 | AS52: 9687.689738 | AT52: 9701.045432 | AU52: 9614.66728 | AV52: 9628.038 | AW52: 9741.511533 | AX52: 9755.134341 | AY52: 9668.549626 | AZ52: 10622.24064 | BA52: 11654.33449 | BB52: 11670.2921 | BC52: 11565.32949 | BD52: 11460.15592 | BE52: 11718.64166 | BF52: 11734.91842 | BG52: 11629.69112 | BH52: 11524.24864 | BI52: 9541.607423 | BJ52: 9555.456119 | BK52: 9471.627963 | BL52: 9485.493548 | BM52: 9597.415956 | BN52: 9611.541626 | BO52: 9527.504554 | BP52: 9443.291273 | BQ52: 9654.340659 | BR52: 9668.748842 | BS52: 9584.498677 | BT52: 10180.23031 | BU52: 10408.73743 | BV52: 10424.49637 | BW52: =BW50+BW46+BW42 -> 10333.50472 | BX52: 10242.31171 | BY52: 10472.24402 | BZ52: 10488.31814 | CA52: 10397.07914 | CB52: 10413.17043 | CC52: 10537.02074 | CD52: 10553.41634 | CE52: 10461.92504 | CF52: 10370.22424 | CG52: 10603.093 | CH52: 10619.81651 | CI52: 10528.06786 | CJ52: 10436.10553 | CK52: 10670.4867 | CL52: 10687.54468 | CM52: 10595.53354 | CN52: 10503.30444 | CO52: 10739.22827 | CP52: 10756.62742 | CQ52: 10664.34853 | CR52: 10681.76626 | CS52: 10809.34467 | CT52: 10827.0918 | CU52: 10734.53982 | CV52: 10641.76107 | CW52: 10880.86341 | CX52: 10898.96548 | CY52: 10806.13494 | CZ52: 10713.07309 | DA52: 10953.81252 | DB52: 10972.27663 | DC52: 10879.16195 | DD52: 10785.81136 | DE52: 11028.22061 | DF52: 11047.054 | DG52: 10953.64951 | DH52: 10972.50302 | DI52: 11104.11686 | DJ52: 11123.32692 | DK52: 11029.62682 | DL52: 10935.68127 | DM52: 11181.53104 | DN52: 11201.1253 | DO52: 11107.12368 | DP52: 11012.8717 | DQ52: 11260.4935 | DR52: 11280.47965 | DS52: 11186.17047 | DT52: 11091.60593 | DU52: 0 | DV52: 0 | DW52: 0 | DX52: 0 | DY52: 0 | DZ52: 0 | EA52: 0 | EB52: 0 | EC52: 0 | ED52: 0 | EE52: 0 | EF52: 0 | EG52: 0 | EH52: 0 | EI52: =EI50+EI46+EI42 -> 0 | EJ52: 0 | EK52: 0 | EL52: 0 | EM52: 0 | EN52: 0 | EO52: 0 | EP52: 0 | EQ52: 0 | ER52: 0 | ES52: 0 | ET52: 0 | EU52: 0 | EV52: 0 | EW52: 0 | EX52: 0 | EY52: 0 | EZ52: 0 | FA52: 0 | FB52: 0 | FC52: 0 | FD52: 0 | FE52: 0 | FF52: 0 | FG52: 0 | FH52: 0 | FI52: 0 | FJ52: 0 | FK52: 0 | FL52: 0 | FM52: 0 | FN52: 0 | FO52: 0 | FP52: 0 | FQ52: 0 | FR52: 0 | FS52: 0 | FT52: 0 | FU52: 0 | FV52: 0 | FW52: 0 | FX52: 0 | FY52: 0 | FZ52: 0 | GA52: 0 | GB52: 0 | GC52: 0 | GD52: 0 | GE52: 0 | GF52: 0 | GG52: 0 | GH52: 0 | GI52: 0 | GJ52: 0 | GK52: 0 | GL52: 0 | GM52: 0 | GN52: 0 | GO52: 0 | GP52: 0 | GQ52: 0 | GR52: 0 | GS52: 0 | GT52: 0 | GU52: =GU50+GU46+GU42 -> 0 | GV52: 0 | GW52: 0 | GX52: 0 | GY52: 0 | GZ52: 0 | HA52: 0
A54: PPA Revenues:
B55: Avaiable Hours | J55: =J25 -> 0 | K55: =K25 -> 0 | L55: 0 | M55: 0 | N55: 0 | O55: 0 | P55: 0 | Q55: 0 | R55: 0 | S55: 0 | T55: 0 | U55: 0 | V55: 0 | W55: 0 | X55: 0 | Y55: 0 | Z55: 0 | AA55: 0 | AB55: 0 | AC55: 0 | AD55: 0 | AE55: 0 | AF55: 0 | AG55: 0 | AH55: 0 | AI55: 0 | AJ55: 0 | AK55: 0 | AL55: 0 | AM55: 0 | AN55: 0 | AO55: 0 | AP55: 0 | AQ55: 0 | AR55: 0 | AS55: 1987.2 | AT55: 1987.2 | AU55: 1965.6 | AV55: 1965.6 | AW55: 1987.2 | AX55: 1987.2 | AY55: 1965.6 | AZ55: 1944 | BA55: 1987.2 | BB55: 1987.2 | BC55: 1965.6 | BD55: 1944 | BE55: 1987.2 | BF55: 1987.2 | BG55: 1965.6 | BH55: 1944 | BI55: 1987.2 | BJ55: 1987.2 | BK55: 1965.6 | BL55: 1965.6 | BM55: 1987.2 | BN55: 1987.2 | BO55: 1965.6 | BP55: 1944 | BQ55: 1987.2 | BR55: 1987.2 | BS55: 1965.6 | BT55: 1944 | BU55: 1987.2 | BV55: 1987.2 | BW55: =BW25 -> 1965.6 | BX55: 1944 | BY55: 1987.2 | BZ55: 1987.2 | CA55: 1965.6 | CB55: 1965.6 | CC55: 1987.2 | CD55: 1987.2 | CE55: 1965.6 | CF55: 1944 | CG55: 1987.2 | CH55: 1987.2 | CI55: 1965.6 | CJ55: 1944 | CK55: 1987.2 | CL55: 1987.2 | CM55: 1965.6 | CN55: 1944 | CO55: 1987.2 | CP55: 1987.2 | CQ55: 1965.6 | CR55: 1965.6 | CS55: 1987.2 | CT55: 1987.2 | CU55: 1965.6 | CV55: 1944 | CW55: 1987.2 | CX55: 1987.2 | CY55: 1965.6 | CZ55: 1944 | DA55: 1987.2 | DB55: 1987.2 | DC55: 1965.6 | DD55: 1944 | DE55: 1987.2 | DF55: 1987.2 | DG55: 1965.6 | DH55: 1965.6 | DI55: 1987.2 | DJ55: 1987.2 | DK55: 1965.6 | DL55: 1944 | DM55: 1987.2 | DN55: 1987.2 | DO55: 1965.6 | DP55: 1944 | DQ55: 1987.2 | DR55: 1987.2 | DS55: 1965.6 | DT55: 1944 | DU55: 1987.2 | DV55: 1987.2 | DW55: 1965.6 | DX55: 1965.6 | DY55: 1987.2 | DZ55: 1987.2 | EA55: 1965.6 | EB55: 1944 | EC55: 1987.2 | ED55: 1987.2 | EE55: 1965.6 | EF55: 1944 | EG55: 1987.2 | EH55: 1987.2 | EI55: =EI25 -> 1965.6 | EJ55: 1944 | EK55: 1987.2 | EL55: 1987.2 | EM55: 1965.6 | EN55: 1965.6 | EO55: 1987.2 | EP55: 1987.2 | EQ55: 1965.6 | ER55: 1944 | ES55: 1987.2 | ET55: 1987.2 | EU55: 1965.6 | EV55: 1944 | EW55: 1987.2 | EX55: 1987.2 | EY55: 1965.6 | EZ55: 1944 | FA55: 1987.2 | FB55: 1987.2 | FC55: 1965.6 | FD55: 1965.6 | FE55: 1987.2 | FF55: 1987.2 | FG55: 1965.6 | FH55: 1944 | FI55: 1987.2 | FJ55: 1987.2 | FK55: 1965.6 | FL55: 1944 | FM55: 1987.2 | FN55: 1987.2 | FO55: 1965.6 | FP55: 1944 | FQ55: 1987.2 | FR55: 1987.2 | FS55: 1965.6 | FT55: 1965.6 | FU55: 1987.2 | FV55: 1987.2 | FW55: 1965.6 | FX55: 1944 | FY55: 1987.2 | FZ55: 1987.2 | GA55: 1965.6 | GB55: 1944 | GC55: 1987.2 | GD55: 1987.2 | GE55: 1965.6 | GF55: 1944 | GG55: 1987.2 | GH55: 1987.2 | GI55: 1965.6 | GJ55: 1965.6 | GK55: 1987.2 | GL55: 1987.2 | GM55: 1965.6 | GN55: 1944 | GO55: 1987.2 | GP55: 1987.2 | GQ55: 1965.6 | GR55: 1944 | GS55: 1987.2 | GT55: 1987.2 | GU55: =GU25 -> 1965.6 | GV55: 1944 | GW55: 1987.2 | GX55: 1987.2 | GY55: 1965.6 | GZ55: 1965.6 | HA55: 1987.2
B56: Avaiable MWH | J56: =J55*J13 -> 0 | K56: =K55*K13 -> 0 | L56: 0 | M56: 0 | N56: 0 | O56: 0 | P56: 0 | Q56: 0 | R56: 0 | S56: 0 | T56: 0 | U56: 0 | V56: 0 | W56: 0 | X56: 0 | Y56: 0 | Z56: 0 | AA56: 0 | AB56: 0 | AC56: 0 | AD56: 0 | AE56: 0 | AF56: 0 | AG56: 0 | AH56: 0 | AI56: 0 | AJ56: 0 | AK56: 0 | AL56: 0 | AM56: 0 | AN56: 0 | AO56: 0 | AP56: 0 | AQ56: 0 | AR56: 0 | AS56: 596160 | AT56: 596160 | AU56: 589680 | AV56: 589680 | AW56: 596160 | AX56: 596160 | AY56: 589680 | AZ56: 583200 | BA56: 596160 | BB56: 596160 | BC56: 589680 | BD56: 583200 | BE56: 596160 | BF56: 596160 | BG56: 589680 | BH56: 583200 | BI56: 596160 | BJ56: 596160 | BK56: 589680 | BL56: 589680 | BM56: 596160 | BN56: 596160 | BO56: 589680 | BP56: 583200 | BQ56: 596160 | BR56: 596160 | BS56: 589680 | BT56: 583200 | BU56: 596160 | BV56: 596160 | BW56: =BW55*BW13 -> 589680 | BX56: 583200 | BY56: 596160 | BZ56: 596160 | CA56: 589680 | CB56: 589680 | CC56: 596160 | CD56: 596160 | CE56: 589680 | CF56: 583200 | CG56: 596160 | CH56: 596160 | CI56: 589680 | CJ56: 583200 | CK56: 596160 | CL56: 596160 | CM56: 589680 | CN56: 583200 | CO56: 596160 | CP56: 596160 | CQ56: 589680 | CR56: 589680 | CS56: 596160 | CT56: 596160 | CU56: 589680 | CV56: 583200 | CW56: 596160 | CX56: 596160 | CY56: 589680 | CZ56: 583200 | DA56: 596160 | DB56: 596160 | DC56: 589680 | DD56: 583200 | DE56: 596160 | DF56: 596160 | DG56: 589680 | DH56: 589680 | DI56: 596160 | DJ56: 596160 | DK56: 589680 | DL56: 583200 | DM56: 596160 | DN56: 596160 | DO56: 589680 | DP56: 583200 | DQ56: 596160 | DR56: 596160 | DS56: 589680 | DT56: 583200 | DU56: 0 | DV56: 0 | DW56: 0 | DX56: 0 | DY56: 0 | DZ56: 0 | EA56: 0 | EB56: 0 | EC56: 0 | ED56: 0 | EE56: 0 | EF56: 0 | EG56: 0 | EH56: 0 | EI56: =EI55*EI13 -> 0 | EJ56: 0 | EK56: 0 | EL56: 0 | EM56: 0 | EN56: 0 | EO56: 0 | EP56: 0 | EQ56: 0 | ER56: 0 | ES56: 0 | ET56: 0 | EU56: 0 | EV56: 0 | EW56: 0 | EX56: 0 | EY56: 0 | EZ56: 0 | FA56: 0 | FB56: 0 | FC56: 0 | FD56: 0 | FE56: 0 | FF56: 0 | FG56: 0 | FH56: 0 | FI56: 0 | FJ56: 0 | FK56: 0 | FL56: 0 | FM56: 0 | FN56: 0 | FO56: 0 | FP56: 0 | FQ56: 0 | FR56: 0 | FS56: 0 | FT56: 0 | FU56: 0 | FV56: 0 | FW56: 0 | FX56: 0 | FY56: 0 | FZ56: 0 | GA56: 0 | GB56: 0 | GC56: 0 | GD56: 0 | GE56: 0 | GF56: 0 | GG56: 0 | GH56: 0 | GI56: 0 | GJ56: 0 | GK56: 0 | GL56: 0 | GM56: 0 | GN56: 0 | GO56: 0 | GP56: 0 | GQ56: 0 | GR56: 0 | GS56: 0 | GT56: 0 | GU56: =GU55*GU13 -> 0 | GV56: 0 | GW56: 0 | GX56: 0 | GY56: 0 | GZ56: 0 | HA56: 0
C57: Capacity Revenues Before Penalty | G57: =Assumptions!E52 -> 25 | J57: =J56*$G$57/1000 -> 0 | K57: =K56*$G$57/1000 -> 0 | L57: 0 | M57: 0 | N57: 0 | O57: 0 | P57: 0 | Q57: 0 | R57: 0 | S57: 0 | T57: 0 | U57: 0 | V57: 0 | W57: 0 | X57: 0 | Y57: 0 | Z57: 0 | AA57: 0 | AB57: 0 | AC57: 0 | AD57: 0 | AE57: 0 | AF57: 0 | AG57: 0 | AH57: 0 | AI57: 0 | AJ57: 0 | AK57: 0 | AL57: 0 | AM57: 0 | AN57: 0 | AO57: 0 | AP57: 0 | AQ57: 0 | AR57: 0 | AS57: 14904 | AT57: 14904 | AU57: 14742 | AV57: 14742 | AW57: 14904 | AX57: 14904 | AY57: 14742 | AZ57: 14580 | BA57: 14904 | BB57: 14904 | BC57: 14742 | BD57: 14580 | BE57: 14904 | BF57: 14904 | BG57: 14742 | BH57: 14580 | BI57: 14904 | BJ57: 14904 | BK57: 14742 | BL57: 14742 | BM57: 14904 | BN57: 14904 | BO57: 14742 | BP57: 14580 | BQ57: 14904 | BR57: 14904 | BS57: 14742 | BT57: 14580 | BU57: 14904 | BV57: 14904 | BW57: =BW56*$G$57/1000 -> 14742 | BX57: 14580 | BY57: 14904 | BZ57: 14904 | CA57: 14742 | CB57: 14742 | CC57: 14904 | CD57: 14904 | CE57: 14742 | CF57: 14580 | CG57: 14904 | CH57: 14904 | CI57: 14742 | CJ57: 14580 | CK57: 14904 | CL57: 14904 | CM57: 14742 | CN57: 14580 | CO57: 14904 | CP57: 14904 | CQ57: 14742 | CR57: 14742 | CS57: 14904 | CT57: 14904 | CU57: 14742 | CV57: 14580 | CW57: 14904 | CX57: 14904 | CY57: 14742 | CZ57: 14580 | DA57: 14904 | DB57: 14904 | DC57: 14742 | DD57: 14580 | DE57: 14904 | DF57: 14904 | DG57: 14742 | DH57: 14742 | DI57: 14904 | DJ57: 14904 | DK57: 14742 | DL57: 14580 | DM57: 14904 | DN57: 14904 | DO57: 14742 | DP57: 14580 | DQ57: 14904 | DR57: 14904 | DS57: 14742 | DT57: 14580 | DU57: 0 | DV57: 0 | DW57: 0 | DX57: 0 | DY57: 0 | DZ57: 0 | EA57: 0 | EB57: 0 | EC57: 0 | ED57: 0 | EE57: 0 | EF57: 0 | EG57: 0 | EH57: 0 | EI57: =EI56*$G$57/1000 -> 0 | EJ57: 0 | EK57: 0 | EL57: 0 | EM57: 0 | EN57: 0 | EO57: 0 | EP57: 0 | EQ57: 0 | ER57: 0 | ES57: 0 | ET57: 0 | EU57: 0 | EV57: 0 | EW57: 0 | EX57: 0 | EY57: 0 | EZ57: 0 | FA57: 0 | FB57: 0 | FC57: 0 | FD57: 0 | FE57: 0 | FF57: 0 | FG57: 0 | FH57: 0 | FI57: 0 | FJ57: 0 | FK57: 0 | FL57: 0 | FM57: 0 | FN57: 0 | FO57: 0 | FP57: 0 | FQ57: 0 | FR57: 0 | FS57: 0 | FT57: 0 | FU57: 0 | FV57: 0 | FW57: 0 | FX57: 0 | FY57: 0 | FZ57: 0 | GA57: 0 | GB57: 0 | GC57: 0 | GD57: 0 | GE57: 0 | GF57: 0 | GG57: 0 | GH57: 0 | GI57: 0 | GJ57: 0 | GK57: 0 | GL57: 0 | GM57: 0 | GN57: 0 | GO57: 0 | GP57: 0 | GQ57: 0 | GR57: 0 | GS57: 0 | GT57: 0 | GU57: =GU56*$G$57/1000 -> 0 | GV57: 0 | GW57: 0 | GX57: 0 | GY57: 0 | GZ57: 0 | HA57: 0
B58: Capacity Penalty | J58: 0 | K58: 0 | L58: 0 | M58: 0 | N58: 0 | O58: 0 | P58: 0 | Q58: 0 | R58: 0 | S58: 0 | T58: 0 | U58: 0 | V58: 0 | W58: 0 | X58: 0 | Y58: 0 | Z58: 0 | AA58: 0 | AB58: 0 | AC58: 0 | AD58: 0 | AE58: 0 | AF58: 0 | AG58: 0 | AH58: 0 | AI58: 0 | AJ58: 0 | AK58: 0 | AL58: 0 | AM58: 0 | AN58: 0 | AO58: 0 | AP58: 0 | AQ58: 0 | AR58: 0 | AS58: 0 | AT58: 0 | AU58: 0 | AV58: 0 | AW58: 0 | AX58: 0 | AY58: 0 | AZ58: 0 | BA58: 0 | BB58: 0 | BC58: 0 | BD58: 0 | BE58: 0 | BF58: 0 | BG58: 0 | BH58: 0 | BI58: 0 | BJ58: 0 | BK58: 0 | BL58: 0 | BM58: 0 | BN58: 0 | BO58: 0 | BP58: 0 | BQ58: 0 | BR58: 0 | BS58: 0 | BT58: 0 | BU58: 0 | BV58: 0 | BW58: 0 | BX58: 0 | BY58: 0 | BZ58: 0 | CA58: 0 | CB58: 0 | CC58: 0 | CD58: 0 | CE58: 0 | CF58: 0 | CG58: 0 | CH58: 0 | CI58: 0 | CJ58: 0 | CK58: 0 | CL58: 0 | CM58: 0 | CN58: 0 | CO58: 0 | CP58: 0 | CQ58: 0 | CR58: 0 | CS58: 0 | CT58: 0 | CU58: 0 | CV58: 0 | CW58: 0 | CX58: 0 | CY58: 0 | CZ58: 0 | DA58: 0 | DB58: 0 | DC58: 0 | DD58: 0 | DE58: 0 | DF58: 0 | DG58: 0 | DH58: 0 | DI58: 0 | DJ58: 0 | DK58: 0 | DL58: 0 | DM58: 0 | DN58: 0 | DO58: 0 | DP58: 0 | DQ58: 0 | DR58: 0 | DS58: 0 | DT58: 0 | DU58: 0 | DV58: 0 | DW58: 0 | DX58: 0 | DY58: 0 | DZ58: 0 | EA58: 0 | EB58: 0 | EC58: 0 | ED58: 0 | EE58: 0 | EF58: 0 | EG58: 0 | EH58: 0 | EI58: 0 | EJ58: 0 | EK58: 0 | EL58: 0 | EM58: 0 | EN58: 0 | EO58: 0 | EP58: 0 | EQ58: 0 | ER58: 0 | ES58: 0 | ET58: 0 | EU58: 0 | EV58: 0 | EW58: 0 | EX58: 0 | EY58: 0 | EZ58: 0 | FA58: 0 | FB58: 0 | FC58: 0 | FD58: 0 | FE58: 0 | FF58: 0 | FG58: 0 | FH58: 0 | FI58: 0 | FJ58: 0 | FK58: 0 | FL58: 0 | FM58: 0 | FN58: 0 | FO58: 0 | FP58: 0 | FQ58: 0 | FR58: 0 | FS58: 0 | FT58: 0 | FU58: 0 | FV58: 0 | FW58: 0 | FX58: 0 | FY58: 0 | FZ58: 0 | GA58: 0 | GB58: 0 | GC58: 0 | GD58: 0 | GE58: 0 | GF58: 0 | GG58: 0 | GH58: 0 | GI58: 0 | GJ58: 0 | GK58: 0 | GL58: 0 | GM58: 0 | GN58: 0 | GO58: 0 | GP58: 0 | GQ58: 0 | GR58: 0 | GS58: 0 | GT58: 0 | GU58: 0 | GV58: 0 | GW58: 0 | GX58: 0 | GY58: 0 | GZ58: 0 | HA58: 0
C59: Capacity Revenues | J59: =J57*(1-J58) -> 0 | K59: =K57*(1-K58) -> 0 | L59: 0 | M59: 0 | N59: 0 | O59: 0 | P59: 0 | Q59: 0 | R59: 0 | S59: 0 | T59: 0 | U59: 0 | V59: 0 | W59: 0 | X59: 0 | Y59: 0 | Z59: 0 | AA59: 0 | AB59: 0 | AC59: 0 | AD59: 0 | AE59: 0 | AF59: 0 | AG59: 0 | AH59: 0 | AI59: 0 | AJ59: 0 | AK59: 0 | AL59: 0 | AM59: 0 | AN59: 0 | AO59: 0 | AP59: 0 | AQ59: 0 | AR59: 0 | AS59: 14904 | AT59: 14904 | AU59: 14742 | AV59: 14742 | AW59: 14904 | AX59: 14904 | AY59: 14742 | AZ59: 14580 | BA59: 14904 | BB59: 14904 | BC59: 14742 | BD59: 14580 | BE59: 14904 | BF59: 14904 | BG59: 14742 | BH59: 14580 | BI59: 14904 | BJ59: 14904 | BK59: 14742 | BL59: 14742 | BM59: 14904 | BN59: 14904 | BO59: 14742 | BP59: 14580 | BQ59: 14904 | BR59: 14904 | BS59: 14742 | BT59: 14580 | BU59: 14904 | BV59: 14904 | BW59: =BW57*(1-BW58) -> 14742 | BX59: 14580 | BY59: 14904 | BZ59: 14904 | CA59: 14742 | CB59: 14742 | CC59: 14904 | CD59: 14904 | CE59: 14742 | CF59: 14580 | CG59: 14904 | CH59: 14904 | CI59: 14742 | CJ59: 14580 | CK59: 14904 | CL59: 14904 | CM59: 14742 | CN59: 14580 | CO59: 14904 | CP59: 14904 | CQ59: 14742 | CR59: 14742 | CS59: 14904 | CT59: 14904 | CU59: 14742 | CV59: 14580 | CW59: 14904 | CX59: 14904 | CY59: 14742 | CZ59: 14580 | DA59: 14904 | DB59: 14904 | DC59: 14742 | DD59: 14580 | DE59: 14904 | DF59: 14904 | DG59: 14742 | DH59: 14742 | DI59: 14904 | DJ59: 14904 | DK59: 14742 | DL59: 14580 | DM59: 14904 | DN59: 14904 | DO59: 14742 | DP59: 14580 | DQ59: 14904 | DR59: 14904 | DS59: 14742 | DT59: 14580 | DU59: 0 | DV59: 0 | DW59: 0 | DX59: 0 | DY59: 0 | DZ59: 0 | EA59: 0 | EB59: 0 | EC59: 0 | ED59: 0 | EE59: 0 | EF59: 0 | EG59: 0 | EH59: 0 | EI59: =EI57*(1-EI58) -> 0 | EJ59: 0 | EK59: 0 | EL59: 0 | EM59: 0 | EN59: 0 | EO59: 0 | EP59: 0 | EQ59: 0 | ER59: 0 | ES59: 0 | ET59: 0 | EU59: 0 | EV59: 0 | EW59: 0 | EX59: 0 | EY59: 0 | EZ59: 0 | FA59: 0 | FB59: 0 | FC59: 0 | FD59: 0 | FE59: 0 | FF59: 0 | FG59: 0 | FH59: 0 | FI59: 0 | FJ59: 0 | FK59: 0 | FL59: 0 | FM59: 0 | FN59: 0 | FO59: 0 | FP59: 0 | FQ59: 0 | FR59: 0 | FS59: 0 | FT59: 0 | FU59: 0 | FV59: 0 | FW59: 0 | FX59: 0 | FY59: 0 | FZ59: 0 | GA59: 0 | GB59: 0 | GC59: 0 | GD59: 0 | GE59: 0 | GF59: 0 | GG59: 0 | GH59: 0 | GI59: 0 | GJ59: 0 | GK59: 0 | GL59: 0 | GM59: 0 | GN59: 0 | GO59: 0 | GP59: 0 | GQ59: 0 | GR59: 0 | GS59: 0 | GT59: 0 | GU59: =GU57*(1-GU58) -> 0 | GV59: 0 | GW59: 0 | GX59: 0 | GY59: 0 | GZ59: 0 | HA59: 0
B61: Fuel Use with Contract Heat Rate | E61: MMBTU | J61: =J22 -> 0 | K61: =K22 -> 0 | L61: 0 | M61: 0 | N61: 0 | O61: 0 | P61: 0 | Q61: 0 | R61: 0 | S61: 0 | T61: 0 | U61: 0 | V61: 0 | W61: 0 | X61: 0 | Y61: 0 | Z61: 0 | AA61: 0 | AB61: 0 | AC61: 0 | AD61: 0 | AE61: 0 | AF61: 0 | AG61: 0 | AH61: 0 | AI61: 0 | AJ61: 0 | AK61: 0 | AL61: 0 | AM61: 0 | AN61: 0 | AO61: 0 | AP61: 0 | AQ61: 0 | AR61: 0 | AS61: 2798640 | AT61: 2798640 | AU61: 2768220 | AV61: 2768220 | AW61: 2798640 | AX61: 2798640 | AY61: 2768220 | AZ61: 2737800 | BA61: 3013920 | BB61: 3013920 | BC61: 2981160 | BD61: 2948400 | BE61: 3013920 | BF61: 3013920 | BG61: 2981160 | BH61: 2948400 | BI61: 2411136 | BJ61: 2411136 | BK61: 2384928 | BL61: 2384928 | BM61: 2411136 | BN61: 2411136 | BO61: 2384928 | BP61: 2358720 | BQ61: 2411136 | BR61: 2411136 | BS61: 2384928 | BT61: 2358720 | BU61: 2411136 | BV61: 2411136 | BW61: =BW22 -> 2384928 | BX61: 2358720 | BY61: 2411136 | BZ61: 2411136 | CA61: 2384928 | CB61: 2384928 | CC61: 2411136 | CD61: 2411136 | CE61: 2384928 | CF61: 2358720 | CG61: 2411136 | CH61: 2411136 | CI61: 2384928 | CJ61: 2358720 | CK61: 2411136 | CL61: 2411136 | CM61: 2384928 | CN61: 2358720 | CO61: 2411136 | CP61: 2411136 | CQ61: 2384928 | CR61: 2384928 | CS61: 2411136 | CT61: 2411136 | CU61: 2384928 | CV61: 2358720 | CW61: 2411136 | CX61: 2411136 | CY61: 2384928 | CZ61: 2358720 | DA61: 2411136 | DB61: 2411136 | DC61: 2384928 | DD61: 2358720 | DE61: 2411136 | DF61: 2411136 | DG61: 2384928 | DH61: 2384928 | DI61: 2411136 | DJ61: 2411136 | DK61: 2384928 | DL61: 2358720 | DM61: 2411136 | DN61: 2411136 | DO61: 2384928 | DP61: 2358720 | DQ61: 2411136 | DR61: 2411136 | DS61: 2384928 | DT61: 2358720 | DU61: 0 | DV61: 0 | DW61: 0 | DX61: 0 | DY61: 0 | DZ61: 0 | EA61: 0 | EB61: 0 | EC61: 0 | ED61: 0 | EE61: 0 | EF61: 0 | EG61: 0 | EH61: 0 | EI61: =EI22 -> 0 | EJ61: 0 | EK61: 0 | EL61: 0 | EM61: 0 | EN61: 0 | EO61: 0 | EP61: 0 | EQ61: 0 | ER61: 0 | ES61: 0 | ET61: 0 | EU61: 0 | EV61: 0 | EW61: 0 | EX61: 0 | EY61: 0 | EZ61: 0 | FA61: 0 | FB61: 0 | FC61: 0 | FD61: 0 | FE61: 0 | FF61: 0 | FG61: 0 | FH61: 0 | FI61: 0 | FJ61: 0 | FK61: 0 | FL61: 0 | FM61: 0 | FN61: 0 | FO61: 0 | FP61: 0 | FQ61: 0 | FR61: 0 | FS61: 0 | FT61: 0 | FU61: 0 | FV61: 0 | FW61: 0 | FX61: 0 | FY61: 0 | FZ61: 0 | GA61: 0 | GB61: 0 | GC61: 0 | GD61: 0 | GE61: 0 | GF61: 0 | GG61: 0 | GH61: 0 | GI61: 0 | GJ61: 0 | GK61: 0 | GL61: 0 | GM61: 0 | GN61: 0 | GO61: 0 | GP61: 0 | GQ61: 0 | GR61: 0 | GS61: 0 | GT61: 0 | GU61: =GU22 -> 0 | GV61: 0 | GW61: 0 | GX61: 0 | GY61: 0 | GZ61: 0 | HA61: 0
B62: Fuel Price | E62: USD/MMBTU | J62: =J40 -> 2.5 | K62: =K40 -> 2.5 | L62: 2.5 | M62: 2.5 | N62: 2.5 | O62: 2.5 | P62: 2.5 | Q62: 2.5 | R62: 2.5 | S62: 2.5 | T62: 2.5 | U62: 2.5 | V62: 2.5 | W62: 2.5 | X62: 2.5 | Y62: 2.5 | Z62: 2.5 | AA62: 2.5 | AB62: 2.5 | AC62: 2.5 | AD62: 2.5 | AE62: 2.5 | AF62: 2.5 | AG62: 2.5 | AH62: 2.5 | AI62: 2.5 | AJ62: 2.5 | AK62: 2.5 | AL62: 2.5 | AM62: 2.5 | AN62: 2.5 | AO62: 2.5 | AP62: 2.5 | AQ62: 2.5 | AR62: 2.5 | AS62: 2.5 | AT62: 2.5 | AU62: 2.5 | AV62: 2.5 | AW62: 2.5 | AX62: 2.5 | AY62: 2.5 | AZ62: 2.8 | BA62: 2.8 | BB62: 2.8 | BC62: 2.8 | BD62: 2.8 | BE62: 2.8 | BF62: 2.8 | BG62: 2.8 | BH62: 2.8 | BI62: 2.8 | BJ62: 2.8 | BK62: 2.8 | BL62: 2.8 | BM62: 2.8 | BN62: 2.8 | BO62: 2.8 | BP62: 2.8 | BQ62: 2.8 | BR62: 2.8 | BS62: 2.8 | BT62: 3 | BU62: 3 | BV62: 3 | BW62: =BW40 -> 3 | BX62: 3 | BY62: 3 | BZ62: 3 | CA62: 3 | CB62: 3 | CC62: 3 | CD62: 3 | CE62: 3 | CF62: 3 | CG62: 3 | CH62: 3 | CI62: 3 | CJ62: 3 | CK62: 3 | CL62: 3 | CM62: 3 | CN62: 3 | CO62: 3 | CP62: 3 | CQ62: 3 | CR62: 3 | CS62: 3 | CT62: 3 | CU62: 3 | CV62: 3 | CW62: 3 | CX62: 3 | CY62: 3 | CZ62: 3 | DA62: 3 | DB62: 3 | DC62: 3 | DD62: 3 | DE62: 3 | DF62: 3 | DG62: 3 | DH62: 3 | DI62: 3 | DJ62: 3 | DK62: 3 | DL62: 3 | DM62: 3 | DN62: 3 | DO62: 3 | DP62: 3 | DQ62: 3 | DR62: 3 | DS62: 3 | DT62: 3 | DU62: 3 | DV62: 3 | DW62: 3 | DX62: 3 | DY62: 3 | DZ62: 3 | EA62: 3 | EB62: 3 | EC62: 3 | ED62: 3 | EE62: 3 | EF62: 3 | EG62: 3 | EH62: 3 | EI62: =EI40 -> 3 | EJ62: 3 | EK62: 3 | EL62: 3 | EM62: 3 | EN62: 3 | EO62: 3 | EP62: 3 | EQ62: 3 | ER62: 3 | ES62: 3 | ET62: 3 | EU62: 3 | EV62: 3 | EW62: 3 | EX62: 3 | EY62: 3 | EZ62: 3 | FA62: 3 | FB62: 3 | FC62: 3 | FD62: 3 | FE62: 3 | FF62: 3 | FG62: 3 | FH62: 3 | FI62: 3 | FJ62: 3 | FK62: 3 | FL62: 3 | FM62: 3 | FN62: 3 | FO62: 3 | FP62: 3 | FQ62: 3 | FR62: 3 | FS62: 3 | FT62: 3 | FU62: 3 | FV62: 3 | FW62: 3 | FX62: 3 | FY62: 3 | FZ62: 3 | GA62: 3 | GB62: 3 | GC62: 3 | GD62: 3 | GE62: 3 | GF62: 3 | GG62: 3 | GH62: 3 | GI62: 3 | GJ62: 3 | GK62: 3 | GL62: 3 | GM62: 3 | GN62: 3 | GO62: 3 | GP62: 3 | GQ62: 3 | GR62: 3 | GS62: 3 | GT62: 3 | GU62: =GU40 -> 3 | GV62: 3 | GW62: 3 | GX62: 3 | GY62: 3 | GZ62: 3 | HA62: 3
C63: Energy Revenue | J63: =J62*J61/1000 -> 0 | K63: =K62*K61/1000 -> 0 | L63: 0 | M63: 0 | N63: 0 | O63: 0 | P63: 0 | Q63: 0 | R63: 0 | S63: 0 | T63: 0 | U63: 0 | V63: 0 | W63: 0 | X63: 0 | Y63: 0 | Z63: 0 | AA63: 0 | AB63: 0 | AC63: 0 | AD63: 0 | AE63: 0 | AF63: 0 | AG63: 0 | AH63: 0 | AI63: 0 | AJ63: 0 | AK63: 0 | AL63: 0 | AM63: 0 | AN63: 0 | AO63: 0 | AP63: 0 | AQ63: 0 | AR63: 0 | AS63: 6996.6 | AT63: 6996.6 | AU63: 6920.55 | AV63: 6920.55 | AW63: 6996.6 | AX63: 6996.6 | AY63: 6920.55 | AZ63: 7665.84 | BA63: 8438.976 | BB63: 8438.976 | BC63: 8347.248 | BD63: 8255.52 | BE63: 8438.976 | BF63: 8438.976 | BG63: 8347.248 | BH63: 8255.52 | BI63: 6751.1808 | BJ63: 6751.1808 | BK63: 6677.7984 | BL63: 6677.7984 | BM63: 6751.1808 | BN63: 6751.1808 | BO63: 6677.7984 | BP63: 6604.416 | BQ63: 6751.1808 | BR63: 6751.1808 | BS63: 6677.7984 | BT63: 7076.16 | BU63: 7233.408 | BV63: 7233.408 | BW63: =BW62*BW61/1000 -> 7154.784 | BX63: 7076.16 | BY63: 7233.408 | BZ63: 7233.408 | CA63: 7154.784 | CB63: 7154.784 | CC63: 7233.408 | CD63: 7233.408 | CE63: 7154.784 | CF63: 7076.16 | CG63: 7233.408 | CH63: 7233.408 | CI63: 7154.784 | CJ63: 7076.16 | CK63: 7233.408 | CL63: 7233.408 | CM63: 7154.784 | CN63: 7076.16 | CO63: 7233.408 | CP63: 7233.408 | CQ63: 7154.784 | CR63: 7154.784 | CS63: 7233.408 | CT63: 7233.408 | CU63: 7154.784 | CV63: 7076.16 | CW63: 7233.408 | CX63: 7233.408 | CY63: 7154.784 | CZ63: 7076.16 | DA63: 7233.408 | DB63: 7233.408 | DC63: 7154.784 | DD63: 7076.16 | DE63: 7233.408 | DF63: 7233.408 | DG63: 7154.784 | DH63: 7154.784 | DI63: 7233.408 | DJ63: 7233.408 | DK63: 7154.784 | DL63: 7076.16 | DM63: 7233.408 | DN63: 7233.408 | DO63: 7154.784 | DP63: 7076.16 | DQ63: 7233.408 | DR63: 7233.408 | DS63: 7154.784 | DT63: 7076.16 | DU63: 0 | DV63: 0 | DW63: 0 | DX63: 0 | DY63: 0 | DZ63: 0 | EA63: 0 | EB63: 0 | EC63: 0 | ED63: 0 | EE63: 0 | EF63: 0 | EG63: 0 | EH63: 0 | EI63: =EI62*EI61/1000 -> 0 | EJ63: 0 | EK63: 0 | EL63: 0 | EM63: 0 | EN63: 0 | EO63: 0 | EP63: 0 | EQ63: 0 | ER63: 0 | ES63: 0 | ET63: 0 | EU63: 0 | EV63: 0 | EW63: 0 | EX63: 0 | EY63: 0 | EZ63: 0 | FA63: 0 | FB63: 0 | FC63: 0 | FD63: 0 | FE63: 0 | FF63: 0 | FG63: 0 | FH63: 0 | FI63: 0 | FJ63: 0 | FK63: 0 | FL63: 0 | FM63: 0 | FN63: 0 | FO63: 0 | FP63: 0 | FQ63: 0 | FR63: 0 | FS63: 0 | FT63: 0 | FU63: 0 | FV63: 0 | FW63: 0 | FX63: 0 | FY63: 0 | FZ63: 0 | GA63: 0 | GB63: 0 | GC63: 0 | GD63: 0 | GE63: 0 | GF63: 0 | GG63: 0 | GH63: 0 | GI63: 0 | GJ63: 0 | GK63: 0 | GL63: 0 | GM63: 0 | GN63: 0 | GO63: 0 | GP63: 0 | GQ63: 0 | GR63: 0 | GS63: 0 | GT63: 0 | GU63: =GU62*GU61/1000 -> 0 | GV63: 0 | GW63: 0 | GX63: 0 | GY63: 0 | GZ63: 0 | HA63: 0
B65: Variable O&M Charge | G65: =Assumptions!E53 -> 5.5 | J65: =$G$65*J37 -> 5.5 | K65: 5.5 | L65: 5.5 | M65: 5.5 | N65: 5.5 | O65: 5.5 | P65: 5.5 | Q65: 5.5 | R65: 5.5 | S65: 5.5 | T65: 5.5 | U65: 5.5 | V65: 5.5 | W65: 5.5 | X65: 5.5 | Y65: 5.5 | Z65: 5.5 | AA65: 5.5 | AB65: 5.5 | AC65: 5.5 | AD65: 5.5 | AE65: 5.5 | AF65: 5.5 | AG65: 5.5 | AH65: 5.5 | AI65: 5.5 | AJ65: 5.5 | AK65: 5.5 | AL65: 5.5 | AM65: 5.5 | AN65: 5.5 | AO65: 5.5 | AP65: =$G$65*AP37 -> 5.5 | AQ65: 5.5 | AR65: 5.5 | AS65: 5.527296124 | AT65: 5.554727716 | AU65: 5.58229545 | AV65: 5.61 | AW65: 5.637842046 | AX65: 5.66582227 | AY65: 5.693941359 | AZ65: 5.7222 | BA65: 5.750598887 | BB65: 5.779138716 | BC65: 5.807820186 | BD65: 5.836644 | BE65: 5.865610865 | BF65: 5.89472149 | BG65: 5.92397659 | BH65: 5.95337688 | BI65: 5.982923082 | BJ65: 6.01261592 | BK65: 6.042456121 | BL65: 6.072444418 | BM65: 6.102581544 | BN65: 6.132868238 | BO65: 6.163305244 | BP65: 6.193893306 | BQ65: 6.224633175 | BR65: 6.255525603 | BS65: 6.286571349 | BT65: 6.317771172 | BU65: 6.349125838 | BV65: =$G$65*BV37 -> 6.380636115 | BW65: 6.412302776 | BX65: 6.444126596 | BY65: 6.476108355 | BZ65: 6.508248837 | CA65: 6.540548831 | CB65: 6.573009127 | CC65: 6.605630522 | CD65: 6.638413814 | CE65: 6.671359808 | CF65: 6.70446931 | CG65: 6.737743132 | CH65: 6.771182091 | CI65: 6.804787004 | CJ65: 6.838558696 | CK65: 6.872497995 | CL65: 6.906605732 | CM65: 6.940882744 | CN65: 6.97532987 | CO65: 7.009947955 | CP65: 7.044737847 | CQ65: 7.079700399 | CR65: 7.114836467 | CS65: 7.150146914 | CT65: 7.185632604 | CU65: 7.221294407 | CV65: 7.257133197 | CW65: 7.293149852 | CX65: 7.329345256 | CY65: 7.365720295 | CZ65: 7.402275861 | DA65: 7.439012849 | DB65: =$G$65*DB37 -> 7.475932161 | DC65: 7.513034701 | DD65: 7.550321378 | DE65: 7.587793106 | DF65: 7.625450804 | DG65: 7.663295395 | DH65: 7.701327806 | DI65: 7.739548968 | DJ65: 7.77795982 | DK65: 7.816561303 | DL65: 7.855354362 | DM65: 7.894339948 | DN65: 7.933519017 | DO65: 7.972892529 | DP65: 8.012461449 | DQ65: 8.052226747 | DR65: 8.092189397 | DS65: 8.132350379 | DT65: 8.172710678 | DU65: 8.172710678 | DV65: 8.172710678 | DW65: 8.172710678 | DX65: 8.172710678 | DY65: 8.172710678 | DZ65: 8.172710678 | EA65: 8.172710678 | EB65: 8.172710678 | EC65: 8.172710678 | ED65: 8.172710678 | EE65: 8.172710678 | EF65: 8.172710678 | EG65: 8.172710678 | EH65: =$G$65*EH37 -> 8.172710678 | EI65: 8.172710678 | EJ65: 8.172710678 | EK65: 8.172710678 | EL65: 8.172710678 | EM65: 8.172710678 | EN65: 8.172710678 | EO65: 8.172710678 | EP65: 8.172710678 | EQ65: 8.172710678 | ER65: 8.172710678 | ES65: 8.172710678 | ET65: 8.172710678 | EU65: 8.172710678 | EV65: 8.172710678 | EW65: 8.172710678 | EX65: 8.172710678 | EY65: 8.172710678 | EZ65: 8.172710678 | FA65: 8.172710678 | FB65: 8.172710678 | FC65: 8.172710678 | FD65: 8.172710678 | FE65: 8.172710678 | FF65: 8.172710678 | FG65: 8.172710678 | FH65: 8.172710678 | FI65: 8.172710678 | FJ65: 8.172710678 | FK65: 8.172710678 | FL65: 8.172710678 | FM65: 8.172710678 | FN65: =$G$65*FN37 -> 8.172710678 | FO65: 8.172710678 | FP65: 8.172710678 | FQ65: 8.172710678 | FR65: 8.172710678 | FS65: 8.172710678 | FT65: 8.172710678 | FU65: 8.172710678 | FV65: 8.172710678 | FW65: 8.172710678 | FX65: 8.172710678 | FY65: 8.172710678 | FZ65: 8.172710678 | GA65: 8.172710678 | GB65: 8.172710678 | GC65: 8.172710678 | GD65: 8.172710678 | GE65: 8.172710678 | GF65: 8.172710678 | GG65: 8.172710678 | GH65: 8.172710678 | GI65: 8.172710678 | GJ65: 8.172710678 | GK65: 8.172710678 | GL65: 8.172710678 | GM65: 8.172710678 | GN65: 8.172710678 | GO65: 8.172710678 | GP65: 8.172710678 | GQ65: 8.172710678 | GR65: 8.172710678 | GS65: 8.172710678 | GT65: =$G$65*GT37 -> 8.172710678 | GU65: 8.172710678 | GV65: 8.172710678 | GW65: 8.172710678 | GX65: 8.172710678 | GY65: 8.172710678 | GZ65: 8.172710678 | HA65: 8.172710678
C66: MWH - Generation | J66: =J16 -> 0 | K66: =K16 -> 0 | L66: 0 | M66: 0 | N66: 0 | O66: 0 | P66: 0 | Q66: 0 | R66: 0 | S66: 0 | T66: 0 | U66: 0 | V66: 0 | W66: 0 | X66: 0 | Y66: 0 | Z66: 0 | AA66: 0 | AB66: 0 | AC66: 0 | AD66: 0 | AE66: 0 | AF66: 0 | AG66: 0 | AH66: 0 | AI66: 0 | AJ66: 0 | AK66: 0 | AL66: 0 | AM66: 0 | AN66: 0 | AO66: 0 | AP66: 0 | AQ66: 0 | AR66: 0 | AS66: 430560 | AT66: 430560 | AU66: 425880 | AV66: 425880 | AW66: 430560 | AX66: 430560 | AY66: 425880 | AZ66: 421200 | BA66: 463680 | BB66: 463680 | BC66: 458640 | BD66: 453600 | BE66: 463680 | BF66: 463680 | BG66: 458640 | BH66: 453600 | BI66: 370944 | BJ66: 370944 | BK66: 366912 | BL66: 366912 | BM66: 370944 | BN66: 370944 | BO66: 366912 | BP66: 362880 | BQ66: 370944 | BR66: 370944 | BS66: 366912 | BT66: 362880 | BU66: 370944 | BV66: 370944 | BW66: =BW16 -> 366912 | BX66: 362880 | BY66: 370944 | BZ66: 370944 | CA66: 366912 | CB66: 366912 | CC66: 370944 | CD66: 370944 | CE66: 366912 | CF66: 362880 | CG66: 370944 | CH66: 370944 | CI66: 366912 | CJ66: 362880 | CK66: 370944 | CL66: 370944 | CM66: 366912 | CN66: 362880 | CO66: 370944 | CP66: 370944 | CQ66: 366912 | CR66: 366912 | CS66: 370944 | CT66: 370944 | CU66: 366912 | CV66: 362880 | CW66: 370944 | CX66: 370944 | CY66: 366912 | CZ66: 362880 | DA66: 370944 | DB66: 370944 | DC66: 366912 | DD66: 362880 | DE66: 370944 | DF66: 370944 | DG66: 366912 | DH66: 366912 | DI66: 370944 | DJ66: 370944 | DK66: 366912 | DL66: 362880 | DM66: 370944 | DN66: 370944 | DO66: 366912 | DP66: 362880 | DQ66: 370944 | DR66: 370944 | DS66: 366912 | DT66: 362880 | DU66: 0 | DV66: 0 | DW66: 0 | DX66: 0 | DY66: 0 | DZ66: 0 | EA66: 0 | EB66: 0 | EC66: 0 | ED66: 0 | EE66: 0 | EF66: 0 | EG66: 0 | EH66: 0 | EI66: =EI16 -> 0 | EJ66: 0 | EK66: 0 | EL66: 0 | EM66: 0 | EN66: 0 | EO66: 0 | EP66: 0 | EQ66: 0 | ER66: 0 | ES66: 0 | ET66: 0 | EU66: 0 | EV66: 0 | EW66: 0 | EX66: 0 | EY66: 0 | EZ66: 0 | FA66: 0 | FB66: 0 | FC66: 0 | FD66: 0 | FE66: 0 | FF66: 0 | FG66: 0 | FH66: 0 | FI66: 0 | FJ66: 0 | FK66: 0 | FL66: 0 | FM66: 0 | FN66: 0 | FO66: 0 | FP66: 0 | FQ66: 0 | FR66: 0 | FS66: 0 | FT66: 0 | FU66: 0 | FV66: 0 | FW66: 0 | FX66: 0 | FY66: 0 | FZ66: 0 | GA66: 0 | GB66: 0 | GC66: 0 | GD66: 0 | GE66: 0 | GF66: 0 | GG66: 0 | GH66: 0 | GI66: 0 | GJ66: 0 | GK66: 0 | GL66: 0 | GM66: 0 | GN66: 0 | GO66: 0 | GP66: 0 | GQ66: 0 | GR66: 0 | GS66: 0 | GT66: 0 | GU66: =GU16 -> 0 | GV66: 0 | GW66: 0 | GX66: 0 | GY66: 0 | GZ66: 0 | HA66: 0
C67: Variable O&M Revenue | J67: =J65*J66/1000 -> 0 | K67: =K65*K66/1000 -> 0 | L67: 0 | M67: 0 | N67: 0 | O67: 0 | P67: 0 | Q67: 0 | R67: 0 | S67: 0 | T67: 0 | U67: 0 | V67: 0 | W67: 0 | X67: 0 | Y67: 0 | Z67: 0 | AA67: 0 | AB67: 0 | AC67: 0 | AD67: 0 | AE67: 0 | AF67: 0 | AG67: 0 | AH67: 0 | AI67: 0 | AJ67: 0 | AK67: 0 | AL67: 0 | AM67: 0 | AN67: 0 | AO67: 0 | AP67: 0 | AQ67: 0 | AR67: 0 | AS67: 2379.832619 | AT67: 2391.643565 | AU67: 2377.387986 | AV67: 2389.1868 | AW67: 2427.429271 | AX67: 2439.476437 | AY67: 2424.935746 | AZ67: 2410.19064 | BA67: 2666.437692 | BB67: 2679.67104 | BC67: 2663.69865 | BD67: 2647.501718 | BE67: 2719.766446 | BF67: 2733.264461 | BG67: 2716.972623 | BH67: 2700.451753 | BI67: 2219.32942 | BJ67: 2230.3438 | BK67: 2217.04966 | BL67: 2228.052726 | BM67: 2263.716008 | BN67: 2274.950676 | BO67: 2261.390654 | BP67: 2247.640003 | BQ67: 2308.990328 | BR67: 2320.449689 | BS67: 2306.618467 | BT67: 2292.592803 | BU67: 2355.170135 | BV67: 2366.858683 | BW67: =BW65*BW66/1000 -> 2352.750836 | BX67: 2338.444659 | BY67: 2402.273538 | BZ67: 2414.195857 | CA67: 2399.805853 | CB67: 2411.715925 | CC67: 2450.319008 | CD67: 2462.479774 | CE67: 2447.80197 | CF67: 2432.917823 | CG67: 2499.325389 | CH67: 2511.729369 | CI67: 2496.758009 | CJ67: 2481.57618 | CK67: 2549.311896 | CL67: 2561.963957 | CM67: 2546.693169 | CN67: 2531.207703 | CO67: 2600.298134 | CP67: 2613.203236 | CQ67: 2597.627033 | CR67: 2610.518878 | CS67: 2652.304097 | CT67: 2665.467301 | CU67: 2649.579573 | CV67: 2633.468494 | CW67: 2705.350179 | CX67: 2718.776647 | CY67: 2702.571165 | CZ67: 2686.137864 | DA67: 2759.457182 | DB67: 2773.15218 | DC67: 2756.622588 | DD67: 2739.860622 | DE67: 2814.646326 | DF67: 2828.615223 | DG67: 2811.75504 | DH67: 2825.709588 | DI67: 2870.939253 | DJ67: 2885.187528 | DK67: 2867.990141 | DL67: 2850.550991 | DM67: 2928.358038 | DN67: 2942.891278 | DO67: 2925.349944 | DP67: 2907.562011 | DQ67: 2986.925198 | DR67: 3001.749104 | DS67: 2983.856942 | DT67: 2965.713251 | DU67: 0 | DV67: 0 | DW67: 0 | DX67: 0 | DY67: 0 | DZ67: 0 | EA67: 0 | EB67: 0 | EC67: 0 | ED67: 0 | EE67: 0 | EF67: 0 | EG67: 0 | EH67: 0 | EI67: =EI65*EI66/1000 -> 0 | EJ67: 0 | EK67: 0 | EL67: 0 | EM67: 0 | EN67: 0 | EO67: 0 | EP67: 0 | EQ67: 0 | ER67: 0 | ES67: 0 | ET67: 0 | EU67: 0 | EV67: 0 | EW67: 0 | EX67: 0 | EY67: 0 | EZ67: 0 | FA67: 0 | FB67: 0 | FC67: 0 | FD67: 0 | FE67: 0 | FF67: 0 | FG67: 0 | FH67: 0 | FI67: 0 | FJ67: 0 | FK67: 0 | FL67: 0 | FM67: 0 | FN67: 0 | FO67: 0 | FP67: 0 | FQ67: 0 | FR67: 0 | FS67: 0 | FT67: 0 | FU67: 0 | FV67: 0 | FW67: 0 | FX67: 0 | FY67: 0 | FZ67: 0 | GA67: 0 | GB67: 0 | GC67: 0 | GD67: 0 | GE67: 0 | GF67: 0 | GG67: 0 | GH67: 0 | GI67: 0 | GJ67: 0 | GK67: 0 | GL67: 0 | GM67: 0 | GN67: 0 | GO67: 0 | GP67: 0 | GQ67: 0 | GR67: 0 | GS67: 0 | GT67: 0 | GU67: =GU65*GU66/1000 -> 0 | GV67: 0 | GW67: 0 | GX67: 0 | GY67: 0 | GZ67: 0 | HA67: 0
B69: Fixed O&M Charge
C70: Capacity | G70: =Assumptions!E54 -> 6 | J70: =$G$70*J37 -> 6 | K70: 6 | L70: 6 | M70: 6 | N70: 6 | O70: 6 | P70: 6 | Q70: 6 | R70: 6 | S70: 6 | T70: 6 | U70: 6 | V70: 6 | W70: 6 | X70: 6 | Y70: 6 | Z70: 6 | AA70: 6 | AB70: 6 | AC70: 6 | AD70: 6 | AE70: 6 | AF70: 6 | AG70: 6 | AH70: 6 | AI70: 6 | AJ70: 6 | AK70: 6 | AL70: 6 | AM70: 6 | AN70: 6 | AO70: 6 | AP70: =$G$70*AP37 -> 6 | AQ70: 6 | AR70: 6 | AS70: 6.029777589 | AT70: 6.059702963 | AU70: 6.089776854 | AV70: 6.12 | AW70: 6.150373141 | AX70: 6.180897022 | AY70: 6.211572391 | AZ70: 6.2424 | BA70: 6.273380604 | BB70: 6.304514963 | BC70: 6.335803839 | BD70: 6.367248 | BE70: 6.398848216 | BF70: 6.430605262 | BG70: 6.462519916 | BH70: 6.49459296 | BI70: 6.52682518 | BJ70: 6.559217367 | BK70: 6.591770314 | BL70: 6.624484819 | BM70: 6.657361684 | BN70: 6.690401715 | BO70: 6.72360572 | BP70: 6.756974516 | BQ70: 6.790508918 | BR70: 6.824209749 | BS70: 6.858077835 | BT70: 6.892114006 | BU70: 6.926319096 | BV70: =$G$70*BV37 -> 6.960693944 | BW70: 6.995239392 | BX70: 7.029956286 | BY70: 7.064845478 | BZ70: 7.099907823 | CA70: 7.135144179 | CB70: 7.170555412 | CC70: 7.206142388 | CD70: 7.241905979 | CE70: 7.277847063 | CF70: 7.31396652 | CG70: 7.350265235 | CH70: 7.386744099 | CI70: 7.423404004 | CJ70: 7.46024585 | CK70: 7.49727054 | CL70: 7.534478981 | CM70: 7.571872084 | CN70: 7.609450767 | CO70: 7.647215951 | CP70: 7.68516856 | CQ70: 7.723309526 | CR70: 7.761639783 | CS70: 7.80016027 | CT70: 7.838871932 | CU70: 7.877775717 | CV70: 7.916872578 | CW70: 7.956163475 | CX70: 7.99564937 | CY70: 8.035331231 | CZ70: 8.07521003 | DA70: 8.115286745 | DB70: =$G$70*DB37 -> 8.155562358 | DC70: 8.196037855 | DD70: 8.236714231 | DE70: 8.27759248 | DF70: 8.318673605 | DG70: 8.359958613 | DH70: 8.401448515 | DI70: 8.443144329 | DJ70: 8.485047077 | DK70: 8.527157785 | DL70: 8.569477485 | DM70: 8.612007216 | DN70: 8.654748018 | DO70: 8.697700941 | DP70: 8.740867035 | DQ70: 8.78424736 | DR70: 8.827842979 | DS70: 8.871654959 | DT70: 8.915684376 | DU70: 8.915684376 | DV70: 8.915684376 | DW70: 8.915684376 | DX70: 8.915684376 | DY70: 8.915684376 | DZ70: 8.915684376 | EA70: 8.915684376 | EB70: 8.915684376 | EC70: 8.915684376 | ED70: 8.915684376 | EE70: 8.915684376 | EF70: 8.915684376 | EG70: 8.915684376 | EH70: =$G$70*EH37 -> 8.915684376 | EI70: 8.915684376 | EJ70: 8.915684376 | EK70: 8.915684376 | EL70: 8.915684376 | EM70: 8.915684376 | EN70: 8.915684376 | EO70: 8.915684376 | EP70: 8.915684376 | EQ70: 8.915684376 | ER70: 8.915684376 | ES70: 8.915684376 | ET70: 8.915684376 | EU70: 8.915684376 | EV70: 8.915684376 | EW70: 8.915684376 | EX70: 8.915684376 | EY70: 8.915684376 | EZ70: 8.915684376 | FA70: 8.915684376 | FB70: 8.915684376 | FC70: 8.915684376 | FD70: 8.915684376 | FE70: 8.915684376 | FF70: 8.915684376 | FG70: 8.915684376 | FH70: 8.915684376 | FI70: 8.915684376 | FJ70: 8.915684376 | FK70: 8.915684376 | FL70: 8.915684376 | FM70: 8.915684376 | FN70: =$G$70*FN37 -> 8.915684376 | FO70: 8.915684376 | FP70: 8.915684376 | FQ70: 8.915684376 | FR70: 8.915684376 | FS70: 8.915684376 | FT70: 8.915684376 | FU70: 8.915684376 | FV70: 8.915684376 | FW70: 8.915684376 | FX70: 8.915684376 | FY70: 8.915684376 | FZ70: 8.915684376 | GA70: 8.915684376 | GB70: 8.915684376 | GC70: 8.915684376 | GD70: 8.915684376 | GE70: 8.915684376 | GF70: 8.915684376 | GG70: 8.915684376 | GH70: 8.915684376 | GI70: 8.915684376 | GJ70: 8.915684376 | GK70: 8.915684376 | GL70: 8.915684376 | GM70: 8.915684376 | GN70: 8.915684376 | GO70: 8.915684376 | GP70: 8.915684376 | GQ70: 8.915684376 | GR70: 8.915684376 | GS70: 8.915684376 | GT70: =$G$70*GT37 -> 8.915684376 | GU70: 8.915684376 | GV70: 8.915684376 | GW70: 8.915684376 | GX70: 8.915684376 | GY70: 8.915684376 | GZ70: 8.915684376 | HA70: 8.915684376
C71: Fixed O&M Revenue | J71: =J70*J49*J4/12 -> 0 | K71: 0 | L71: 0 | M71: 0 | N71: 0 | O71: 0 | P71: 0 | Q71: 0 | R71: 0 | S71: 0 | T71: 0 | U71: 0 | V71: 0 | W71: 0 | X71: 0 | Y71: 0 | Z71: 0 | AA71: 0 | AB71: 0 | AC71: 0 | AD71: 0 | AE71: 0 | AF71: 0 | AG71: 0 | AH71: 0 | AI71: 0 | AJ71: 0 | AK71: 0 | AL71: 0 | AM71: 0 | AN71: 0 | AO71: 0 | AP71: =AP70*AP49*AP4/12 -> 0 | AQ71: 0 | AR71: 0 | AS71: 452.2333192 | AT71: 454.4777222 | AU71: 456.7332641 | AV71: 459 | AW71: 461.2779856 | AX71: 463.5672767 | AY71: 465.8679293 | AZ71: 468.18 | BA71: 470.5035453 | BB71: 472.8386222 | BC71: 475.1852879 | BD71: 477.5436 | BE71: 479.9136162 | BF71: 482.2953946 | BG71: 484.6889937 | BH71: 487.094472 | BI71: 489.5118885 | BJ71: 491.9413025 | BK71: 494.3827736 | BL71: 496.8363614 | BM71: 499.3021263 | BN71: 501.7801286 | BO71: 504.270429 | BP71: 506.7730887 | BQ71: 509.2881688 | BR71: 511.8157312 | BS71: 514.3558376 | BT71: 516.9085504 | BU71: 519.4739322 | BV71: =BV70*BV49*BV4/12 -> 522.0520458 | BW71: 524.6429544 | BX71: 527.2467215 | BY71: 529.8634109 | BZ71: 532.4930867 | CA71: 535.1358135 | CB71: 537.7916559 | CC71: 540.4606791 | CD71: 543.1429484 | CE71: 545.8385297 | CF71: 548.547489 | CG71: 551.2698927 | CH71: 554.0058074 | CI71: 556.7553003 | CJ71: 559.5184388 | CK71: 562.2952905 | CL71: 565.0859236 | CM71: 567.8904063 | CN71: 570.7088076 | CO71: 573.5411963 | CP71: 576.387642 | CQ71: 579.2482145 | CR71: 582.1229837 | CS71: 585.0120202 | CT71: 587.9153949 | CU71: 590.8331787 | CV71: 593.7654434 | CW71: 596.7122606 | CX71: 599.6737028 | CY71: 602.6498423 | CZ71: 605.6407522 | DA71: 608.6465059 | DB71: =DB70*DB49*DB4/12 -> 611.6671768 | DC71: 614.7028392 | DD71: 617.7535673 | DE71: 620.819436 | DF71: 623.9005204 | DG71: 626.9968959 | DH71: 630.1086386 | DI71: 633.2358247 | DJ71: 636.3785308 | DK71: 639.5368339 | DL71: 642.7108114 | DM71: 645.9005412 | DN71: 649.1061014 | DO71: 652.3275705 | DP71: 655.5650276 | DQ71: 658.818552 | DR71: 662.0882234 | DS71: 665.374122 | DT71: 668.6763282 | DU71: 0 | DV71: 0 | DW71: 0 | DX71: 0 | DY71: 0 | DZ71: 0 | EA71: 0 | EB71: 0 | EC71: 0 | ED71: 0 | EE71: 0 | EF71: 0 | EG71: 0 | EH71: =EH70*EH49*EH4/12 -> 0 | EI71: 0 | EJ71: 0 | EK71: 0 | EL71: 0 | EM71: 0 | EN71: 0 | EO71: 0 | EP71: 0 | EQ71: 0 | ER71: 0 | ES71: 0 | ET71: 0 | EU71: 0 | EV71: 0 | EW71: 0 | EX71: 0 | EY71: 0 | EZ71: 0 | FA71: 0 | FB71: 0 | FC71: 0 | FD71: 0 | FE71: 0 | FF71: 0 | FG71: 0 | FH71: 0 | FI71: 0 | FJ71: 0 | FK71: 0 | FL71: 0 | FM71: 0 | FN71: =FN70*FN49*FN4/12 -> 0 | FO71: 0 | FP71: 0 | FQ71: 0 | FR71: 0 | FS71: 0 | FT71: 0 | FU71: 0 | FV71: 0 | FW71: 0 | FX71: 0 | FY71: 0 | FZ71: 0 | GA71: 0 | GB71: 0 | GC71: 0 | GD71: 0 | GE71: 0 | GF71: 0 | GG71: 0 | GH71: 0 | GI71: 0 | GJ71: 0 | GK71: 0 | GL71: 0 | GM71: 0 | GN71: 0 | GO71: 0 | GP71: 0 | GQ71: 0 | GR71: 0 | GS71: 0 | GT71: =GT70*GT49*GT4/12 -> 0 | GU71: 0 | GV71: 0 | GW71: 0 | GX71: 0 | GY71: 0 | GZ71: 0 | HA71: 0
C72: Total Revenue | J72: =J59+J63+J67+J71 -> 0 | K72: 0 | L72: 0 | M72: 0 | N72: 0 | O72: 0 | P72: 0 | Q72: 0 | R72: 0 | S72: 0 | T72: 0 | U72: 0 | V72: 0 | W72: 0 | X72: 0 | Y72: 0 | Z72: 0 | AA72: 0 | AB72: 0 | AC72: 0 | AD72: 0 | AE72: 0 | AF72: 0 | AG72: 0 | AH72: 0 | AI72: 0 | AJ72: 0 | AK72: 0 | AL72: 0 | AM72: 0 | AN72: 0 | AO72: 0 | AP72: =AP59+AP63+AP67+AP71 -> 0 | AQ72: 0 | AR72: 0 | AS72: 24732.66594 | AT72: 24746.72129 | AU72: 24496.67125 | AV72: 24510.7368 | AW72: 24789.30726 | AX72: 24803.64371 | AY72: 24553.35368 | AZ72: 25124.21064 | BA72: 26479.91724 | BB72: 26495.48566 | BC72: 26228.13194 | BD72: 25960.56532 | BE72: 26542.65606 | BF72: 26558.53586 | BG72: 26290.90962 | BH72: 26023.06622 | BI72: 24364.02211 | BJ72: 24377.4659 | BK72: 24131.23083 | BL72: 24144.68749 | BM72: 24418.19893 | BN72: 24431.9116 | BO72: 24185.45948 | BP72: 23938.82909 | BQ72: 24473.4593 | BR72: 24487.44622 | BS72: 24240.7727 | BT72: 24465.66135 | BU72: 25012.05207 | BV72: =BV59+BV63+BV67+BV71 -> 25026.31873 | BW72: 24774.17779 | BX72: 24521.85138 | BY72: 25069.54495 | BZ72: 25084.09694 | CA72: 24831.72567 | CB72: 24846.29158 | CC72: 25128.18769 | CD72: 25143.03072 | CE72: 24890.4245 | CF72: 24637.62531 | CG72: 25188.00328 | CH72: 25203.14318 | CI72: 24950.29731 | CJ72: 24697.25462 | CK72: 25249.01519 | CL72: 25264.45788 | CM72: 25011.36758 | CN72: 24758.07651 | CO72: 25311.24733 | CP72: 25326.99888 | CQ72: 25073.65925 | CR72: 25089.42586 | CS72: 25374.72412 | CT72: 25390.7907 | CU72: 25137.19675 | CV72: 24883.39394 | CW72: 25439.47044 | CX72: 25455.85835 | CY72: 25202.00501 | CZ72: 24947.93862 | DA72: 25505.51169 | DB72: =DB59+DB63+DB67+DB71 -> 25522.22736 | DC72: 25268.10943 | DD72: 25013.77419 | DE72: 25572.87376 | DF72: 25589.92374 | DG72: 25335.53594 | DH72: 25352.60223 | DI72: 25641.58308 | DJ72: 25658.97406 | DK72: 25404.31097 | DL72: 25149.4218 | DM72: 25711.66658 | DN72: 25729.40538 | DO72: 25474.46151 | DP72: 25219.28704 | DQ72: 25783.15175 | DR72: 25801.24533 | DS72: 25546.01506 | DT72: 25290.54958 | DU72: 0 | DV72: 0 | DW72: 0 | DX72: 0 | DY72: 0 | DZ72: 0 | EA72: 0 | EB72: 0 | EC72: 0 | ED72: 0 | EE72: 0 | EF72: 0 | EG72: 0 | EH72: =EH59+EH63+EH67+EH71 -> 0 | EI72: 0 | EJ72: 0 | EK72: 0 | EL72: 0 | EM72: 0 | EN72: 0 | EO72: 0 | EP72: 0 | EQ72: 0 | ER72: 0 | ES72: 0 | ET72: 0 | EU72: 0 | EV72: 0 | EW72: 0 | EX72: 0 | EY72: 0 | EZ72: 0 | FA72: 0 | FB72: 0 | FC72: 0 | FD72: 0 | FE72: 0 | FF72: 0 | FG72: 0 | FH72: 0 | FI72: 0 | FJ72: 0 | FK72: 0 | FL72: 0 | FM72: 0 | FN72: =FN59+FN63+FN67+FN71 -> 0 | FO72: 0 | FP72: 0 | FQ72: 0 | FR72: 0 | FS72: 0 | FT72: 0 | FU72: 0 | FV72: 0 | FW72: 0 | FX72: 0 | FY72: 0 | FZ72: 0 | GA72: 0 | GB72: 0 | GC72: 0 | GD72: 0 | GE72: 0 | GF72: 0 | GG72: 0 | GH72: 0 | GI72: 0 | GJ72: 0 | GK72: 0 | GL72: 0 | GM72: 0 | GN72: 0 | GO72: 0 | GP72: 0 | GQ72: 0 | GR72: 0 | GS72: 0 | GT72: =GT59+GT63+GT67+GT71 -> 0 | GU72: 0 | GV72: 0 | GW72: 0 | GX72: 0 | GY72: 0 | GZ72: 0 | HA72: 0
B74: Free Cashflow:
C75: EBITA | I75: =SUM(J75:HA75) -> 1164780.973 | J75: =J72-J52 -> 0 | K75: 0 | L75: 0 | M75: 0 | N75: 0 | O75: 0 | P75: 0 | Q75: 0 | R75: 0 | S75: 0 | T75: 0 | U75: 0 | V75: 0 | W75: 0 | X75: 0 | Y75: 0 | Z75: 0 | AA75: 0 | AB75: 0 | AC75: 0 | AD75: 0 | AE75: 0 | AF75: 0 | AG75: 0 | AH75: 0 | AI75: 0 | AJ75: 0 | AK75: 0 | AL75: 0 | AM75: 0 | AN75: 0 | AO75: 0 | AP75: =AP72-AP52 -> 0 | AQ75: 0 | AR75: 0 | AS75: 15044.9762 | AT75: 15045.67586 | AU75: 14882.00397 | AV75: 14882.6988 | AW75: 15047.79572 | AX75: 15048.50937 | AY75: 14884.80405 | AZ75: 14501.97 | BA75: 14825.58274 | BB75: 14825.19356 | BC75: 14662.80245 | BD75: 14500.4094 | BE75: 14824.0144 | BF75: 14823.61743 | BG75: 14661.2185 | BH75: 14498.81759 | BI75: 14822.41469 | BJ75: 14822.00978 | BK75: 14659.60287 | BL75: 14659.19394 | BM75: 14820.78298 | BN75: 14820.36998 | BO75: 14657.95493 | BP75: 14495.53782 | BQ75: 14819.11864 | BR75: 14818.69738 | BS75: 14656.27403 | BT75: 14285.43105 | BU75: 14603.31464 | BV75: =BV72-BV52 -> 14601.82235 | BW75: 14440.67307 | BX75: 14279.53967 | BY75: 14597.30093 | BZ75: 14595.7788 | CA75: 14434.64653 | CB75: 14433.12116 | CC75: 14591.16695 | CD75: 14589.61438 | CE75: 14428.49946 | CF75: 14267.40107 | CG75: 14584.91029 | CH75: 14583.32667 | CI75: 14422.22945 | CJ75: 14261.14909 | CK75: 14578.52849 | CL75: 14576.9132 | CM75: 14415.83404 | CN75: 14254.77207 | CO75: 14572.01906 | CP75: 14570.37146 | CQ75: 14409.31072 | CR75: 14407.6596 | CS75: 14565.37944 | CT75: 14563.69889 | CU75: 14402.65693 | CV75: 14241.63287 | CW75: 14558.60703 | CX75: 14556.89287 | CY75: 14395.87007 | CZ75: 14234.86552 | DA75: 14551.69917 | DB75: =DB72-DB52 -> 14549.95073 | DC75: 14388.94747 | DD75: 14227.96283 | DE75: 14544.65316 | DF75: 14542.86974 | DG75: 14381.88642 | DH75: 14380.0992 | DI75: 14537.46622 | DJ75: 14535.64714 | DK75: 14374.68415 | DL75: 14213.74053 | DM75: 14530.13554 | DN75: 14528.28008 | DO75: 14367.33783 | DP75: 14206.41534 | DQ75: 14522.65825 | DR75: 14520.76568 | DS75: 14359.84459 | DT75: 14198.94365 | DU75: 0 | DV75: 0 | DW75: 0 | DX75: 0 | DY75: 0 | DZ75: 0 | EA75: 0 | EB75: 0 | EC75: 0 | ED75: 0 | EE75: 0 | EF75: 0 | EG75: 0 | EH75: =EH72-EH52 -> 0 | EI75: 0 | EJ75: 0 | EK75: 0 | EL75: 0 | EM75: 0 | EN75: 0 | EO75: 0 | EP75: 0 | EQ75: 0 | ER75: 0 | ES75: 0 | ET75: 0 | EU75: 0 | EV75: 0 | EW75: 0 | EX75: 0 | EY75: 0 | EZ75: 0 | FA75: 0 | FB75: 0 | FC75: 0 | FD75: 0 | FE75: 0 | FF75: 0 | FG75: 0 | FH75: 0 | FI75: 0 | FJ75: 0 | FK75: 0 | FL75: 0 | FM75: 0 | FN75: =FN72-FN52 -> 0 | FO75: 0 | FP75: 0 | FQ75: 0 | FR75: 0 | FS75: 0 | FT75: 0 | FU75: 0 | FV75: 0 | FW75: 0 | FX75: 0 | FY75: 0 | FZ75: 0 | GA75: 0 | GB75: 0 | GC75: 0 | GD75: 0 | GE75: 0 | GF75: 0 | GG75: 0 | GH75: 0 | GI75: 0 | GJ75: 0 | GK75: 0 | GL75: 0 | GM75: 0 | GN75: 0 | GO75: 0 | GP75: 0 | GQ75: 0 | GR75: 0 | GS75: 0 | GT75: =GT72-GT52 -> 0 | GU75: 0 | GV75: 0 | GW75: 0 | GX75: 0 | GY75: 0 | GZ75: 0 | HA75: 0
C76: CAPEX | I76: =SUM(J76:HA76) -> 500007.1429 | J76: =J33 -> 5000 | K76: 5000 | L76: 5000 | M76: 5000 | N76: 5000 | O76: 15000 | P76: 15000 | Q76: 15000 | R76: 15000 | S76: 15000 | T76: 15000 | U76: 20000 | V76: 20000 | W76: 15000 | X76: 25000 | Y76: 12000 | Z76: 35000 | AA76: 14285.71429 | AB76: 15150 | AC76: 14285.71429 | AD76: 14285.71429 | AE76: 14285.71429 | AF76: 14285.71429 | AG76: 14285.71429 | AH76: 14285.71429 | AI76: 14285.71429 | AJ76: 14285.71429 | AK76: 14285.71429 | AL76: 14285.71429 | AM76: 14285.71429 | AN76: 14285.71429 | AO76: 14285.71429 | AP76: =AP33 -> 14285.71429 | AQ76: 14285.71429 | AR76: 14285.71429 | AS76: 0 | AT76: 0 | AU76: 0 | AV76: 0 | AW76: 0 | AX76: 0 | AY76: 0 | AZ76: 0 | BA76: 0 | BB76: 0 | BC76: 0 | BD76: 0 | BE76: 0 | BF76: 0 | BG76: 0 | BH76: 0 | BI76: 0 | BJ76: 0 | BK76: 0 | BL76: 0 | BM76: 0 | BN76: 0 | BO76: 0 | BP76: 0 | BQ76: 0 | BR76: 0 | BS76: 0 | BT76: 0 | BU76: 0 | BV76: =BV33 -> 0 | BW76: 0 | BX76: 0 | BY76: 0 | BZ76: 0 | CA76: 0 | CB76: 0 | CC76: 0 | CD76: 0 | CE76: 0 | CF76: 0 | CG76: 0 | CH76: 0 | CI76: 0 | CJ76: 0 | CK76: 0 | CL76: 0 | CM76: 0 | CN76: 0 | CO76: 0 | CP76: 0 | CQ76: 0 | CR76: 0 | CS76: 0 | CT76: 0 | CU76: 0 | CV76: 0 | CW76: 0 | CX76: 0 | CY76: 0 | CZ76: 0 | DA76: 0 | DB76: =DB33 -> 0 | DC76: 0 | DD76: 0 | DE76: 0 | DF76: 0 | DG76: 0 | DH76: 0 | DI76: 0 | DJ76: 0 | DK76: 0 | DL76: 0 | DM76: 0 | DN76: 0 | DO76: 0 | DP76: 0 | DQ76: 0 | DR76: 0 | DS76: 0 | DT76: 0 | DU76: 0 | DV76: 0 | DW76: 0 | DX76: 0 | DY76: 0 | DZ76: 0 | EA76: 0 | EB76: 0 | EC76: 0 | ED76: 0 | EE76: 0 | EF76: 0 | EG76: 0 | EH76: =EH33 -> 0 | EI76: 0 | EJ76: 0 | EK76: 0 | EL76: 0 | EM76: 0 | EN76: 0 | EO76: 0 | EP76: 0 | EQ76: 0 | ER76: 0 | ES76: 0 | ET76: 0 | EU76: 0 | EV76: 0 | EW76: 0 | EX76: 0 | EY76: 0 | EZ76: 0 | FA76: 0 | FB76: 0 | FC76: 0 | FD76: 0 | FE76: 0 | FF76: 0 | FG76: 0 | FH76: 0 | FI76: 0 | FJ76: 0 | FK76: 0 | FL76: 0 | FM76: 0 | FN76: =FN33 -> 0 | FO76: 0 | FP76: 0 | FQ76: 0 | FR76: 0 | FS76: 0 | FT76: 0 | FU76: 0 | FV76: 0 | FW76: 0 | FX76: 0 | FY76: 0 | FZ76: 0 | GA76: 0 | GB76: 0 | GC76: 0 | GD76: 0 | GE76: 0 | GF76: 0 | GG76: 0 | GH76: 0 | GI76: 0 | GJ76: 0 | GK76: 0 | GL76: 0 | GM76: 0 | GN76: 0 | GO76: 0 | GP76: 0 | GQ76: 0 | GR76: 0 | GS76: 0 | GT76: =GT33 -> 0 | GU76: 0 | GV76: 0 | GW76: 0 | GX76: 0 | GY76: 0 | GZ76: 0 | HA76: 0
C77: Free Cash Flow | J77: =J75-J76 -> -5000 | K77: =K75-K76 -> -5000 | L77: -5000 | M77: -5000 | N77: -5000 | O77: -15000 | P77: -15000 | Q77: -15000 | R77: -15000 | S77: -15000 | T77: -15000 | U77: -20000 | V77: -20000 | W77: -15000 | X77: -25000 | Y77: -12000 | Z77: -35000 | AA77: -14285.71429 | AB77: -15150 | AC77: -14285.71429 | AD77: -14285.71429 | AE77: -14285.71429 | AF77: -14285.71429 | AG77: -14285.71429 | AH77: -14285.71429 | AI77: -14285.71429 | AJ77: -14285.71429 | AK77: -14285.71429 | AL77: -14285.71429 | AM77: -14285.71429 | AN77: -14285.71429 | AO77: -14285.71429 | AP77: -14285.71429 | AQ77: -14285.71429 | AR77: -14285.71429 | AS77: 15044.9762 | AT77: 15045.67586 | AU77: 14882.00397 | AV77: 14882.6988 | AW77: 15047.79572 | AX77: 15048.50937 | AY77: 14884.80405 | AZ77: 14501.97 | BA77: 14825.58274 | BB77: 14825.19356 | BC77: 14662.80245 | BD77: 14500.4094 | BE77: 14824.0144 | BF77: 14823.61743 | BG77: 14661.2185 | BH77: 14498.81759 | BI77: 14822.41469 | BJ77: 14822.00978 | BK77: 14659.60287 | BL77: 14659.19394 | BM77: 14820.78298 | BN77: 14820.36998 | BO77: 14657.95493 | BP77: 14495.53782 | BQ77: 14819.11864 | BR77: 14818.69738 | BS77: 14656.27403 | BT77: 14285.43105 | BU77: 14603.31464 | BV77: 14601.82235 | BW77: =BW75-BW76 -> 14440.67307 | BX77: 14279.53967 | BY77: 14597.30093 | BZ77: 14595.7788 | CA77: 14434.64653 | CB77: 14433.12116 | CC77: 14591.16695 | CD77: 14589.61438 | CE77: 14428.49946 | CF77: 14267.40107 | CG77: 14584.91029 | CH77: 14583.32667 | CI77: 14422.22945 | CJ77: 14261.14909 | CK77: 14578.52849 | CL77: 14576.9132 | CM77: 14415.83404 | CN77: 14254.77207 | CO77: 14572.01906 | CP77: 14570.37146 | CQ77: 14409.31072 | CR77: 14407.6596 | CS77: 14565.37944 | CT77: 14563.69889 | CU77: 14402.65693 | CV77: 14241.63287 | CW77: 14558.60703 | CX77: 14556.89287 | CY77: 14395.87007 | CZ77: 14234.86552 | DA77: 14551.69917 | DB77: 14549.95073 | DC77: 14388.94747 | DD77: 14227.96283 | DE77: 14544.65316 | DF77: 14542.86974 | DG77: 14381.88642 | DH77: 14380.0992 | DI77: 14537.46622 | DJ77: 14535.64714 | DK77: 14374.68415 | DL77: 14213.74053 | DM77: 14530.13554 | DN77: 14528.28008 | DO77: 14367.33783 | DP77: 14206.41534 | DQ77: 14522.65825 | DR77: 14520.76568 | DS77: 14359.84459 | DT77: 14198.94365 | DU77: 0 | DV77: 0 | DW77: 0 | DX77: 0 | DY77: 0 | DZ77: 0 | EA77: 0 | EB77: 0 | EC77: 0 | ED77: 0 | EE77: 0 | EF77: 0 | EG77: 0 | EH77: 0 | EI77: =EI75-EI76 -> 0 | EJ77: 0 | EK77: 0 | EL77: 0 | EM77: 0 | EN77: 0 | EO77: 0 | EP77: 0 | EQ77: 0 | ER77: 0 | ES77: 0 | ET77: 0 | EU77: 0 | EV77: 0 | EW77: 0 | EX77: 0 | EY77: 0 | EZ77: 0 | FA77: 0 | FB77: 0 | FC77: 0 | FD77: 0 | FE77: 0 | FF77: 0 | FG77: 0 | FH77: 0 | FI77: 0 | FJ77: 0 | FK77: 0 | FL77: 0 | FM77: 0 | FN77: 0 | FO77: 0 | FP77: 0 | FQ77: 0 | FR77: 0 | FS77: 0 | FT77: 0 | FU77: 0 | FV77: 0 | FW77: 0 | FX77: 0 | FY77: 0 | FZ77: 0 | GA77: 0 | GB77: 0 | GC77: 0 | GD77: 0 | GE77: 0 | GF77: 0 | GG77: 0 | GH77: 0 | GI77: 0 | GJ77: 0 | GK77: 0 | GL77: 0 | GM77: 0 | GN77: 0 | GO77: 0 | GP77: 0 | GQ77: 0 | GR77: 0 | GS77: 0 | GT77: 0 | GU77: =GU75-GU76 -> 0 | GV77: 0 | GW77: 0 | GX77: 0 | GY77: 0 | GZ77: 0 | HA77: 0
C78: Project IRR | F78: =XIRR(J77:HA77,J6:HA6) -> 0.08780923188
C80: Revenue with False | J80: =IF(J7,J72)*1 -> 0 | K80: =IF(K7,K72)*1 -> 0 | L80: 0 | M80: 0 | N80: 0 | O80: 0 | P80: 0 | Q80: 0 | R80: 0 | S80: 0 | T80: 0 | U80: 0 | V80: 0 | W80: 0 | X80: 0 | Y80: 0 | Z80: 0 | AA80: 0 | AB80: 0 | AC80: 0 | AD80: 0 | AE80: 0 | AF80: 0 | AG80: 0 | AH80: 0 | AI80: 0 | AJ80: 0 | AK80: 0 | AL80: 0 | AM80: 0 | AN80: 0 | AO80: 0 | AP80: 0 | AQ80: 0 | AR80: 0 | AS80: 24732.66594 | AT80: 24746.72129 | AU80: 24496.67125 | AV80: 24510.7368 | AW80: 24789.30726 | AX80: 24803.64371 | AY80: 24553.35368 | AZ80: 25124.21064 | BA80: 26479.91724 | BB80: 26495.48566 | BC80: 26228.13194 | BD80: 25960.56532 | BE80: 26542.65606 | BF80: 26558.53586 | BG80: 26290.90962 | BH80: 26023.06622 | BI80: 24364.02211 | BJ80: 24377.4659 | BK80: 24131.23083 | BL80: 24144.68749 | BM80: 24418.19893 | BN80: 24431.9116 | BO80: 24185.45948 | BP80: 23938.82909 | BQ80: 24473.4593 | BR80: 24487.44622 | BS80: 24240.7727 | BT80: 24465.66135 | BU80: 25012.05207 | BV80: 25026.31873 | BW80: =IF(BW7,BW72)*1 -> 24774.17779 | BX80: 24521.85138 | BY80: 25069.54495 | BZ80: 25084.09694 | CA80: 24831.72567 | CB80: 24846.29158 | CC80: 25128.18769 | CD80: 25143.03072 | CE80: 24890.4245 | CF80: 24637.62531 | CG80: 25188.00328 | CH80: 25203.14318 | CI80: 24950.29731 | CJ80: 24697.25462 | CK80: 25249.01519 | CL80: 25264.45788 | CM80: 25011.36758 | CN80: 24758.07651 | CO80: 25311.24733 | CP80: 25326.99888 | CQ80: 25073.65925 | CR80: 25089.42586 | CS80: 25374.72412 | CT80: 25390.7907 | CU80: 25137.19675 | CV80: 24883.39394 | CW80: 25439.47044 | CX80: 25455.85835 | CY80: 25202.00501 | CZ80: 24947.93862 | DA80: 25505.51169 | DB80: 25522.22736 | DC80: 25268.10943 | DD80: 25013.77419 | DE80: 25572.87376 | DF80: 25589.92374 | DG80: 25335.53594 | DH80: 25352.60223 | DI80: 25641.58308 | DJ80: 25658.97406 | DK80: 25404.31097 | DL80: 25149.4218 | DM80: 25711.66658 | DN80: 25729.40538 | DO80: 25474.46151 | DP80: 25219.28704 | DQ80: 25783.15175 | DR80: 25801.24533 | DS80: 25546.01506 | DT80: 25290.54958 | DU80: 0 | DV80: 0 | DW80: 0 | DX80: 0 | DY80: 0 | DZ80: 0 | EA80: 0 | EB80: 0 | EC80: 0 | ED80: 0 | EE80: 0 | EF80: 0 | EG80: 0 | EH80: 0 | EI80: =IF(EI7,EI72)*1 -> 0 | EJ80: 0 | EK80: 0 | EL80: 0 | EM80: 0 | EN80: 0 | EO80: 0 | EP80: 0 | EQ80: 0 | ER80: 0 | ES80: 0 | ET80: 0 | EU80: 0 | EV80: 0 | EW80: 0 | EX80: 0 | EY80: 0 | EZ80: 0 | FA80: 0 | FB80: 0 | FC80: 0 | FD80: 0 | FE80: 0 | FF80: 0 | FG80: 0 | FH80: 0 | FI80: 0 | FJ80: 0 | FK80: 0 | FL80: 0 | FM80: 0 | FN80: 0 | FO80: 0 | FP80: 0 | FQ80: 0 | FR80: 0 | FS80: 0 | FT80: 0 | FU80: 0 | FV80: 0 | FW80: 0 | FX80: 0 | FY80: 0 | FZ80: 0 | GA80: 0 | GB80: 0 | GC80: 0 | GD80: 0 | GE80: 0 | GF80: 0 | GG80: 0 | GH80: 0 | GI80: 0 | GJ80: 0 | GK80: 0 | GL80: 0 | GM80: 0 | GN80: 0 | GO80: 0 | GP80: 0 | GQ80: 0 | GR80: 0 | GS80: 0 | GT80: 0 | GU80: =IF(GU7,GU72)*1 -> 0 | GV80: 0 | GW80: 0 | GX80: 0 | GY80: 0 | GZ80: 0 | HA80: 0
C81: Generation with False | J81: =IF(J7,J45)*1 -> 0 | K81: =IF(K7,K45)*1 -> 0 | L81: 0 | M81: 0 | N81: 0 | O81: 0 | P81: 0 | Q81: 0 | R81: 0 | S81: 0 | T81: 0 | U81: 0 | V81: 0 | W81: 0 | X81: 0 | Y81: 0 | Z81: 0 | AA81: 0 | AB81: 0 | AC81: 0 | AD81: 0 | AE81: 0 | AF81: 0 | AG81: 0 | AH81: 0 | AI81: 0 | AJ81: 0 | AK81: 0 | AL81: 0 | AM81: 0 | AN81: 0 | AO81: 0 | AP81: 0 | AQ81: 0 | AR81: 0 | AS81: 430560 | AT81: 430560 | AU81: 425880 | AV81: 425880 | AW81: 430560 | AX81: 430560 | AY81: 425880 | AZ81: 421200 | BA81: 463680 | BB81: 463680 | BC81: 458640 | BD81: 453600 | BE81: 463680 | BF81: 463680 | BG81: 458640 | BH81: 453600 | BI81: 370944 | BJ81: 370944 | BK81: 366912 | BL81: 366912 | BM81: 370944 | BN81: 370944 | BO81: 366912 | BP81: 362880 | BQ81: 370944 | BR81: 370944 | BS81: 366912 | BT81: 362880 | BU81: 370944 | BV81: 370944 | BW81: =IF(BW7,BW45)*1 -> 366912 | BX81: 362880 | BY81: 370944 | BZ81: 370944 | CA81: 366912 | CB81: 366912 | CC81: 370944 | CD81: 370944 | CE81: 366912 | CF81: 362880 | CG81: 370944 | CH81: 370944 | CI81: 366912 | CJ81: 362880 | CK81: 370944 | CL81: 370944 | CM81: 366912 | CN81: 362880 | CO81: 370944 | CP81: 370944 | CQ81: 366912 | CR81: 366912 | CS81: 370944 | CT81: 370944 | CU81: 366912 | CV81: 362880 | CW81: 370944 | CX81: 370944 | CY81: 366912 | CZ81: 362880 | DA81: 370944 | DB81: 370944 | DC81: 366912 | DD81: 362880 | DE81: 370944 | DF81: 370944 | DG81: 366912 | DH81: 366912 | DI81: 370944 | DJ81: 370944 | DK81: 366912 | DL81: 362880 | DM81: 370944 | DN81: 370944 | DO81: 366912 | DP81: 362880 | DQ81: 370944 | DR81: 370944 | DS81: 366912 | DT81: 362880 | DU81: 0 | DV81: 0 | DW81: 0 | DX81: 0 | DY81: 0 | DZ81: 0 | EA81: 0 | EB81: 0 | EC81: 0 | ED81: 0 | EE81: 0 | EF81: 0 | EG81: 0 | EH81: 0 | EI81: =IF(EI7,EI45)*1 -> 0 | EJ81: 0 | EK81: 0 | EL81: 0 | EM81: 0 | EN81: 0 | EO81: 0 | EP81: 0 | EQ81: 0 | ER81: 0 | ES81: 0 | ET81: 0 | EU81: 0 | EV81: 0 | EW81: 0 | EX81: 0 | EY81: 0 | EZ81: 0 | FA81: 0 | FB81: 0 | FC81: 0 | FD81: 0 | FE81: 0 | FF81: 0 | FG81: 0 | FH81: 0 | FI81: 0 | FJ81: 0 | FK81: 0 | FL81: 0 | FM81: 0 | FN81: 0 | FO81: 0 | FP81: 0 | FQ81: 0 | FR81: 0 | FS81: 0 | FT81: 0 | FU81: 0 | FV81: 0 | FW81: 0 | FX81: 0 | FY81: 0 | FZ81: 0 | GA81: 0 | GB81: 0 | GC81: 0 | GD81: 0 | GE81: 0 | GF81: 0 | GG81: 0 | GH81: 0 | GI81: 0 | GJ81: 0 | GK81: 0 | GL81: 0 | GM81: 0 | GN81: 0 | GO81: 0 | GP81: 0 | GQ81: 0 | GR81: 0 | GS81: 0 | GT81: 0 | GU81: =IF(GU7,GU45)*1 -> 0 | GV81: 0 | GW81: 0 | GX81: 0 | GY81: 0 | GZ81: 0 | HA81: 0
C82: Average Revenue/MWH | F82: =AVERAGE(J82:HA82)*1000 -> 65.93466993 | J82: =IF(J81,J80/J81) -> FALSE | K82: =IF(K81,K80/K81) -> FALSE | L82: FALSE | M82: FALSE | N82: FALSE | O82: FALSE | P82: FALSE | Q82: FALSE | R82: FALSE | S82: FALSE | T82: FALSE | U82: FALSE | V82: FALSE | W82: FALSE | X82: FALSE | Y82: FALSE | Z82: FALSE | AA82: FALSE | AB82: FALSE | AC82: FALSE | AD82: FALSE | AE82: FALSE | AF82: FALSE | AG82: FALSE | AH82: FALSE | AI82: FALSE | AJ82: FALSE | AK82: FALSE | AL82: FALSE | AM82: FALSE | AN82: FALSE | AO82: FALSE | AP82: FALSE | AQ82: FALSE | AR82: FALSE | AS82: 0.05744301825 | AT82: 0.0574756626 | AU82: 0.05752012597 | AV82: 0.057553153 | AW82: 0.05757457092 | AX82: 0.05760786816 | AY82: 0.0576532208 | AZ82: 0.05964912308 | BA82: 0.0571081721 | BB82: 0.05714174789 | BC82: 0.057186752 | BD82: 0.05723228686 | BE82: 0.05724347839 | BF82: 0.05727772571 | BG82: 0.0573236299 | BH82: 0.05737007545 | BI82: 0.06568113275 | BJ82: 0.06571737487 | BK82: 0.06576844266 | BL82: 0.06580511809 | BM82: 0.06582718398 | BN82: 0.06586415093 | BO82: 0.06591624009 | BP82: 0.06596899551 | BQ82: 0.06597615623 | BR82: 0.06601386253 | BS82: 0.06606699346 | BT82: 0.06742080399 | BU82: 0.06742810793 | BV82: 0.06746656835 | BW82: =IF(BW81,BW80/BW81) -> 0.0675207619 | BX82: 0.06757564865 | BY82: 0.06758309866 | BZ82: 0.06762232829 | CA82: 0.06767760571 | CB82: 0.06771730437 | CC82: 0.0677411892 | CD82: 0.06778120342 | CE82: 0.0678375864 | CF82: 0.06789469056 | CG82: 0.06790244156 | CH82: 0.06794325606 | CI82: 0.06800076669 | CJ82: 0.06805901295 | CK82: 0.06806691896 | CL82: 0.06810854976 | CM82: 0.0681672106 | CN82: 0.06822662178 | CO82: 0.06823468591 | CP82: 0.06827714932 | CQ82: 0.06833698338 | CR82: 0.06837995449 | CS82: 0.0684058082 | CT82: 0.06844912088 | CU82: 0.06851015162 | CV82: 0.06857196301 | CW82: 0.06858035294 | CX82: 0.06862453187 | CY82: 0.06868678323 | CZ82: 0.06874983084 | DA82: 0.06875838857 | DB82: 0.06880345108 | DC82: 0.06886694746 | DD82: 0.06893125603 | DE82: 0.06893998491 | DF82: 0.06898594867 | DG82: 0.06905071498 | DH82: 0.06909722829 | DI82: 0.06912521318 | DJ82: 0.06917209622 | DK82: 0.06923815785 | DL82: 0.06930506449 | DM82: 0.06931414601 | DN82: 0.06936196671 | DO82: 0.06942934958 | DP82: 0.06949759435 | DQ82: 0.06950685751 | DR82: 0.06955563462 | DS82: 0.06962436515 | DT82: 0.06969397481 | DU82: FALSE | DV82: FALSE | DW82: FALSE | DX82: FALSE | DY82: FALSE | DZ82: FALSE | EA82: FALSE | EB82: FALSE | EC82: FALSE | ED82: FALSE | EE82: FALSE | EF82: FALSE | EG82: FALSE | EH82: FALSE | EI82: =IF(EI81,EI80/EI81) -> FALSE | EJ82: FALSE | EK82: FALSE | EL82: FALSE | EM82: FALSE | EN82: FALSE | EO82: FALSE | EP82: FALSE | EQ82: FALSE | ER82: FALSE | ES82: FALSE | ET82: FALSE | EU82: FALSE | EV82: FALSE | EW82: FALSE | EX82: FALSE | EY82: FALSE | EZ82: FALSE | FA82: FALSE | FB82: FALSE | FC82: FALSE | FD82: FALSE | FE82: FALSE | FF82: FALSE | FG82: FALSE | FH82: FALSE | FI82: FALSE | FJ82: FALSE | FK82: FALSE | FL82: FALSE | FM82: FALSE | FN82: FALSE | FO82: FALSE | FP82: FALSE | FQ82: FALSE | FR82: FALSE | FS82: FALSE | FT82: FALSE | FU82: FALSE | FV82: FALSE | FW82: FALSE | FX82: FALSE | FY82: FALSE | FZ82: FALSE | GA82: FALSE | GB82: FALSE | GC82: FALSE | GD82: FALSE | GE82: FALSE | GF82: FALSE | GG82: FALSE | GH82: FALSE | GI82: FALSE | GJ82: FALSE | GK82: FALSE | GL82: FALSE | GM82: FALSE | GN82: FALSE | GO82: FALSE | GP82: FALSE | GQ82: FALSE | GR82: FALSE | GS82: FALSE | GT82: FALSE | GU82: =IF(GU81,GU80/GU81) -> FALSE | GV82: FALSE | GW82: FALSE | GX82: FALSE | GY82: FALSE | GZ82: FALSE | HA82: FALSE
C83: Compound Factor Nominal | F83: =Assumptions!E56 -> 0.07 | I83: 1 | J83: =I83*(1+$F$83/12*J4*J7) -> 1 | K83: =J83*(1+$F$83/12*K4*K7) -> 1 | L83: 1 | M83: 1 | N83: 1 | O83: 1 | P83: 1 | Q83: 1 | R83: 1 | S83: 1 | T83: 1 | U83: 1 | V83: 1 | W83: 1 | X83: 1 | Y83: 1 | Z83: 1 | AA83: 1 | AB83: 1 | AC83: 1 | AD83: 1 | AE83: 1 | AF83: 1 | AG83: 1 | AH83: 1 | AI83: 1 | AJ83: 1 | AK83: 1 | AL83: 1 | AM83: 1 | AN83: 1 | AO83: 1 | AP83: 1 | AQ83: 1 | AR83: 1 | AS83: 1.0175 | AT83: 1.03530625 | AU83: 1.053424109 | AV83: 1.071859031 | AW83: 1.090616564 | AX83: 1.109702354 | AY83: 1.129122145 | AZ83: 1.148881783 | BA83: 1.168987214 | BB83: 1.18944449 | BC83: 1.210259769 | BD83: 1.231439315 | BE83: 1.252989503 | BF83: 1.274916819 | BG83: 1.297227864 | BH83: 1.319929351 | BI83: 1.343028115 | BJ83: 1.366531107 | BK83: 1.390445401 | BL83: 1.414778196 | BM83: 1.439536814 | BN83: 1.464728708 | BO83: 1.490361461 | BP83: 1.516442786 | BQ83: 1.542980535 | BR83: 1.569982695 | BS83: 1.597457392 | BT83: 1.625412896 | BU83: 1.653857622 | BV83: 1.68280013 | BW83: =BV83*(1+$F$83/12*BW4*BW7) -> 1.712249132 | BX83: 1.742213492 | BY83: 1.772702228 | BZ83: 1.803724517 | CA83: 1.835289696 | CB83: 1.867407266 | CC83: 1.900086893 | CD83: 1.933338414 | CE83: 1.967171836 | CF83: 2.001597343 | CG83: 2.036625297 | CH83: 2.072266239 | CI83: 2.108530899 | CJ83: 2.145430189 | CK83: 2.182975218 | CL83: 2.221177284 | CM83: 2.260047886 | CN83: 2.299598724 | CO83: 2.339841702 | CP83: 2.380788932 | CQ83: 2.422452738 | CR83: 2.464845661 | CS83: 2.50798046 | CT83: 2.551870118 | CU83: 2.596527845 | CV83: 2.641967083 | CW83: 2.688201507 | CX83: 2.735245033 | CY83: 2.783111821 | CZ83: 2.831816278 | DA83: 2.881373063 | DB83: 2.931797091 | DC83: 2.98310354 | DD83: 3.035307852 | DE83: 3.08842574 | DF83: 3.14247319 | DG83: 3.197466471 | DH83: 3.253422134 | DI83: 3.310357022 | DJ83: 3.368288269 | DK83: 3.427233314 | DL83: 3.487209897 | DM83: 3.54823607 | DN83: 3.610330202 | DO83: 3.67351098 | DP83: 3.737797422 | DQ83: 3.803208877 | DR83: 3.869765033 | DS83: 3.937485921 | DT83: 4.006391924 | DU83: 4.006391924 | DV83: 4.006391924 | DW83: 4.006391924 | DX83: 4.006391924 | DY83: 4.006391924 | DZ83: 4.006391924 | EA83: 4.006391924 | EB83: 4.006391924 | EC83: 4.006391924 | ED83: 4.006391924 | EE83: 4.006391924 | EF83: 4.006391924 | EG83: 4.006391924 | EH83: 4.006391924 | EI83: =EH83*(1+$F$83/12*EI4*EI7) -> 4.006391924 | EJ83: 4.006391924 | EK83: 4.006391924 | EL83: 4.006391924 | EM83: 4.006391924 | EN83: 4.006391924 | EO83: 4.006391924 | EP83: 4.006391924 | EQ83: 4.006391924 | ER83: 4.006391924 | ES83: 4.006391924 | ET83: 4.006391924 | EU83: 4.006391924 | EV83: 4.006391924 | EW83: 4.006391924 | EX83: 4.006391924 | EY83: 4.006391924 | EZ83: 4.006391924 | FA83: 4.006391924 | FB83: 4.006391924 | FC83: 4.006391924 | FD83: 4.006391924 | FE83: 4.006391924 | FF83: 4.006391924 | FG83: 4.006391924 | FH83: 4.006391924 | FI83: 4.006391924 | FJ83: 4.006391924 | FK83: 4.006391924 | FL83: 4.006391924 | FM83: 4.006391924 | FN83: 4.006391924 | FO83: 4.006391924 | FP83: 4.006391924 | FQ83: 4.006391924 | FR83: 4.006391924 | FS83: 4.006391924 | FT83: 4.006391924 | FU83: 4.006391924 | FV83: 4.006391924 | FW83: 4.006391924 | FX83: 4.006391924 | FY83: 4.006391924 | FZ83: 4.006391924 | GA83: 4.006391924 | GB83: 4.006391924 | GC83: 4.006391924 | GD83: 4.006391924 | GE83: 4.006391924 | GF83: 4.006391924 | GG83: 4.006391924 | GH83: 4.006391924 | GI83: 4.006391924 | GJ83: 4.006391924 | GK83: 4.006391924 | GL83: 4.006391924 | GM83: 4.006391924 | GN83: 4.006391924 | GO83: 4.006391924 | GP83: 4.006391924 | GQ83: 4.006391924 | GR83: 4.006391924 | GS83: 4.006391924 | GT83: 4.006391924 | GU83: =GT83*(1+$F$83/12*GU4*GU7) -> 4.006391924 | GV83: 4.006391924 | GW83: 4.006391924 | GX83: 4.006391924 | GY83: 4.006391924 | GZ83: 4.006391924 | HA83: 4.006391924
C84: Compound Factor Real | F84: =F87 -> 0.04901960784 | I84: 1 | J84: =I84*(1+$F$84/12*J4*J7) -> 1 | K84: =J84*(1+$F$84/12*K4*K7) -> 1 | L84: 1 | M84: 1 | N84: 1 | O84: 1 | P84: 1 | Q84: 1 | R84: 1 | S84: 1 | T84: 1 | U84: 1 | V84: 1 | W84: 1 | X84: 1 | Y84: 1 | Z84: 1 | AA84: 1 | AB84: 1 | AC84: 1 | AD84: 1 | AE84: 1 | AF84: 1 | AG84: 1 | AH84: 1 | AI84: 1 | AJ84: 1 | AK84: 1 | AL84: 1 | AM84: 1 | AN84: 1 | AO84: 1 | AP84: 1 | AQ84: 1 | AR84: 1 | AS84: 1.012254902 | AT84: 1.024659987 | AU84: 1.037217094 | AV84: 1.049928088 | AW84: 1.062794854 | AX84: 1.075819301 | AY84: 1.089003361 | AZ84: 1.10234899 | BA84: 1.115858169 | BB84: 1.129532901 | BC84: 1.143375216 | BD84: 1.157387167 | BE84: 1.171570834 | BF84: 1.185928319 | BG84: 1.200461755 | BH84: 1.215173296 | BI84: 1.230065125 | BJ84: 1.245139453 | BK84: 1.260398515 | BL84: 1.275844575 | BM84: 1.291479925 | BN84: 1.307306885 | BO84: 1.323327803 | BP84: 1.339545055 | BQ84: 1.355961049 | BR84: 1.372578218 | BS84: 1.38939903 | BT84: 1.406425979 | BU84: 1.423661591 | BV84: 1.441108424 | BW84: =BV84*(1+$F$84/12*BW4*BW7) -> 1.458769067 | BX84: 1.476646139 | BY84: 1.494742292 | BZ84: 1.513060213 | CA84: 1.531602617 | CB84: 1.550372257 | CC84: 1.569371917 | CD84: 1.588604416 | CE84: 1.608072608 | CF84: 1.62777938 | CG84: 1.647727656 | CH84: 1.667920397 | CI84: 1.688360598 | CJ84: 1.709051292 | CK84: 1.729995548 | CL84: 1.751196474 | CM84: 1.772657215 | CN84: 1.794380955 | CO84: 1.816370918 | CP84: 1.838630365 | CQ84: 1.8611626 | CR84: 1.883970966 | CS84: 1.907058845 | CT84: 1.930429664 | CU84: 1.95408689 | CV84: 1.978034034 | CW84: 2.002274647 | CX84: 2.026812326 | CY84: 2.051650713 | CZ84: 2.076793491 | DA84: 2.102244392 | DB84: 2.128007191 | DC84: 2.15408571 | DD84: 2.180483819 | DE84: 2.207205435 | DF84: 2.234254521 | DG84: 2.261635091 | DH84: 2.289351207 | DI84: 2.317406982 | DJ84: 2.345806577 | DK84: 2.374554207 | DL84: 2.403654136 | DM84: 2.433110682 | DN84: 2.462928215 | DO84: 2.493111158 | DP84: 2.523663991 | DQ84: 2.554591246 | DR84: 2.585897511 | DS84: 2.617587432 | DT84: 2.649665709 | DU84: 2.649665709 | DV84: 2.649665709 | DW84: 2.649665709 | DX84: 2.649665709 | DY84: 2.649665709 | DZ84: 2.649665709 | EA84: 2.649665709 | EB84: 2.649665709 | EC84: 2.649665709 | ED84: 2.649665709 | EE84: 2.649665709 | EF84: 2.649665709 | EG84: 2.649665709 | EH84: 2.649665709 | EI84: =EH84*(1+$F$84/12*EI4*EI7) -> 2.649665709 | EJ84: 2.649665709 | EK84: 2.649665709 | EL84: 2.649665709 | EM84: 2.649665709 | EN84: 2.649665709 | EO84: 2.649665709 | EP84: 2.649665709 | EQ84: 2.649665709 | ER84: 2.649665709 | ES84: 2.649665709 | ET84: 2.649665709 | EU84: 2.649665709 | EV84: 2.649665709 | EW84: 2.649665709 | EX84: 2.649665709 | EY84: 2.649665709 | EZ84: 2.649665709 | FA84: 2.649665709 | FB84: 2.649665709 | FC84: 2.649665709 | FD84: 2.649665709 | FE84: 2.649665709 | FF84: 2.649665709 | FG84: 2.649665709 | FH84: 2.649665709 | FI84: 2.649665709 | FJ84: 2.649665709 | FK84: 2.649665709 | FL84: 2.649665709 | FM84: 2.649665709 | FN84: 2.649665709 | FO84: 2.649665709 | FP84: 2.649665709 | FQ84: 2.649665709 | FR84: 2.649665709 | FS84: 2.649665709 | FT84: 2.649665709 | FU84: 2.649665709 | FV84: 2.649665709 | FW84: 2.649665709 | FX84: 2.649665709 | FY84: 2.649665709 | FZ84: 2.649665709 | GA84: 2.649665709 | GB84: 2.649665709 | GC84: 2.649665709 | GD84: 2.649665709 | GE84: 2.649665709 | GF84: 2.649665709 | GG84: 2.649665709 | GH84: 2.649665709 | GI84: 2.649665709 | GJ84: 2.649665709 | GK84: 2.649665709 | GL84: 2.649665709 | GM84: 2.649665709 | GN84: 2.649665709 | GO84: 2.649665709 | GP84: 2.649665709 | GQ84: 2.649665709 | GR84: 2.649665709 | GS84: 2.649665709 | GT84: 2.649665709 | GU84: =GT84*(1+$F$84/12*GU4*GU7) -> 2.649665709 | GV84: 2.649665709 | GW84: 2.649665709 | GX84: 2.649665709 | GY84: 2.649665709 | GZ84: 2.649665709 | HA84: 2.649665709
C86: PV of Revenue at Nominal Rate | F86: =Assumptions!E56 -> 0.07 | G86: =SUMPRODUCT(J80:HA80/J83:HA83) -> 1076196.355
C87: PV of Generation at Real Rate | F87: =Assumptions!E58 -> 0.04901960784 | G87: =SUMPRODUCT(J81:HA81/J84:HA84) -> 19788255.11
G88: =G86/G87*1000 -> 54.38561154
A90: Sources and Uses Summary:
B91: Uses of Funds:
C92: CAPEX | I92: =I76 -> 500007.1429
C93: IDC
C94: Upfront Fee
C95: Commitment Fee
C96: DSRA
D97: Total Uses | I97: =SUM(I92:I96) -> 500007.1429
B100: Sources of Funds:
C101: Debts | G101: =Assumptions!E61 -> 0.76 | I101: =I97*G101 -> 380005.4286
C102: Equity | G102: =1-G101 -> 0.24 | I102: =I97-I101 -> 120001.7143
D103: Total Sources | I103: =SUM(I101:I102) -> 500007.1429
I104: =I97=I103 -> TRUE
A106: Pre-COD Funding
C107: CAPEX | J107: =J76 -> 5000 | K107: =K76 -> 5000 | L107: 5000 | M107: 5000 | N107: 5000 | O107: 15000 | P107: 15000 | Q107: 15000 | R107: 15000 | S107: 15000 | T107: 15000 | U107: 20000 | V107: 20000 | W107: 15000 | X107: 25000 | Y107: 12000 | Z107: 35000 | AA107: 14285.71429 | AB107: 15150 | AC107: 14285.71429 | AD107: 14285.71429 | AE107: 14285.71429 | AF107: 14285.71429 | AG107: 14285.71429 | AH107: 14285.71429 | AI107: 14285.71429 | AJ107: 14285.71429 | AK107: 14285.71429 | AL107: 14285.71429 | AM107: 14285.71429 | AN107: 14285.71429 | AO107: 14285.71429 | AP107: 14285.71429 | AQ107: 14285.71429 | AR107: 14285.71429 | AS107: 0 | AT107: 0 | AU107: 0 | AV107: 0 | AW107: 0 | AX107: 0 | AY107: 0 | AZ107: 0 | BA107: 0 | BB107: 0 | BC107: 0 | BD107: 0 | BE107: 0 | BF107: 0 | BG107: 0 | BH107: 0 | BI107: 0 | BJ107: 0 | BK107: 0 | BL107: 0 | BM107: 0 | BN107: 0 | BO107: 0 | BP107: 0 | BQ107: 0 | BR107: 0 | BS107: 0 | BT107: 0 | BU107: 0 | BV107: 0 | BW107: =BW76 -> 0 | BX107: 0 | BY107: 0 | BZ107: 0 | CA107: 0 | CB107: 0 | CC107: 0 | CD107: 0 | CE107: 0 | CF107: 0 | CG107: 0 | CH107: 0 | CI107: 0 | CJ107: 0 | CK107: 0 | CL107: 0 | CM107: 0 | CN107: 0 | CO107: 0 | CP107: 0 | CQ107: 0 | CR107: 0 | CS107: 0 | CT107: 0 | CU107: 0 | CV107: 0 | CW107: 0 | CX107: 0 | CY107: 0 | CZ107: 0 | DA107: 0 | DB107: 0 | DC107: 0 | DD107: 0 | DE107: 0 | DF107: 0 | DG107: 0 | DH107: 0 | DI107: 0 | DJ107: 0 | DK107: 0 | DL107: 0 | DM107: 0 | DN107: 0 | DO107: 0 | DP107: 0 | DQ107: 0 | DR107: 0 | DS107: 0 | DT107: 0 | DU107: 0 | DV107: 0 | DW107: 0 | DX107: 0 | DY107: 0 | DZ107: 0 | EA107: 0 | EB107: 0 | EC107: 0 | ED107: 0 | EE107: 0 | EF107: 0 | EG107: 0 | EH107: 0 | EI107: =EI76 -> 0 | EJ107: 0 | EK107: 0 | EL107: 0 | EM107: 0 | EN107: 0 | EO107: 0 | EP107: 0 | EQ107: 0 | ER107: 0 | ES107: 0 | ET107: 0 | EU107: 0 | EV107: 0 | EW107: 0 | EX107: 0 | EY107: 0 | EZ107: 0 | FA107: 0 | FB107: 0 | FC107: 0 | FD107: 0 | FE107: 0 | FF107: 0 | FG107: 0 | FH107: 0 | FI107: 0 | FJ107: 0 | FK107: 0 | FL107: 0 | FM107: 0 | FN107: 0 | FO107: 0 | FP107: 0 | FQ107: 0 | FR107: 0 | FS107: 0 | FT107: 0 | FU107: 0 | FV107: 0 | FW107: 0 | FX107: 0 | FY107: 0 | FZ107: 0 | GA107: 0 | GB107: 0 | GC107: 0 | GD107: 0 | GE107: 0 | GF107: 0 | GG107: 0 | GH107: 0 | GI107: 0 | GJ107: 0 | GK107: 0 | GL107: 0 | GM107: 0 | GN107: 0 | GO107: 0 | GP107: 0 | GQ107: 0 | GR107: 0 | GS107: 0 | GT107: 0 | GU107: =GU76 -> 0 | GV107: 0 | GW107: 0 | GX107: 0 | GY107: 0 | GZ107: 0 | HA107: 0
C108: IDC
C109: Upfront Fee
C110: Commitment Fee
C111: DSRA
D112: Total Funding Needs | J112: =SUM(J107:J111) -> 5000 | K112: =SUM(K107:K111) -> 5000 | L112: 5000 | M112: 5000 | N112: 5000 | O112: 15000 | P112: 15000 | Q112: 15000 | R112: 15000 | S112: 15000 | T112: 15000 | U112: 20000 | V112: 20000 | W112: 15000 | X112: 25000 | Y112: 12000 | Z112: 35000 | AA112: 14285.71429 | AB112: 15150 | AC112: 14285.71429 | AD112: 14285.71429 | AE112: 14285.71429 | AF112: 14285.71429 | AG112: 14285.71429 | AH112: 14285.71429 | AI112: 14285.71429 | AJ112: 14285.71429 | AK112: 14285.71429 | AL112: 14285.71429 | AM112: 14285.71429 | AN112: 14285.71429 | AO112: 14285.71429 | AP112: 14285.71429 | AQ112: 14285.71429 | AR112: 14285.71429 | AS112: 0 | AT112: 0 | AU112: 0 | AV112: 0 | AW112: 0 | AX112: 0 | AY112: 0 | AZ112: 0 | BA112: 0 | BB112: 0 | BC112: 0 | BD112: 0 | BE112: 0 | BF112: 0 | BG112: 0 | BH112: 0 | BI112: 0 | BJ112: 0 | BK112: 0 | BL112: 0 | BM112: 0 | BN112: 0 | BO112: 0 | BP112: 0 | BQ112: 0 | BR112: 0 | BS112: 0 | BT112: 0 | BU112: 0 | BV112: 0 | BW112: =SUM(BW107:BW111) -> 0 | BX112: 0 | BY112: 0 | BZ112: 0 | CA112: 0 | CB112: 0 | CC112: 0 | CD112: 0 | CE112: 0 | CF112: 0 | CG112: 0 | CH112: 0 | CI112: 0 | CJ112: 0 | CK112: 0 | CL112: 0 | CM112: 0 | CN112: 0 | CO112: 0 | CP112: 0 | CQ112: 0 | CR112: 0 | CS112: 0 | CT112: 0 | CU112: 0 | CV112: 0 | CW112: 0 | CX112: 0 | CY112: 0 | CZ112: 0 | DA112: 0 | DB112: 0 | DC112: 0 | DD112: 0 | DE112: 0 | DF112: 0 | DG112: 0 | DH112: 0 | DI112: 0 | DJ112: 0 | DK112: 0 | DL112: 0 | DM112: 0 | DN112: 0 | DO112: 0 | DP112: 0 | DQ112: 0 | DR112: 0 | DS112: 0 | DT112: 0 | DU112: 0 | DV112: 0 | DW112: 0 | DX112: 0 | DY112: 0 | DZ112: 0 | EA112: 0 | EB112: 0 | EC112: 0 | ED112: 0 | EE112: 0 | EF112: 0 | EG112: 0 | EH112: 0 | EI112: =SUM(EI107:EI111) -> 0 | EJ112: 0 | EK112: 0 | EL112: 0 | EM112: 0 | EN112: 0 | EO112: 0 | EP112: 0 | EQ112: 0 | ER112: 0 | ES112: 0 | ET112: 0 | EU112: 0 | EV112: 0 | EW112: 0 | EX112: 0 | EY112: 0 | EZ112: 0 | FA112: 0 | FB112: 0 | FC112: 0 | FD112: 0 | FE112: 0 | FF112: 0 | FG112: 0 | FH112: 0 | FI112: 0 | FJ112: 0 | FK112: 0 | FL112: 0 | FM112: 0 | FN112: 0 | FO112: 0 | FP112: 0 | FQ112: 0 | FR112: 0 | FS112: 0 | FT112: 0 | FU112: 0 | FV112: 0 | FW112: 0 | FX112: 0 | FY112: 0 | FZ112: 0 | GA112: 0 | GB112: 0 | GC112: 0 | GD112: 0 | GE112: 0 | GF112: 0 | GG112: 0 | GH112: 0 | GI112: 0 | GJ112: 0 | GK112: 0 | GL112: 0 | GM112: 0 | GN112: 0 | GO112: 0 | GP112: 0 | GQ112: 0 | GR112: 0 | GS112: 0 | GT112: 0 | GU112: =SUM(GU107:GU111) -> 0 | GV112: 0 | GW112: 0 | GX112: 0 | GY112: 0 | GZ112: 0 | HA112: 0
C114: Pro-rata percent | I114: =SUM(J114:HA114) -> 1 | J114: =J112/SUM(112:112) -> 0.009999857145 | K114: =K112/SUM(112:112) -> 0.009999857145 | L114: =L112/SUM(112:112) -> 0.009999857145 | M114: =M112/SUM(112:112) -> 0.009999857145 | N114: =N112/SUM(112:112) -> 0.009999857145 | O114: =O112/SUM(112:112) -> 0.02999957143 | P114: =P112/SUM(112:112) -> 0.02999957143 | Q114: =Q112/SUM(112:112) -> 0.02999957143 | R114: =R112/SUM(112:112) -> 0.02999957143 | S114: =S112/SUM(112:112) -> 0.02999957143 | T114: =T112/SUM(112:112) -> 0.02999957143 | U114: =U112/SUM(112:112) -> 0.03999942858 | V114: =V112/SUM(112:112) -> 0.03999942858 | W114: =W112/SUM(112:112) -> 0.02999957143 | X114: =X112/SUM(112:112) -> 0.04999928572 | Y114: =Y112/SUM(112:112) -> 0.02399965715 | Z114: =Z112/SUM(112:112) -> 0.06999900001 | AA114: =AA112/SUM(112:112) -> 0.02857102041 | AB114: =AB112/SUM(112:112) -> 0.03029956715 | AC114: =AC112/SUM(112:112) -> 0.02857102041 | AD114: =AD112/SUM(112:112) -> 0.02857102041 | AE114: =AE112/SUM(112:112) -> 0.02857102041 | AF114: =AF112/SUM(112:112) -> 0.02857102041 | AG114: =AG112/SUM(112:112) -> 0.02857102041 | AH114: =AH112/SUM(112:112) -> 0.02857102041 | AI114: =AI112/SUM(112:112) -> 0.02857102041 | AJ114: =AJ112/SUM(112:112) -> 0.02857102041 | AK114: =AK112/SUM(112:112) -> 0.02857102041 | AL114: =AL112/SUM(112:112) -> 0.02857102041 | AM114: =AM112/SUM(112:112) -> 0.02857102041 | AN114: =AN112/SUM(112:112) -> 0.02857102041 | AO114: =AO112/SUM(112:112) -> 0.02857102041 | AP114: =AP112/SUM(112:112) -> 0.02857102041 | AQ114: =AQ112/SUM(112:112) -> 0.02857102041 | AR114: =AR112/SUM(112:112) -> 0.02857102041 | AS114: =AS112/SUM(112:112) -> 0 | AT114: =AT112/SUM(112:112) -> 0 | AU114: =AU112/SUM(112:112) -> 0 | AV114: =AV112/SUM(112:112) -> 0 | AW114: =AW112/SUM(112:112) -> 0 | AX114: =AX112/SUM(112:112) -> 0 | AY114: =AY112/SUM(112:112) -> 0 | AZ114: =AZ112/SUM(112:112) -> 0 | BA114: =BA112/SUM(112:112) -> 0 | BB114: =BB112/SUM(112:112) -> 0 | BC114: =BC112/SUM(112:112) -> 0 | BD114: =BD112/SUM(112:112) -> 0 | BE114: =BE112/SUM(112:112) -> 0 | BF114: =BF112/SUM(112:112) -> 0 | BG114: =BG112/SUM(112:112) -> 0 | BH114: =BH112/SUM(112:112) -> 0 | BI114: =BI112/SUM(112:112) -> 0 | BJ114: =BJ112/SUM(112:112) -> 0 | BK114: =BK112/SUM(112:112) -> 0 | BL114: =BL112/SUM(112:112) -> 0 | BM114: =BM112/SUM(112:112) -> 0 | BN114: =BN112/SUM(112:112) -> 0 | BO114: =BO112/SUM(112:112) -> 0 | BP114: =BP112/SUM(112:112) -> 0 | BQ114: =BQ112/SUM(112:112) -> 0 | BR114: =BR112/SUM(112:112) -> 0 | BS114: =BS112/SUM(112:112) -> 0 | BT114: =BT112/SUM(112:112) -> 0 | BU114: =BU112/SUM(112:112) -> 0 | BV114: =BV112/SUM(112:112) -> 0 | BW114: =BW112/SUM(112:112) -> 0 | BX114: =BX112/SUM(112:112) -> 0 | BY114: =BY112/SUM(112:112) -> 0 | BZ114: =BZ112/SUM(112:112) -> 0 | CA114: =CA112/SUM(112:112) -> 0 | CB114: =CB112/SUM(112:112) -> 0 | CC114: =CC112/SUM(112:112) -> 0 | CD114: =CD112/SUM(112:112) -> 0 | CE114: =CE112/SUM(112:112) -> 0 | CF114: =CF112/SUM(112:112) -> 0 | CG114: =CG112/SUM(112:112) -> 0 | CH114: =CH112/SUM(112:112) -> 0 | CI114: =CI112/SUM(112:112) -> 0 | CJ114: =CJ112/SUM(112:112) -> 0 | CK114: =CK112/SUM(112:112) -> 0 | CL114: =CL112/SUM(112:112) -> 0 | CM114: =CM112/SUM(112:112) -> 0 | CN114: =CN112/SUM(112:112) -> 0 | CO114: =CO112/SUM(112:112) -> 0 | CP114: =CP112/SUM(112:112) -> 0 | CQ114: =CQ112/SUM(112:112) -> 0 | CR114: =CR112/SUM(112:112) -> 0 | CS114: =CS112/SUM(112:112) -> 0 | CT114: =CT112/SUM(112:112) -> 0 | CU114: =CU112/SUM(112:112) -> 0 | CV114: =CV112/SUM(112:112) -> 0 | CW114: =CW112/SUM(112:112) -> 0 | CX114: =CX112/SUM(112:112) -> 0 | CY114: =CY112/SUM(112:112) -> 0 | CZ114: =CZ112/SUM(112:112) -> 0 | DA114: =DA112/SUM(112:112) -> 0 | DB114: =DB112/SUM(112:112) -> 0 | DC114: =DC112/SUM(112:112) -> 0 | DD114: =DD112/SUM(112:112) -> 0 | DE114: =DE112/SUM(112:112) -> 0 | DF114: =DF112/SUM(112:112) -> 0 | DG114: =DG112/SUM(112:112) -> 0 | DH114: =DH112/SUM(112:112) -> 0 | DI114: =DI112/SUM(112:112) -> 0 | DJ114: =DJ112/SUM(112:112) -> 0 | DK114: =DK112/SUM(112:112) -> 0 | DL114: =DL112/SUM(112:112) -> 0 | DM114: =DM112/SUM(112:112) -> 0 | DN114: =DN112/SUM(112:112) -> 0 | DO114: =DO112/SUM(112:112) -> 0 | DP114: =DP112/SUM(112:112) -> 0 | DQ114: =DQ112/SUM(112:112) -> 0 | DR114: =DR112/SUM(112:112) -> 0 | DS114: =DS112/SUM(112:112) -> 0 | DT114: =DT112/SUM(112:112) -> 0 | DU114: =DU112/SUM(112:112) -> 0 | DV114: =DV112/SUM(112:112) -> 0 | DW114: =DW112/SUM(112:112) -> 0 | DX114: =DX112/SUM(112:112) -> 0 | DY114: =DY112/SUM(112:112) -> 0 | DZ114: =DZ112/SUM(112:112) -> 0 | EA114: =EA112/SUM(112:112) -> 0 | EB114: =EB112/SUM(112:112) -> 0 | EC114: =EC112/SUM(112:112) -> 0 | ED114: =ED112/SUM(112:112) -> 0 | EE114: =EE112/SUM(112:112) -> 0 | EF114: =EF112/SUM(112:112) -> 0 | EG114: =EG112/SUM(112:112) -> 0 | EH114: =EH112/SUM(112:112) -> 0 | EI114: =EI112/SUM(112:112) -> 0 | EJ114: =EJ112/SUM(112:112) -> 0 | EK114: =EK112/SUM(112:112) -> 0 | EL114: =EL112/SUM(112:112) -> 0 | EM114: =EM112/SUM(112:112) -> 0 | EN114: =EN112/SUM(112:112) -> 0 | EO114: =EO112/SUM(112:112) -> 0 | EP114: =EP112/SUM(112:112) -> 0 | EQ114: =EQ112/SUM(112:112) -> 0 | ER114: =ER112/SUM(112:112) -> 0 | ES114: =ES112/SUM(112:112) -> 0 | ET114: =ET112/SUM(112:112) -> 0 | EU114: =EU112/SUM(112:112) -> 0 | EV114: =EV112/SUM(112:112) -> 0 | EW114: =EW112/SUM(112:112) -> 0 | EX114: =EX112/SUM(112:112) -> 0 | EY114: =EY112/SUM(112:112) -> 0 | EZ114: =EZ112/SUM(112:112) -> 0 | FA114: =FA112/SUM(112:112) -> 0 | FB114: =FB112/SUM(112:112) -> 0 | FC114: =FC112/SUM(112:112) -> 0 | FD114: =FD112/SUM(112:112) -> 0 | FE114: =FE112/SUM(112:112) -> 0 | FF114: =FF112/SUM(112:112) -> 0 | FG114: =FG112/SUM(112:112) -> 0 | FH114: =FH112/SUM(112:112) -> 0 | FI114: =FI112/SUM(112:112) -> 0 | FJ114: =FJ112/SUM(112:112) -> 0 | FK114: =FK112/SUM(112:112) -> 0 | FL114: =FL112/SUM(112:112) -> 0 | FM114: =FM112/SUM(112:112) -> 0 | FN114: =FN112/SUM(112:112) -> 0 | FO114: =FO112/SUM(112:112) -> 0 | FP114: =FP112/SUM(112:112) -> 0 | FQ114: =FQ112/SUM(112:112) -> 0 | FR114: =FR112/SUM(112:112) -> 0 | FS114: =FS112/SUM(112:112) -> 0 | FT114: =FT112/SUM(112:112) -> 0 | FU114: =FU112/SUM(112:112) -> 0 | FV114: =FV112/SUM(112:112) -> 0 | FW114: =FW112/SUM(112:112) -> 0 | FX114: =FX112/SUM(112:112) -> 0 | FY114: =FY112/SUM(112:112) -> 0 | FZ114: =FZ112/SUM(112:112) -> 0 | GA114: =GA112/SUM(112:112) -> 0 | GB114: =GB112/SUM(112:112) -> 0 | GC114: =GC112/SUM(112:112) -> 0 | GD114: =GD112/SUM(112:112) -> 0 | GE114: =GE112/SUM(112:112) -> 0 | GF114: =GF112/SUM(112:112) -> 0 | GG114: =GG112/SUM(112:112) -> 0 | GH114: =GH112/SUM(112:112) -> 0 | GI114: =GI112/SUM(112:112) -> 0 | GJ114: =GJ112/SUM(112:112) -> 0 | GK114: =GK112/SUM(112:112) -> 0 | GL114: =GL112/SUM(112:112) -> 0 | GM114: =GM112/SUM(112:112) -> 0 | GN114: =GN112/SUM(112:112) -> 0 | GO114: =GO112/SUM(112:112) -> 0 | GP114: =GP112/SUM(112:112) -> 0 | GQ114: =GQ112/SUM(112:112) -> 0 | GR114: =GR112/SUM(112:112) -> 0 | GS114: =GS112/SUM(112:112) -> 0 | GT114: =GT112/SUM(112:112) -> 0 | GU114: =GU112/SUM(112:112) -> 0 | GV114: =GV112/SUM(112:112) -> 0 | GW114: =GW112/SUM(112:112) -> 0 | GX114: =GX112/SUM(112:112) -> 0 | GY114: =GY112/SUM(112:112) -> 0 | GZ114: =GZ112/SUM(112:112) -> 0 | HA114: =HA112/SUM(112:112) -> 0
C115: Debt Drawdawn | G115: =I101 -> 380005.4286 | J115: =$G$115*J114 -> 3800 | K115: =$G$115*K114 -> 3800 | L115: 3800 | M115: 3800 | N115: 3800 | O115: 11400 | P115: 11400 | Q115: 11400 | R115: 11400 | S115: 11400 | T115: 11400 | U115: 15200 | V115: 15200 | W115: 11400 | X115: 19000 | Y115: 9120 | Z115: 26600 | AA115: 10857.14286 | AB115: 11514 | AC115: 10857.14286 | AD115: 10857.14286 | AE115: 10857.14286 | AF115: 10857.14286 | AG115: 10857.14286 | AH115: 10857.14286 | AI115: 10857.14286 | AJ115: 10857.14286 | AK115: 10857.14286 | AL115: 10857.14286 | AM115: 10857.14286 | AN115: 10857.14286 | AO115: 10857.14286 | AP115: 10857.14286 | AQ115: 10857.14286 | AR115: 10857.14286 | AS115: 0 | AT115: 0 | AU115: 0 | AV115: 0 | AW115: 0 | AX115: 0 | AY115: 0 | AZ115: 0 | BA115: 0 | BB115: 0 | BC115: 0 | BD115: 0 | BE115: 0 | BF115: 0 | BG115: 0 | BH115: 0 | BI115: 0 | BJ115: 0 | BK115: 0 | BL115: 0 | BM115: 0 | BN115: 0 | BO115: 0 | BP115: 0 | BQ115: 0 | BR115: 0 | BS115: 0 | BT115: 0 | BU115: 0 | BV115: 0 | BW115: =$G$115*BW114 -> 0 | BX115: 0 | BY115: 0 | BZ115: 0 | CA115: 0 | CB115: 0 | CC115: 0 | CD115: 0 | CE115: 0 | CF115: 0 | CG115: 0 | CH115: 0 | CI115: 0 | CJ115: 0 | CK115: 0 | CL115: 0 | CM115: 0 | CN115: 0 | CO115: 0 | CP115: 0 | CQ115: 0 | CR115: 0 | CS115: 0 | CT115: 0 | CU115: 0 | CV115: 0 | CW115: 0 | CX115: 0 | CY115: 0 | CZ115: 0 | DA115: 0 | DB115: 0 | DC115: 0 | DD115: 0 | DE115: 0 | DF115: 0 | DG115: 0 | DH115: 0 | DI115: 0 | DJ115: 0 | DK115: 0 | DL115: 0 | DM115: 0 | DN115: 0 | DO115: 0 | DP115: 0 | DQ115: 0 | DR115: 0 | DS115: 0 | DT115: 0 | DU115: 0 | DV115: 0 | DW115: 0 | DX115: 0 | DY115: 0 | DZ115: 0 | EA115: 0 | EB115: 0 | EC115: 0 | ED115: 0 | EE115: 0 | EF115: 0 | EG115: 0 | EH115: 0 | EI115: =$G$115*EI114 -> 0 | EJ115: 0 | EK115: 0 | EL115: 0 | EM115: 0 | EN115: 0 | EO115: 0 | EP115: 0 | EQ115: 0 | ER115: 0 | ES115: 0 | ET115: 0 | EU115: 0 | EV115: 0 | EW115: 0 | EX115: 0 | EY115: 0 | EZ115: 0 | FA115: 0 | FB115: 0 | FC115: 0 | FD115: 0 | FE115: 0 | FF115: 0 | FG115: 0 | FH115: 0 | FI115: 0 | FJ115: 0 | FK115: 0 | FL115: 0 | FM115: 0 | FN115: 0 | FO115: 0 | FP115: 0 | FQ115: 0 | FR115: 0 | FS115: 0 | FT115: 0 | FU115: 0 | FV115: 0 | FW115: 0 | FX115: 0 | FY115: 0 | FZ115: 0 | GA115: 0 | GB115: 0 | GC115: 0 | GD115: 0 | GE115: 0 | GF115: 0 | GG115: 0 | GH115: 0 | GI115: 0 | GJ115: 0 | GK115: 0 | GL115: 0 | GM115: 0 | GN115: 0 | GO115: 0 | GP115: 0 | GQ115: 0 | GR115: 0 | GS115: 0 | GT115: 0 | GU115: =$G$115*GU114 -> 0 | GV115: 0 | GW115: 0 | GX115: 0 | GY115: 0 | GZ115: 0 | HA115: 0
C116: Equity Funding | J116: =J112-J115 -> 1200 | K116: =K112-K115 -> 1200 | L116: 1200 | M116: 1200 | N116: 1200 | O116: 3600 | P116: 3600 | Q116: 3600 | R116: 3600 | S116: 3600 | T116: 3600 | U116: 4800 | V116: 4800 | W116: 3600 | X116: 6000 | Y116: 2880 | Z116: 8400 | AA116: 3428.571429 | AB116: 3636 | AC116: 3428.571429 | AD116: 3428.571429 | AE116: 3428.571429 | AF116: 3428.571429 | AG116: 3428.571429 | AH116: 3428.571429 | AI116: 3428.571429 | AJ116: 3428.571429 | AK116: 3428.571429 | AL116: 3428.571429 | AM116: 3428.571429 | AN116: 3428.571429 | AO116: 3428.571429 | AP116: 3428.571429 | AQ116: 3428.571429 | AR116: 3428.571429 | AS116: 0 | AT116: 0 | AU116: 0 | AV116: 0 | AW116: 0 | AX116: 0 | AY116: 0 | AZ116: 0 | BA116: 0 | BB116: 0 | BC116: 0 | BD116: 0 | BE116: 0 | BF116: 0 | BG116: 0 | BH116: 0 | BI116: 0 | BJ116: 0 | BK116: 0 | BL116: 0 | BM116: 0 | BN116: 0 | BO116: 0 | BP116: 0 | BQ116: 0 | BR116: 0 | BS116: 0 | BT116: 0 | BU116: 0 | BV116: 0 | BW116: =BW112-BW115 -> 0 | BX116: 0 | BY116: 0 | BZ116: 0 | CA116: 0 | CB116: 0 | CC116: 0 | CD116: 0 | CE116: 0 | CF116: 0 | CG116: 0 | CH116: 0 | CI116: 0 | CJ116: 0 | CK116: 0 | CL116: 0 | CM116: 0 | CN116: 0 | CO116: 0 | CP116: 0 | CQ116: 0 | CR116: 0 | CS116: 0 | CT116: 0 | CU116: 0 | CV116: 0 | CW116: 0 | CX116: 0 | CY116: 0 | CZ116: 0 | DA116: 0 | DB116: 0 | DC116: 0 | DD116: 0 | DE116: 0 | DF116: 0 | DG116: 0 | DH116: 0 | DI116: 0 | DJ116: 0 | DK116: 0 | DL116: 0 | DM116: 0 | DN116: 0 | DO116: 0 | DP116: 0 | DQ116: 0 | DR116: 0 | DS116: 0 | DT116: 0 | DU116: 0 | DV116: 0 | DW116: 0 | DX116: 0 | DY116: 0 | DZ116: 0 | EA116: 0 | EB116: 0 | EC116: 0 | ED116: 0 | EE116: 0 | EF116: 0 | EG116: 0 | EH116: 0 | EI116: =EI112-EI115 -> 0 | EJ116: 0 | EK116: 0 | EL116: 0 | EM116: 0 | EN116: 0 | EO116: 0 | EP116: 0 | EQ116: 0 | ER116: 0 | ES116: 0 | ET116: 0 | EU116: 0 | EV116: 0 | EW116: 0 | EX116: 0 | EY116: 0 | EZ116: 0 | FA116: 0 | FB116: 0 | FC116: 0 | FD116: 0 | FE116: 0 | FF116: 0 | FG116: 0 | FH116: 0 | FI116: 0 | FJ116: 0 | FK116: 0 | FL116: 0 | FM116: 0 | FN116: 0 | FO116: 0 | FP116: 0 | FQ116: 0 | FR116: 0 | FS116: 0 | FT116: 0 | FU116: 0 | FV116: 0 | FW116: 0 | FX116: 0 | FY116: 0 | FZ116: 0 | GA116: 0 | GB116: 0 | GC116: 0 | GD116: 0 | GE116: 0 | GF116: 0 | GG116: 0 | GH116: 0 | GI116: 0 | GJ116: 0 | GK116: 0 | GL116: 0 | GM116: 0 | GN116: 0 | GO116: 0 | GP116: 0 | GQ116: 0 | GR116: 0 | GS116: 0 | GT116: 0 | GU116: =GU112-GU115 -> 0 | GV116: 0 | GW116: 0 | GX116: 0 | GY116: 0 | GZ116: 0 | HA116: 0
D117: Total Funding | J117: =SUM(J115:J116) -> 5000 | K117: =SUM(K115:K116) -> 5000 | L117: 5000 | M117: 5000 | N117: 5000 | O117: 15000 | P117: 15000 | Q117: 15000 | R117: 15000 | S117: 15000 | T117: 15000 | U117: 20000 | V117: 20000 | W117: 15000 | X117: 25000 | Y117: 12000 | Z117: 35000 | AA117: 14285.71429 | AB117: 15150 | AC117: 14285.71429 | AD117: 14285.71429 | AE117: 14285.71429 | AF117: 14285.71429 | AG117: 14285.71429 | AH117: 14285.71429 | AI117: 14285.71429 | AJ117: 14285.71429 | AK117: 14285.71429 | AL117: 14285.71429 | AM117: 14285.71429 | AN117: 14285.71429 | AO117: 14285.71429 | AP117: 14285.71429 | AQ117: 14285.71429 | AR117: 14285.71429 | AS117: 0 | AT117: 0 | AU117: 0 | AV117: 0 | AW117: 0 | AX117: 0 | AY117: 0 | AZ117: 0 | BA117: 0 | BB117: 0 | BC117: 0 | BD117: 0 | BE117: 0 | BF117: 0 | BG117: 0 | BH117: 0 | BI117: 0 | BJ117: 0 | BK117: 0 | BL117: 0 | BM117: 0 | BN117: 0 | BO117: 0 | BP117: 0 | BQ117: 0 | BR117: 0 | BS117: 0 | BT117: 0 | BU117: 0 | BV117: 0 | BW117: =SUM(BW115:BW116) -> 0 | BX117: 0 | BY117: 0 | BZ117: 0 | CA117: 0 | CB117: 0 | CC117: 0 | CD117: 0 | CE117: 0 | CF117: 0 | CG117: 0 | CH117: 0 | CI117: 0 | CJ117: 0 | CK117: 0 | CL117: 0 | CM117: 0 | CN117: 0 | CO117: 0 | CP117: 0 | CQ117: 0 | CR117: 0 | CS117: 0 | CT117: 0 | CU117: 0 | CV117: 0 | CW117: 0 | CX117: 0 | CY117: 0 | CZ117: 0 | DA117: 0 | DB117: 0 | DC117: 0 | DD117: 0 | DE117: 0 | DF117: 0 | DG117: 0 | DH117: 0 | DI117: 0 | DJ117: 0 | DK117: 0 | DL117: 0 | DM117: 0 | DN117: 0 | DO117: 0 | DP117: 0 | DQ117: 0 | DR117: 0 | DS117: 0 | DT117: 0 | DU117: 0 | DV117: 0 | DW117: 0 | DX117: 0 | DY117: 0 | DZ117: 0 | EA117: 0 | EB117: 0 | EC117: 0 | ED117: 0 | EE117: 0 | EF117: 0 | EG117: 0 | EH117: 0 | EI117: =SUM(EI115:EI116) -> 0 | EJ117: 0 | EK117: 0 | EL117: 0 | EM117: 0 | EN117: 0 | EO117: 0 | EP117: 0 | EQ117: 0 | ER117: 0 | ES117: 0 | ET117: 0 | EU117: 0 | EV117: 0 | EW117: 0 | EX117: 0 | EY117: 0 | EZ117: 0 | FA117: 0 | FB117: 0 | FC117: 0 | FD117: 0 | FE117: 0 | FF117: 0 | FG117: 0 | FH117: 0 | FI117: 0 | FJ117: 0 | FK117: 0 | FL117: 0 | FM117: 0 | FN117: 0 | FO117: 0 | FP117: 0 | FQ117: 0 | FR117: 0 | FS117: 0 | FT117: 0 | FU117: 0 | FV117: 0 | FW117: 0 | FX117: 0 | FY117: 0 | FZ117: 0 | GA117: 0 | GB117: 0 | GC117: 0 | GD117: 0 | GE117: 0 | GF117: 0 | GG117: 0 | GH117: 0 | GI117: 0 | GJ117: 0 | GK117: 0 | GL117: 0 | GM117: 0 | GN117: 0 | GO117: 0 | GP117: 0 | GQ117: 0 | GR117: 0 | GS117: 0 | GT117: 0 | GU117: =SUM(GU115:GU116) -> 0 | GV117: 0 | GW117: 0 | GX117: 0 | GY117: 0 | GZ117: 0 | HA117: 0
A119: Debt Repayment
B120: Debts Repaymetn Flag | G120: =Assumptions!E9 -> 2023-03-01 | H120: =Assumptions!E72 -> 2043-03-01 | I120: =SUM(J120:HA120) -> 80 | J120: =AND(J5>=$G$120,J5<$H$120)*1 -> 0 | K120: 0 | L120: 0 | M120: 0 | N120: 0 | O120: 0 | P120: 0 | Q120: 0 | R120: 0 | S120: 0 | T120: 0 | U120: 0 | V120: 0 | W120: 0 | X120: 0 | Y120: 0 | Z120: 0 | AA120: 0 | AB120: 0 | AC120: 0 | AD120: 0 | AE120: 0 | AF120: 0 | AG120: 0 | AH120: 0 | AI120: 0 | AJ120: 0 | AK120: 0 | AL120: 0 | AM120: 0 | AN120: 0 | AO120: 0 | AP120: =AND(AP5>=$G$120,AP5<$H$120)*1 -> 0 | AQ120: 0 | AR120: 0 | AS120: 1 | AT120: 1 | AU120: 1 | AV120: 1 | AW120: 1 | AX120: 1 | AY120: 1 | AZ120: 1 | BA120: 1 | BB120: 1 | BC120: 1 | BD120: 1 | BE120: 1 | BF120: 1 | BG120: 1 | BH120: 1 | BI120: 1 | BJ120: 1 | BK120: 1 | BL120: 1 | BM120: 1 | BN120: 1 | BO120: 1 | BP120: 1 | BQ120: 1 | BR120: 1 | BS120: 1 | BT120: 1 | BU120: 1 | BV120: =AND(BV5>=$G$120,BV5<$H$120)*1 -> 1 | BW120: 1 | BX120: 1 | BY120: 1 | BZ120: 1 | CA120: 1 | CB120: 1 | CC120: 1 | CD120: 1 | CE120: 1 | CF120: 1 | CG120: 1 | CH120: 1 | CI120: 1 | CJ120: 1 | CK120: 1 | CL120: 1 | CM120: 1 | CN120: 1 | CO120: 1 | CP120: 1 | CQ120: 1 | CR120: 1 | CS120: 1 | CT120: 1 | CU120: 1 | CV120: 1 | CW120: 1 | CX120: 1 | CY120: 1 | CZ120: 1 | DA120: 1 | DB120: =AND(DB5>=$G$120,DB5<$H$120)*1 -> 1 | DC120: 1 | DD120: 1 | DE120: 1 | DF120: 1 | DG120: 1 | DH120: 1 | DI120: 1 | DJ120: 1 | DK120: 1 | DL120: 1 | DM120: 1 | DN120: 1 | DO120: 1 | DP120: 1 | DQ120: 1 | DR120: 1 | DS120: 1 | DT120: 1 | DU120: 0 | DV120: 0 | DW120: 0 | DX120: 0 | DY120: 0 | DZ120: 0 | EA120: 0 | EB120: 0 | EC120: 0 | ED120: 0 | EE120: 0 | EF120: 0 | EG120: 0 | EH120: =AND(EH5>=$G$120,EH5<$H$120)*1 -> 0 | EI120: 0 | EJ120: 0 | EK120: 0 | EL120: 0 | EM120: 0 | EN120: 0 | EO120: 0 | EP120: 0 | EQ120: 0 | ER120: 0 | ES120: 0 | ET120: 0 | EU120: 0 | EV120: 0 | EW120: 0 | EX120: 0 | EY120: 0 | EZ120: 0 | FA120: 0 | FB120: 0 | FC120: 0 | FD120: 0 | FE120: 0 | FF120: 0 | FG120: 0 | FH120: 0 | FI120: 0 | FJ120: 0 | FK120: 0 | FL120: 0 | FM120: 0 | FN120: =AND(FN5>=$G$120,FN5<$H$120)*1 -> 0 | FO120: 0 | FP120: 0 | FQ120: 0 | FR120: 0 | FS120: 0 | FT120: 0 | FU120: 0 | FV120: 0 | FW120: 0 | FX120: 0 | FY120: 0 | FZ120: 0 | GA120: 0 | GB120: 0 | GC120: 0 | GD120: 0 | GE120: 0 | GF120: 0 | GG120: 0 | GH120: 0 | GI120: 0 | GJ120: 0 | GK120: 0 | GL120: 0 | GM120: 0 | GN120: 0 | GO120: 0 | GP120: 0 | GQ120: 0 | GR120: 0 | GS120: 0 | GT120: =AND(GT5>=$G$120,GT5<$H$120)*1 -> 0 | GU120: 0 | GV120: 0 | GW120: 0 | GX120: 0 | GY120: 0 | GZ120: 0 | HA120: 0
B121: Flat Debt Repayment | G121: =I101 -> 380005.4286 | H121: =I120 -> 80 | I121: =SUM(J121:HA121) -> 380005.4286 | J121: =$G$121/$H$121*J120 -> 0 | K121: =$G$121/$H$121*K120 -> 0 | L121: 0 | M121: 0 | N121: 0 | O121: 0 | P121: 0 | Q121: 0 | R121: 0 | S121: 0 | T121: 0 | U121: 0 | V121: 0 | W121: 0 | X121: 0 | Y121: 0 | Z121: 0 | AA121: 0 | AB121: 0 | AC121: 0 | AD121: 0 | AE121: 0 | AF121: 0 | AG121: 0 | AH121: 0 | AI121: 0 | AJ121: 0 | AK121: 0 | AL121: 0 | AM121: 0 | AN121: 0 | AO121: 0 | AP121: 0 | AQ121: 0 | AR121: 0 | AS121: 4750.067857 | AT121: 4750.067857 | AU121: 4750.067857 | AV121: 4750.067857 | AW121: 4750.067857 | AX121: 4750.067857 | AY121: 4750.067857 | AZ121: 4750.067857 | BA121: 4750.067857 | BB121: 4750.067857 | BC121: 4750.067857 | BD121: 4750.067857 | BE121: 4750.067857 | BF121: 4750.067857 | BG121: 4750.067857 | BH121: 4750.067857 | BI121: 4750.067857 | BJ121: 4750.067857 | BK121: 4750.067857 | BL121: 4750.067857 | BM121: 4750.067857 | BN121: 4750.067857 | BO121: 4750.067857 | BP121: 4750.067857 | BQ121: 4750.067857 | BR121: 4750.067857 | BS121: 4750.067857 | BT121: 4750.067857 | BU121: 4750.067857 | BV121: 4750.067857 | BW121: =$G$121/$H$121*BW120 -> 4750.067857 | BX121: 4750.067857 | BY121: 4750.067857 | BZ121: 4750.067857 | CA121: 4750.067857 | CB121: 4750.067857 | CC121: 4750.067857 | CD121: 4750.067857 | CE121: 4750.067857 | CF121: 4750.067857 | CG121: 4750.067857 | CH121: 4750.067857 | CI121: 4750.067857 | CJ121: 4750.067857 | CK121: 4750.067857 | CL121: 4750.067857 | CM121: 4750.067857 | CN121: 4750.067857 | CO121: 4750.067857 | CP121: 4750.067857 | CQ121: 4750.067857 | CR121: 4750.067857 | CS121: 4750.067857 | CT121: 4750.067857 | CU121: 4750.067857 | CV121: 4750.067857 | CW121: 4750.067857 | CX121: 4750.067857 | CY121: 4750.067857 | CZ121: 4750.067857 | DA121: 4750.067857 | DB121: 4750.067857 | DC121: 4750.067857 | DD121: 4750.067857 | DE121: 4750.067857 | DF121: 4750.067857 | DG121: 4750.067857 | DH121: 4750.067857 | DI121: 4750.067857 | DJ121: 4750.067857 | DK121: 4750.067857 | DL121: 4750.067857 | DM121: 4750.067857 | DN121: 4750.067857 | DO121: 4750.067857 | DP121: 4750.067857 | DQ121: 4750.067857 | DR121: 4750.067857 | DS121: 4750.067857 | DT121: 4750.067857 | DU121: 0 | DV121: 0 | DW121: 0 | DX121: 0 | DY121: 0 | DZ121: 0 | EA121: 0 | EB121: 0 | EC121: 0 | ED121: 0 | EE121: 0 | EF121: 0 | EG121: 0 | EH121: 0 | EI121: =$G$121/$H$121*EI120 -> 0 | EJ121: 0 | EK121: 0 | EL121: 0 | EM121: 0 | EN121: 0 | EO121: 0 | EP121: 0 | EQ121: 0 | ER121: 0 | ES121: 0 | ET121: 0 | EU121: 0 | EV121: 0 | EW121: 0 | EX121: 0 | EY121: 0 | EZ121: 0 | FA121: 0 | FB121: 0 | FC121: 0 | FD121: 0 | FE121: 0 | FF121: 0 | FG121: 0 | FH121: 0 | FI121: 0 | FJ121: 0 | FK121: 0 | FL121: 0 | FM121: 0 | FN121: 0 | FO121: 0 | FP121: 0 | FQ121: 0 | FR121: 0 | FS121: 0 | FT121: 0 | FU121: 0 | FV121: 0 | FW121: 0 | FX121: 0 | FY121: 0 | FZ121: 0 | GA121: 0 | GB121: 0 | GC121: 0 | GD121: 0 | GE121: 0 | GF121: 0 | GG121: 0 | GH121: 0 | GI121: 0 | GJ121: 0 | GK121: 0 | GL121: 0 | GM121: 0 | GN121: 0 | GO121: 0 | GP121: 0 | GQ121: 0 | GR121: 0 | GS121: 0 | GT121: 0 | GU121: =$G$121/$H$121*GU120 -> 0 | GV121: 0 | GW121: 0 | GX121: 0 | GY121: 0 | GZ121: 0 | HA121: 0
B123: Debt Balance
B124: Opening Balance | J124: =I127 -> 0 | K124: =J127 -> 3800 | L124: 7600 | M124: 11400 | N124: 15200 | O124: 19000 | P124: 30400 | Q124: 41800 | R124: 53200 | S124: 64600 | T124: 76000 | U124: 87400 | V124: 102600 | W124: 117800 | X124: 129200 | Y124: 148200 | Z124: 157320 | AA124: 183920 | AB124: 194777.1429 | AC124: 206291.1429 | AD124: 217148.2857 | AE124: 228005.4286 | AF124: 238862.5714 | AG124: 249719.7143 | AH124: 260576.8571 | AI124: 271434 | AJ124: 282291.1429 | AK124: 293148.2857 | AL124: 304005.4286 | AM124: 314862.5714 | AN124: 325719.7143 | AO124: 336576.8571 | AP124: 347434 | AQ124: 358291.1429 | AR124: 369148.2857 | AS124: 380005.4286 | AT124: 375255.3607 | AU124: 370505.2929 | AV124: 365755.225 | AW124: 361005.1571 | AX124: 356255.0893 | AY124: 351505.0214 | AZ124: 346754.9536 | BA124: 342004.8857 | BB124: 337254.8179 | BC124: 332504.75 | BD124: 327754.6821 | BE124: 323004.6143 | BF124: 318254.5464 | BG124: 313504.4786 | BH124: 308754.4107 | BI124: 304004.3429 | BJ124: 299254.275 | BK124: 294504.2071 | BL124: 289754.1393 | BM124: 285004.0714 | BN124: 280254.0036 | BO124: 275503.9357 | BP124: 270753.8679 | BQ124: 266003.8 | BR124: 261253.7321 | BS124: 256503.6643 | BT124: 251753.5964 | BU124: 247003.5286 | BV124: 242253.4607 | BW124: =BV127 -> 237503.3929 | BX124: 232753.325 | BY124: 228003.2571 | BZ124: 223253.1893 | CA124: 218503.1214 | CB124: 213753.0536 | CC124: 209002.9857 | CD124: 204252.9179 | CE124: 199502.85 | CF124: 194752.7821 | CG124: 190002.7143 | CH124: 185252.6464 | CI124: 180502.5786 | CJ124: 175752.5107 | CK124: 171002.4429 | CL124: 166252.375 | CM124: 161502.3071 | CN124: 156752.2393 | CO124: 152002.1714 | CP124: 147252.1036 | CQ124: 142502.0357 | CR124: 137751.9679 | CS124: 133001.9 | CT124: 128251.8321 | CU124: 123501.7643 | CV124: 118751.6964 | CW124: 114001.6286 | CX124: 109251.5607 | CY124: 104501.4929 | CZ124: 99751.425 | DA124: 95001.35714 | DB124: 90251.28929 | DC124: 85501.22143 | DD124: 80751.15357 | DE124: 76001.08571 | DF124: 71251.01786 | DG124: 66500.95 | DH124: 61750.88214 | DI124: 57000.81429 | DJ124: 52250.74643 | DK124: 47500.67857 | DL124: 42750.61071 | DM124: 38000.54286 | DN124: 33250.475 | DO124: 28500.40714 | DP124: 23750.33929 | DQ124: 19000.27143 | DR124: 14250.20357 | DS124: 9500.135714 | DT124: 4750.067857 | DU124: 6.020854926e-10 | DV124: 6.020854926e-10 | DW124: 6.020854926e-10 | DX124: 6.020854926e-10 | DY124: 6.020854926e-10 | DZ124: 6.020854926e-10 | EA124: 6.020854926e-10 | EB124: 6.020854926e-10 | EC124: 6.020854926e-10 | ED124: 6.020854926e-10 | EE124: 6.020854926e-10 | EF124: 6.020854926e-10 | EG124: 6.020854926e-10 | EH124: 6.020854926e-10 | EI124: =EH127 -> 6.020854926e-10 | EJ124: 6.020854926e-10 | EK124: 6.020854926e-10 | EL124: 6.020854926e-10 | EM124: 6.020854926e-10 | EN124: 6.020854926e-10 | EO124: 6.020854926e-10 | EP124: 6.020854926e-10 | EQ124: 6.020854926e-10 | ER124: 6.020854926e-10 | ES124: 6.020854926e-10 | ET124: 6.020854926e-10 | EU124: 6.020854926e-10 | EV124: 6.020854926e-10 | EW124: 6.020854926e-10 | EX124: 6.020854926e-10 | EY124: 6.020854926e-10 | EZ124: 6.020854926e-10 | FA124: 6.020854926e-10 | FB124: 6.020854926e-10 | FC124: 6.020854926e-10 | FD124: 6.020854926e-10 | FE124: 6.020854926e-10 | FF124: 6.020854926e-10 | FG124: 6.020854926e-10 | FH124: 6.020854926e-10 | FI124: 6.020854926e-10 | FJ124: 6.020854926e-10 | FK124: 6.020854926e-10 | FL124: 6.020854926e-10 | FM124: 6.020854926e-10 | FN124: 6.020854926e-10 | FO124: 6.020854926e-10 | FP124: 6.020854926e-10 | FQ124: 6.020854926e-10 | FR124: 6.020854926e-10 | FS124: 6.020854926e-10 | FT124: 6.020854926e-10 | FU124: 6.020854926e-10 | FV124: 6.020854926e-10 | FW124: 6.020854926e-10 | FX124: 6.020854926e-10 | FY124: 6.020854926e-10 | FZ124: 6.020854926e-10 | GA124: 6.020854926e-10 | GB124: 6.020854926e-10 | GC124: 6.020854926e-10 | GD124: 6.020854926e-10 | GE124: 6.020854926e-10 | GF124: 6.020854926e-10 | GG124: 6.020854926e-10 | GH124: 6.020854926e-10 | GI124: 6.020854926e-10 | GJ124: 6.020854926e-10 | GK124: 6.020854926e-10 | GL124: 6.020854926e-10 | GM124: 6.020854926e-10 | GN124: 6.020854926e-10 | GO124: 6.020854926e-10 | GP124: 6.020854926e-10 | GQ124: 6.020854926e-10 | GR124: 6.020854926e-10 | GS124: 6.020854926e-10 | GT124: 6.020854926e-10 | GU124: =GT127 -> 6.020854926e-10 | GV124: 6.020854926e-10 | GW124: 6.020854926e-10 | GX124: 6.020854926e-10 | GY124: 6.020854926e-10 | GZ124: 6.020854926e-10 | HA124: 6.020854926e-10
